Workbook

Sheet Cover
C3: NREL System Advisor Model (SAM) Power Purchase Agreement (PPA) Financial Models Workbook
C5: This workbook contains a worksheet for each of the PPA financial models in NREL's System Advisor Model (SAM).
C6: This is the model on which SAM's PPA financial models were based.
C7: The workbook contains three Visual Basic (VBA) modules that calculate the PPA price for each of the financial models.
C8: These models were finalized during the first quarter of 2011. The costs and other assumptions are from that period.
C10: This workbook is available for free download from the NREL SAM website:
D11: https://sam.nrel.gov/financial-models/utility-scale-ppa
C13: To use this workbook:
D14: 1. Review and modify the assumptions for the financial structure of interest on the Inputs and Results worksheet.
D15: The assumptions in Rows 1-76 of the worksheet are similar to the inputs on SAM's input pages.
D16: 2. In Cell M9 of the Inputs and Results worksheet, type the system's first year annual electrical output in kWh.
D17: If you are comparing worksheet results to SAM, you can use SAM's Annual Energy value for this input.
D18: 3. Click the Calculate PPA Price button in Row 79 of the Inputs and Results worksheet for the given financial structure.
D19: The results appear in the rows below the Calculate buttons.
D20: You can see the cash flow details on the worksheet for each financial structure.
C22: NREL adapted the equations and algorithms from these workbooks in 2011 to develop the financial models in SAM.
C23: NREL is providing these workbooks as part of SAM's documentation package. NREL maintains and updates the financial models
C24: in SAM, but does not maintain or update this workbook.
C25: For a description of the financial models, see SAM's Help system and the SAM website.
C26: NREL does not provide user support for this workbook.
C28: The System Advisor Model ("Model") is provided by the National Renewable Energy Laboratory ("NREL"), which is
C29: operated by the Alliance for Sustainable Energy, LLC ("Alliance") for the U.S. Department Of Energy ("DOE") and
C30: may be used for any purpose whatsoever.
C32: The names DOE/NREL/ALLIANCE shall not be used in any representation, advertising, publicity or other manner
C33: whatsoever to endorse or promote any entity that adopts or uses the Model. DOE/NREL/ALLIANCE shall not
C34: provide any support, consulting, training or assistance of any kind with regard to the use of the Model or any
C35: updates, revisions or new versions of the Model.
C37: YOU AGREE TO INDEMNIFY DOE/NREL/ALLIANCE, AND ITS AFFILIATES, OFFICERS, AGENTS, CONTRACTORS, AND
C38: EMPLOYEES AGAINST ANY CLAIM OR DEMAND, INCLUDING REASONABLE ATTORNEYS' FEES, RELATED TO
C39: YOUR USE, RELIANCE, OR ADOPTION OF THE MODEL FOR ANY PURPOSE WHATSOEVER. THE MODEL IS
C40: PROVIDED BYDOE/NREL/ALLIANCE "AS IS" AND ANY EXPRESS OR IMPLIED WARRANTIES, INCLUDING BUT
C41: NOT LIMITED TO THE IMPLIED WARRANTIES OF MERCHANTABILITY AND FITNESS FOR APARTICULAR
C42: PURPOSE ARE EXPRESSLY DISCLAIMED. IN NO EVENT SHALL DOE/NREL/ALLIANCE BE LIABLE FOR ANY
C43: SPECIAL, INDIRECT OR CONSEQUENTIAL DAMAGES OR ANY DAMAGES WHATSOEVER, INCLUDING BUT NOT
C44: LIMITED TO CLAIMS ASSOCIATED WITH THE LOSS OF DATA OR PROFITS,WHICH MAY RESULT FROMANY
C45: ACTION IN CONTRACT, NEGLIGENCE OR OTHER TORTIOUS CLAIM THAT ARISES OUT OF OR IN
C46: CONNECTION WITH THE USE OR PERFORMANCE OF THE MODEL.

Sheet Inputs & Results
A1: PROJECT SPECIFIC INPUTS
A2: CAPITAL COSTS - PRE FINANCING | D2: KEY | H2: TAXES AND INSURANCE | L2: ANNUAL PRODUCTION
A3: Hard Costs | D3: Denotes a formula or output | H3: Federal Tax Rate | J3: 0.35 | L3: Input Selected | M3: Initial Year Input
A4: Generation Equipment | B4: 24000000 | D4: Denotes input | H4: State Tax Rate | J4: 0.055 | L4: Initial Year Input
A5: Balance of Plant | B5: 8000000 | H5: Property Tax | L5: Initial Year (NCF-AC) | M5: 0.24
A6: Network Upgrades | B6: 3500000 | D6: SYSTEM | H6: Total Pre-Financing Installed Costs | J6: =PreFinancingInstalledCostTotal -> 40227150 | L6: Annual Degradation | M6: 0.005
A7: Subtotal | B7: =GenerationEquipment+BOP+NetworkUpgrades -> 35500000 | D7: Capacity (kW-DC) | F7: 10000 | H7: % of Pre-Financing Costs Assessed | J7: 0.95 | L7: Annual Inputs
A8: Contingency | D8: DC to AC Derate Factor | F8: 0.77 | H8: Assessed Value of Property fo Tax Pursposes | J8: =J6*J7 -> 38215792.5 | L8: Yr | M8: kWh (AC)
A9: Contingency (%) | B9: 0.01 | D9: Capacity (kW-AC) | F9: =CapacityDC*CapacityConversion -> 7700 | H9: Assessed Value Annual Decline | J9: 0.05 | L9: 1 | M9: 17000000
A10: Contingency ($) | B10: =B7*B9 -> 355000 | H10: Annual Property Tax Rate | J10: 0.0075 | L10: =L9+1 -> 2 | M10: =M9*0.995 -> 16915000
A11: Total Hard Costs | B11: =B7+ContingencyCost -> 35855000 | D11: GENERAL | H11: Sales Tax | J11: 0.055 | L11: 3 | M11: =M10*0.995 -> 16830425
A12: Soft Costs | D12: Analysis Period (yrs-40 max) | F12: 40 | H12: Insurance (% of Pre-Financing Installed Costs) | J12: 0.005 | L12: 4 | M12: 16746272.88
A13: Development Costs | B13: 2000000 | D13: Inflation Rate | F13: 0.015 | L13: 5 | M13: 16662541.51
A14: Land Improvements | B14: 200000 | D14: Nominal Discount Rate | F14: 0.08 | H14: MAJOR EQUIPMENT REPLACEMENT RESERVE | L14: 6 | M14: 16579228.8
A15: Other | B15: 75000 | D15: Interest on Reserves | F15: 0.0175 | H15: Major Equipment Reserve 1 | L15: 7 | M15: 16496332.66
A16: Subtotal | B16: =DevCost+LandImprovements+Other -> 2275000 | H16: Cost of Replacement (in year 1 $/DC-Watt) | J16: 0.25 | L16: 8 | M16: 16413851
A17: Sales Tax (% of Hard and Soft Costs) | D17: OPERATIONS AND MAINTENANCE COSTS | H17: Cost or Replacement (year 1 $) | J17: =MMCost*CapacityDC*1000 -> 2500000 | L17: 9 | M17: 16331781.74
A18: Taxable Costs (%) | B18: 1 | D18: Fixed Annual Cost | H18: Frequency (every X years) | J18: 12 | L18: 10 | M18: 16250122.83
A19: Total Sales Tax | B19: =(B11+B16)*J11*B18 -> 2097150 | D19: First Year Cost ($) | F19: 10000 | H19: Major Equipment Reserve 2 | L19: 11 | M19: 16168872.22
A20: Total Soft Costs | B20: =B16+SalesTaxTotal -> 4372150 | D20: Escalation (above inflation) | F20: 0.01 | H20: Cost of Replacement (in year 1 $/DC-Watt) | J20: 0 | L20: 12 | M20: 16088027.86
A21: Total Pre-Financing Installed Cost ($) | B21: =TotalHardCosts+TotalSoftCosts -> 40227150 | D21: Fixed Cost by Capacity | H21: Cost or Replacement (year 1 $) | J21: =MMCost2*CapacityDC*1000 -> 0 | L21: 13 | M21: 16007587.72
A22: Total Pre-Financing Installed Cost ($/Watt-DC) | B22: =PreFinancingInstalledCostTotal/(CapacityDC*1000) -> 4.022715 | D22: First Year Cost ($/DC kW-yr) | F22: 22 | H22: Frequency (every X years) | J22: 15 | L22: 14 | M22: 15927549.78
A23: Note: Total Installed Cost does not include financing costs. | D23: Escalation (above inflation) | F23: 0.0075 | H23: Major Equipment Reserve 3 | L23: 15 | M23: 15847912.03
D24: Variable Cost by Generation | H24: Cost of Replacement (in year 1 $/DC-Watt) | J24: 0 | L24: 16 | M24: 15768672.47
D25: First Year Cost ($/MWh) | F25: 3.5 | H25: Cost or Replacement (year 1 $) | J25: =MMCost3*CapacityDC*1000 -> 0 | L25: 17 | M25: 15689829.11
D26: Escalation (above inflation) | F26: 0 | H26: Frequency (every X years) | J26: 3 | L26: 18 | M26: 15611379.96
D27: Note: fossil fuel costs not included | H27: Depreciation Treatment for All Capital Expenditure | L27: 19 | M27: 15533323.06
H28: State | J28: 5-yr MACRS | L28: 20 | M28: 15455656.45
A29: TAX CREDIT INCENTIVES | H29: Federal | J29: 5-yr MACRS | L29: =L9+20 -> 21 | M29: 15378378.16
A30: Investment Tax Credit | D30: Reduces Depreciation Basis | L30: 22 | M30: 15301486.27
D31: Federal | E31: State | H31: SALVAGE VALUE | L31: 23 | M31: 15224978.84
A32: Amount ($) | H32: Net Pre-Tax Cash Salvage Value (% Pre-Finance Costs) | J32: 0.1 | L32: 24 | M32: 15148853.95
B33: Amount | H33: Net Pre-Tax Cash Salvage Value ($ at end of project) | J33: =SalvageValue*PreFinancingInstalledCostTotal -> 4022715 | L33: 25 | M33: 15073109.68
A34: Federal | B34: 0 | D34: Yes | E34: Yes | L34: 26 | M34: 14997744.13
A35: State | B35: 0 | D35: No | E35: Yes | L35: 27 | M35: 14922755.41
A36: Amount (%) | L36: 28 | M36: 14848141.63
B37: % | C37: Maximum | L37: 29 | M37: 14773900.92
A38: Federal | B38: 0.3 | C38: 1e+99 | D38: Yes | E38: Yes | L38: 30 | M38: 14700031.42
A39: State | B39: 0 | C39: 1e+99 | D39: No | E39: Yes | L39: 31 | M39: 14626531.26
A40: Production Tax Credit | L40: 32 | M40: 14553398.61
B41: Amount ($/kWh) | C41: Term (yrs) | L41: 33 | M41: 14480631.61
A42: Federal | B42: 0 | C42: 10 | L42: 34 | M42: 14408228.46
A43: State | B43: 0 | C43: 10 | L43: 35 | M43: 14336187.31
L44: 36 | M44: 14264506.38
L45: 37 | M45: 14193183.84
L46: 38 | M46: 14122217.93
L47: 39 | M47: 14051606.84
L48: 40 | M48: 13981348.8
A50: PAYMENT INCENTIVES
I51: Taxable Incentive | K51: Reduces Depreciation Basis
B52: Amount ($) | C52: Amount ($/DC-Watt) | D52: Amount ($/kWh) | E52: Percentage (% of Pre-Finance Costs) | F52: Maximum | G52: Term (Yrs) | H52: Escalation | I52: Federal | J52: State | K52: Federal | L52: State | M52: Available for Debt Service
A53: Investment Based Incentive (IBI)
A54: Fixed Amount ($)
A55: Federal | B55: 0 | I55: Yes | J55: Yes | K55: No | L55: No
A56: State | B56: 0 | I56: Yes | J56: Yes | K56: No | L56: No
A57: Utility | B57: 0 | I57: Yes | J57: Yes | K57: No | L57: No
A58: Other | B58: 0 | I58: Yes | J58: Yes | K58: No | L58: No
A59: Percentage of Pre-Financing Costs
A60: Federal | B60: =MIN(E60*PreFinancingInstalledCostTotal,F60) -> 0 | E60: 0 | F60: 1e+99 | I60: Yes | J60: Yes | K60: No | L60: No
A61: State | B61: =MIN(E61*PreFinancingInstalledCostTotal,F61) -> 0 | E61: 0 | F61: 1e+99 | I61: Yes | J61: Yes | K61: No | L61: No
A62: Utility | B62: =MIN(E62*PreFinancingInstalledCostTotal,F62) -> 0 | E62: 0 | F62: 1e+99 | I62: Yes | J62: Yes | K62: No | L62: No
A63: Other | B63: =MIN(E63*PreFinancingInstalledCostTotal,F63) -> 0 | E63: 0 | F63: 1e+99 | I63: Yes | J63: Yes | K63: No | L63: No
A64: Capacity Based Incentive (CBI) ($/DC-Watt)
A65: Federal | B65: =MIN(C65*CapacityDC*1000,F65) -> 0 | C65: 0 | F65: 1e+99 | I65: Yes | J65: Yes | K65: No | L65: No
A66: State | B66: =MIN(C66*CapacityDC*1000,F66) -> 0 | C66: 0 | F66: 1e+99 | I66: Yes | J66: Yes | K66: No | L66: No
A67: Utility | B67: =MIN(C67*CapacityDC*1000,F67) -> 0 | C67: 0 | F67: 1e+99 | I67: Yes | J67: Yes | K67: No | L67: No
A68: Other | B68: =MIN(C68*CapacityDC*1000,F68) -> 0 | C68: 0 | F68: 1e+99 | I68: Yes | J68: Yes | K68: No | L68: No
A69: Depreciable Basis Reduction
A70: Method of Depreciation Reduction | K70: 5-Yr MACRS | L70: 5-Yr MACRS
A71: Production Based Incentive (PBI) ($/kWh)
A72: Federal | D72: 0 | G72: 0 | H72: 0 | I72: Yes | J72: Yes | M72: No
A73: State | D73: 0 | G73: 0 | H73: 0 | I73: Yes | J73: Yes | M73: No
A74: Utility | D74: 0 | G74: 0 | H74: 0 | I74: Yes | J74: Yes | M74: No
A75: Other | D75: 0 | G75: 0 | H75: 0 | I75: Yes | J75: Yes | M75: No
A77: STRUCTURE SPECIFIC INPUTS & RESULTS
B78: All Equity Partnership Flip | C78: Leveraged Partnership Flip | D78: Sale Leaseback | E78: Single Owner
A79: Note: the "Calculate" buttons for each structure will solve for an initial year PPA Price required to yield the required investor return.
A80: Power Purchase Agreement (¢/kWh)
A81: Initial Year | B81: 36.82000571 | C81: 27.83099394 | D81: 41.68270819 | E81: 26.32264953
A82: Escalation | B82: 0.01 | C82: 0.01 | D82: 0.01 | E82: 0.01
A83: Returns
A84: Target Return Reached
A85: Target Year | B85: =AEPFFlipTargetYear -> 8 | C85: =LPFFlipTargetYear -> 8 | D85: =SLReturnTargetYear -> 20 | E85: =SOReturnTargetYear -> 20
A86: Actual Year (note, red highlight indicates further investigation required) | B86: ='All Equity Partnership Flip'!B150 -> 8 | C86: ='Leveraged Partnership Flip'!B159 -> 8 | D86: ='Sale Leaseback'!B174 -> 20 | E86: ='Single Owner'!B116 -> 20
A87: After-Tax Return in Target Year | B87: =LOOKUP(B85,'All Equity Partnership Flip'!$C$2:$AP$2,'All Equity Partnership Flip'!$C$146:$AP$146) -> 0.085 | C87: =LOOKUP(C85,'Leveraged Partnership Flip'!$C$2:$AP$2,'Leveraged Partnership Flip'!$C$155:$AP$155) -> 0.105 | D87: =LOOKUP(D85,'Sale Leaseback'!$C$2:$AP$2,'Sale Leaseback'!$C$170:$AP$170) -> 0.14 | E87: =LOOKUP(E85,'Single Owner'!$C$2:$AP$2,'Single Owner'!$C$112:$AP$112) -> 0.1
A88: LCOE (c/kWh) | B88: ='All Equity Partnership Flip'!B116*100 -> 40.90356614 | C88: ='Leveraged Partnership Flip'!B125*100 -> 30.91761881 | D88: ='Sale Leaseback'!B134*100 -> 46.30557161 | E88: ='Single Owner'!B128*100 -> 29.24198992
A89: Negative Net Benefit (after-tax negative return)
A90: Years with Negative Net Benefit | B90: ='All Equity Partnership Flip'!B107 -> 0 | C90: ='Leveraged Partnership Flip'!B116 -> 4 | E90: ='Single Owner'!B119 -> 6
A91: First year of Negative Net Benefit | B91: ='All Equity Partnership Flip'!B108 -> N/A | C91: ='Leveraged Partnership Flip'!B117 -> 23 | E91: ='Single Owner'!B120 -> 7
A92: Return (IRR & NPV) Points of Time
A93: Return Time 1 | B93: 8
A94: Return Time 2 | B94: 25
A95: Total Project/Single Owner
A96: ="IRR at Year - " &TEXT(ReturnTime1,"general") -> IRR at Year - 8
A97: Pre-Tax | B97: =LOOKUP(ReturnTime1,'All Equity Partnership Flip'!$C$2:$AP$2,'All Equity Partnership Flip'!$C$81:$AP$81) -> -0.0149 | C97: =LOOKUP(ReturnTime1,'Leveraged Partnership Flip'!$C$2:$AP$2,'Leveraged Partnership Flip'!$C$90:$AP$90) -> -0.1854 | E97: =LOOKUP(ReturnTime1,'Single Owner'!$C$2:$AP$2,'Single Owner'!$B$90:$AP$90) -> -0.2569
A98: After-Tax | B98: =LOOKUP(ReturnTime1,'All Equity Partnership Flip'!$C$2:$AP$2,'All Equity Partnership Flip'!$C$103:$AP$103) -> 0.0443 | C98: =LOOKUP(ReturnTime1,'Leveraged Partnership Flip'!$C$2:$AP$2,'Leveraged Partnership Flip'!$C$112:$AP$112) -> 0.105 | E98: =LOOKUP(ReturnTime1,'Single Owner'!$C$2:$AP$2,'Single Owner'!$C$112:$AP$112) -> 0.0168
A99: ="IRR at Year - " &TEXT(ReturnTime2,"general") -> IRR at Year - 25
A100: Pre-Tax | B100: =LOOKUP(ReturnTime2,'All Equity Partnership Flip'!$C$2:$AP$2,'All Equity Partnership Flip'!$C$81:$AP$81) -> 0.1107 | C100: =LOOKUP(ReturnTime2,'Leveraged Partnership Flip'!$C$2:$AP$2,'Leveraged Partnership Flip'!$C$90:$AP$90) -> 0.0615 | E100: =LOOKUP(ReturnTime2,'Single Owner'!$C$2:$AP$2,'Single Owner'!$B$90:$AP$90) -> 0.0524
A101: After-Tax | B101: =LOOKUP(ReturnTime2,'All Equity Partnership Flip'!$C$2:$AP$2,'All Equity Partnership Flip'!$C$103:$AP$103) -> 0.1289 | C101: =LOOKUP(ReturnTime2,'Leveraged Partnership Flip'!$C$2:$AP$2,'Leveraged Partnership Flip'!$C$112:$AP$112) -> 0.1514 | E101: =LOOKUP(ReturnTime2,'Single Owner'!$C$2:$AP$2,'Single Owner'!$C$112:$AP$112) -> 0.1126
A102: ="NPV at Year - " &TEXT(ReturnTime1,"general") -> NPV at Year - 8
A103: Pre-Tax | B103: =LOOKUP(ReturnTime1,'All Equity Partnership Flip'!$C$2:$AP$2,'All Equity Partnership Flip'!$C$82:$AP$82) -> -14452079.52 | C103: =LOOKUP(ReturnTime1,'Leveraged Partnership Flip'!$C$2:$AP$2,'Leveraged Partnership Flip'!$C$91:$AP$91) -> -16410162.46 | E103: =LOOKUP(ReturnTime1,'Single Owner'!$C$2:$AP$2,'Single Owner'!$C$91:$AP$91) -> -19542479.12
A104: After-Tax | B104: =LOOKUP(ReturnTime1,'All Equity Partnership Flip'!$C$2:$AP$2,'All Equity Partnership Flip'!$C$104:$AP$104) -> -4085983.168 | C104: =LOOKUP(ReturnTime1,'Leveraged Partnership Flip'!$C$2:$AP$2,'Leveraged Partnership Flip'!$C$113:$AP$113) -> 942031.3516 | E104: =LOOKUP(ReturnTime1,'Single Owner'!$C$2:$AP$2,'Single Owner'!$C$114:$AP$114) -> -2633425.797
A105: ="NPV at Year - " &TEXT(ReturnTime2,"general") -> NPV at Year - 25
A106: Pre-Tax | B106: =LOOKUP(ReturnTime2,'All Equity Partnership Flip'!$C$2:$AP$2,'All Equity Partnership Flip'!$C$82:$AP$82) -> 12324140.11 | C106: =LOOKUP(ReturnTime2,'Leveraged Partnership Flip'!$C$2:$AP$2,'Leveraged Partnership Flip'!$C$91:$AP$91) -> -4670842.231 | E106: =LOOKUP(ReturnTime2,'Single Owner'!$C$2:$AP$2,'Single Owner'!$C$91:$AP$91) -> -6815724.494
A107: After-Tax | B107: =LOOKUP(ReturnTime2,'All Equity Partnership Flip'!$C$2:$AP$2,'All Equity Partnership Flip'!$C$104:$AP$104) -> 12544938.55 | C107: =LOOKUP(ReturnTime2,'Leveraged Partnership Flip'!$C$2:$AP$2,'Leveraged Partnership Flip'!$C$113:$AP$113) -> 6348659.581 | E107: =LOOKUP(ReturnTime2,'Single Owner'!$C$2:$AP$2,'Single Owner'!$C$114:$AP$114) -> 3891302.419
A108: Tax Equity/Lessor
A109: ="IRR at Year - " &TEXT(ReturnTime1,"general") -> IRR at Year - 8
A110: Pre-Tax | B110: =LOOKUP(ReturnTime1,'All Equity Partnership Flip'!$C$2:$AP$2,'All Equity Partnership Flip'!$C$124:$AP$124) -> -0.0027 | C110: =LOOKUP(ReturnTime1,'Leveraged Partnership Flip'!$C$2:$AP$2,'Leveraged Partnership Flip'!$C$133:$AP$133) -> -0.1854 | D110: =LOOKUP(ReturnTime1,'Sale Leaseback'!$C$2:$AP$2,'Sale Leaseback'!$C$145:$AP$145) -> 0.0024
A111: After-Tax | B111: =LOOKUP(ReturnTime1,'All Equity Partnership Flip'!$C$2:$AP$2,'All Equity Partnership Flip'!$C$146:$AP$146) -> 0.085 | C111: =LOOKUP(ReturnTime1,'Leveraged Partnership Flip'!$C$2:$AP$2,'Leveraged Partnership Flip'!$C$155:$AP$155) -> 0.105 | D111: =LOOKUP(ReturnTime1,'Sale Leaseback'!$C$2:$AP$2,'Sale Leaseback'!$C$170:$AP$170) -> 0.0679
A112: ="IRR at Year - " &TEXT(ReturnTime2,"general") -> IRR at Year - 25
A113: Pre-Tax | B113: =LOOKUP(ReturnTime2,'All Equity Partnership Flip'!$C$2:$AP$2,'All Equity Partnership Flip'!$C$124:$AP$124) -> 0.0352 | C113: =LOOKUP(ReturnTime2,'Leveraged Partnership Flip'!$C$2:$AP$2,'Leveraged Partnership Flip'!$C$133:$AP$133) -> -0.0457 | D113: =LOOKUP(ReturnTime2,'Sale Leaseback'!$C$2:$AP$2,'Sale Leaseback'!$C$145:$AP$145) -> 0.1209
A114: After-Tax | B114: =LOOKUP(ReturnTime2,'All Equity Partnership Flip'!$C$2:$AP$2,'All Equity Partnership Flip'!$C$146:$AP$146) -> 0.1014 | C114: =LOOKUP(ReturnTime2,'Leveraged Partnership Flip'!$C$2:$AP$2,'Leveraged Partnership Flip'!$C$155:$AP$155) -> 0.1135 | D114: =LOOKUP(ReturnTime2,'Sale Leaseback'!$C$2:$AP$2,'Sale Leaseback'!$C$170:$AP$170) -> 0.1452
A115: ="NPV at Year - " &TEXT(ReturnTime1,"general") -> NPV at Year - 8
A116: Pre-Tax | B116: =LOOKUP(ReturnTime1,'All Equity Partnership Flip'!$C$2:$AP$2,'All Equity Partnership Flip'!$C$125:$AP$125) -> -9866513.107 | C116: =LOOKUP(ReturnTime1,'Leveraged Partnership Flip'!$C$2:$AP$2,'Leveraged Partnership Flip'!$C$134:$AP$134) -> -16081959.21 | D116: =LOOKUP(ReturnTime1,'Sale Leaseback'!$C$2:$AP$2,'Sale Leaseback'!$C$146:$AP$146) -> -11917691.3
A117: After-Tax | B117: =LOOKUP(ReturnTime1,'All Equity Partnership Flip'!$C$2:$AP$2,'All Equity Partnership Flip'!$C$148:$AP$148) -> 395922.2836 | C117: =LOOKUP(ReturnTime1,'Leveraged Partnership Flip'!$C$2:$AP$2,'Leveraged Partnership Flip'!$C$157:$AP$157) -> 923190.7246 | D117: =LOOKUP(ReturnTime1,'Sale Leaseback'!$C$2:$AP$2,'Sale Leaseback'!$C$172:$AP$172) -> -1399235.864
A118: ="NPV at Year - " &TEXT(ReturnTime2,"general") -> NPV at Year - 25
A119: Pre-Tax | B119: =LOOKUP(ReturnTime2,'All Equity Partnership Flip'!$C$2:$AP$2,'All Equity Partnership Flip'!$C$125:$AP$125) -> -7188891.144 | C119: =LOOKUP(ReturnTime2,'Leveraged Partnership Flip'!$C$2:$AP$2,'Leveraged Partnership Flip'!$C$134:$AP$134) -> -14908027.19 | D119: =LOOKUP(ReturnTime2,'Sale Leaseback'!$C$2:$AP$2,'Sale Leaseback'!$C$146:$AP$146) -> 16397899.87
A120: After-Tax | B120: =LOOKUP(ReturnTime2,'All Equity Partnership Flip'!$C$2:$AP$2,'All Equity Partnership Flip'!$C$148:$AP$148) -> 2059014.456 | C120: =LOOKUP(ReturnTime2,'Leveraged Partnership Flip'!$C$2:$AP$2,'Leveraged Partnership Flip'!$C$157:$AP$157) -> 1463853.548 | D120: =LOOKUP(ReturnTime2,'Sale Leaseback'!$C$2:$AP$2,'Sale Leaseback'!$C$172:$AP$172) -> 16650865.35
A121: Sponsor/Lessee
A122: ="IRR at Year - " &TEXT(ReturnTime1,"general") -> IRR at Year - 8
A123: Pre-Tax | B123: =LOOKUP(ReturnTime1,'All Equity Partnership Flip'!$C$2:$AP$2,'All Equity Partnership Flip'!$C$165:$AP$165) -> -0.0393 | C123: =LOOKUP(ReturnTime1,'Leveraged Partnership Flip'!$C$2:$AP$2,'Leveraged Partnership Flip'!$C$167:$AP$167) -> N/A | D123: =LOOKUP(ReturnTime1,'Sale Leaseback'!$C$2:$AP$2,'Sale Leaseback'!$C$186:$AP$186) -> 0.1302
A124: After-Tax | B124: =LOOKUP(ReturnTime1,'All Equity Partnership Flip'!$C$2:$AP$2,'All Equity Partnership Flip'!$C$197:$AP$197) -> -0.0512 | C124: =LOOKUP(ReturnTime1,'Leveraged Partnership Flip'!$C$2:$AP$2,'Leveraged Partnership Flip'!$C$198:$AP$198) -> N/A | D124: =LOOKUP(ReturnTime1,'Sale Leaseback'!$C$2:$AP$2,'Sale Leaseback'!$C$212:$AP$212) -> -0.1054
A125: ="IRR at Year - " &TEXT(ReturnTime2,"general") -> IRR at Year - 25
A126: Pre-Tax | B126: =LOOKUP(ReturnTime2,'All Equity Partnership Flip'!$C$2:$AP$2,'All Equity Partnership Flip'!$C$165:$AP$165) -> 0.1954 | C126: =LOOKUP(ReturnTime2,'Leveraged Partnership Flip'!$C$2:$AP$2,'Leveraged Partnership Flip'!$C$167:$AP$167) -> N/A | D126: =LOOKUP(ReturnTime2,'Sale Leaseback'!$C$2:$AP$2,'Sale Leaseback'!$C$186:$AP$186) -> 0.2135
A127: After-Tax | B127: =LOOKUP(ReturnTime2,'All Equity Partnership Flip'!$C$2:$AP$2,'All Equity Partnership Flip'!$C$197:$AP$197) -> 0.1595 | C127: =LOOKUP(ReturnTime2,'Leveraged Partnership Flip'!$C$2:$AP$2,'Leveraged Partnership Flip'!$C$198:$AP$198) -> N/A | D127: =LOOKUP(ReturnTime2,'Sale Leaseback'!$C$2:$AP$2,'Sale Leaseback'!$C$212:$AP$212) -> 0.0669
A128: ="NPV at Year - " &TEXT(ReturnTime1,"general") -> NPV at Year - 8
A129: Pre-Tax | B129: =LOOKUP(ReturnTime1,'All Equity Partnership Flip'!$C$2:$AP$2,'All Equity Partnership Flip'!$C$166:$AP$166) -> -3378751.915 | C129: =LOOKUP(ReturnTime1,'Leveraged Partnership Flip'!$C$2:$AP$2,'Leveraged Partnership Flip'!$C$168:$AP$168) -> 878611.2508 | D129: =LOOKUP(ReturnTime1,'Sale Leaseback'!$C$2:$AP$2,'Sale Leaseback'!$C$187:$AP$187) -> 465760.3689
A130: After-Tax | B130: =LOOKUP(ReturnTime1,'All Equity Partnership Flip'!$C$2:$AP$2,'All Equity Partnership Flip'!$C$198:$AP$198) -> -3706136.038 | C130: =LOOKUP(ReturnTime1,'Leveraged Partnership Flip'!$C$2:$AP$2,'Leveraged Partnership Flip'!$C$199:$AP$199) -> 794610.0406 | D130: =LOOKUP(ReturnTime1,'Sale Leaseback'!$C$2:$AP$2,'Sale Leaseback'!$C$213:$AP$213) -> -1568298.911
A131: ="NPV at Year - " &TEXT(ReturnTime2,"general") -> NPV at Year - 25
A132: Pre-Tax | B132: =LOOKUP(ReturnTime2,'All Equity Partnership Flip'!$C$2:$AP$2,'All Equity Partnership Flip'!$C$166:$AP$166) -> 20719845.75 | C132: =LOOKUP(ReturnTime2,'Leveraged Partnership Flip'!$C$2:$AP$2,'Leveraged Partnership Flip'!$C$168:$AP$168) -> 11443999.46 | D132: =LOOKUP(ReturnTime2,'Sale Leaseback'!$C$2:$AP$2,'Sale Leaseback'!$C$187:$AP$187) -> 3357302.844
A133: After-Tax | B133: =LOOKUP(ReturnTime2,'All Equity Partnership Flip'!$C$2:$AP$2,'All Equity Partnership Flip'!$C$198:$AP$198) -> 11261693.51 | C133: =LOOKUP(ReturnTime2,'Leveraged Partnership Flip'!$C$2:$AP$2,'Leveraged Partnership Flip'!$C$199:$AP$199) -> 5660575.447 | D133: =LOOKUP(ReturnTime2,'Sale Leaseback'!$C$2:$AP$2,'Sale Leaseback'!$C$213:$AP$213) -> -319792.1922
B134: =B$78 -> All Equity Partnership Flip | C134: =C$78 -> Leveraged Partnership Flip | D134: Sale Leaseback | E134: Single Owner
A135: Financing
A136: Construction Financing
A137: Construction Period (months) | B137: 10
A138: Interest Rate (%) | B138: 0.04
A139: Interest During Construction | B139: =PreFinancingInstalledCostTotal*(B138/12)*(B137/2) -> 670452.5
A140: Up-Front Fee (% of Pre-Financing Costs as 100% financing is assumed) | B140: 0.025
A141: Up-Front Fee ($) | B141: =B140*PreFinancingInstalledCostTotal -> 1005678.75
A142: Total Construction Financing Cost | B142: =B139+B141 -> 1676131.25
A143: Term Financing
A144: Is the Project Leveraged | C144: Yes | E144: Yes
A145: Debt Structure Selected | C145: Constant DSCR | E145: Constant DSCR
A146: Debt Amount Based on Structure Selected | C146: ='Leveraged Partnership Flip'!B607 -> 23404892.1 | E146: ='Single Owner'!B533 -> 19188121.71
A147: Debt Amount as % of Total Project Cost | C147: =LPFDebtAmount/LPFInstalledCostTotal -> 0.5162160181 | E147: =SODebtAmount/SOInstalledCostTotal -> 0.4372978861
A148: DSCR For Debt Selected
A149: Average | C149: =IF(LPFDebtStructure="Mortgage Style",'Leveraged Partnership Flip'!B661,'Leveraged Partnership Flip'!B641) -> 1.35 | E149: =IF(SODebtStructure="Mortgage Style",'Single Owner'!B587,'Single Owner'!B567) -> 1.35
A150: Minimum | C150: =IF(LPFDebtStructure="Mortgage Style",'Leveraged Partnership Flip'!B662,'Leveraged Partnership Flip'!B642) -> 1.35 | E150: =IF(SODebtStructure="Mortgage Style",'Single Owner'!B588,'Single Owner'!B568) -> 1.35
A152: Mortgage Style Amount (user Input)
A153: % of Pre-Financing Costs | C153: 0.55 | E153: 0.55
A154: Amount of Debt | C154: =IF(LPFDebtSwitch="No",0,C153*PreFinancingInstalledCostTotal) -> 22124932.5 | E154: =E153*PreFinancingInstalledCostTotal -> 22124932.5
A155: % of Total Project Cost | C155: =LPFMortgageAmount/LPFInstalledCostTotal -> 0.487985354 | E155: =SOMortgageAmount/SOInstalledCostTotal -> 0.5042278947
A156: Constant DSCR (calculated by model)
A157: Debt Service Coverage Ratio (if Constant DSCR Debt) | C157: 1.35 | E157: 1.35
A158: Amount of Debt | C158: ='Leveraged Partnership Flip'!B625 -> 23404892.1 | E158: ='Single Owner'!B551 -> 19188121.71
A159: Debt Terms & Costs
A160: Tenor (Yrs) | C160: 15 | E160: 13
A161: Annual All-In Interest Rate | C161: 0.0775 | E161: 0.085
A162: Debt Service Reserve Account (months P&I) | C162: 6 | E162: 6
A163: Debt Closing Costs (legal, third party consultants, etc.) | C163: 100000 | E163: 100000
A164: Up-Front Fee (% of Total Debt Amount) | C164: 0.015 | E164: 0.015
A165: Working Capital Reserve Account Sizing
A166: Months of Operating Costs | B166: 6 | C166: 6 | D166: 6 | E166: 6
A167: Capital Costs
A168: Financing
A169: Development Fee
A170: Amount (% of Pre-Financing Costs) | B170: 0.03 | C170: 0.03 | D170: 0.03
A171: Amount ($) | B171: =B170*PreFinancingInstalledCostTotal -> 1206814.5 | C171: =C170*PreFinancingInstalledCostTotal -> 1206814.5 | D171: =D170*PreFinancingInstalledCostTotal -> 1206814.5
A172: Debt Closing Costs (costs & fees)
A173: Closing Costs | C173: =C163 -> 100000 | E173: =E163 -> 100000
A174: Fees | C174: =C164*LPFDebtAmount -> 351073.3815 | E174: =E164*SODebtAmount -> 287821.8256
A175: Debt Closing Costs (costs & fees) | C175: =SUM(C173:C174) -> 451073.3815 | E175: =SUM(E173:E174) -> 387821.8256
A176: Equity Closing Costs | B176: 100000 | C176: 100000 | D176: 100000
A177: Debt Service Reserve | C177: ='Leveraged Partnership Flip'!B667 -> 1290961.105 | E177: ='Single Owner'!B593 -> 1200524.797
A178: Lease Payment Reserve | D178: ='Sale Leaseback'!B644 -> 3113558.505
A179: Construction Financing | B179: =B142 -> 1676131.25 | C179: =B142 -> 1676131.25 | D179: =B142 -> 1676131.25 | E179: =B142 -> 1676131.25
A180: Working Capital Reserve | B180: ='All Equity Partnership Flip'!B603 -> 387206.9369 | C180: ='Leveraged Partnership Flip'!B673 -> 387206.9369 | D180: ='Sale Leaseback'!B638 -> 387206.9369 | E180: ='Single Owner'!B599 -> 387206.9369
A181: Other Financing Cost | B181: 0 | C181: 0 | D181: 0 | E181: 0
A182: Total Financing | B182: =B171+B175+B176+B177+B178+B179+B180+B181 -> 3370152.687 | C182: =C171+C175+C176+C177+C178+C179+C180+C181 -> 5112187.174 | D182: =D171+D175+D176+D177+D178+D179+D180+D181 -> 6483711.192 | E182: =E171+E175+E176+E177+E178+E179+E180+E181 -> 3651684.81
A183: Summary
A184: Hard Costs | B184: =TotalHardCosts -> 35855000 | C184: =TotalHardCosts -> 35855000 | D184: =TotalHardCosts -> 35855000 | E184: =TotalHardCosts -> 35855000
A185: Soft Costs | B185: =TotalSoftCosts -> 4372150 | C185: =TotalSoftCosts -> 4372150 | D185: =TotalSoftCosts -> 4372150 | E185: =TotalSoftCosts -> 4372150
A186: Total Pre-Financing | B186: =SUM(B184:B185) -> 40227150 | C186: =SUM(C184:C185) -> 40227150 | D186: =SUM(D184:D185) -> 40227150 | E186: =SUM(E184:E185) -> 40227150
A187: Financing Costs | B187: =B182 -> 3370152.687 | C187: =C182 -> 5112187.174 | D187: 6483711.192 | E187: 3651684.81
A188: Total | B188: =SUM(B186:B187) -> 43597302.69 | C188: =SUM(C186:C187) -> 45339337.17 | D188: 46710861.19 | E188: 43878834.81
A189: Total($/DC-Watt) | B189: =B188/CapacityDC/1000 -> 4.359730269 | C189: =C188/CapacityDC/1000 -> 4.533933717 | D189: =D188/CapacityDC/1000 -> 4.671086119 | E189: =E188/CapacityDC/1000 -> 4.387883481
A190: Capital Structure
A191: Amount
A192: Equity | B192: =AEPFInstalledCostTotal-SUM(B194:B196) -> 43597302.69 | C192: =LPFInstalledCostTotal-SUM(C193:C196) -> 21934445.08 | D192: =SLInstalledCostTotal-SUM(D194:D196) -> 46710861.19 | E192: =SOInstalledCostTotal-SUM(E193:E196) -> 24690713.1
A193: Debt | C193: =LPFDebtAmount -> 23404892.1 | E193: =SODebtAmount -> 19188121.71
A194: IBI - Fixed Amount | B194: =IBIFedFixed+IBIStateFixed+IBIUtilityFixed+IBIOtherFixed -> 0 | C194: =IBIFedFixed+IBIStateFixed+IBIUtilityFixed+IBIOtherFixed -> 0 | D194: =IBIFedFixed+IBIStateFixed+IBIUtilityFixed+IBIOtherFixed -> 0 | E194: =IBIFedFixed+IBIStateFixed+IBIUtilityFixed+IBIOtherFixed -> 0
A195: IBI - Percent of Direct Cost | B195: =IBIFedPercent+IBIStatePercent+IBIUtilityPercent+IBIOtherPercent -> 0 | C195: =IBIFedPercent+IBIStatePercent+IBIUtilityPercent+IBIOtherPercent -> 0 | D195: =IBIFedPercent+IBIStatePercent+IBIUtilityPercent+IBIOtherPercent -> 0 | E195: =IBIFedPercent+IBIStatePercent+IBIUtilityPercent+IBIOtherPercent -> 0
A196: CBI | B196: =CBIFed+CBIState+CBIUtility+CBIOther -> 0 | C196: =CBIFed+CBIState+CBIUtility+CBIOther -> 0 | D196: =CBIFed+CBIState+CBIUtility+CBIOther -> 0 | E196: =CBIFed+CBIState+CBIUtility+CBIOther -> 0
A197: Total | B197: =SUM(B192:B196) -> 43597302.69 | C197: =SUM(C192:C196) -> 45339337.17 | D197: 46710861.19 | E197: 43878834.81
A198: Percentage
A199: Equity | B199: =B192/B$197 -> 1 | C199: =C192/C$197 -> 0.4837839819 | D199: =D192/D$197 -> 1 | E199: =E192/E$197 -> 0.5627021139
A200: Debt | C200: =C193/C$197 -> 0.5162160181 | E200: =E193/E$197 -> 0.4372978861
A201: IBI - Fixed Amount | B201: =B194/B$197 -> 0 | C201: =C194/C$197 -> 0 | D201: =D194/D$197 -> 0 | E201: 0
A202: IBI - Percent of Direct Cost | B202: =B195/B$197 -> 0 | C202: =C195/C$197 -> 0 | D202: =D195/D$197 -> 0 | E202: 0
A203: CBI | B203: =B196/B$197 -> 0 | C203: =C196/C$197 -> 0 | D203: =D196/D$197 -> 0 | E203: 0
... 94 more rows

Sheet All Equity Partnership Flip
A1: All Equity Partnership Flip
A2: Operating Year | B2: 0 | C2: =B2+1 -> 1 | D2: =C2+1 -> 2 | E2: 3 | F2: 4 | G2: 5 | H2: 6 | I2: 7 | J2: 8 | K2: 9 | L2: 10 | M2: 11 | N2: 12 | O2: 13 | P2: 14 | Q2: 15 | R2: 16 | S2: 17 | T2: 18 | U2: 19 | V2: 20 | W2: 21 | X2: 22 | Y2: 23 | Z2: 24 | AA2: 25 | AB2: 26 | AC2: 27 | AD2: 28 | AE2: 29 | AF2: =AE2+1 -> 30 | AG2: 31 | AH2: 32 | AI2: 33 | AJ2: 34 | AK2: 35 | AL2: 36 | AM2: =AL2+1 -> 37 | AN2: 38 | AO2: 39 | AP2: 40
A4: Production (AC-kWh)
A5: Net Production (AC-kWh) | C5: =IF(C$2<=AnalysisPeriod,IF('Inputs & Results'!$M$3="Annual Inputs",LOOKUP(C$2,'Inputs & Results'!$L$9:$L$48,'Inputs & Results'!$M$9:$M$48),'Inputs & Results'!$M$5*CapacityAC*8760*(1-'Inputs & Results'!$M$6)^(C$2-1)),0) -> 16188480 | D5: =IF(D$2<=AnalysisPeriod,IF('Inputs & Results'!$M$3="Annual Inputs",LOOKUP(D$2,'Inputs & Results'!$L$9:$L$48,'Inputs & Results'!$M$9:$M$48),'Inputs & Results'!$M$5*CapacityAC*8760*(1-'Inputs & Results'!$M$6)^(D$2-1)),0) -> 16107537.6 | E5: =IF(E$2<=AnalysisPeriod,IF('Inputs & Results'!$M$3="Annual Inputs",LOOKUP(E$2,'Inputs & Results'!$L$9:$L$48,'Inputs & Results'!$M$9:$M$48),'Inputs & Results'!$M$5*CapacityAC*8760*(1-'Inputs & Results'!$M$6)^(E$2-1)),0) -> 16026999.91 | F5: =IF(F$2<=AnalysisPeriod,IF('Inputs & Results'!$M$3="Annual Inputs",LOOKUP(F$2,'Inputs & Results'!$L$9:$L$48,'Inputs & Results'!$M$9:$M$48),'Inputs & Results'!$M$5*CapacityAC*8760*(1-'Inputs & Results'!$M$6)^(F$2-1)),0) -> 15946864.91 | G5: =IF(G$2<=AnalysisPeriod,IF('Inputs & Results'!$M$3="Annual Inputs",LOOKUP(G$2,'Inputs & Results'!$L$9:$L$48,'Inputs & Results'!$M$9:$M$48),'Inputs & Results'!$M$5*CapacityAC*8760*(1-'Inputs & Results'!$M$6)^(G$2-1)),0) -> 15867130.59 | H5: =IF(H$2<=AnalysisPeriod,IF('Inputs & Results'!$M$3="Annual Inputs",LOOKUP(H$2,'Inputs & Results'!$L$9:$L$48,'Inputs & Results'!$M$9:$M$48),'Inputs & Results'!$M$5*CapacityAC*8760*(1-'Inputs & Results'!$M$6)^(H$2-1)),0) -> 15787794.93 | I5: =IF(I$2<=AnalysisPeriod,IF('Inputs & Results'!$M$3="Annual Inputs",LOOKUP(I$2,'Inputs & Results'!$L$9:$L$48,'Inputs & Results'!$M$9:$M$48),'Inputs & Results'!$M$5*CapacityAC*8760*(1-'Inputs & Results'!$M$6)^(I$2-1)),0) -> 15708855.96 | J5: =IF(J$2<=AnalysisPeriod,IF('Inputs & Results'!$M$3="Annual Inputs",LOOKUP(J$2,'Inputs & Results'!$L$9:$L$48,'Inputs & Results'!$M$9:$M$48),'Inputs & Results'!$M$5*CapacityAC*8760*(1-'Inputs & Results'!$M$6)^(J$2-1)),0) -> 15630311.68 | K5: =IF(K$2<=AnalysisPeriod,IF('Inputs & Results'!$M$3="Annual Inputs",LOOKUP(K$2,'Inputs & Results'!$L$9:$L$48,'Inputs & Results'!$M$9:$M$48),'Inputs & Results'!$M$5*CapacityAC*8760*(1-'Inputs & Results'!$M$6)^(K$2-1)),0) -> 15552160.12 | L5: =IF(L$2<=AnalysisPeriod,IF('Inputs & Results'!$M$3="Annual Inputs",LOOKUP(L$2,'Inputs & Results'!$L$9:$L$48,'Inputs & Results'!$M$9:$M$48),'Inputs & Results'!$M$5*CapacityAC*8760*(1-'Inputs & Results'!$M$6)^(L$2-1)),0) -> 15474399.32 | M5: =IF(M$2<=AnalysisPeriod,IF('Inputs & Results'!$M$3="Annual Inputs",LOOKUP(M$2,'Inputs & Results'!$L$9:$L$48,'Inputs & Results'!$M$9:$M$48),'Inputs & Results'!$M$5*CapacityAC*8760*(1-'Inputs & Results'!$M$6)^(M$2-1)),0) -> 15397027.32 | N5: =IF(N$2<=AnalysisPeriod,IF('Inputs & Results'!$M$3="Annual Inputs",LOOKUP(N$2,'Inputs & Results'!$L$9:$L$48,'Inputs & Results'!$M$9:$M$48),'Inputs & Results'!$M$5*CapacityAC*8760*(1-'Inputs & Results'!$M$6)^(N$2-1)),0) -> 15320042.19 | O5: =IF(O$2<=AnalysisPeriod,IF('Inputs & Results'!$M$3="Annual Inputs",LOOKUP(O$2,'Inputs & Results'!$L$9:$L$48,'Inputs & Results'!$M$9:$M$48),'Inputs & Results'!$M$5*CapacityAC*8760*(1-'Inputs & Results'!$M$6)^(O$2-1)),0) -> 15243441.98 | P5: =IF(P$2<=AnalysisPeriod,IF('Inputs & Results'!$M$3="Annual Inputs",LOOKUP(P$2,'Inputs & Results'!$L$9:$L$48,'Inputs & Results'!$M$9:$M$48),'Inputs & Results'!$M$5*CapacityAC*8760*(1-'Inputs & Results'!$M$6)^(P$2-1)),0) -> 15167224.77 | Q5: =IF(Q$2<=AnalysisPeriod,IF('Inputs & Results'!$M$3="Annual Inputs",LOOKUP(Q$2,'Inputs & Results'!$L$9:$L$48,'Inputs & Results'!$M$9:$M$48),'Inputs & Results'!$M$5*CapacityAC*8760*(1-'Inputs & Results'!$M$6)^(Q$2-1)),0) -> 15091388.64 | R5: =IF(R$2<=AnalysisPeriod,IF('Inputs & Results'!$M$3="Annual Inputs",LOOKUP(R$2,'Inputs & Results'!$L$9:$L$48,'Inputs & Results'!$M$9:$M$48),'Inputs & Results'!$M$5*CapacityAC*8760*(1-'Inputs & Results'!$M$6)^(R$2-1)),0) -> 15015931.7 | S5: =IF(S$2<=AnalysisPeriod,IF('Inputs & Results'!$M$3="Annual Inputs",LOOKUP(S$2,'Inputs & Results'!$L$9:$L$48,'Inputs & Results'!$M$9:$M$48),'Inputs & Results'!$M$5*CapacityAC*8760*(1-'Inputs & Results'!$M$6)^(S$2-1)),0) -> 14940852.04 | T5: =IF(T$2<=AnalysisPeriod,IF('Inputs & Results'!$M$3="Annual Inputs",LOOKUP(T$2,'Inputs & Results'!$L$9:$L$48,'Inputs & Results'!$M$9:$M$48),'Inputs & Results'!$M$5*CapacityAC*8760*(1-'Inputs & Results'!$M$6)^(T$2-1)),0) -> 14866147.78 | U5: =IF(U$2<=AnalysisPeriod,IF('Inputs & Results'!$M$3="Annual Inputs",LOOKUP(U$2,'Inputs & Results'!$L$9:$L$48,'Inputs & Results'!$M$9:$M$48),'Inputs & Results'!$M$5*CapacityAC*8760*(1-'Inputs & Results'!$M$6)^(U$2-1)),0) -> 14791817.04 | V5: =IF(V$2<=AnalysisPeriod,IF('Inputs & Results'!$M$3="Annual Inputs",LOOKUP(V$2,'Inputs & Results'!$L$9:$L$48,'Inputs & Results'!$M$9:$M$48),'Inputs & Results'!$M$5*CapacityAC*8760*(1-'Inputs & Results'!$M$6)^(V$2-1)),0) -> 14717857.96 | W5: =IF(W$2<=AnalysisPeriod,IF('Inputs & Results'!$M$3="Annual Inputs",LOOKUP(W$2,'Inputs & Results'!$L$9:$L$48,'Inputs & Results'!$M$9:$M$48),'Inputs & Results'!$M$5*CapacityAC*8760*(1-'Inputs & Results'!$M$6)^(W$2-1)),0) -> 14644268.67 | X5: =IF(X$2<=AnalysisPeriod,IF('Inputs & Results'!$M$3="Annual Inputs",LOOKUP(X$2,'Inputs & Results'!$L$9:$L$48,'Inputs & Results'!$M$9:$M$48),'Inputs & Results'!$M$5*CapacityAC*8760*(1-'Inputs & Results'!$M$6)^(X$2-1)),0) -> 14571047.32 | Y5: =IF(Y$2<=AnalysisPeriod,IF('Inputs & Results'!$M$3="Annual Inputs",LOOKUP(Y$2,'Inputs & Results'!$L$9:$L$48,'Inputs & Results'!$M$9:$M$48),'Inputs & Results'!$M$5*CapacityAC*8760*(1-'Inputs & Results'!$M$6)^(Y$2-1)),0) -> 14498192.09 | Z5: =IF(Z$2<=AnalysisPeriod,IF('Inputs & Results'!$M$3="Annual Inputs",LOOKUP(Z$2,'Inputs & Results'!$L$9:$L$48,'Inputs & Results'!$M$9:$M$48),'Inputs & Results'!$M$5*CapacityAC*8760*(1-'Inputs & Results'!$M$6)^(Z$2-1)),0) -> 14425701.13 | AA5: =IF(AA$2<=AnalysisPeriod,IF('Inputs & Results'!$M$3="Annual Inputs",LOOKUP(AA$2,'Inputs & Results'!$L$9:$L$48,'Inputs & Results'!$M$9:$M$48),'Inputs & Results'!$M$5*CapacityAC*8760*(1-'Inputs & Results'!$M$6)^(AA$2-1)),0) -> 14353572.62 | AB5: =IF(AB$2<=AnalysisPeriod,IF('Inputs & Results'!$M$3="Annual Inputs",LOOKUP(AB$2,'Inputs & Results'!$L$9:$L$48,'Inputs & Results'!$M$9:$M$48),'Inputs & Results'!$M$5*CapacityAC*8760*(1-'Inputs & Results'!$M$6)^(AB$2-1)),0) -> 14281804.76 | AC5: =IF(AC$2<=AnalysisPeriod,IF('Inputs & Results'!$M$3="Annual Inputs",LOOKUP(AC$2,'Inputs & Results'!$L$9:$L$48,'Inputs & Results'!$M$9:$M$48),'Inputs & Results'!$M$5*CapacityAC*8760*(1-'Inputs & Results'!$M$6)^(AC$2-1)),0) -> 14210395.73 | AD5: =IF(AD$2<=AnalysisPeriod,IF('Inputs & Results'!$M$3="Annual Inputs",LOOKUP(AD$2,'Inputs & Results'!$L$9:$L$48,'Inputs & Results'!$M$9:$M$48),'Inputs & Results'!$M$5*CapacityAC*8760*(1-'Inputs & Results'!$M$6)^(AD$2-1)),0) -> 14139343.76 | AE5: =IF(AE$2<=AnalysisPeriod,IF('Inputs & Results'!$M$3="Annual Inputs",LOOKUP(AE$2,'Inputs & Results'!$L$9:$L$48,'Inputs & Results'!$M$9:$M$48),'Inputs & Results'!$M$5*CapacityAC*8760*(1-'Inputs & Results'!$M$6)^(AE$2-1)),0) -> 14068647.04 | AF5: =IF(AF$2<=AnalysisPeriod,IF('Inputs & Results'!$M$3="Annual Inputs",LOOKUP(AF$2,'Inputs & Results'!$L$9:$L$48,'Inputs & Results'!$M$9:$M$48),'Inputs & Results'!$M$5*CapacityAC*8760*(1-'Inputs & Results'!$M$6)^(AF$2-1)),0) -> 13998303.8 | AG5: =IF(AG$2<=AnalysisPeriod,IF('Inputs & Results'!$M$3="Annual Inputs",LOOKUP(AG$2,'Inputs & Results'!$L$9:$L$48,'Inputs & Results'!$M$9:$M$48),'Inputs & Results'!$M$5*CapacityAC*8760*(1-'Inputs & Results'!$M$6)^(AG$2-1)),0) -> 13928312.28 | AH5: =IF(AH$2<=AnalysisPeriod,IF('Inputs & Results'!$M$3="Annual Inputs",LOOKUP(AH$2,'Inputs & Results'!$L$9:$L$48,'Inputs & Results'!$M$9:$M$48),'Inputs & Results'!$M$5*CapacityAC*8760*(1-'Inputs & Results'!$M$6)^(AH$2-1)),0) -> 13858670.72 | AI5: =IF(AI$2<=AnalysisPeriod,IF('Inputs & Results'!$M$3="Annual Inputs",LOOKUP(AI$2,'Inputs & Results'!$L$9:$L$48,'Inputs & Results'!$M$9:$M$48),'Inputs & Results'!$M$5*CapacityAC*8760*(1-'Inputs & Results'!$M$6)^(AI$2-1)),0) -> 13789377.37 | AJ5: =IF(AJ$2<=AnalysisPeriod,IF('Inputs & Results'!$M$3="Annual Inputs",LOOKUP(AJ$2,'Inputs & Results'!$L$9:$L$48,'Inputs & Results'!$M$9:$M$48),'Inputs & Results'!$M$5*CapacityAC*8760*(1-'Inputs & Results'!$M$6)^(AJ$2-1)),0) -> 13720430.48 | AK5: =IF(AK$2<=AnalysisPeriod,IF('Inputs & Results'!$M$3="Annual Inputs",LOOKUP(AK$2,'Inputs & Results'!$L$9:$L$48,'Inputs & Results'!$M$9:$M$48),'Inputs & Results'!$M$5*CapacityAC*8760*(1-'Inputs & Results'!$M$6)^(AK$2-1)),0) -> 13651828.33 | AL5: =IF(AL$2<=AnalysisPeriod,IF('Inputs & Results'!$M$3="Annual Inputs",LOOKUP(AL$2,'Inputs & Results'!$L$9:$L$48,'Inputs & Results'!$M$9:$M$48),'Inputs & Results'!$M$5*CapacityAC*8760*(1-'Inputs & Results'!$M$6)^(AL$2-1)),0) -> 13583569.19 | AM5: =IF(AM$2<=AnalysisPeriod,IF('Inputs & Results'!$M$3="Annual Inputs",LOOKUP(AM$2,'Inputs & Results'!$L$9:$L$48,'Inputs & Results'!$M$9:$M$48),'Inputs & Results'!$M$5*CapacityAC*8760*(1-'Inputs & Results'!$M$6)^(AM$2-1)),0) -> 13515651.34 | AN5: =IF(AN$2<=AnalysisPeriod,IF('Inputs & Results'!$M$3="Annual Inputs",LOOKUP(AN$2,'Inputs & Results'!$L$9:$L$48,'Inputs & Results'!$M$9:$M$48),'Inputs & Results'!$M$5*CapacityAC*8760*(1-'Inputs & Results'!$M$6)^(AN$2-1)),0) -> 13448073.08 | AO5: =IF(AO$2<=AnalysisPeriod,IF('Inputs & Results'!$M$3="Annual Inputs",LOOKUP(AO$2,'Inputs & Results'!$L$9:$L$48,'Inputs & Results'!$M$9:$M$48),'Inputs & Results'!$M$5*CapacityAC*8760*(1-'Inputs & Results'!$M$6)^(AO$2-1)),0) -> 13380832.72 | AP5: =IF(AP$2<=AnalysisPeriod,IF('Inputs & Results'!$M$3="Annual Inputs",LOOKUP(AP$2,'Inputs & Results'!$L$9:$L$48,'Inputs & Results'!$M$9:$M$48),'Inputs & Results'!$M$5*CapacityAC*8760*(1-'Inputs & Results'!$M$6)^(AP$2-1)),0) -> 13313928.56
A7: Partial Income Statement: Project
A8: Revenues
A9: PPA
A10: Net Production (AC-kWh) | C10: =C5 -> 16188480 | D10: =D5 -> 16107537.6 | E10: =E5 -> 16026999.91 | F10: =F5 -> 15946864.91 | G10: 15867130.59 | H10: 15787794.93 | I10: 15708855.96 | J10: 15630311.68 | K10: 15552160.12 | L10: 15474399.32 | M10: 15397027.32 | N10: 15320042.19 | O10: 15243441.98 | P10: 15167224.77 | Q10: 15091388.64 | R10: 15015931.7 | S10: 14940852.04 | T10: 14866147.78 | U10: 14791817.04 | V10: 14717857.96 | W10: 14644268.67 | X10: 14571047.32 | Y10: 14498192.09 | Z10: 14425701.13 | AA10: 14353572.62 | AB10: 14281804.76 | AC10: 14210395.73 | AD10: 14139343.76 | AE10: 14068647.04 | AF10: 13998303.8 | AG10: 13928312.28 | AH10: 13858670.72 | AI10: 13789377.37 | AJ10: 13720430.48 | AK10: 13651828.33 | AL10: 13583569.19 | AM10: 13515651.34 | AN10: 13448073.08 | AO10: 13380832.72 | AP10: 13313928.56
A11: Price (¢/kWh) | C11: =AEPFPPAPrice*(1+AEPFPPAPriceEsc)^B2 -> 36.82000571 | D11: 37.18820577 | E11: 37.56008783 | F11: 37.9356887 | G11: 38.31504559 | H11: 38.69819605 | I11: 39.08517801 | J11: 39.47602979 | K11: 39.87079009 | L11: 40.26949799 | M11: 40.67219297 | N11: 41.0789149 | O11: 41.48970404 | P11: 41.90460108 | Q11: 42.3236471 | R11: 42.74688357 | S11: 43.1743524 | T11: 43.60609593 | U11: 44.04215689 | V11: 44.48257845 | W11: 44.92740424 | X11: 45.37667828 | Y11: 45.83044506 | Z11: 46.28874951 | AA11: 46.75163701 | AB11: 47.21915338 | AC11: 47.69134491 | AD11: 48.16825836 | AE11: 48.64994095 | AF11: 49.13644036 | AG11: 49.62780476 | AH11: 50.12408281 | AI11: 50.62532364 | AJ11: 51.13157687 | AK11: 51.64289264 | AL11: 52.15932157 | AM11: 52.68091478 | AN11: 53.20772393 | AO11: 53.73980117 | AP11: 54.27719918
A12: Total PPA Revenue | C12: =C10*C11/100 -> 5960599.26 | D12: 5990104.227 | E12: 6019755.243 | F12: 6049553.031 | G12: 6079498.319 | H12: 6109591.835 | I12: 6139834.315 | J12: 6170226.495 | K12: 6200769.116 | L12: 6231462.923 | M12: 6262308.665 | N12: 6293307.092 | O12: 6324458.963 | P12: 6355765.034 | Q12: 6387226.071 | R12: 6418842.84 | S12: 6450616.112 | T12: 6482546.662 | U12: 6514635.268 | V12: 6546882.713 | W12: 6579289.782 | X12: 6611857.267 | Y12: 6644585.96 | Z12: 6677476.661 | AA12: 6710530.17 | AB12: 6743747.294 | AC12: 6777128.844 | AD12: 6810675.631 | AE12: 6844388.476 | AF12: 6878268.199 | AG12: 6912315.626 | AH12: 6946531.589 | AI12: 6980916.92 | AJ12: 7015472.459 | AK12: 7050199.047 | AL12: 7085097.533 | AM12: 7120168.765 | AN12: 7155413.601 | AO12: 7190832.898 | AP12: 7226427.521
A13: Production Based Incentive
A14: ='Inputs & Results'!A65 -> Federal | C14: =C584 -> 0 | D14: =D584 -> 0 | E14: 0 | F14: 0 | G14: 0 | H14: 0 | I14: 0 | J14: 0 | K14: 0 | L14: 0 | M14: 0 | N14: 0 | O14: 0 | P14: 0 | Q14: 0 | R14: 0 | S14: 0 | T14: 0 | U14: 0 | V14: 0 | W14: 0 | X14: 0 | Y14: 0 | Z14: 0 | AA14: 0 | AB14: 0 | AC14: 0 | AD14: 0 | AE14: 0 | AF14: 0 | AG14: 0 | AH14: 0 | AI14: 0 | AJ14: 0 | AK14: 0 | AL14: 0 | AM14: 0 | AN14: 0 | AO14: 0 | AP14: 0
A15: ='Inputs & Results'!A66 -> State | C15: =C588 -> 0 | D15: =D588 -> 0 | E15: 0 | F15: 0 | G15: 0 | H15: 0 | I15: 0 | J15: 0 | K15: 0 | L15: 0 | M15: 0 | N15: 0 | O15: 0 | P15: 0 | Q15: 0 | R15: 0 | S15: 0 | T15: 0 | U15: 0 | V15: 0 | W15: 0 | X15: 0 | Y15: 0 | Z15: 0 | AA15: 0 | AB15: 0 | AC15: 0 | AD15: 0 | AE15: 0 | AF15: 0 | AG15: 0 | AH15: 0 | AI15: 0 | AJ15: 0 | AK15: 0 | AL15: 0 | AM15: 0 | AN15: 0 | AO15: 0 | AP15: 0
A16: ='Inputs & Results'!A67 -> Utility | C16: =C592 -> 0 | D16: =D592 -> 0 | E16: 0 | F16: 0 | G16: 0 | H16: 0 | I16: 0 | J16: 0 | K16: 0 | L16: 0 | M16: 0 | N16: 0 | O16: 0 | P16: 0 | Q16: 0 | R16: 0 | S16: 0 | T16: 0 | U16: 0 | V16: 0 | W16: 0 | X16: 0 | Y16: 0 | Z16: 0 | AA16: 0 | AB16: 0 | AC16: 0 | AD16: 0 | AE16: 0 | AF16: 0 | AG16: 0 | AH16: 0 | AI16: 0 | AJ16: 0 | AK16: 0 | AL16: 0 | AM16: 0 | AN16: 0 | AO16: 0 | AP16: 0
A17: ='Inputs & Results'!A68 -> Other | C17: =C596 -> 0 | D17: =D596 -> 0 | E17: 0 | F17: 0 | G17: 0 | H17: 0 | I17: 0 | J17: 0 | K17: 0 | L17: 0 | M17: 0 | N17: 0 | O17: 0 | P17: 0 | Q17: 0 | R17: 0 | S17: 0 | T17: 0 | U17: 0 | V17: 0 | W17: 0 | X17: 0 | Y17: 0 | Z17: 0 | AA17: 0 | AB17: 0 | AC17: 0 | AD17: 0 | AE17: 0 | AF17: 0 | AG17: 0 | AH17: 0 | AI17: 0 | AJ17: 0 | AK17: 0 | AL17: 0 | AM17: 0 | AN17: 0 | AO17: 0 | AP17: 0
A18: Total PBI | C18: =SUM(C14:C17) -> 0 | D18: =SUM(D14:D17) -> 0 | E18: 0 | F18: 0 | G18: 0 | H18: 0 | I18: 0 | J18: 0 | K18: 0 | L18: 0 | M18: 0 | N18: 0 | O18: 0 | P18: 0 | Q18: 0 | R18: 0 | S18: 0 | T18: 0 | U18: 0 | V18: 0 | W18: 0 | X18: 0 | Y18: 0 | Z18: 0 | AA18: 0 | AB18: 0 | AC18: 0 | AD18: 0 | AE18: 0 | AF18: 0 | AG18: 0 | AH18: 0 | AI18: 0 | AJ18: 0 | AK18: 0 | AL18: 0 | AM18: 0 | AN18: 0 | AO18: 0 | AP18: 0
A19: Salvage Value | C19: =IF(C2=AnalysisPeriod,SalvageValue*PreFinancingInstalledCostTotal,0) -> 0 | D19: 0 | E19: 0 | F19: 0 | G19: 0 | H19: 0 | I19: 0 | J19: 0 | K19: 0 | L19: 0 | M19: 0 | N19: 0 | O19: 0 | P19: 0 | Q19: 0 | R19: 0 | S19: 0 | T19: 0 | U19: 0 | V19: 0 | W19: 0 | X19: 0 | Y19: 0 | Z19: 0 | AA19: 0 | AB19: 0 | AC19: 0 | AD19: 0 | AE19: 0 | AF19: 0 | AG19: 0 | AH19: 0 | AI19: 0 | AJ19: 0 | AK19: 0 | AL19: 0 | AM19: 0 | AN19: 0 | AO19: 0 | AP19: 4022715
A20: Total Revenue | C20: =C12+C18+C19 -> 5960599.26 | D20: 5990104.227 | E20: 6019755.243 | F20: 6049553.031 | G20: 6079498.319 | H20: 6109591.835 | I20: 6139834.315 | J20: 6170226.495 | K20: 6200769.116 | L20: 6231462.923 | M20: 6262308.665 | N20: 6293307.092 | O20: 6324458.963 | P20: 6355765.034 | Q20: 6387226.071 | R20: 6418842.84 | S20: 6450616.112 | T20: 6482546.662 | U20: 6514635.268 | V20: 6546882.713 | W20: 6579289.782 | X20: 6611857.267 | Y20: 6644585.96 | Z20: 6677476.661 | AA20: 6710530.17 | AB20: 6743747.294 | AC20: 6777128.844 | AD20: 6810675.631 | AE20: 6844388.476 | AF20: 6878268.199 | AG20: 6912315.626 | AH20: 6946531.589 | AI20: 6980916.92 | AJ20: 7015472.459 | AK20: 7050199.047 | AL20: 7085097.533 | AM20: 7120168.765 | AN20: 7155413.601 | AO20: 7190832.898 | AP20: 11249142.52
A22: Expenses
A23: Fixed Annual Cost | C23: =IF(C$2<=AnalysisPeriod,OMFixedAnnual*(1+Inflation+OMFixedAnnualRealEsc)^B$2,0) -> 10000 | D23: 10250 | E23: 10506.25 | F23: 10768.90625 | G23: 11038.12891 | H23: 11314.08213 | I23: 11596.93418 | J23: 11886.85754 | K23: 12184.02898 | L23: 12488.6297 | M23: 12800.84544 | N23: 13120.86658 | O23: 13448.88824 | P23: 13785.11045 | Q23: 14129.73821 | R23: 14482.98166 | S23: 14845.05621 | T23: 15216.18261 | U23: 15596.58718 | V23: 15986.50186 | W23: 16386.1644 | X23: 16795.81851 | Y23: 17215.71398 | Z23: 17646.10683 | AA23: 18087.2595 | AB23: 18539.44098 | AC23: 19002.92701 | AD23: 19478.00018 | AE23: 19964.95019 | AF23: 20464.07394 | AG23: 20975.67579 | AH23: 21500.06769 | AI23: 22037.56938 | AJ23: 22588.50861 | AK23: 23153.22133 | AL23: 23732.05186 | AM23: 24325.35316 | AN23: 24933.48699 | AO23: 25556.82416 | AP23: 26195.74476
A24: Fixed Cost by Capacity
A25: Capacity (DC kW) | C25: =IF(C$2<=AnalysisPeriod,CapacityDC,0) -> 10000 | D25: 10000 | E25: 10000 | F25: 10000 | G25: 10000 | H25: 10000 | I25: 10000 | J25: 10000 | K25: 10000 | L25: 10000 | M25: 10000 | N25: 10000 | O25: 10000 | P25: 10000 | Q25: 10000 | R25: 10000 | S25: 10000 | T25: 10000 | U25: 10000 | V25: 10000 | W25: 10000 | X25: 10000 | Y25: 10000 | Z25: 10000 | AA25: 10000 | AB25: 10000 | AC25: 10000 | AD25: 10000 | AE25: 10000 | AF25: 10000 | AG25: 10000 | AH25: 10000 | AI25: 10000 | AJ25: 10000 | AK25: 10000 | AL25: 10000 | AM25: 10000 | AN25: 10000 | AO25: 10000 | AP25: 10000
A26: Fixed Cost ($/DC kW-yr) | C26: =IF(C$2<=AnalysisPeriod,OMCapacity*(1+Inflation+OMCapacityRealEsc)^B$2,0) -> 22 | D26: 22.495 | E26: 23.0011375 | F26: 23.51866309 | G26: 24.04783301 | H26: 24.58890926 | I26: 25.14215971 | J26: 25.70785831 | K26: 26.28628512 | L26: 26.87772654 | M26: 27.48247538 | N26: 28.10083108 | O26: 28.73309978 | P26: 29.37959452 | Q26: 30.0406354 | R26: 30.7165497 | S26: 31.40767206 | T26: 32.11434469 | U26: 32.83691744 | V26: 33.57574808 | W26: 34.33120242 | X26: 35.10365447 | Y26: 35.89348669 | Z26: 36.70109015 | AA26: 37.52686467 | AB26: 38.37121913 | AC26: 39.23457156 | AD26: 40.11734942 | AE26: 41.01998978 | AF26: 41.94293955 | AG26: 42.88665569 | AH26: 43.85160544 | AI26: 44.83826657 | AJ26: 45.84712756 | AK26: 46.87868793 | AL26: 47.93345841 | AM26: 49.01196123 | AN26: 50.11473036 | AO26: 51.24231179 | AP26: 52.3952638
A27: Total | C27: =C25*C26 -> 220000 | D27: =D25*D26 -> 224950 | E27: 230011.375 | F27: 235186.6309 | G27: 240478.3301 | H27: 245889.0926 | I27: 251421.5971 | J27: 257078.5831 | K27: 262862.8512 | L27: 268777.2654 | M27: 274824.7538 | N27: 281008.3108 | O27: 287330.9978 | P27: 293795.9452 | Q27: 300406.354 | R27: 307165.497 | S27: 314076.7206 | T27: 321143.4469 | U27: 328369.1744 | V27: 335757.4808 | W27: 343312.0242 | X27: 351036.5447 | Y27: 358934.8669 | Z27: 367010.9015 | AA27: 375268.6467 | AB27: 383712.1913 | AC27: 392345.7156 | AD27: 401173.4942 | AE27: 410199.8978 | AF27: 419429.3955 | AG27: 428866.5569 | AH27: 438516.0544 | AI27: 448382.6657 | AJ27: 458471.2756 | AK27: 468786.8793 | AL27: 479334.5841 | AM27: 490119.6123 | AN27: 501147.3036 | AO27: 512423.1179 | AP27: 523952.638
A28: Variable Cost by Generation
A29: Generation (AC-MWh) | C29: =C5/1000 -> 16188.48 | D29: =D5/1000 -> 16107.5376 | E29: 16026.99991 | F29: 15946.86491 | G29: 15867.13059 | H29: 15787.79493 | I29: 15708.85596 | J29: 15630.31168 | K29: 15552.16012 | L29: 15474.39932 | M29: 15397.02732 | N29: 15320.04219 | O29: 15243.44198 | P29: 15167.22477 | Q29: 15091.38864 | R29: 15015.9317 | S29: 14940.85204 | T29: 14866.14778 | U29: 14791.81704 | V29: 14717.85796 | W29: 14644.26867 | X29: 14571.04732 | Y29: 14498.19209 | Z29: 14425.70113 | AA29: 14353.57262 | AB29: 14281.80476 | AC29: 14210.39573 | AD29: 14139.34376 | AE29: 14068.64704 | AF29: 13998.3038 | AG29: 13928.31228 | AH29: 13858.67072 | AI29: 13789.37737 | AJ29: 13720.43048 | AK29: 13651.82833 | AL29: 13583.56919 | AM29: 13515.65134 | AN29: 13448.07308 | AO29: 13380.83272 | AP29: 13313.92856
A30: Variable Cost ($/AC-MWh) | C30: =IF(C$2<=AnalysisPeriod,OMVariable*(1+Inflation+OMVariableRealEsc)^B$2,0) -> 3.5 | D30: 3.5525 | E30: 3.6057875 | F30: 3.659874312 | G30: 3.714772427 | H30: 3.770494014 | I30: 3.827051424 | J30: 3.884457195 | K30: 3.942724053 | L30: 4.001864914 | M30: 4.061892888 | N30: 4.122821281 | O30: 4.1846636 | P30: 4.247433554 | Q30: 4.311145057 | R30: 4.375812233 | S30: 4.441449417 | T30: 4.508071158 | U30: 4.575692225 | V30: 4.644327609 | W30: 4.713992523 | X30: 4.784702411 | Y30: 4.856472947 | Z30: 4.929320041 | AA30: 5.003259842 | AB30: 5.078308739 | AC30: 5.15448337 | AD30: 5.231800621 | AE30: 5.31027763 | AF30: 5.389931795 | AG30: 5.470780772 | AH30: 5.552842483 | AI30: 5.636135121 | AJ30: 5.720677147 | AK30: 5.806487305 | AL30: 5.893584614 | AM30: 5.981988383 | AN30: 6.071718209 | AO30: 6.162793982 | AP30: 6.255235892
A31: Total | C31: =C29*C30 -> 56659.68 | D31: =D29*D30 -> 57222.02732 | E31: 57789.95595 | F31: 58363.52126 | G31: 58942.77921 | H31: 59527.78629 | I31: 60118.59957 | J31: 60715.27667 | K31: 61317.87579 | L31: 61926.45571 | M31: 62541.07578 | N31: 63161.79596 | O31: 63788.67678 | P31: 64421.7794 | Q31: 65061.16556 | R31: 65706.89763 | S31: 66359.03859 | T31: 67017.65205 | U31: 67682.80224 | V31: 68354.55405 | W31: 69032.973 | X31: 69718.12526 | Y31: 70410.07765 | Z31: 71108.89767 | AA31: 71814.65348 | AB31: 72527.41392 | AC31: 73247.2485 | AD31: 73974.22744 | AE31: 74708.42165 | AF31: 75449.90274 | AG31: 76198.74302 | AH31: 76955.01555 | AI31: 77718.79407 | AJ31: 78490.15311 | AK31: 79269.16788 | AL31: 80055.91437 | AM31: 80850.46932 | AN31: 81652.91022 | AO31: 82463.31536 | AP31: 83281.76376
A32: Property Tax
A33: Pre-Financing Costs | C33: =IF(C$2<=AnalysisPeriod,'Inputs & Results'!$J$6,0) -> 40227150 | D33: =IF(D$2<=AnalysisPeriod,'Inputs & Results'!$J$6,0) -> 40227150 | E33: =IF(E$2<=AnalysisPeriod,'Inputs & Results'!$J$6,0) -> 40227150 | F33: =IF(F$2<=AnalysisPeriod,'Inputs & Results'!$J$6,0) -> 40227150 | G33: =IF(G$2<=AnalysisPeriod,'Inputs & Results'!$J$6,0) -> 40227150 | H33: =IF(H$2<=AnalysisPeriod,'Inputs & Results'!$J$6,0) -> 40227150 | I33: =IF(I$2<=AnalysisPeriod,'Inputs & Results'!$J$6,0) -> 40227150 | J33: =IF(J$2<=AnalysisPeriod,'Inputs & Results'!$J$6,0) -> 40227150 | K33: =IF(K$2<=AnalysisPeriod,'Inputs & Results'!$J$6,0) -> 40227150 | L33: =IF(L$2<=AnalysisPeriod,'Inputs & Results'!$J$6,0) -> 40227150 | M33: =IF(M$2<=AnalysisPeriod,'Inputs & Results'!$J$6,0) -> 40227150 | N33: =IF(N$2<=AnalysisPeriod,'Inputs & Results'!$J$6,0) -> 40227150 | O33: =IF(O$2<=AnalysisPeriod,'Inputs & Results'!$J$6,0) -> 40227150 | P33: =IF(P$2<=AnalysisPeriod,'Inputs & Results'!$J$6,0) -> 40227150 | Q33: =IF(Q$2<=AnalysisPeriod,'Inputs & Results'!$J$6,0) -> 40227150 | R33: =IF(R$2<=AnalysisPeriod,'Inputs & Results'!$J$6,0) -> 40227150 | S33: =IF(S$2<=AnalysisPeriod,'Inputs & Results'!$J$6,0) -> 40227150 | T33: =IF(T$2<=AnalysisPeriod,'Inputs & Results'!$J$6,0) -> 40227150 | U33: =IF(U$2<=AnalysisPeriod,'Inputs & Results'!$J$6,0) -> 40227150 | V33: =IF(V$2<=AnalysisPeriod,'Inputs & Results'!$J$6,0) -> 40227150 | W33: =IF(W$2<=AnalysisPeriod,'Inputs & Results'!$J$6,0) -> 40227150 | X33: =IF(X$2<=AnalysisPeriod,'Inputs & Results'!$J$6,0) -> 40227150 | Y33: =IF(Y$2<=AnalysisPeriod,'Inputs & Results'!$J$6,0) -> 40227150 | Z33: =IF(Z$2<=AnalysisPeriod,'Inputs & Results'!$J$6,0) -> 40227150 | AA33: =IF(AA$2<=AnalysisPeriod,'Inputs & Results'!$J$6,0) -> 40227150 | AB33: =IF(AB$2<=AnalysisPeriod,'Inputs & Results'!$J$6,0) -> 40227150 | AC33: =IF(AC$2<=AnalysisPeriod,'Inputs & Results'!$J$6,0) -> 40227150 | AD33: =IF(AD$2<=AnalysisPeriod,'Inputs & Results'!$J$6,0) -> 40227150 | AE33: =IF(AE$2<=AnalysisPeriod,'Inputs & Results'!$J$6,0) -> 40227150 | AF33: =IF(AF$2<=AnalysisPeriod,'Inputs & Results'!$J$6,0) -> 40227150 | AG33: =IF(AG$2<=AnalysisPeriod,'Inputs & Results'!$J$6,0) -> 40227150 | AH33: =IF(AH$2<=AnalysisPeriod,'Inputs & Results'!$J$6,0) -> 40227150 | AI33: =IF(AI$2<=AnalysisPeriod,'Inputs & Results'!$J$6,0) -> 40227150 | AJ33: =IF(AJ$2<=AnalysisPeriod,'Inputs & Results'!$J$6,0) -> 40227150 | AK33: =IF(AK$2<=AnalysisPeriod,'Inputs & Results'!$J$6,0) -> 40227150 | AL33: =IF(AL$2<=AnalysisPeriod,'Inputs & Results'!$J$6,0) -> 40227150 | AM33: =IF(AM$2<=AnalysisPeriod,'Inputs & Results'!$J$6,0) -> 40227150 | AN33: =IF(AN$2<=AnalysisPeriod,'Inputs & Results'!$J$6,0) -> 40227150 | AO33: =IF(AO$2<=AnalysisPeriod,'Inputs & Results'!$J$6,0) -> 40227150 | AP33: =IF(AP$2<=AnalysisPeriod,'Inputs & Results'!$J$6,0) -> 40227150
A34: % of Pre-Financing Costs Assessed | C34: =IF(D$2<=AnalysisPeriod,'Inputs & Results'!$J$7,0) -> 0.95 | D34: ='Inputs & Results'!$J$7 -> 0.95 | E34: ='Inputs & Results'!$J$7 -> 0.95 | F34: ='Inputs & Results'!$J$7 -> 0.95 | G34: ='Inputs & Results'!$J$7 -> 0.95 | H34: ='Inputs & Results'!$J$7 -> 0.95 | I34: ='Inputs & Results'!$J$7 -> 0.95 | J34: ='Inputs & Results'!$J$7 -> 0.95 | K34: ='Inputs & Results'!$J$7 -> 0.95 | L34: ='Inputs & Results'!$J$7 -> 0.95 | M34: ='Inputs & Results'!$J$7 -> 0.95 | N34: ='Inputs & Results'!$J$7 -> 0.95 | O34: ='Inputs & Results'!$J$7 -> 0.95 | P34: ='Inputs & Results'!$J$7 -> 0.95 | Q34: ='Inputs & Results'!$J$7 -> 0.95 | R34: ='Inputs & Results'!$J$7 -> 0.95 | S34: ='Inputs & Results'!$J$7 -> 0.95 | T34: ='Inputs & Results'!$J$7 -> 0.95 | U34: ='Inputs & Results'!$J$7 -> 0.95 | V34: ='Inputs & Results'!$J$7 -> 0.95 | W34: ='Inputs & Results'!$J$7 -> 0.95 | X34: ='Inputs & Results'!$J$7 -> 0.95 | Y34: ='Inputs & Results'!$J$7 -> 0.95 | Z34: ='Inputs & Results'!$J$7 -> 0.95 | AA34: ='Inputs & Results'!$J$7 -> 0.95 | AB34: ='Inputs & Results'!$J$7 -> 0.95 | AC34: ='Inputs & Results'!$J$7 -> 0.95 | AD34: ='Inputs & Results'!$J$7 -> 0.95 | AE34: ='Inputs & Results'!$J$7 -> 0.95 | AF34: ='Inputs & Results'!$J$7 -> 0.95 | AG34: ='Inputs & Results'!$J$7 -> 0.95 | AH34: ='Inputs & Results'!$J$7 -> 0.95 | AI34: ='Inputs & Results'!$J$7 -> 0.95 | AJ34: ='Inputs & Results'!$J$7 -> 0.95 | AK34: ='Inputs & Results'!$J$7 -> 0.95 | AL34: ='Inputs & Results'!$J$7 -> 0.95 | AM34: ='Inputs & Results'!$J$7 -> 0.95 | AN34: ='Inputs & Results'!$J$7 -> 0.95 | AO34: ='Inputs & Results'!$J$7 -> 0.95 | AP34: ='Inputs & Results'!$J$7 -> 0.95
A35: Assessed Value of Property For Tax Purposes | C35: =C33*C34 -> 38215792.5 | D35: =D33*D34 -> 38215792.5 | E35: =E33*E34 -> 38215792.5 | F35: 38215792.5 | G35: 38215792.5 | H35: 38215792.5 | I35: 38215792.5 | J35: 38215792.5 | K35: 38215792.5 | L35: =L33*L34 -> 38215792.5 | M35: =M33*M34 -> 38215792.5 | N35: 38215792.5 | O35: 38215792.5 | P35: 38215792.5 | Q35: 38215792.5 | R35: 38215792.5 | S35: =S33*S34 -> 38215792.5 | T35: =T33*T34 -> 38215792.5 | U35: 38215792.5 | V35: 38215792.5 | W35: 38215792.5 | X35: 38215792.5 | Y35: =Y33*Y34 -> 38215792.5 | Z35: =Z33*Z34 -> 38215792.5 | AA35: 38215792.5 | AB35: 38215792.5 | AC35: 38215792.5 | AD35: 38215792.5 | AE35: 38215792.5 | AF35: 38215792.5 | AG35: =AG33*AG34 -> 38215792.5 | AH35: =AH33*AH34 -> 38215792.5 | AI35: 38215792.5 | AJ35: 38215792.5 | AK35: 38215792.5 | AL35: 38215792.5 | AM35: 38215792.5 | AN35: =AN33*AN34 -> 38215792.5 | AO35: =AO33*AO34 -> 38215792.5 | AP35: 38215792.5
A36: Assessed Value Annual Decline | C36: 1 | D36: =MAX(C36-'Inputs & Results'!$J$9,0) -> 0.95 | E36: =MAX(D36-'Inputs & Results'!$J$9,0) -> 0.9 | F36: =MAX(E36-'Inputs & Results'!$J$9,0) -> 0.85 | G36: =MAX(F36-'Inputs & Results'!$J$9,0) -> 0.8 | H36: =MAX(G36-'Inputs & Results'!$J$9,0) -> 0.75 | I36: =MAX(H36-'Inputs & Results'!$J$9,0) -> 0.7 | J36: =MAX(I36-'Inputs & Results'!$J$9,0) -> 0.65 | K36: =MAX(J36-'Inputs & Results'!$J$9,0) -> 0.6 | L36: =MAX(K36-'Inputs & Results'!$J$9,0) -> 0.55 | M36: =MAX(L36-'Inputs & Results'!$J$9,0) -> 0.5 | N36: =MAX(M36-'Inputs & Results'!$J$9,0) -> 0.45 | O36: =MAX(N36-'Inputs & Results'!$J$9,0) -> 0.4 | P36: =MAX(O36-'Inputs & Results'!$J$9,0) -> 0.35 | Q36: =MAX(P36-'Inputs & Results'!$J$9,0) -> 0.3 | R36: =MAX(Q36-'Inputs & Results'!$J$9,0) -> 0.25 | S36: =MAX(R36-'Inputs & Results'!$J$9,0) -> 0.2 | T36: =MAX(S36-'Inputs & Results'!$J$9,0) -> 0.15 | U36: =MAX(T36-'Inputs & Results'!$J$9,0) -> 0.1 | V36: =MAX(U36-'Inputs & Results'!$J$9,0) -> 0.05 | W36: =MAX(V36-'Inputs & Results'!$J$9,0) -> 0 | X36: =MAX(W36-'Inputs & Results'!$J$9,0) -> 0 | Y36: =MAX(X36-'Inputs & Results'!$J$9,0) -> 0 | Z36: =MAX(Y36-'Inputs & Results'!$J$9,0) -> 0 | AA36: =MAX(Z36-'Inputs & Results'!$J$9,0) -> 0 | AB36: =MAX(AA36-'Inputs & Results'!$J$9,0) -> 0 | AC36: =MAX(AB36-'Inputs & Results'!$J$9,0) -> 0 | AD36: =MAX(AC36-'Inputs & Results'!$J$9,0) -> 0 | AE36: =MAX(AD36-'Inputs & Results'!$J$9,0) -> 0 | AF36: =MAX(AE36-'Inputs & Results'!$J$9,0) -> 0 | AG36: =MAX(AF36-'Inputs & Results'!$J$9,0) -> 0 | AH36: =MAX(AG36-'Inputs & Results'!$J$9,0) -> 0 | AI36: =MAX(AH36-'Inputs & Results'!$J$9,0) -> 0 | AJ36: =MAX(AI36-'Inputs & Results'!$J$9,0) -> 0 | AK36: =MAX(AJ36-'Inputs & Results'!$J$9,0) -> 0 | AL36: =MAX(AK36-'Inputs & Results'!$J$9,0) -> 0 | AM36: =MAX(AL36-'Inputs & Results'!$J$9,0) -> 0 | AN36: =MAX(AM36-'Inputs & Results'!$J$9,0) -> 0 | AO36: =MAX(AN36-'Inputs & Results'!$J$9,0) -> 0 | AP36: =MAX(AO36-'Inputs & Results'!$J$9,0) -> 0
A37: Net Assessed Value | C37: =C35*C36 -> 38215792.5 | D37: =D35*D36 -> 36305002.88 | E37: =E35*E36 -> 34394213.25 | F37: 32483423.62 | G37: 30572634 | H37: 28661844.37 | I37: 26751054.75 | J37: 24840265.12 | K37: 22929475.5 | L37: =L35*L36 -> 21018685.87 | M37: =M35*M36 -> 19107896.25 | N37: 17197106.62 | O37: 15286317 | P37: 13375527.37 | Q37: 11464737.75 | R37: 9553948.125 | S37: =S35*S36 -> 7643158.5 | T37: =T35*T36 -> 5732368.875 | U37: 3821579.25 | V37: 1910789.625 | W37: 0 | X37: 0 | Y37: =Y35*Y36 -> 0 | Z37: =Z35*Z36 -> 0 | AA37: 0 | AB37: 0 | AC37: 0 | AD37: 0 | AE37: 0 | AF37: 0 | AG37: =AG35*AG36 -> 0 | AH37: =AH35*AH36 -> 0 | AI37: 0 | AJ37: 0 | AK37: 0 | AL37: 0 | AM37: 0 | AN37: =AN35*AN36 -> 0 | AO37: =AO35*AO36 -> 0 | AP37: 0
A38: Annual Property Tax Rate | C38: =PropertyTaxRate -> 0.0075 | D38: 0.0075 | E38: 0.0075 | F38: 0.0075 | G38: 0.0075 | H38: 0.0075 | I38: 0.0075 | J38: 0.0075 | K38: 0.0075 | L38: 0.0075 | M38: 0.0075 | N38: 0.0075 | O38: 0.0075 | P38: 0.0075 | Q38: 0.0075 | R38: 0.0075 | S38: 0.0075 | T38: 0.0075 | U38: 0.0075 | V38: 0.0075 | W38: 0.0075 | X38: 0.0075 | Y38: 0.0075 | Z38: 0.0075 | AA38: 0.0075 | AB38: 0.0075 | AC38: 0.0075 | AD38: 0.0075 | AE38: 0.0075 | AF38: 0.0075 | AG38: 0.0075 | AH38: 0.0075 | AI38: 0.0075 | AJ38: 0.0075 | AK38: 0.0075 | AL38: 0.0075 | AM38: 0.0075 | AN38: 0.0075 | AO38: 0.0075 | AP38: 0.0075
A39: Property Tax | C39: =C37*C38 -> 286618.4437 | D39: =D37*D38 -> 272287.5216 | E39: =E37*E38 -> 257956.5994 | F39: 243625.6772 | G39: 229294.755 | H39: 214963.8328 | I39: 200632.9106 | J39: 186301.9884 | K39: 171971.0662 | L39: =L37*L38 -> 157640.1441 | M39: =M37*M38 -> 143309.2219 | N39: 128978.2997 | O39: 114647.3775 | P39: 100316.4553 | Q39: 85985.53312 | R39: 71654.61094 | S39: =S37*S38 -> 57323.68875 | T39: =T37*T38 -> 42992.76656 | U39: 28661.84437 | V39: 14330.92219 | W39: 0 | X39: 0 | Y39: =Y37*Y38 -> 0 | Z39: =Z37*Z38 -> 0 | AA39: 0 | AB39: 0 | AC39: 0 | AD39: 0 | AE39: 0 | AF39: 0 | AG39: =AG37*AG38 -> 0 | AH39: =AH37*AH38 -> 0 | AI39: 0 | AJ39: 0 | AK39: 0 | AL39: 0 | AM39: 0 | AN39: =AN37*AN38 -> 0 | AO39: =AO37*AO38 -> 0 | AP39: 0
A40: Insurance | C40: =IF(C$2<=AnalysisPeriod,PreFinancingInstalledCostTotal*'Inputs & Results'!$J$12*(1+Inflation)^B$2,0) -> 201135.75 | D40: =IF(D$2<=AnalysisPeriod,PreFinancingInstalledCostTotal*'Inputs & Results'!$J$12*(1+Inflation)^C$2,0) -> 204152.7862 | E40: =IF(E$2<=AnalysisPeriod,PreFinancingInstalledCostTotal*'Inputs & Results'!$J$12*(1+Inflation)^D$2,0) -> 207215.078 | F40: =IF(F$2<=AnalysisPeriod,PreFinancingInstalledCostTotal*'Inputs & Results'!$J$12*(1+Inflation)^E$2,0) -> 210323.3042 | G40: =IF(G$2<=AnalysisPeriod,PreFinancingInstalledCostTotal*'Inputs & Results'!$J$12*(1+Inflation)^F$2,0) -> 213478.1538 | H40: =IF(H$2<=AnalysisPeriod,PreFinancingInstalledCostTotal*'Inputs & Results'!$J$12*(1+Inflation)^G$2,0) -> 216680.3261 | I40: =IF(I$2<=AnalysisPeriod,PreFinancingInstalledCostTotal*'Inputs & Results'!$J$12*(1+Inflation)^H$2,0) -> 219930.531 | J40: =IF(J$2<=AnalysisPeriod,PreFinancingInstalledCostTotal*'Inputs & Results'!$J$12*(1+Inflation)^I$2,0) -> 223229.4889 | K40: =IF(K$2<=AnalysisPeriod,PreFinancingInstalledCostTotal*'Inputs & Results'!$J$12*(1+Inflation)^J$2,0) -> 226577.9313 | L40: =IF(L$2<=AnalysisPeriod,PreFinancingInstalledCostTotal*'Inputs & Results'!$J$12*(1+Inflation)^K$2,0) -> 229976.6002 | M40: =IF(M$2<=AnalysisPeriod,PreFinancingInstalledCostTotal*'Inputs & Results'!$J$12*(1+Inflation)^L$2,0) -> 233426.2492 | N40: =IF(N$2<=AnalysisPeriod,PreFinancingInstalledCostTotal*'Inputs & Results'!$J$12*(1+Inflation)^M$2,0) -> 236927.643 | O40: =IF(O$2<=AnalysisPeriod,PreFinancingInstalledCostTotal*'Inputs & Results'!$J$12*(1+Inflation)^N$2,0) -> 240481.5576 | P40: =IF(P$2<=AnalysisPeriod,PreFinancingInstalledCostTotal*'Inputs & Results'!$J$12*(1+Inflation)^O$2,0) -> 244088.781 | Q40: =IF(Q$2<=AnalysisPeriod,PreFinancingInstalledCostTotal*'Inputs & Results'!$J$12*(1+Inflation)^P$2,0) -> 247750.1127 | R40: =IF(R$2<=AnalysisPeriod,PreFinancingInstalledCostTotal*'Inputs & Results'!$J$12*(1+Inflation)^Q$2,0) -> 251466.3644 | S40: =IF(S$2<=AnalysisPeriod,PreFinancingInstalledCostTotal*'Inputs & Results'!$J$12*(1+Inflation)^R$2,0) -> 255238.3599 | T40: =IF(T$2<=AnalysisPeriod,PreFinancingInstalledCostTotal*'Inputs & Results'!$J$12*(1+Inflation)^S$2,0) -> 259066.9353 | U40: =IF(U$2<=AnalysisPeriod,PreFinancingInstalledCostTotal*'Inputs & Results'!$J$12*(1+Inflation)^T$2,0) -> 262952.9393 | V40: =IF(V$2<=AnalysisPeriod,PreFinancingInstalledCostTotal*'Inputs & Results'!$J$12*(1+Inflation)^U$2,0) -> 266897.2334 | W40: =IF(W$2<=AnalysisPeriod,PreFinancingInstalledCostTotal*'Inputs & Results'!$J$12*(1+Inflation)^V$2,0) -> 270900.6919 | X40: =IF(X$2<=AnalysisPeriod,PreFinancingInstalledCostTotal*'Inputs & Results'!$J$12*(1+Inflation)^W$2,0) -> 274964.2023 | Y40: =IF(Y$2<=AnalysisPeriod,PreFinancingInstalledCostTotal*'Inputs & Results'!$J$12*(1+Inflation)^X$2,0) -> 279088.6653 | Z40: =IF(Z$2<=AnalysisPeriod,PreFinancingInstalledCostTotal*'Inputs & Results'!$J$12*(1+Inflation)^Y$2,0) -> 283274.9953 | AA40: =IF(AA$2<=AnalysisPeriod,PreFinancingInstalledCostTotal*'Inputs & Results'!$J$12*(1+Inflation)^Z$2,0) -> 287524.1202 | AB40: =IF(AB$2<=AnalysisPeriod,PreFinancingInstalledCostTotal*'Inputs & Results'!$J$12*(1+Inflation)^AA$2,0) -> 291836.982 | AC40: =IF(AC$2<=AnalysisPeriod,PreFinancingInstalledCostTotal*'Inputs & Results'!$J$12*(1+Inflation)^AB$2,0) -> 296214.5367 | AD40: =IF(AD$2<=AnalysisPeriod,PreFinancingInstalledCostTotal*'Inputs & Results'!$J$12*(1+Inflation)^AC$2,0) -> 300657.7548 | AE40: =IF(AE$2<=AnalysisPeriod,PreFinancingInstalledCostTotal*'Inputs & Results'!$J$12*(1+Inflation)^AD$2,0) -> 305167.6211 | AF40: =IF(AF$2<=AnalysisPeriod,PreFinancingInstalledCostTotal*'Inputs & Results'!$J$12*(1+Inflation)^AE$2,0) -> 309745.1354 | AG40: =IF(AG$2<=AnalysisPeriod,PreFinancingInstalledCostTotal*'Inputs & Results'!$J$12*(1+Inflation)^AF$2,0) -> 314391.3125 | AH40: =IF(AH$2<=AnalysisPeriod,PreFinancingInstalledCostTotal*'Inputs & Results'!$J$12*(1+Inflation)^AG$2,0) -> 319107.1821 | AI40: =IF(AI$2<=AnalysisPeriod,PreFinancingInstalledCostTotal*'Inputs & Results'!$J$12*(1+Inflation)^AH$2,0) -> 323893.7899 | AJ40: =IF(AJ$2<=AnalysisPeriod,PreFinancingInstalledCostTotal*'Inputs & Results'!$J$12*(1+Inflation)^AI$2,0) -> 328752.1967 | AK40: =IF(AK$2<=AnalysisPeriod,PreFinancingInstalledCostTotal*'Inputs & Results'!$J$12*(1+Inflation)^AJ$2,0) -> 333683.4797 | AL40: =IF(AL$2<=AnalysisPeriod,PreFinancingInstalledCostTotal*'Inputs & Results'!$J$12*(1+Inflation)^AK$2,0) -> 338688.7319 | AM40: =IF(AM$2<=AnalysisPeriod,PreFinancingInstalledCostTotal*'Inputs & Results'!$J$12*(1+Inflation)^AL$2,0) -> 343769.0628 | AN40: =IF(AN$2<=AnalysisPeriod,PreFinancingInstalledCostTotal*'Inputs & Results'!$J$12*(1+Inflation)^AM$2,0) -> 348925.5988 | AO40: =IF(AO$2<=AnalysisPeriod,PreFinancingInstalledCostTotal*'Inputs & Results'!$J$12*(1+Inflation)^AN$2,0) -> 354159.4828 | AP40: =IF(AP$2<=AnalysisPeriod,PreFinancingInstalledCostTotal*'Inputs & Results'!$J$12*(1+Inflation)^AO$2,0) -> 359471.875
A41: Total Expenses | C41: =C23+C27+C31+C39+C40 -> 774413.8738 | D41: 768862.3351 | E41: 763479.2584 | F41: 758268.0398 | G41: 753232.147 | H41: 748375.1199 | I41: 743700.5725 | J41: 739212.1947 | K41: 734913.7535 | L41: 730809.0951 | M41: 726902.1462 | N41: 723196.916 | O41: 719697.4979 | P41: 716408.0714 | Q41: 713332.9036 | R41: 710476.3516 | S41: 707842.864 | T41: 705436.9833 | U41: 703263.3475 | V41: 701326.6923 | W41: 699631.8534 | X41: 712514.6907 | Y41: 725649.3239 | Z41: 739040.9012 | AA41: 752694.6799 | AB41: 766616.0282 | AC41: 780810.4278 | AD41: 795283.4766 | AE41: 810040.8908 | AF41: 825088.5076 | AG41: 840432.2882 | AH41: 856078.3198 | AI41: 872032.819 | AJ41: 888302.1341 | AK41: 904892.7482 | AL41: 921811.2822 | AM41: 939064.4976 | AN41: 956659.2996 | AO41: 974602.7402 | AP41: 992902.0216
A43: EBITDA | C43: =C20-C41 -> 5186185.387 | D43: 5221241.892 | E43: 5256275.984 | F43: 5291284.991 | G43: 5326266.172 | H43: 5361216.715 | I43: 5396133.742 | J43: 5431014.3 | K43: 5465855.362 | L43: 5500653.828 | M43: 5535406.518 | N43: 5570110.176 | O43: 5604761.465 | P43: 5639356.963 | Q43: 5673893.168 | R43: 5708366.489 | S43: 5742773.248 | T43: 5777109.679 | U43: 5811371.921 | V43: 5845556.02 | W43: 5879657.929 | X43: 5899342.576 | Y43: 5918936.636 | Z43: 5938435.759 | AA43: 5957835.49 | AB43: 5977131.266 | AC43: 5996318.416 | AD43: 6015392.155 | AE43: 6034347.585 | AF43: 6053179.691 | AG43: 6071883.338 | AH43: 6090453.269 | AI43: 6108884.101 | AJ43: 6127170.325 | AK43: 6145306.299 | AL43: 6163286.25 | AM43: 6181104.268 | AN43: 6198754.301 | AO43: 6216230.158 | AP43: 10256240.5
A45: Cash Flow: Project
A46: Cash Flow from Operating Activities
A47: EBITDA | B47: 0 | C47: =C43 -> 5186185.387 | D47: =D43 -> 5221241.892 | E47: 5256275.984 | F47: 5291284.991 | G47: 5326266.172 | H47: 5361216.715 | I47: 5396133.742 | J47: 5431014.3 | K47: 5465855.362 | L47: 5500653.828 | M47: 5535406.518 | N47: 5570110.176 | O47: 5604761.465 | P47: 5639356.963 | Q47: 5673893.168 | R47: 5708366.489 | S47: 5742773.248 | T47: 5777109.679 | U47: 5811371.921 | V47: 5845556.02 | W47: 5879657.929 | X47: 5899342.576 | Y47: 5918936.636 | Z47: 5938435.759 | AA47: 5957835.49 | AB47: 5977131.266 | AC47: 5996318.416 | AD47: 6015392.155 | AE47: 6034347.585 | AF47: 6053179.691 | AG47: 6071883.338 | AH47: 6090453.269 | AI47: 6108884.101 | AJ47: 6127170.325 | AK47: 6145306.299 | AL47: 6163286.25 | AM47: 6181104.268 | AN47: 6198754.301 | AO47: 6216230.158 | AP47: 10256240.5
A48: Plus: Interest Earned | B48: 0 | C48: =C705 -> 6776.121395 | D48: 11022.15093 | E48: 15269.65451 | F48: 19518.66185 | G48: 23769.20329 | H48: 28021.3098 | I48: 32275.01301 | J48: 36530.34521 | K48: 40787.33935 | L48: 45046.02909 | M48: 49306.44879 | N48: 53568.63353 | O48: 6297.353107 | P48: 11403.279 | Q48: 16511.07966 | R48: 21620.7932 | S48: 26732.45857 | T48: 31846.11549 | U48: 36961.80455 | V48: 42079.56719 | W48: 47199.44573 | X48: 52446.87893 | Y48: 57696.51535 | Z48: 62948.40002 | AA48: 6586.078449 | AB48: 12847.04089 | AC48: 19110.39252 | AD48: 25376.18234 | AE48: 31644.46035 | AF48: 37915.27764 | AG48: 44188.68636 | AH48: 50464.73978 | AI48: 56743.49228 | AJ48: 63024.99943 | AK48: 69309.31794 | AL48: 75596.50576 | AM48: 8216.814354 | AN48: 8370.768871 | AO48: 8527.773977 | AP48: 8687.892689
A49: Total | B49: =SUM(B47:B48) -> 0 | C49: =SUM(C47:C48) -> 5192961.508 | D49: 5232264.043 | E49: 5271545.639 | F49: 5310803.653 | G49: 5350035.375 | H49: 5389238.025 | I49: 5428408.755 | J49: 5467544.645 | K49: 5506642.702 | L49: 5545699.857 | M49: 5584712.967 | N49: 5623678.81 | O49: 5611058.818 | P49: 5650760.242 | Q49: 5690404.247 | R49: 5729987.282 | S49: 5769505.707 | T49: 5808955.794 | U49: 5848333.725 | V49: 5887635.588 | W49: 5926857.374 | X49: 5951789.455 | Y49: 5976633.152 | Z49: 6001384.159 | AA49: 5964421.569 | AB49: 5989978.307 | AC49: 6015428.808 | AD49: 6040768.337 | AE49: 6065992.045 | AF49: 6091094.969 | AG49: 6116072.024 | AH49: 6140918.008 | AI49: 6165627.593 | AJ49: 6190195.324 | AK49: 6214615.617 | AL49: 6238882.756 | AM49: 6189321.082 | AN49: 6207125.07 | AO49: 6224757.932 | AP49: 10264928.39
A51: Cash Flows from Investing Activities
A52: (Purchase)/Sale of Property | B52: =-AEPFInstalledCostTotal+'Inputs & Results'!B180 -> -43210095.75 | C52: 0 | D52: 0 | E52: 0 | F52: 0 | G52: 0 | H52: 0 | I52: 0 | J52: 0 | K52: 0 | L52: 0 | M52: 0 | N52: 0 | O52: 0 | P52: 0 | Q52: 0 | R52: 0 | S52: 0 | T52: 0 | U52: 0 | V52: 0 | W52: 0 | X52: 0 | Y52: 0 | Z52: 0 | AA52: 0 | AB52: 0 | AC52: 0 | AD52: 0 | AE52: 0 | AF52: 0 | AG52: 0 | AH52: 0 | AI52: 0 | AJ52: 0 | AK52: 0 | AL52: 0 | AM52: 0 | AN52: 0 | AO52: 0 | AP52: 0
A53: (Increase)/Decrease in Reserve Accounts
A54: Working Capital Reserve Account | B54: =-B603-B604 -> -387206.9369 | C54: 2775.769307 | D54: 2691.538386 | E54: 2605.609258 | F54: 2517.946412 | G54: 2428.513573 | H54: 2337.273691 | I54: 2244.188916 | J54: 2149.220587 | K54: 2052.329212 | L54: 1953.474449 | M54: 1852.615087 | N54: 1749.70903 | O54: 1644.713275 | P54: 1537.583892 | Q54: 1428.276004 | R54: 1316.74377 | S54: 1202.940356 | T54: 1086.817921 | U54: 968.3275911 | V54: 847.4194363 | W54: -6441.418644 | X54: -6567.316573 | Y54: -6695.788678 | Z54: -6826.889346 | AA54: -6960.674139 | AB54: -7097.199821 | AC54: -7236.524384 | AD54: -7378.707077 | AE54: -7523.808429 | AF54: -7671.890282 | AG54: -7823.015818 | AH54: -7977.249589 | AI54: -8134.657546 | AJ54: -8295.307069 | AK54: -8459.267002 | AL54: -8626.607684 | AM54: -8797.400978 | AN54: -8971.72031 | AO54: -9149.640701 | AP54: 496451.0108
A55: Major Equipment Reserve 1 | B55: =-B609-B610 -> 0 | C55: =-C609-C610 -> -245406.0286 | D55: -245406.0286 | E55: -245406.0286 | F55: -245406.0286 | G55: -245406.0286 | H55: -245406.0286 | I55: -245406.0286 | J55: -245406.0286 | K55: -245406.0286 | L55: -245406.0286 | M55: -245406.0286 | N55: 2699466.315 | O55: -293411.9072 | P55: -293411.9072 | Q55: -293411.9072 | R55: -293411.9072 | S55: -293411.9072 | T55: -293411.9072 | U55: -293411.9072 | V55: -293411.9072 | W55: -293411.9072 | X55: -293411.9072 | Y55: -293411.9072 | Z55: 3227530.979 | AA55: -350808.608 | AB55: -350808.608 | AC55: -350808.608 | AD55: -350808.608 | AE55: -350808.608 | AF55: -350808.608 | AG55: -350808.608 | AH55: -350808.608 | AI55: -350808.608 | AJ55: -350808.608 | AK55: -350808.608 | AL55: 3858894.688 | AM55: 0 | AN55: 0 | AO55: 0 | AP55: 0
A56: Major Equipment Reserve 2 | B56: =-B641-B642 -> 0 | C56: =-C641-C642 -> 0 | D56: 0 | E56: 0 | F56: 0 | G56: 0 | H56: 0 | I56: 0 | J56: 0 | K56: 0 | L56: 0 | M56: 0 | N56: 0 | O56: 0 | P56: 0 | Q56: 0 | R56: 0 | S56: 0 | T56: 0 | U56: 0 | V56: 0 | W56: 0 | X56: 0 | Y56: 0 | Z56: 0 | AA56: 0 | AB56: 0 | AC56: 0 | AD56: 0 | AE56: 0 | AF56: 0 | AG56: 0 | AH56: 0 | AI56: 0 | AJ56: 0 | AK56: 0 | AL56: 0 | AM56: 0 | AN56: 0 | AO56: 0 | AP56: 0
A57: Major Equipment Reserve 3 | B57: =-B673-B674 -> 0 | C57: =-C673-C674 -> 0 | D57: 0 | E57: 0 | F57: 0 | G57: 0 | H57: 0 | I57: 0 | J57: 0 | K57: 0 | L57: 0 | M57: 0 | N57: 0 | O57: 0 | P57: 0 | Q57: 0 | R57: 0 | S57: 0 | T57: 0 | U57: 0 | V57: 0 | W57: 0 | X57: 0 | Y57: 0 | Z57: 0 | AA57: 0 | AB57: 0 | AC57: 0 | AD57: 0 | AE57: 0 | AF57: 0 | AG57: 0 | AH57: 0 | AI57: 0 | AJ57: 0 | AK57: 0 | AL57: 0 | AM57: 0 | AN57: 0 | AO57: 0 | AP57: 0
A58: Total | B58: =SUM(B54:B57) -> -387206.9369 | C58: -242630.2593 | D58: -242714.4902 | E58: -242800.4194 | F58: -242888.0822 | G58: -242977.5151 | H58: -243068.7549 | I58: -243161.8397 | J58: -243256.808 | K58: -243353.6994 | L58: -243452.5542 | M58: -243553.4135 | N58: 2701216.024 | O58: -291767.1939 | P58: -291874.3233 | Q58: -291983.6312 | R58: -292095.1634 | S58: -292208.9669 | T58: -292325.0893 | U58: -292443.5796 | V58: -292564.4878 | W58: -299853.3259 | X58: -299979.2238 | Y58: -300107.6959 | Z58: 3220704.09 | AA58: -357769.2821 | AB58: -357905.8078 | AC58: -358045.1324 | AD58: -358187.3151 | AE58: -358332.4164 | AF58: -358480.4983 | AG58: -358631.6238 | AH58: -358785.8576 | AI58: -358943.2655 | AJ58: -359103.9151 | AK58: -359267.875 | AL58: 3850268.08 | AM58: -8797.400978 | AN58: -8971.72031 | AO58: -9149.640701 | AP58: 496451.0108
A59: Major Equipment Capital Spending
A60: Major Equipment Spending 1 | B60: =B610 -> 0 | C60: =C610 -> 0 | D60: 0 | E60: 0 | F60: 0 | G60: 0 | H60: 0 | I60: 0 | J60: 0 | K60: 0 | L60: 0 | M60: 0 | N60: -2944872.344 | O60: 0 | P60: 0 | Q60: 0 | R60: 0 | S60: 0 | T60: 0 | U60: 0 | V60: 0 | W60: 0 | X60: 0 | Y60: 0 | Z60: -3520942.887 | AA60: 0 | AB60: 0 | AC60: 0 | AD60: 0 | AE60: 0 | AF60: 0 | AG60: 0 | AH60: 0 | AI60: 0 | AJ60: 0 | AK60: 0 | AL60: -4209703.296 | AM60: 0 | AN60: 0 | AO60: 0 | AP60: 0
A61: Major Equipment Spending 2 | B61: =B642 -> 0 | C61: =C642 -> 0 | D61: 0 | E61: 0 | F61: 0 | G61: 0 | H61: 0 | I61: 0 | J61: 0 | K61: 0 | L61: 0 | M61: 0 | N61: 0 | O61: 0 | P61: 0 | Q61: 0 | R61: 0 | S61: 0 | T61: 0 | U61: 0 | V61: 0 | W61: 0 | X61: 0 | Y61: 0 | Z61: 0 | AA61: 0 | AB61: 0 | AC61: 0 | AD61: 0 | AE61: 0 | AF61: 0 | AG61: 0 | AH61: 0 | AI61: 0 | AJ61: 0 | AK61: 0 | AL61: 0 | AM61: 0 | AN61: 0 | AO61: 0 | AP61: 0
A62: Major Equipment Spending 3 | B62: =B674 -> 0 | C62: =C674 -> 0 | D62: 0 | E62: 0 | F62: 0 | G62: 0 | H62: 0 | I62: 0 | J62: 0 | K62: 0 | L62: 0 | M62: 0 | N62: 0 | O62: 0 | P62: 0 | Q62: 0 | R62: 0 | S62: 0 | T62: 0 | U62: 0 | V62: 0 | W62: 0 | X62: 0 | Y62: 0 | Z62: 0 | AA62: 0 | AB62: 0 | AC62: 0 | AD62: 0 | AE62: 0 | AF62: 0 | AG62: 0 | AH62: 0 | AI62: 0 | AJ62: 0 | AK62: 0 | AL62: 0 | AM62: 0 | AN62: 0 | AO62: 0 | AP62: 0
A63: Total | B63: =SUM(B60:B62) -> 0 | C63: =SUM(C60:C62) -> 0 | D63: 0 | E63: 0 | F63: 0 | G63: 0 | H63: 0 | I63: 0 | J63: 0 | K63: 0 | L63: 0 | M63: 0 | N63: -2944872.344 | O63: 0 | P63: 0 | Q63: 0 | R63: 0 | S63: 0 | T63: 0 | U63: 0 | V63: 0 | W63: 0 | X63: 0 | Y63: 0 | Z63: -3520942.887 | AA63: 0 | AB63: 0 | AC63: 0 | AD63: 0 | AE63: 0 | AF63: 0 | AG63: 0 | AH63: 0 | AI63: 0 | AJ63: 0 | AK63: 0 | AL63: -4209703.296 | AM63: 0 | AN63: 0 | AO63: 0 | AP63: 0
A64: Total | B64: =B52+B58+B63 -> -43597302.69 | C64: -242630.2593 | D64: -242714.4902 | E64: -242800.4194 | F64: -242888.0822 | G64: -242977.5151 | H64: -243068.7549 | I64: -243161.8397 | J64: -243256.808 | K64: -243353.6994 | L64: -243452.5542 | M64: -243553.4135 | N64: -243656.3196 | O64: -291767.1939 | P64: -291874.3233 | Q64: -291983.6312 | R64: -292095.1634 | S64: -292208.9669 | T64: -292325.0893 | U64: -292443.5796 | V64: -292564.4878 | W64: -299853.3259 | X64: -299979.2238 | Y64: -300107.6959 | Z64: -300238.7966 | AA64: -357769.2821 | AB64: -357905.8078 | AC64: -358045.1324 | AD64: -358187.3151 | AE64: -358332.4164 | AF64: -358480.4983 | AG64: -358631.6238 | AH64: -358785.8576 | AI64: -358943.2655 | AJ64: -359103.9151 | AK64: -359267.875 | AL64: -359435.2157 | AM64: -8797.400978 | AN64: -8971.72031 | AO64: -9149.640701 | AP64: 496451.0108
A66: Cash Flows from Financing Activities
A67: Incentives
A68: IBI | B68: ='Inputs & Results'!B194+'Inputs & Results'!B195 -> 0 | C68: 0 | D68: 0 | E68: 0 | F68: 0 | G68: 0 | H68: 0 | I68: 0 | J68: 0 | K68: 0 | L68: 0 | M68: 0 | N68: 0 | O68: 0 | P68: 0 | Q68: 0 | R68: 0 | S68: 0 | T68: 0 | U68: 0 | V68: 0 | W68: 0 | X68: 0 | Y68: 0 | Z68: 0 | AA68: 0 | AB68: 0 | AC68: 0 | AD68: 0 | AE68: 0 | AF68: 0 | AG68: 0 | AH68: 0 | AI68: 0 | AJ68: 0 | AK68: 0 | AL68: 0 | AM68: 0 | AN68: 0 | AO68: 0 | AP68: 0
A69: CBI | B69: ='Inputs & Results'!B196 -> 0 | C69: 0 | D69: 0 | E69: 0 | F69: 0 | G69: 0 | H69: 0 | I69: 0 | J69: 0 | K69: 0 | L69: 0 | M69: 0 | N69: 0 | O69: 0 | P69: 0 | Q69: 0 | R69: 0 | S69: 0 | T69: 0 | U69: 0 | V69: 0 | W69: 0 | X69: 0 | Y69: 0 | Z69: 0 | AA69: 0 | AB69: 0 | AC69: 0 | AD69: 0 | AE69: 0 | AF69: 0 | AG69: 0 | AH69: 0 | AI69: 0 | AJ69: 0 | AK69: 0 | AL69: 0 | AM69: 0 | AN69: 0 | AO69: 0 | AP69: 0
A70: Total | B70: =SUM(B68:B69) -> 0 | C70: =SUM(C68:C69) -> 0 | D70: 0 | E70: 0 | F70: 0 | G70: 0 | H70: 0 | I70: 0 | J70: 0 | K70: 0 | L70: 0 | M70: 0 | N70: 0 | O70: 0 | P70: 0 | Q70: 0 | R70: 0 | S70: 0 | T70: 0 | U70: 0 | V70: 0 | W70: 0 | X70: 0 | Y70: 0 | Z70: 0 | AA70: 0 | AB70: 0 | AC70: 0 | AD70: 0 | AE70: 0 | AF70: 0 | AG70: 0 | AH70: 0 | AI70: 0 | AJ70: 0 | AK70: 0 | AL70: 0 | AM70: 0 | AN70: 0 | AO70: 0 | AP70: 0
A71: Issuance of Equity | B71: ='Inputs & Results'!$B$192 -> 43597302.69 | C71: 0 | D71: 0 | E71: 0 | F71: 0 | G71: 0 | H71: 0 | I71: 0 | J71: 0 | K71: 0 | L71: 0 | M71: 0 | N71: 0 | O71: 0 | P71: 0 | Q71: 0 | R71: 0 | S71: 0 | T71: 0 | U71: 0 | V71: 0 | W71: 0 | X71: 0 | Y71: 0 | Z71: 0 | AA71: 0 | AB71: 0 | AC71: 0 | AD71: 0 | AE71: 0 | AF71: 0 | AG71: 0 | AH71: 0 | AI71: 0 | AJ71: 0 | AK71: 0 | AL71: 0 | AM71: 0 | AN71: 0 | AO71: 0 | AP71: 0
A72: Total | B72: =SUM(B70:B71) -> 43597302.69 | C72: 0 | D72: 0 | E72: 0 | F72: 0 | G72: 0 | H72: 0 | I72: 0 | J72: 0 | K72: 0 | L72: 0 | M72: 0 | N72: 0 | O72: 0 | P72: 0 | Q72: 0 | R72: 0 | S72: 0 | T72: 0 | U72: 0 | V72: 0 | W72: 0 | X72: 0 | Y72: 0 | Z72: 0 | AA72: 0 | AB72: 0 | AC72: 0 | AD72: 0 | AE72: 0 | AF72: 0 | AG72: 0 | AH72: 0 | AI72: 0 | AJ72: 0 | AK72: 0 | AL72: 0 | AM72: 0 | AN72: 0 | AO72: 0 | AP72: 0
A73: Pre-Tax Cashflow | B73: =B49+B64+B72 -> 0 | C73: 4950331.249 | D73: 4989549.552 | E73: 5028745.22 | F73: 5067915.571 | G73: 5107057.86 | H73: 5146169.27 | I73: 5185246.916 | J73: 5224287.837 | K73: 5263289.002 | L73: 5302247.303 | M73: 5341159.554 | N73: 5380022.49 | O73: 5319291.624 | P73: 5358885.919 | Q73: 5398420.616 | R73: 5437892.119 | S73: 5477296.74 | T73: 5516630.705 | U73: 5555890.146 | V73: 5595071.1 | W73: 5627004.049 | X73: 5651810.231 | Y73: 5676525.456 | Z73: 5701145.363 | AA73: 5606652.286 | AB73: 5632072.499 | AC73: 5657383.676 | AD73: 5682581.022 | AE73: 5707659.629 | AF73: 5732614.47 | AG73: 5757440.401 | AH73: 5782132.151 | AI73: 5806684.328 | AJ73: 5831091.409 | AK73: 5855347.742 | AL73: 5879447.54 | AM73: 6180523.681 | AN73: 6198153.35 | AO73: 6215608.291 | AP73: 10761379.4
A75: Total Project Returns
A76: Total Project Returns: Pre-Tax
A77: Equity Investment | B77: =-B71 -> -43597302.69 | C77: =-C71 -> 0 | D77: 0 | E77: 0 | F77: 0 | G77: 0 | H77: 0 | I77: 0 | J77: 0 | K77: 0 | L77: 0 | M77: 0 | N77: 0 | O77: 0 | P77: 0 | Q77: 0 | R77: 0 | S77: 0 | T77: 0 | U77: 0 | V77: 0 | W77: 0 | X77: 0 | Y77: 0 | Z77: 0 | AA77: 0 | AB77: 0 | AC77: 0 | AD77: 0 | AE77: 0 | AF77: 0 | AG77: 0 | AH77: 0 | AI77: 0 | AJ77: 0 | AK77: 0 | AL77: 0 | AM77: 0 | AN77: 0 | AO77: 0 | AP77: 0
A78: Operating Cash Distributions/(Contributions) | B78: =B73 -> 0 | C78: =C73 -> 4950331.249 | D78: 4989549.552 | E78: 5028745.22 | F78: 5067915.571 | G78: 5107057.86 | H78: 5146169.27 | I78: 5185246.916 | J78: 5224287.837 | K78: 5263289.002 | L78: 5302247.303 | M78: 5341159.554 | N78: 5380022.49 | O78: 5319291.624 | P78: 5358885.919 | Q78: 5398420.616 | R78: 5437892.119 | S78: 5477296.74 | T78: 5516630.705 | U78: 5555890.146 | V78: 5595071.1 | W78: 5627004.049 | X78: 5651810.231 | Y78: 5676525.456 | Z78: 5701145.363 | AA78: 5606652.286 | AB78: 5632072.499 | AC78: 5657383.676 | AD78: 5682581.022 | AE78: 5707659.629 | AF78: 5732614.47 | AG78: 5757440.401 | AH78: 5782132.151 | AI78: 5806684.328 | AJ78: 5831091.409 | AK78: 5855347.742 | AL78: 5879447.54 | AM78: 6180523.681 | AN78: 6198153.35 | AO78: 6215608.291 | AP78: 10761379.4
A79: Total | B79: =SUM(B77:B78) -> -43597302.69 | C79: =SUM(C77:C78) -> 4950331.249 | D79: 4989549.552 | E79: 5028745.22 | F79: 5067915.571 | G79: 5107057.86 | H79: 5146169.27 | I79: 5185246.916 | J79: 5224287.837 | K79: 5263289.002 | L79: 5302247.303 | M79: 5341159.554 | N79: 5380022.49 | O79: 5319291.624 | P79: 5358885.919 | Q79: 5398420.616 | R79: 5437892.119 | S79: 5477296.74 | T79: 5516630.705 | U79: 5555890.146 | V79: 5595071.1 | W79: 5627004.049 | X79: 5651810.231 | Y79: 5676525.456 | Z79: 5701145.363 | AA79: 5606652.286 | AB79: 5632072.499 | AC79: 5657383.676 | AD79: 5682581.022 | AE79: 5707659.629 | AF79: 5732614.47 | AG79: 5757440.401 | AH79: 5782132.151 | AI79: 5806684.328 | AJ79: 5831091.409 | AK79: 5855347.742 | AL79: 5879447.54 | AM79: 6180523.681 | AN79: 6198153.35 | AO79: 6215608.291 | AP79: 10761379.4
A81: Cumulative IRR | B81: =ROUND(IF(ISERROR(IRR($B79:B$79)),0,IRR($B79:B$79)),4) -> 0 | C81: =ROUND(IF(ISERROR(IRR($B79:C$79)),0,IRR($B79:C$79)),4) -> -0.8865 | D81: =ROUND(IF(ISERROR(IRR($B79:D$79)),0,IRR($B79:D$79)),4) -> -0.6002 | E81: =ROUND(IF(ISERROR(IRR($B79:E$79)),0,IRR($B79:E$79)),4) -> -0.3895 | F81: =ROUND(IF(ISERROR(IRR($B79:F$79)),0,IRR($B79:F$79)),4) -> -0.2511 | G81: =ROUND(IF(ISERROR(IRR($B79:G$79)),0,IRR($B79:G$79)),4) -> -0.1586 | H81: =ROUND(IF(ISERROR(IRR($B79:H$79)),0,IRR($B79:H$79)),4) -> -0.0945 | I81: =ROUND(IF(ISERROR(IRR($B79:I$79)),0,IRR($B79:I$79)),4) -> -0.0487 | J81: =ROUND(IF(ISERROR(IRR($B79:J$79)),0,IRR($B79:J$79)),4) -> -0.0149 | K81: =ROUND(IF(ISERROR(IRR($B79:K$79)),0,IRR($B79:K$79)),4) -> 0.0106 | L81: =ROUND(IF(ISERROR(IRR($B79:L$79)),0,IRR($B79:L$79)),4) -> 0.0302 | M81: =ROUND(IF(ISERROR(IRR($B79:M$79)),0,IRR($B79:M$79)),4) -> 0.0456 | N81: =ROUND(IF(ISERROR(IRR($B79:N$79)),0,IRR($B79:N$79)),4) -> 0.0579 | O81: =ROUND(IF(ISERROR(IRR($B79:O$79)),0,IRR($B79:O$79)),4) -> 0.0676 | P81: =ROUND(IF(ISERROR(IRR($B79:P$79)),0,IRR($B79:P$79)),4) -> 0.0755 | Q81: =ROUND(IF(ISERROR(IRR($B79:Q$79)),0,IRR($B79:Q$79)),4) -> 0.082 | R81: =ROUND(IF(ISERROR(IRR($B79:R$79)),0,IRR($B79:R$79)),4) -> 0.0874 | S81: =ROUND(IF(ISERROR(IRR($B79:S$79)),0,IRR($B79:S$79)),4) -> 0.092 | T81: =ROUND(IF(ISERROR(IRR($B79:T$79)),0,IRR($B79:T$79)),4) -> 0.0958 | U81: =ROUND(IF(ISERROR(IRR($B79:U$79)),0,IRR($B79:U$79)),4) -> 0.099 | V81: =ROUND(IF(ISERROR(IRR($B79:V$79)),0,IRR($B79:V$79)),4) -> 0.1018 | W81: =ROUND(IF(ISERROR(IRR($B79:W$79)),0,IRR($B79:W$79)),4) -> 0.1041 | X81: =ROUND(IF(ISERROR(IRR($B79:X$79)),0,IRR($B79:X$79)),4) -> 0.1062 | Y81: =ROUND(IF(ISERROR(IRR($B79:Y$79)),0,IRR($B79:Y$79)),4) -> 0.1079 | Z81: =ROUND(IF(ISERROR(IRR($B79:Z$79)),0,IRR($B79:Z$79)),4) -> 0.1094 | AA81: =ROUND(IF(ISERROR(IRR($B79:AA$79)),0,IRR($B79:AA$79)),4) -> 0.1107 | AB81: =ROUND(IF(ISERROR(IRR($B79:AB$79)),0,IRR($B79:AB$79)),4) -> 0.1118 | AC81: =ROUND(IF(ISERROR(IRR($B79:AC$79)),0,IRR($B79:AC$79)),4) -> 0.1127 | AD81: =ROUND(IF(ISERROR(IRR($B79:AD$79)),0,IRR($B79:AD$79)),4) -> 0.1136 | AE81: =ROUND(IF(ISERROR(IRR($B79:AE$79)),0,IRR($B79:AE$79)),4) -> 0.1143 | AF81: =ROUND(IF(ISERROR(IRR($B79:AF$79)),0,IRR($B79:AF$79)),4) -> 0.115 | AG81: =ROUND(IF(ISERROR(IRR($B79:AG$79)),0,IRR($B79:AG$79)),4) -> 0.1155 | AH81: =ROUND(IF(ISERROR(IRR($B79:AH$79)),0,IRR($B79:AH$79)),4) -> 0.116 | AI81: =ROUND(IF(ISERROR(IRR($B79:AI$79)),0,IRR($B79:AI$79)),4) -> 0.1165 | AJ81: =ROUND(IF(ISERROR(IRR($B79:AJ$79)),0,IRR($B79:AJ$79)),4) -> 0.1169 | AK81: =ROUND(IF(ISERROR(IRR($B79:AK$79)),0,IRR($B79:AK$79)),4) -> 0.1172 | AL81: =ROUND(IF(ISERROR(IRR($B79:AL$79)),0,IRR($B79:AL$79)),4) -> 0.1175 | AM81: =ROUND(IF(ISERROR(IRR($B79:AM$79)),0,IRR($B79:AM$79)),4) -> 0.1178 | AN81: =ROUND(IF(ISERROR(IRR($B79:AN$79)),0,IRR($B79:AN$79)),4) -> 0.118 | AO81: =ROUND(IF(ISERROR(IRR($B79:AO$79)),0,IRR($B79:AO$79)),4) -> 0.1183 | AP81: =ROUND(IF(ISERROR(IRR($B79:AP$79)),0,IRR($B79:AP$79)),4) -> 0.1186
A82: Cumulative NPV | B82: =B79 -> -43597302.69 | C82: =NPV(DiscountRate,$C79:C79)+$B$79 -> -39013662.64 | D82: =NPV(DiscountRate,$C79:D79)+$B$79 -> -34735928.11 | E82: =NPV(DiscountRate,$C79:E79)+$B$79 -> -30743948.03 | F82: =NPV(DiscountRate,$C79:F79)+$B$79 -> -27018878.79 | G82: =NPV(DiscountRate,$C79:G79)+$B$79 -> -23543101.03 | H82: =NPV(DiscountRate,$C79:H79)+$B$79 -> -20300141.46 | I82: =NPV(DiscountRate,$C79:I79)+$B$79 -> -17274599.68 | J82: =NPV(DiscountRate,$C79:J79)+$B$79 -> -14452079.52 | K82: =NPV(DiscountRate,$C79:K79)+$B$79 -> -11819124.63 | L82: =NPV(DiscountRate,$C79:L79)+$B$79 -> -9363158.212 | M82: =NPV(DiscountRate,$C79:M79)+$B$79 -> -7072426.43 | N82: =NPV(DiscountRate,$C79:N79)+$B$79 -> -4935945.478 | O82: =NPV(DiscountRate,$C79:O79)+$B$79 -> -2980052.987 | P82: =NPV(DiscountRate,$C79:P79)+$B$79 -> -1155561.106 | Q82: =NPV(DiscountRate,$C79:Q79)+$B$79 -> 546246.2127 | R82: =NPV(DiscountRate,$C79:R79)+$B$79 -> 2133515.086 | S82: =NPV(DiscountRate,$C79:S79)+$B$79 -> 3613858.332 | T82: =NPV(DiscountRate,$C79:T79)+$B$79 -> 4994389.81 | U82: =NPV(DiscountRate,$C79:U79)+$B$79 -> 6281756.583 | V82: =NPV(DiscountRate,$C79:V79)+$B$79 -> 7482169.058 | W82: =NPV(DiscountRate,$C79:W79)+$B$79 -> 8600005.754 | X82: =NPV(DiscountRate,$C79:X79)+$B$79 -> 9639602.594 | Y82: =NPV(DiscountRate,$C79:Y79)+$B$79 -> 10606401.64 | Z82: =NPV(DiscountRate,$C79:Z79)+$B$79 -> 11505468.49 | AA82: =NPV(DiscountRate,$C79:AA79)+$B$79 -> 12324140.11 | AB82: =NPV(DiscountRate,$C79:AB79)+$B$79 -> 13085606.24 | AC82: =NPV(DiscountRate,$C79:AC79)+$B$79 -> 13793836.1 | AD82: =NPV(DiscountRate,$C79:AD79)+$B$79 -> 14452525.21 | AE82: =NPV(DiscountRate,$C79:AE79)+$B$79 -> 15065114.16 | AF82: =NPV(DiscountRate,$C79:AF79)+$B$79 -> 15634806.1 | AG82: =NPV(DiscountRate,$C79:AG79)+$B$79 -> 16164583.01 | AH82: =NPV(DiscountRate,$C79:AH79)+$B$79 -> 16657220.93 | AI82: =NPV(DiscountRate,$C79:AI79)+$B$79 -> 17115304.05 | AJ82: =NPV(DiscountRate,$C79:AJ79)+$B$79 -> 17541237.91 | AK82: =NPV(DiscountRate,$C79:AK79)+$B$79 -> 17937261.67 | AL82: =NPV(DiscountRate,$C79:AL79)+$B$79 -> 18305459.59 | AM82: =NPV(DiscountRate,$C79:AM79)+$B$79 -> 18663841.7 | AN82: =NPV(DiscountRate,$C79:AN79)+$B$79 -> 18996623.53 | AO82: =NPV(DiscountRate,$C79:AO79)+$B$79 -> 19305622.6 | AP82: =NPV(DiscountRate,$C79:AP79)+$B$79 -> 19800978.94
A84: Total Project Returns: After-Tax
A85: Cash
A86: Equity Investment | B86: =B77 -> -43597302.69 | C86: =C77 -> 0 | D86: 0 | E86: 0 | F86: 0 | G86: 0 | H86: 0 | I86: 0 | J86: 0 | K86: 0 | L86: 0 | M86: 0 | N86: 0 | O86: 0 | P86: 0 | Q86: 0 | R86: 0 | S86: 0 | T86: 0 | U86: 0 | V86: 0 | W86: 0 | X86: 0 | Y86: 0 | Z86: 0 | AA86: 0 | AB86: 0 | AC86: 0 | AD86: 0 | AE86: 0 | AF86: 0 | AG86: 0 | AH86: 0 | AI86: 0 | AJ86: 0 | AK86: 0 | AL86: 0 | AM86: 0 | AN86: 0 | AO86: 0 | AP86: 0
A87: Operating Cash Distributions/(Contributions) | B87: =B78 -> 0 | C87: 4950331.249 | D87: 4989549.552 | E87: 5028745.22 | F87: 5067915.571 | G87: 5107057.86 | H87: 5146169.27 | I87: 5185246.916 | J87: 5224287.837 | K87: 5263289.002 | L87: 5302247.303 | M87: 5341159.554 | N87: 5380022.49 | O87: 5319291.624 | P87: 5358885.919 | Q87: 5398420.616 | R87: 5437892.119 | S87: 5477296.74 | T87: 5516630.705 | U87: 5555890.146 | V87: 5595071.1 | W87: 5627004.049 | X87: 5651810.231 | Y87: 5676525.456 | Z87: 5701145.363 | AA87: 5606652.286 | AB87: 5632072.499 | AC87: 5657383.676 | AD87: 5682581.022 | AE87: 5707659.629 | AF87: 5732614.47 | AG87: 5757440.401 | AH87: 5782132.151 | AI87: 5806684.328 | AJ87: 5831091.409 | AK87: 5855347.742 | AL87: 5879447.54 | AM87: 6180523.681 | AN87: 6198153.35 | AO87: 6215608.291 | AP87: 10761379.4
A88: Total | B88: =SUM(B86:B87) -> -43597302.69 | C88: =SUM(C86:C87) -> 4950331.249 | D88: 4989549.552 | E88: 5028745.22 | F88: 5067915.571 | G88: 5107057.86 | H88: 5146169.27 | I88: 5185246.916 | J88: 5224287.837 | K88: 5263289.002 | L88: 5302247.303 | M88: 5341159.554 | N88: 5380022.49 | O88: 5319291.624 | P88: 5358885.919 | Q88: 5398420.616 | R88: 5437892.119 | S88: 5477296.74 | T88: 5516630.705 | U88: 5555890.146 | V88: 5595071.1 | W88: 5627004.049 | X88: 5651810.231 | Y88: 5676525.456 | Z88: 5701145.363 | AA88: 5606652.286 | AB88: 5632072.499 | AC88: 5657383.676 | AD88: 5682581.022 | AE88: 5707659.629 | AF88: 5732614.47 | AG88: 5757440.401 | AH88: 5782132.151 | AI88: 5806684.328 | AJ88: 5831091.409 | AK88: 5855347.742 | AL88: 5879447.54 | AM88: 6180523.681 | AN88: 6198153.35 | AO88: 6215608.291 | AP88: 10761379.4
A89: Investment Tax Credit
A90: State | B90: 0 | C90: =I288+K288 -> 0 | D90: 0 | E90: 0 | F90: 0 | G90: 0 | H90: 0 | I90: 0 | J90: 0 | K90: 0 | L90: 0 | M90: 0 | N90: 0 | O90: 0 | P90: 0 | Q90: 0 | R90: 0 | S90: 0 | T90: 0 | U90: 0 | V90: 0 | W90: 0 | X90: 0 | Y90: 0 | Z90: 0 | AA90: 0 | AB90: 0 | AC90: 0 | AD90: 0 | AE90: 0 | AF90: 0 | AG90: 0 | AH90: 0 | AI90: 0 | AJ90: 0 | AK90: 0 | AL90: 0 | AM90: 0 | AN90: 0 | AO90: 0 | AP90: 0
A91: Federal | B91: 0 | C91: =I422+K422 -> 12032855.54 | D91: 0 | E91: 0 | F91: 0 | G91: 0 | H91: 0 | I91: 0 | J91: 0 | K91: 0 | L91: 0 | M91: 0 | N91: 0 | O91: 0 | P91: 0 | Q91: 0 | R91: 0 | S91: 0 | T91: 0 | U91: 0 | V91: 0 | W91: 0 | X91: 0 | Y91: 0 | Z91: 0 | AA91: 0 | AB91: 0 | AC91: 0 | AD91: 0 | AE91: 0 | AF91: 0 | AG91: 0 | AH91: 0 | AI91: 0 | AJ91: 0 | AK91: 0 | AL91: 0 | AM91: 0 | AN91: 0 | AO91: 0 | AP91: 0
A92: Total | B92: =SUM(B90:B91) -> 0 | C92: =SUM(C90:C91) -> 12032855.54 | D92: =SUM(D90:D91) -> 0 | E92: =SUM(E90:E91) -> 0 | F92: 0 | G92: 0 | H92: 0 | I92: 0 | J92: 0 | K92: 0 | L92: 0 | M92: 0 | N92: 0 | O92: 0 | P92: 0 | Q92: 0 | R92: 0 | S92: 0 | T92: 0 | U92: 0 | V92: 0 | W92: 0 | X92: 0 | Y92: 0 | Z92: 0 | AA92: 0 | AB92: 0 | AC92: 0 | AD92: 0 | AE92: 0 | AF92: 0 | AG92: 0 | AH92: 0 | AI92: 0 | AJ92: 0 | AK92: 0 | AL92: 0 | AM92: 0 | AN92: 0 | AO92: 0 | AP92: 0
A93: Production Tax Credit
A94: State | B94: =B552 -> 0 | C94: =C552 -> 0 | D94: 0 | E94: 0 | F94: 0 | G94: 0 | H94: 0 | I94: 0 | J94: 0 | K94: 0 | L94: 0 | M94: 0 | N94: 0 | O94: 0 | P94: 0 | Q94: 0 | R94: 0 | S94: 0 | T94: 0 | U94: 0 | V94: 0 | W94: 0 | X94: 0 | Y94: 0 | Z94: 0 | AA94: 0 | AB94: 0 | AC94: 0 | AD94: 0 | AE94: 0 | AF94: 0 | AG94: 0 | AH94: 0 | AI94: 0 | AJ94: 0 | AK94: 0 | AL94: 0 | AM94: 0 | AN94: 0 | AO94: 0 | AP94: =AP552 -> 0
A95: Federal | B95: =B558 -> 0 | C95: =C558 -> 0 | D95: 0 | E95: 0 | F95: 0 | G95: 0 | H95: 0 | I95: 0 | J95: 0 | K95: 0 | L95: 0 | M95: 0 | N95: 0 | O95: 0 | P95: 0 | Q95: 0 | R95: 0 | S95: 0 | T95: 0 | U95: 0 | V95: 0 | W95: 0 | X95: 0 | Y95: 0 | Z95: 0 | AA95: 0 | AB95: 0 | AC95: 0 | AD95: 0 | AE95: 0 | AF95: 0 | AG95: 0 | AH95: 0 | AI95: 0 | AJ95: 0 | AK95: 0 | AL95: 0 | AM95: 0 | AN95: 0 | AO95: 0 | AP95: =AP558 -> 0
A96: Total | B96: =SUM(B94:B95) -> 0 | C96: =SUM(C94:C95) -> 0 | D96: =SUM(D94:D95) -> 0 | E96: =SUM(E94:E95) -> 0 | F96: 0 | G96: 0 | H96: 0 | I96: 0 | J96: 0 | K96: 0 | L96: 0 | M96: 0 | N96: 0 | O96: 0 | P96: 0 | Q96: 0 | R96: 0 | S96: 0 | T96: 0 | U96: 0 | V96: 0 | W96: 0 | X96: 0 | Y96: 0 | Z96: 0 | AA96: 0 | AB96: 0 | AC96: 0 | AD96: 0 | AE96: 0 | AF96: 0 | AG96: 0 | AH96: 0 | AI96: 0 | AJ96: 0 | AK96: 0 | AL96: 0 | AM96: 0 | AN96: 0 | AO96: 0 | AP96: 0
A97: Tax Benefit/(Liability)
A98: State | B98: =B237 -> 0 | C98: =C237 -> 94359.32757 | D98: =D237 -> 321984.0575 | E98: 79466.51733 | F98: -67007.61467 | G98: -69442.31123 | H98: -179857.1428 | I98: -290137.1379 | J98: -292293.2086 | K98: -294436.4082 | L98: -296591.7453 | M98: -298730.2728 | N98: -268486.9919 | O98: -248349.5413 | P98: -271272.2145 | Q98: -285884.582 | R98: -290327.6187 | S98: -304089.2639 | T98: -315588.3743 | U98: -317754.1605 | V98: -319915.763 | W98: -323871.35 | X98: -327041.0031 | Y98: -328407.4065 | Z98: -291038.3401 | AA98: -265767.1746 | AB98: -291960.2331 | AC98: -308232.4734 | AD98: -309626.1475 | AE98: -322167.7985 | AF98: -334702.8064 | AG98: -336076.5445 | AH98: -337443.0736 | AI98: -338802.1007 | AJ98: -340153.3259 | AK98: -341496.4421 | AL98: -296524.3985 | AM98: -266014.4646 | AN98: -296629.9952 | AO98: -315381.5893 | AP98: -537744.673
A99: Federal | B99: =B275 -> 0 | C99: =C275 -> 567442.6836 | D99: =D275 -> 1936295.037 | E99: 477882.7383 | F99: -402959.4282 | G99: -417600.808 | H99: -1081595.454 | I99: -1744779.243 | J99: -1757745.068 | K99: -1770633.491 | L99: -1783594.905 | M99: -1796455.231 | N99: -1614583.138 | O99: -1493483.833 | P99: -1631332.454 | Q99: -1719205.918 | R99: -1745924.725 | S99: -1828682.255 | T99: -1897833.724 | U99: -1910857.975 | V99: -1923857.066 | W99: -1947644.527 | X99: -1966705.669 | Y99: -1974922.722 | Z99: -1750198.745 | AA99: -1598227.145 | AB99: -1755742.675 | AC99: -1853598.011 | AD99: -1861979.06 | AE99: -1937399.989 | AF99: -2012780.968 | AG99: -2021042.129 | AH99: -2029259.938 | AI99: -2037432.633 | AJ99: -2045558.41 | AK99: -2053635.422 | AL99: -1783189.905 | AM99: -1599714.258 | AN99: -1783824.926 | AO99: -1896590.194 | AP99: -3233800.92
A100: Total | B100: =SUM(B98:B99) -> 0 | C100: =SUM(C98:C99) -> 661802.0111 | D100: =SUM(D98:D99) -> 2258279.094 | E100: =SUM(E98:E99) -> 557349.2556 | F100: -469967.0429 | G100: -487043.1192 | H100: -1261452.597 | I100: -2034916.381 | J100: -2050038.277 | K100: -2065069.899 | L100: -2080186.65 | M100: -2095185.504 | N100: -1883070.13 | O100: -1741833.374 | P100: -1902604.668 | Q100: -2005090.5 | R100: -2036252.344 | S100: -2132771.519 | T100: -2213422.098 | U100: -2228612.135 | V100: -2243772.828 | W100: -2271515.877 | X100: -2293746.672 | Y100: -2303330.128 | Z100: -2041237.086 | AA100: -1863994.32 | AB100: -2047702.908 | AC100: -2161830.484 | AD100: -2171605.207 | AE100: -2259567.787 | AF100: -2347483.774 | AG100: -2357118.673 | AH100: -2366703.012 | AI100: -2376234.734 | AJ100: -2385711.736 | AK100: -2395131.864 | AL100: -2079714.304 | AM100: -1865728.722 | AN100: -2080454.921 | AO100: -2211971.783 | AP100: -3771545.593
A101: Total | B101: =B88+B92+B96+B100 -> -43597302.69 | C101: =C88+C92+C96+C100 -> 17644988.8 | D101: 7247828.647 | E101: 5586094.475 | F101: 4597948.528 | G101: 4620014.741 | H101: 3884716.674 | I101: 3150330.535 | J101: 3174249.56 | K101: 3198219.103 | L101: 3222060.653 | M101: 3245974.05 | N101: 3496952.361 | O101: 3577458.25 | P101: 3456281.251 | Q101: 3393330.116 | R101: 3401639.774 | S101: 3344525.221 | T101: 3303208.607 | U101: 3327278.011 | V101: 3351298.271 | W101: 3355488.171 | X101: 3358063.559 | Y101: 3373195.328 | Z101: 3659908.277 | AA101: 3742657.966 | AB101: 3584369.591 | AC101: 3495553.192 | AD101: 3510975.815 | AE101: 3448091.842 | AF101: 3385130.696 | AG101: 3400321.727 | AH101: 3415429.139 | AI101: 3430449.594 | AJ101: 3445379.673 | AK101: 3460215.878 | AL101: 3799733.237 | AM101: 4314794.959 | AN101: 4117698.429 | AO101: 4003636.508 | AP101: 6989833.81
A103: Cumulative IRR | B103: =ROUND(IF(ISERROR(IRR($B101:B101)),0,IRR($B101:B101)),4) -> 0 | C103: =ROUND(IF(ISERROR(IRR($B101:C101)),0,IRR($B101:C101)),4) -> -0.5953 | D103: =ROUND(IF(ISERROR(IRR($B101:D101)),0,IRR($B101:D101)),4) -> -0.3424 | E103: =ROUND(IF(ISERROR(IRR($B101:E101)),0,IRR($B101:E101)),4) -> -0.1927 | F103: =ROUND(IF(ISERROR(IRR($B101:F101)),0,IRR($B101:F101)),4) -> -0.1038 | G103: =ROUND(IF(ISERROR(IRR($B101:G101)),0,IRR($B101:G101)),4) -> -0.0396 | H103: =ROUND(IF(ISERROR(IRR($B101:H101)),0,IRR($B101:H101)),4) -> -0.0001 | I103: =ROUND(IF(ISERROR(IRR($B101:I101)),0,IRR($B101:I101)),4) -> 0.0246 | J103: =ROUND(IF(ISERROR(IRR($B101:J101)),0,IRR($B101:J101)),4) -> 0.0443 | K103: =ROUND(IF(ISERROR(IRR($B101:K101)),0,IRR($B101:K101)),4) -> 0.06 | L103: =ROUND(IF(ISERROR(IRR($B101:L101)),0,IRR($B101:L101)),4) -> 0.0726 | M103: =ROUND(IF(ISERROR(IRR($B101:M101)),0,IRR($B101:M101)),4) -> 0.0828 | N103: =ROUND(IF(ISERROR(IRR($B101:N101)),0,IRR($B101:N101)),4) -> 0.0916 | O103: =ROUND(IF(ISERROR(IRR($B101:O101)),0,IRR($B101:O101)),4) -> 0.0988 | P103: =ROUND(IF(ISERROR(IRR($B101:P101)),0,IRR($B101:P101)),4) -> 0.1045 | Q103: =ROUND(IF(ISERROR(IRR($B101:Q101)),0,IRR($B101:Q101)),4) -> 0.1091 | R103: =ROUND(IF(ISERROR(IRR($B101:R101)),0,IRR($B101:R101)),4) -> 0.1129 | S103: =ROUND(IF(ISERROR(IRR($B101:S101)),0,IRR($B101:S101)),4) -> 0.1161 | T103: =ROUND(IF(ISERROR(IRR($B101:T101)),0,IRR($B101:T101)),4) -> 0.1187 | U103: =ROUND(IF(ISERROR(IRR($B101:U101)),0,IRR($B101:U101)),4) -> 0.1209 | V103: =ROUND(IF(ISERROR(IRR($B101:V101)),0,IRR($B101:V101)),4) -> 0.1228 | W103: =ROUND(IF(ISERROR(IRR($B101:W101)),0,IRR($B101:W101)),4) -> 0.1244 | X103: =ROUND(IF(ISERROR(IRR($B101:X101)),0,IRR($B101:X101)),4) -> 0.1257 | Y103: =ROUND(IF(ISERROR(IRR($B101:Y101)),0,IRR($B101:Y101)),4) -> 0.1269 | Z103: =ROUND(IF(ISERROR(IRR($B101:Z101)),0,IRR($B101:Z101)),4) -> 0.128 | AA103: =ROUND(IF(ISERROR(IRR($B101:AA101)),0,IRR($B101:AA101)),4) -> 0.1289 | AB103: =ROUND(IF(ISERROR(IRR($B101:AB101)),0,IRR($B101:AB101)),4) -> 0.1297 | AC103: =ROUND(IF(ISERROR(IRR($B101:AC101)),0,IRR($B101:AC101)),4) -> 0.1304 | AD103: =ROUND(IF(ISERROR(IRR($B101:AD101)),0,IRR($B101:AD101)),4) -> 0.131 | AE103: =ROUND(IF(ISERROR(IRR($B101:AE101)),0,IRR($B101:AE101)),4) -> 0.1315 | AF103: =ROUND(IF(ISERROR(IRR($B101:AF101)),0,IRR($B101:AF101)),4) -> 0.1319 | AG103: =ROUND(IF(ISERROR(IRR($B101:AG101)),0,IRR($B101:AG101)),4) -> 0.1322 | AH103: =ROUND(IF(ISERROR(IRR($B101:AH101)),0,IRR($B101:AH101)),4) -> 0.1326 | AI103: =ROUND(IF(ISERROR(IRR($B101:AI101)),0,IRR($B101:AI101)),4) -> 0.1328 | AJ103: =ROUND(IF(ISERROR(IRR($B101:AJ101)),0,IRR($B101:AJ101)),4) -> 0.1331 | AK103: =ROUND(IF(ISERROR(IRR($B101:AK101)),0,IRR($B101:AK101)),4) -> 0.1333 | AL103: =ROUND(IF(ISERROR(IRR($B101:AL101)),0,IRR($B101:AL101)),4) -> 0.1335 | AM103: =ROUND(IF(ISERROR(IRR($B101:AM101)),0,IRR($B101:AM101)),4) -> 0.1337 | AN103: =ROUND(IF(ISERROR(IRR($B101:AN101)),0,IRR($B101:AN101)),4) -> 0.1339 | AO103: =ROUND(IF(ISERROR(IRR($B101:AO101)),0,IRR($B101:AO101)),4) -> 0.134 | AP103: =ROUND(IF(ISERROR(IRR($B101:AP101)),0,IRR($B101:AP101)),4) -> 0.1342
A104: Cumulative NPV | B104: =B101 -> -43597302.69 | C104: =NPV(DiscountRate,$C101:C101)+$B101 -> -27259350.09 | D104: =NPV(DiscountRate,$C101:D101)+$B101 -> -21045505.23 | E104: =NPV(DiscountRate,$C101:E101)+$B101 -> -16611083.34 | F104: =NPV(DiscountRate,$C101:F101)+$B101 -> -13231453.91 | G104: =NPV(DiscountRate,$C101:G101)+$B101 -> -10087149.5 | H104: =NPV(DiscountRate,$C101:H101)+$B101 -> -7639119.046 | I104: =NPV(DiscountRate,$C101:I101)+$B101 -> -5800931.437 | J104: =NPV(DiscountRate,$C101:J101)+$B101 -> -4085983.168 | K104: =NPV(DiscountRate,$C101:K101)+$B101 -> -2486077.365 | L104: =NPV(DiscountRate,$C101:L101)+$B101 -> -993639.8526 | M104: =NPV(DiscountRate,$C101:M101)+$B101 -> 398502.7791 | N104: =NPV(DiscountRate,$C101:N101)+$B101 -> 1787190.675 | O104: =NPV(DiscountRate,$C101:O101)+$B101 -> 3102614.649 | P104: =NPV(DiscountRate,$C101:P101)+$B101 -> 4279343.763 | Q104: =NPV(DiscountRate,$C101:Q101)+$B101 -> 5349062.934 | R104: =NPV(DiscountRate,$C101:R101)+$B101 -> 6341969.158 | S104: =NPV(DiscountRate,$C101:S101)+$B101 -> 7245890.483 | T104: =NPV(DiscountRate,$C101:T101)+$B101 -> 8072515.23 | U104: =NPV(DiscountRate,$C101:U101)+$B101 -> 8843485.685 | V104: =NPV(DiscountRate,$C101:V101)+$B101 -> 9562500.721 | W104: =NPV(DiscountRate,$C101:W101)+$B101 -> 10229087.73 | X104: =NPV(DiscountRate,$C101:X101)+$B101 -> 10846771.65 | Y104: =NPV(DiscountRate,$C101:Y101)+$B101 -> 11421278.37 | Z104: =NPV(DiscountRate,$C101:Z101)+$B101 -> 11998443.48 | AA104: =NPV(DiscountRate,$C101:AA101)+$B101 -> 12544938.55 | AB104: =NPV(DiscountRate,$C101:AB101)+$B101 -> 13029551.64 | AC104: =NPV(DiscountRate,$C101:AC101)+$B101 -> 13467148.83 | AD104: =NPV(DiscountRate,$C101:AD101)+$B101 -> 13874119.1 | AE104: =NPV(DiscountRate,$C101:AE101)+$B101 -> 14244194.24 | AF104: =NPV(DiscountRate,$C101:AF101)+$B101 -> 14580599.5 | AG104: =NPV(DiscountRate,$C101:AG101)+$B101 -> 14893483.67 | AH104: =NPV(DiscountRate,$C101:AH101)+$B101 -> 15184478.38 | AI104: =NPV(DiscountRate,$C101:AI101)+$B101 -> 15455102.88 | AJ104: =NPV(DiscountRate,$C101:AJ101)+$B101 -> 15706771.7 | AK104: =NPV(DiscountRate,$C101:AK101)+$B101 -> 15940801.82 | AL104: =NPV(DiscountRate,$C101:AL101)+$B101 -> 16178758.5 | AM104: =NPV(DiscountRate,$C101:AM101)+$B101 -> 16428954.99 | AN104: =NPV(DiscountRate,$C101:AN101)+$B101 -> 16650036.2 | AO104: =NPV(DiscountRate,$C101:AO101)+$B101 -> 16849070.61 | AP104: =NPV(DiscountRate,$C101:AP101)+$B101 -> 17170819.19
A106: Negative Net Benefit
A107: Years with Negative Net Benefit | B107: =SUM(C107:AP107) -> 0 | C107: =IF(C101<0,1,0) -> 0 | D107: =IF(D101<0,1,0) -> 0 | E107: 0 | F107: 0 | G107: 0 | H107: 0 | I107: 0 | J107: 0 | K107: 0 | L107: 0 | M107: 0 | N107: 0 | O107: 0 | P107: 0 | Q107: 0 | R107: 0 | S107: 0 | T107: 0 | U107: 0 | V107: 0 | W107: 0 | X107: 0 | Y107: 0 | Z107: 0 | AA107: 0 | AB107: 0 | AC107: 0 | AD107: 0 | AE107: 0 | AF107: 0 | AG107: 0 | AH107: 0 | AI107: 0 | AJ107: 0 | AK107: 0 | AL107: 0 | AM107: 0 | AN107: 0 | AO107: 0 | AP107: 0
A108: First Year with Negative Net Benefit | B108: =IF(B107>0,SUM(C108:AP108),"N/A") -> N/A | C108: =IF(AND(B101>=0,C101<0),C$2,0) -> 0 | D108: =IF(AND(C101>=0,D101<0),D$2,0) -> 0 | E108: 0 | F108: 0 | G108: 0 | H108: 0 | I108: 0 | J108: 0 | K108: 0 | L108: 0 | M108: 0 | N108: 0 | O108: 0 | P108: 0 | Q108: 0 | R108: 0 | S108: 0 | T108: 0 | U108: 0 | V108: 0 | W108: 0 | X108: 0 | Y108: 0 | Z108: 0 | AA108: 0 | AB108: 0 | AC108: 0 | AD108: 0 | AE108: 0 | AF108: 0 | AG108: 0 | AH108: 0 | AI108: 0 | AJ108: 0 | AK108: 0 | AL108: 0 | AM108: 0 | AN108: 0 | AO108: 0 | AP108: 0
A110: LCOE
A111: Annual PPA Revenue | B111: =SUM(C111:AP111) -> 262949308.4 | C111: =C12 -> 5960599.26 | D111: 5990104.227 | E111: 6019755.243 | F111: 6049553.031 | G111: 6079498.319 | H111: 6109591.835 | I111: 6139834.315 | J111: 6170226.495 | K111: 6200769.116 | L111: 6231462.923 | M111: 6262308.665 | N111: 6293307.092 | O111: 6324458.963 | P111: 6355765.034 | Q111: 6387226.071 | R111: 6418842.84 | S111: 6450616.112 | T111: 6482546.662 | U111: 6514635.268 | V111: 6546882.713 | W111: 6579289.782 | X111: 6611857.267 | Y111: 6644585.96 | Z111: 6677476.661 | AA111: 6710530.17 | AB111: 6743747.294 | AC111: 6777128.844 | AD111: 6810675.631 | AE111: 6844388.476 | AF111: 6878268.199 | AG111: 6912315.626 | AH111: 6946531.589 | AI111: 6980916.92 | AJ111: 7015472.459 | AK111: 7050199.047 | AL111: 7085097.533 | AM111: 7120168.765 | AN111: 7155413.601 | AO111: 7190832.898 | AP111: 7226427.521
A112: Generation (kWh) | B112: =SUM(C112:AP112) -> 588224217.4 | C112: =C5 -> 16188480 | D112: 16107537.6 | E112: 16026999.91 | F112: 15946864.91 | G112: 15867130.59 | H112: 15787794.93 | I112: 15708855.96 | J112: 15630311.68 | K112: 15552160.12 | L112: 15474399.32 | M112: 15397027.32 | N112: 15320042.19 | O112: 15243441.98 | P112: 15167224.77 | Q112: 15091388.64 | R112: 15015931.7 | S112: 14940852.04 | T112: 14866147.78 | U112: 14791817.04 | V112: 14717857.96 | W112: 14644268.67 | X112: 14571047.32 | Y112: 14498192.09 | Z112: 14425701.13 | AA112: 14353572.62 | AB112: 14281804.76 | AC112: 14210395.73 | AD112: 14139343.76 | AE112: 14068647.04 | AF112: 13998303.8 | AG112: 13928312.28 | AH112: 13858670.72 | AI112: 13789377.37 | AJ112: 13720430.48 | AK112: 13651828.33 | AL112: 13583569.19 | AM112: 13515651.34 | AN112: 13448073.08 | AO112: 13380832.72 | AP112: 13313928.56
A114: NPV - Annual Payments ($) | B114: =NPV(DiscountRate,C111:AP111) -> 74967534.89
A115: NPV - Generation (kWh) | B115: =NPV(DiscountRate,C112:AP112) -> 183278725.9
A116: LCOE ($/kWh) | B116: =B114/B115 -> 0.4090356614
A118: Partner Returns
A119: Tax Investor: Pre-Tax
A120: Equity Investment | B120: =B129 -> -26158381.61 | C120: =C129 -> 0 | D120: 0 | E120: 0 | F120: 0 | G120: 0 | H120: 0 | I120: 0 | J120: 0 | K120: 0 | L120: 0 | M120: 0 | N120: 0 | O120: 0 | P120: 0 | Q120: 0 | R120: 0 | S120: 0 | T120: 0 | U120: 0 | V120: 0 | W120: 0 | X120: 0 | Y120: 0 | Z120: 0 | AA120: 0 | AB120: 0 | AC120: 0 | AD120: 0 | AE120: 0 | AF120: 0 | AG120: 0 | AH120: 0 | AI120: 0 | AJ120: 0 | AK120: 0 | AL120: 0 | AM120: 0 | AN120: 0 | AO120: 0 | AP120: 0
A121: Operating Cash Distributions/(Contributions) | B121: =B130 -> 0 | C121: 0 | D121: 0 | E121: 0 | F121: 5067915.571 | G121: 5107057.86 | H121: 5146169.27 | I121: 5185246.916 | J121: 5224287.837 | K121: 526328.9002 | L121: 530224.7303 | M121: 534115.9554 | N121: 538002.249 | O121: 531929.1624 | P121: 535888.5919 | Q121: 539842.0616 | R121: 543789.2119 | S121: 547729.674 | T121: 551663.0705 | U121: 555589.0146 | V121: 559507.11 | W121: 562700.4049 | X121: 565181.0231 | Y121: 567652.5456 | Z121: 570114.5363 | AA121: 560665.2286 | AB121: 563207.2499 | AC121: 565738.3676 | AD121: 568258.1022 | AE121: 570765.9629 | AF121: 573261.447 | AG121: 575744.0401 | AH121: 578213.2151 | AI121: 580668.4328 | AJ121: 583109.1409 | AK121: 585534.7742 | AL121: 587944.754 | AM121: 618052.3681 | AN121: 619815.335 | AO121: 621560.8291 | AP121: 1076137.94
A122: Total | B122: =SUM(B120:B121) -> -26158381.61 | C122: =SUM(C120:C121) -> 0 | D122: 0 | E122: 0 | F122: 5067915.571 | G122: 5107057.86 | H122: 5146169.27 | I122: 5185246.916 | J122: 5224287.837 | K122: 526328.9002 | L122: 530224.7303 | M122: 534115.9554 | N122: 538002.249 | O122: 531929.1624 | P122: 535888.5919 | Q122: 539842.0616 | R122: 543789.2119 | S122: 547729.674 | T122: 551663.0705 | U122: 555589.0146 | V122: 559507.11 | W122: 562700.4049 | X122: 565181.0231 | Y122: 567652.5456 | Z122: 570114.5363 | AA122: 560665.2286 | AB122: 563207.2499 | AC122: 565738.3676 | AD122: 568258.1022 | AE122: 570765.9629 | AF122: 573261.447 | AG122: 575744.0401 | AH122: 578213.2151 | AI122: 580668.4328 | AJ122: 583109.1409 | AK122: 585534.7742 | AL122: 587944.754 | AM122: 618052.3681 | AN122: 619815.335 | AO122: 621560.8291 | AP122: 1076137.94
A124: Cumulative IRR | B124: =ROUND(IF(ISERROR(IRR($B122:B122)),0,IRR($B122:B122)),4) -> 0 | C124: =ROUND(IF(ISERROR(IRR($B122:C122)),0,IRR($B122:C122)),4) -> 0 | D124: =ROUND(IF(ISERROR(IRR($B122:D122)),0,IRR($B122:D122)),4) -> 0 | E124: =ROUND(IF(ISERROR(IRR($B122:E122)),0,IRR($B122:E122)),4) -> 0 | F124: =ROUND(IF(ISERROR(IRR($B122:F122)),0,IRR($B122:F122)),4) -> -0.3366 | G124: =ROUND(IF(ISERROR(IRR($B122:G122)),0,IRR($B122:G122)),4) -> -0.1882 | H124: =ROUND(IF(ISERROR(IRR($B122:H122)),0,IRR($B122:H122)),4) -> -0.1007 | I124: =ROUND(IF(ISERROR(IRR($B122:I122)),0,IRR($B122:I122)),4) -> -0.043 | J124: =ROUND(IF(ISERROR(IRR($B122:J122)),0,IRR($B122:J122)),4) -> -0.0027 | K124: =ROUND(IF(ISERROR(IRR($B122:K122)),0,IRR($B122:K122)),4) -> 0.0006 | L124: =ROUND(IF(ISERROR(IRR($B122:L122)),0,IRR($B122:L122)),4) -> 0.0039 | M124: =ROUND(IF(ISERROR(IRR($B122:M122)),0,IRR($B122:M122)),4) -> 0.007 | N124: =ROUND(IF(ISERROR(IRR($B122:N122)),0,IRR($B122:N122)),4) -> 0.01 | O124: =ROUND(IF(ISERROR(IRR($B122:O122)),0,IRR($B122:O122)),4) -> 0.0128 | P124: =ROUND(IF(ISERROR(IRR($B122:P122)),0,IRR($B122:P122)),4) -> 0.0154 | Q124: =ROUND(IF(ISERROR(IRR($B122:Q122)),0,IRR($B122:Q122)),4) -> 0.0179 | R124: =ROUND(IF(ISERROR(IRR($B122:R122)),0,IRR($B122:R122)),4) -> 0.0202 | S124: =ROUND(IF(ISERROR(IRR($B122:S122)),0,IRR($B122:S122)),4) -> 0.0224 | T124: =ROUND(IF(ISERROR(IRR($B122:T122)),0,IRR($B122:T122)),4) -> 0.0244 | U124: =ROUND(IF(ISERROR(IRR($B122:U122)),0,IRR($B122:U122)),4) -> 0.0263 | V124: =ROUND(IF(ISERROR(IRR($B122:V122)),0,IRR($B122:V122)),4) -> 0.0281 | W124: =ROUND(IF(ISERROR(IRR($B122:W122)),0,IRR($B122:W122)),4) -> 0.0297 | X124: =ROUND(IF(ISERROR(IRR($B122:X122)),0,IRR($B122:X122)),4) -> 0.0312 | Y124: =ROUND(IF(ISERROR(IRR($B122:Y122)),0,IRR($B122:Y122)),4) -> 0.0327 | Z124: =ROUND(IF(ISERROR(IRR($B122:Z122)),0,IRR($B122:Z122)),4) -> 0.034 | AA124: =ROUND(IF(ISERROR(IRR($B122:AA122)),0,IRR($B122:AA122)),4) -> 0.0352 | AB124: =ROUND(IF(ISERROR(IRR($B122:AB122)),0,IRR($B122:AB122)),4) -> 0.0363 | AC124: =ROUND(IF(ISERROR(IRR($B122:AC122)),0,IRR($B122:AC122)),4) -> 0.0373 | AD124: =ROUND(IF(ISERROR(IRR($B122:AD122)),0,IRR($B122:AD122)),4) -> 0.0383 | AE124: =ROUND(IF(ISERROR(IRR($B122:AE122)),0,IRR($B122:AE122)),4) -> 0.0392 | AF124: =ROUND(IF(ISERROR(IRR($B122:AF122)),0,IRR($B122:AF122)),4) -> 0.04 | AG124: =ROUND(IF(ISERROR(IRR($B122:AG122)),0,IRR($B122:AG122)),4) -> 0.0408 | AH124: =ROUND(IF(ISERROR(IRR($B122:AH122)),0,IRR($B122:AH122)),4) -> 0.0415 | AI124: =ROUND(IF(ISERROR(IRR($B122:AI122)),0,IRR($B122:AI122)),4) -> 0.0421 | AJ124: =ROUND(IF(ISERROR(IRR($B122:AJ122)),0,IRR($B122:AJ122)),4) -> 0.0428 | AK124: =ROUND(IF(ISERROR(IRR($B122:AK122)),0,IRR($B122:AK122)),4) -> 0.0434 | AL124: =ROUND(IF(ISERROR(IRR($B122:AL122)),0,IRR($B122:AL122)),4) -> 0.0439 | AM124: =ROUND(IF(ISERROR(IRR($B122:AM122)),0,IRR($B122:AM122)),4) -> 0.0444 | AN124: =ROUND(IF(ISERROR(IRR($B122:AN122)),0,IRR($B122:AN122)),4) -> 0.0449 | AO124: =ROUND(IF(ISERROR(IRR($B122:AO122)),0,IRR($B122:AO122)),4) -> 0.0454 | AP124: =ROUND(IF(ISERROR(IRR($B122:AP122)),0,IRR($B122:AP122)),4) -> 0.0461
A125: Cumulative NPV | B125: =B122 -> -26158381.61 | C125: =NPV(DiscountRate,$C122:C122)+$B$122 -> -26158381.61 | D125: =NPV(DiscountRate,$C122:D122)+$B$122 -> -26158381.61 | E125: =NPV(DiscountRate,$C122:E122)+$B$122 -> -26158381.61 | F125: =NPV(DiscountRate,$C122:F122)+$B$122 -> -22433312.38 | G125: =NPV(DiscountRate,$C122:G122)+$B$122 -> -18957534.61 | H125: =NPV(DiscountRate,$C122:H122)+$B$122 -> -15714575.04 | I125: =NPV(DiscountRate,$C122:I122)+$B$122 -> -12689033.27 | J125: =NPV(DiscountRate,$C122:J122)+$B$122 -> -9866513.107 | K125: =NPV(DiscountRate,$C122:K122)+$B$122 -> -9603217.618 | L125: =NPV(DiscountRate,$C122:L122)+$B$122 -> -9357620.976 | M125: =NPV(DiscountRate,$C122:M122)+$B$122 -> -9128547.798 | N125: =NPV(DiscountRate,$C122:N122)+$B$122 -> -8914899.702 | O125: =NPV(DiscountRate,$C122:O122)+$B$122 -> -8719310.453 | P125: =NPV(DiscountRate,$C122:P122)+$B$122 -> -8536861.265 | Q125: =NPV(DiscountRate,$C122:Q122)+$B$122 -> -8366680.533 | R125: =NPV(DiscountRate,$C122:R122)+$B$122 -> -8207953.646 | S125: =NPV(DiscountRate,$C122:S122)+$B$122 -> -8059919.321 | T125: =NPV(DiscountRate,$C122:T122)+$B$122 -> -7921866.173 | U125: =NPV(DiscountRate,$C122:U122)+$B$122 -> -7793129.496 | V125: =NPV(DiscountRate,$C122:V122)+$B$122 -> -7673088.249 | W125: =NPV(DiscountRate,$C122:W122)+$B$122 -> -7561304.579 | X125: =NPV(DiscountRate,$C122:X122)+$B$122 -> -7457344.895 | Y125: =NPV(DiscountRate,$C122:Y122)+$B$122 -> -7360664.99 | Z125: =NPV(DiscountRate,$C122:Z122)+$B$122 -> -7270758.306 | AA125: =NPV(DiscountRate,$C122:AA122)+$B$122 -> -7188891.144 | AB125: =NPV(DiscountRate,$C122:AB122)+$B$122 -> -7112744.53 | AC125: =NPV(DiscountRate,$C122:AC122)+$B$122 -> -7041921.544 | AD125: =NPV(DiscountRate,$C122:AD122)+$B$122 -> -6976052.633 | AE125: =NPV(DiscountRate,$C122:AE122)+$B$122 -> -6914793.738 | AF125: =NPV(DiscountRate,$C122:AF122)+$B$122 -> -6857824.545 | AG125: =NPV(DiscountRate,$C122:AG122)+$B$122 -> -6804846.853 | AH125: =NPV(DiscountRate,$C122:AH122)+$B$122 -> -6755583.061 | AI125: =NPV(DiscountRate,$C122:AI122)+$B$122 -> -6709774.75 | AJ125: =NPV(DiscountRate,$C122:AJ122)+$B$122 -> -6667181.364 | AK125: =NPV(DiscountRate,$C122:AK122)+$B$122 -> -6627578.987 | AL125: =NPV(DiscountRate,$C122:AL122)+$B$122 -> -6590759.196 | AM125: =NPV(DiscountRate,$C122:AM122)+$B$122 -> -6554920.985 | AN125: =NPV(DiscountRate,$C122:AN122)+$B$122 -> -6521642.802 | AO125: =NPV(DiscountRate,$C122:AO122)+$B$122 -> -6490742.895 | AP125: =NPV(DiscountRate,$C122:AP122)+$B$122 -> -6441207.261
A127: Tax Investor: After-Tax
A128: Cash
A129: Equity Investment | B129: =-'Inputs & Results'!$B$210 -> -26158381.61 | C129: 0 | D129: 0 | E129: 0 | F129: 0 | G129: 0 | H129: 0 | I129: 0 | J129: 0 | K129: 0 | L129: 0 | M129: 0 | N129: 0 | O129: 0 | P129: 0 | Q129: 0 | R129: 0 | S129: 0 | T129: 0 | U129: 0 | V129: 0 | W129: 0 | X129: 0 | Y129: 0 | Z129: 0 | AA129: 0 | AB129: 0 | AC129: 0 | AD129: 0 | AE129: 0 | AF129: 0 | AG129: 0 | AH129: 0 | AI129: 0 | AJ129: 0 | AK129: 0 | AL129: 0 | AM129: 0 | AN129: 0 | AO129: 0 | AP129: 0
A130: Operating Cash Distributions/(Contributions) | B130: 0 | C130: =IF(B$147<AEPFFlipTarget,AEPFTEPreFlipCash*(C87+C155),AEPFTEPostFlipCash*(C87+C155)) -> 0 | D130: 0 | E130: 0 | F130: 5067915.571 | G130: 5107057.86 | H130: 5146169.27 | I130: 5185246.916 | J130: 5224287.837 | K130: 526328.9002 | L130: 530224.7303 | M130: 534115.9554 | N130: 538002.249 | O130: 531929.1624 | P130: 535888.5919 | Q130: 539842.0616 | R130: 543789.2119 | S130: 547729.674 | T130: 551663.0705 | U130: 555589.0146 | V130: 559507.11 | W130: 562700.4049 | X130: 565181.0231 | Y130: 567652.5456 | Z130: 570114.5363 | AA130: 560665.2286 | AB130: 563207.2499 | AC130: 565738.3676 | AD130: 568258.1022 | AE130: 570765.9629 | AF130: 573261.447 | AG130: 575744.0401 | AH130: 578213.2151 | AI130: 580668.4328 | AJ130: 583109.1409 | AK130: 585534.7742 | AL130: 587944.754 | AM130: 618052.3681 | AN130: 619815.335 | AO130: 621560.8291 | AP130: 1076137.94
A131: Total | B131: =SUM(B129:B130) -> -26158381.61 | C131: =SUM(C129:C130) -> 0 | D131: 0 | E131: 0 | F131: 5067915.571 | G131: 5107057.86 | H131: 5146169.27 | I131: 5185246.916 | J131: 5224287.837 | K131: 526328.9002 | L131: 530224.7303 | M131: 534115.9554 | N131: 538002.249 | O131: 531929.1624 | P131: 535888.5919 | Q131: 539842.0616 | R131: 543789.2119 | S131: 547729.674 | T131: 551663.0705 | U131: 555589.0146 | V131: 559507.11 | W131: 562700.4049 | X131: 565181.0231 | Y131: 567652.5456 | Z131: 570114.5363 | AA131: 560665.2286 | AB131: 563207.2499 | AC131: 565738.3676 | AD131: 568258.1022 | AE131: 570765.9629 | AF131: 573261.447 | AG131: 575744.0401 | AH131: 578213.2151 | AI131: 580668.4328 | AJ131: 583109.1409 | AK131: 585534.7742 | AL131: 587944.754 | AM131: 618052.3681 | AN131: 619815.335 | AO131: 621560.8291 | AP131: 1076137.94
A132: Investment Tax Credit
A133: State | B133: 0 | C133: =IF(B$147<AEPFFlipTarget,AEPFTEPreFlipTax*C90,AEPFTEPostFlipTax*C90) -> 0 | D133: 0 | E133: 0 | F133: 0 | G133: 0 | H133: 0 | I133: 0 | J133: 0 | K133: 0 | L133: 0 | M133: 0 | N133: 0 | O133: 0 | P133: 0 | Q133: 0 | R133: 0 | S133: 0 | T133: 0 | U133: 0 | V133: 0 | W133: 0 | X133: 0 | Y133: 0 | Z133: 0 | AA133: 0 | AB133: 0 | AC133: 0 | AD133: 0 | AE133: 0 | AF133: 0 | AG133: 0 | AH133: 0 | AI133: 0 | AJ133: 0 | AK133: 0 | AL133: 0 | AM133: 0 | AN133: 0 | AO133: 0 | AP133: 0
A134: Federal | B134: 0 | C134: =IF(B$147<AEPFFlipTarget,AEPFTEPreFlipTax*C91,AEPFTEPostFlipTax*C91) -> 11912526.99 | D134: 0 | E134: 0 | F134: 0 | G134: 0 | H134: 0 | I134: 0 | J134: 0 | K134: 0 | L134: 0 | M134: 0 | N134: 0 | O134: 0 | P134: 0 | Q134: 0 | R134: 0 | S134: 0 | T134: 0 | U134: 0 | V134: 0 | W134: 0 | X134: 0 | Y134: 0 | Z134: 0 | AA134: 0 | AB134: 0 | AC134: 0 | AD134: 0 | AE134: 0 | AF134: 0 | AG134: 0 | AH134: 0 | AI134: 0 | AJ134: 0 | AK134: 0 | AL134: 0 | AM134: 0 | AN134: 0 | AO134: 0 | AP134: 0
A135: Total | B135: =SUM(B133:B134) -> 0 | C135: =SUM(C133:C134) -> 11912526.99 | D135: =SUM(D133:D134) -> 0 | E135: =SUM(E133:E134) -> 0 | F135: 0 | G135: 0 | H135: 0 | I135: 0 | J135: 0 | K135: 0 | L135: 0 | M135: 0 | N135: 0 | O135: 0 | P135: 0 | Q135: 0 | R135: 0 | S135: 0 | T135: 0 | U135: 0 | V135: 0 | W135: 0 | X135: 0 | Y135: 0 | Z135: 0 | AA135: 0 | AB135: 0 | AC135: 0 | AD135: 0 | AE135: 0 | AF135: 0 | AG135: 0 | AH135: 0 | AI135: 0 | AJ135: 0 | AK135: 0 | AL135: 0 | AM135: 0 | AN135: 0 | AO135: 0 | AP135: 0
A136: Production Tax Credit
A137: State | B137: =B576 -> 0 | C137: =IF(B$147<AEPFFlipTarget,AEPFTEPreFlipTax*C94,AEPFTEPostFlipTax*C94) -> 0 | D137: 0 | E137: 0 | F137: 0 | G137: 0 | H137: 0 | I137: 0 | J137: 0 | K137: 0 | L137: 0 | M137: 0 | N137: 0 | O137: 0 | P137: 0 | Q137: 0 | R137: 0 | S137: 0 | T137: 0 | U137: 0 | V137: 0 | W137: 0 | X137: 0 | Y137: 0 | Z137: 0 | AA137: 0 | AB137: 0 | AC137: 0 | AD137: 0 | AE137: 0 | AF137: 0 | AG137: 0 | AH137: 0 | AI137: 0 | AJ137: 0 | AK137: 0 | AL137: 0 | AM137: 0 | AN137: 0 | AO137: 0 | AP137: 0
A138: Federal | B138: =B582 -> 0 | C138: =IF(B$147<AEPFFlipTarget,AEPFTEPreFlipTax*C95,AEPFTEPostFlipTax*C95) -> 0 | D138: 0 | E138: 0 | F138: 0 | G138: 0 | H138: 0 | I138: 0 | J138: 0 | K138: 0 | L138: 0 | M138: 0 | N138: 0 | O138: 0 | P138: 0 | Q138: 0 | R138: 0 | S138: 0 | T138: 0 | U138: 0 | V138: 0 | W138: 0 | X138: 0 | Y138: 0 | Z138: 0 | AA138: 0 | AB138: 0 | AC138: 0 | AD138: 0 | AE138: 0 | AF138: 0 | AG138: 0 | AH138: 0 | AI138: 0 | AJ138: 0 | AK138: 0 | AL138: 0 | AM138: 0 | AN138: 0 | AO138: 0 | AP138: 0
A139: Total | B139: =SUM(B137:B138) -> 0 | C139: =SUM(C137:C138) -> 0 | D139: =SUM(D137:D138) -> 0 | E139: =SUM(E137:E138) -> 0 | F139: 0 | G139: 0 | H139: 0 | I139: 0 | J139: 0 | K139: 0 | L139: 0 | M139: 0 | N139: 0 | O139: 0 | P139: 0 | Q139: 0 | R139: 0 | S139: 0 | T139: 0 | U139: 0 | V139: 0 | W139: 0 | X139: 0 | Y139: 0 | Z139: 0 | AA139: 0 | AB139: 0 | AC139: 0 | AD139: 0 | AE139: 0 | AF139: 0 | AG139: 0 | AH139: 0 | AI139: 0 | AJ139: 0 | AK139: 0 | AL139: 0 | AM139: 0 | AN139: 0 | AO139: 0 | AP139: 0
A140: Share of Project Tax Benefit/(Liability)
A141: State | B141: 0 | C141: =IF(B$147<AEPFFlipTarget,AEPFTEPreFlipTax*C98,AEPFTEPostFlipTax*C98) -> 93415.7343 | D141: 318764.2169 | E141: 78671.85215 | F141: -66337.53852 | G141: -68747.88812 | H141: -178058.5713 | I141: -287235.7665 | J141: -289370.2766 | K141: -29443.64082 | L141: -29659.17453 | M141: -29873.02728 | N141: -26848.69919 | O141: -24834.95413 | P141: -27127.22145 | Q141: -28588.4582 | R141: -29032.76187 | S141: -30408.92639 | T141: -31558.83743 | U141: -31775.41605 | V141: -31991.5763 | W141: -32387.135 | X141: -32704.10031 | Y141: -32840.74065 | Z141: -29103.83401 | AA141: -26576.71746 | AB141: -29196.02331 | AC141: -30823.24734 | AD141: -30962.61475 | AE141: -32216.77985 | AF141: -33470.28064 | AG141: -33607.65445 | AH141: -33744.30736 | AI141: -33880.21007 | AJ141: -34015.33259 | AK141: -34149.64421 | AL141: -29652.43985 | AM141: -26601.44646 | AN141: -29662.99952 | AO141: -31538.15893 | AP141: -53774.4673
A142: Federal | B142: 0 | C142: =IF(B$147<AEPFFlipTarget,AEPFTEPreFlipTax*C99,AEPFTEPostFlipTax*C99) -> 561768.2567 | D142: 1916932.086 | E142: 473103.9109 | F142: -398929.8339 | G142: -413424.7999 | H142: -1070779.499 | I142: -1727331.451 | J142: -1740167.618 | K142: -177063.3491 | L142: -178359.4905 | M142: -179645.5231 | N142: -161458.3138 | O142: -149348.3833 | P142: -163133.2454 | Q142: -171920.5918 | R142: -174592.4725 | S142: -182868.2255 | T142: -189783.3724 | U142: -191085.7975 | V142: -192385.7066 | W142: -194764.4527 | X142: -196670.5669 | Y142: -197492.2722 | Z142: -175019.8745 | AA142: -159822.7145 | AB142: -175574.2675 | AC142: -185359.8011 | AD142: -186197.906 | AE142: -193739.9989 | AF142: -201278.0968 | AG142: -202104.2129 | AH142: -202925.9938 | AI142: -203743.2633 | AJ142: -204555.841 | AK142: -205363.5422 | AL142: -178318.9905 | AM142: -159971.4258 | AN142: -178382.4926 | AO142: -189659.0194 | AP142: -323380.092
A143: Total | B143: =SUM(B141:B142) -> 0 | C143: =SUM(C141:C142) -> 655183.991 | D143: =SUM(D141:D142) -> 2235696.303 | E143: =SUM(E141:E142) -> 551775.7631 | F143: -465267.3724 | G143: -482172.688 | H143: -1248838.071 | I143: -2014567.217 | J143: -2029537.894 | K143: -206506.9899 | L143: -208018.665 | M143: -209518.5504 | N143: -188307.013 | O143: -174183.3374 | P143: -190260.4668 | Q143: -200509.05 | R143: -203625.2344 | S143: -213277.1519 | T143: -221342.2098 | U143: -222861.2135 | V143: -224377.2828 | W143: -227151.5877 | X143: -229374.6672 | Y143: -230333.0128 | Z143: -204123.7086 | AA143: -186399.432 | AB143: -204770.2908 | AC143: -216183.0484 | AD143: -217160.5207 | AE143: -225956.7787 | AF143: -234748.3774 | AG143: -235711.8673 | AH143: -236670.3012 | AI143: -237623.4734 | AJ143: -238571.1736 | AK143: -239513.1864 | AL143: -207971.4304 | AM143: -186572.8722 | AN143: -208045.4921 | AO143: -221197.1783 | AP143: -377154.5593
A144: Total | B144: =B131+B135+B139+B143 -> -26158381.61 | C144: =C131+C135+C139+C143 -> 12567710.98 | D144: 2235696.303 | E144: 551775.7631 | F144: 4602648.199 | G144: 4624885.172 | H144: 3897331.2 | I144: 3170679.699 | J144: 3194749.943 | K144: 319821.9103 | L144: 322206.0653 | M144: 324597.405 | N144: 349695.2361 | O144: 357745.825 | P144: 345628.1251 | Q144: 339333.0116 | R144: 340163.9774 | S144: 334452.5221 | T144: 330320.8607 | U144: 332727.8011 | V144: 335129.8271 | W144: 335548.8171 | X144: 335806.3559 | Y144: 337319.5328 | Z144: 365990.8277 | AA144: 374265.7966 | AB144: 358436.9591 | AC144: 349555.3192 | AD144: 351097.5815 | AE144: 344809.1842 | AF144: 338513.0696 | AG144: 340032.1727 | AH144: 341542.9139 | AI144: 343044.9594 | AJ144: 344537.9673 | AK144: 346021.5878 | AL144: 379973.3237 | AM144: 431479.4959 | AN144: 411769.8429 | AO144: 400363.6508 | AP144: 698983.381
A146: Cumulative IRR | B146: =ROUND(IF(ISERROR(IRR($B$144:B144)),0,IRR($B$144:B144)),4) -> 0 | C146: =ROUND(IF(ISERROR(IRR($B$144:C144)),0,IRR($B$144:C144)),4) -> -0.5196 | D146: =ROUND(IF(ISERROR(IRR($B$144:D144)),0,IRR($B$144:D144)),4) -> -0.3814 | E146: =ROUND(IF(ISERROR(IRR($B$144:E144)),0,IRR($B$144:E144)),4) -> -0.3412 | F146: =ROUND(IF(ISERROR(IRR($B$144:F144)),0,IRR($B$144:F144)),4) -> -0.1282 | G146: =ROUND(IF(ISERROR(IRR($B$144:G144)),0,IRR($B$144:G144)),4) -> -0.0247 | H146: =ROUND(IF(ISERROR(IRR($B$144:H144)),0,IRR($B$144:H144)),4) -> 0.03 | I146: =ROUND(IF(ISERROR(IRR($B$144:I144)),0,IRR($B$144:I144)),4) -> 0.0614 | J146: =ROUND(IF(ISERROR(IRR($B$144:J144)),0,IRR($B$144:J144)),4) -> 0.085 | K146: =ROUND(IF(ISERROR(IRR($B$144:K144)),0,IRR($B$144:K144)),4) -> 0.0869 | L146: =ROUND(IF(ISERROR(IRR($B$144:L144)),0,IRR($B$144:L144)),4) -> 0.0886 | M146: =ROUND(IF(ISERROR(IRR($B$144:M144)),0,IRR($B$144:M144)),4) -> 0.0902 | N146: =ROUND(IF(ISERROR(IRR($B$144:N144)),0,IRR($B$144:N144)),4) -> 0.0917 | O146: =ROUND(IF(ISERROR(IRR($B$144:O144)),0,IRR($B$144:O144)),4) -> 0.0931 | P146: =ROUND(IF(ISERROR(IRR($B$144:P144)),0,IRR($B$144:P144)),4) -> 0.0943 | Q146: =ROUND(IF(ISERROR(IRR($B$144:Q144)),0,IRR($B$144:Q144)),4) -> 0.0954 | R146: =ROUND(IF(ISERROR(IRR($B$144:R144)),0,IRR($B$144:R144)),4) -> 0.0963 | S146: =ROUND(IF(ISERROR(IRR($B$144:S144)),0,IRR($B$144:S144)),4) -> 0.0972 | T146: =ROUND(IF(ISERROR(IRR($B$144:T144)),0,IRR($B$144:T144)),4) -> 0.0979 | U146: =ROUND(IF(ISERROR(IRR($B$144:U144)),0,IRR($B$144:U144)),4) -> 0.0986 | V146: =ROUND(IF(ISERROR(IRR($B$144:V144)),0,IRR($B$144:V144)),4) -> 0.0991 | W146: =ROUND(IF(ISERROR(IRR($B$144:W144)),0,IRR($B$144:W144)),4) -> 0.0997 | X146: =ROUND(IF(ISERROR(IRR($B$144:X144)),0,IRR($B$144:X144)),4) -> 0.1002 | Y146: =ROUND(IF(ISERROR(IRR($B$144:Y144)),0,IRR($B$144:Y144)),4) -> 0.1006 | Z146: =ROUND(IF(ISERROR(IRR($B$144:Z144)),0,IRR($B$144:Z144)),4) -> 0.101 | AA146: =ROUND(IF(ISERROR(IRR($B$144:AA144)),0,IRR($B$144:AA144)),4) -> 0.1014 | AB146: =ROUND(IF(ISERROR(IRR($B$144:AB144)),0,IRR($B$144:AB144)),4) -> 0.1017 | AC146: =ROUND(IF(ISERROR(IRR($B$144:AC144)),0,IRR($B$144:AC144)),4) -> 0.102 | AD146: =ROUND(IF(ISERROR(IRR($B$144:AD144)),0,IRR($B$144:AD144)),4) -> 0.1022 | AE146: =ROUND(IF(ISERROR(IRR($B$144:AE144)),0,IRR($B$144:AE144)),4) -> 0.1025 | AF146: =ROUND(IF(ISERROR(IRR($B$144:AF144)),0,IRR($B$144:AF144)),4) -> 0.1027 | AG146: =ROUND(IF(ISERROR(IRR($B$144:AG144)),0,IRR($B$144:AG144)),4) -> 0.1028 | AH146: =ROUND(IF(ISERROR(IRR($B$144:AH144)),0,IRR($B$144:AH144)),4) -> 0.103 | AI146: =ROUND(IF(ISERROR(IRR($B$144:AI144)),0,IRR($B$144:AI144)),4) -> 0.1032 | AJ146: =ROUND(IF(ISERROR(IRR($B$144:AJ144)),0,IRR($B$144:AJ144)),4) -> 0.1033 | AK146: =ROUND(IF(ISERROR(IRR($B$144:AK144)),0,IRR($B$144:AK144)),4) -> 0.1034 | AL146: =ROUND(IF(ISERROR(IRR($B$144:AL144)),0,IRR($B$144:AL144)),4) -> 0.1035 | AM146: =ROUND(IF(ISERROR(IRR($B$144:AM144)),0,IRR($B$144:AM144)),4) -> 0.1037 | AN146: =ROUND(IF(ISERROR(IRR($B$144:AN144)),0,IRR($B$144:AN144)),4) -> 0.1038 | AO146: =ROUND(IF(ISERROR(IRR($B$144:AO144)),0,IRR($B$144:AO144)),4) -> 0.1038 | AP146: =ROUND(IF(ISERROR(IRR($B$144:AP144)),0,IRR($B$144:AP144)),4) -> 0.104
A147: Max After-Tax IRR | B147: =MAX($B$146:B146) -> 0 | C147: =MAX($B$146:C146) -> 0 | D147: =MAX($B$146:D146) -> 0 | E147: =MAX($B$146:E146) -> 0 | F147: =MAX($B$146:F146) -> 0 | G147: =MAX($B$146:G146) -> 0 | H147: =MAX($B$146:H146) -> 0.03 | I147: =MAX($B$146:I146) -> 0.0614 | J147: =MAX($B$146:J146) -> 0.085 | K147: =MAX($B$146:K146) -> 0.0869 | L147: =MAX($B$146:L146) -> 0.0886 | M147: =MAX($B$146:M146) -> 0.0902 | N147: =MAX($B$146:N146) -> 0.0917 | O147: =MAX($B$146:O146) -> 0.0931 | P147: =MAX($B$146:P146) -> 0.0943 | Q147: =MAX($B$146:Q146) -> 0.0954 | R147: =MAX($B$146:R146) -> 0.0963 | S147: =MAX($B$146:S146) -> 0.0972 | T147: =MAX($B$146:T146) -> 0.0979 | U147: =MAX($B$146:U146) -> 0.0986 | V147: =MAX($B$146:V146) -> 0.0991 | W147: =MAX($B$146:W146) -> 0.0997 | X147: =MAX($B$146:X146) -> 0.1002 | Y147: =MAX($B$146:Y146) -> 0.1006 | Z147: =MAX($B$146:Z146) -> 0.101 | AA147: =MAX($B$146:AA146) -> 0.1014 | AB147: =MAX($B$146:AB146) -> 0.1017 | AC147: =MAX($B$146:AC146) -> 0.102 | AD147: =MAX($B$146:AD146) -> 0.1022 | AE147: =MAX($B$146:AE146) -> 0.1025 | AF147: =MAX($B$146:AF146) -> 0.1027 | AG147: =MAX($B$146:AG146) -> 0.1028 | AH147: =MAX($B$146:AH146) -> 0.103 | AI147: =MAX($B$146:AI146) -> 0.1032 | AJ147: =MAX($B$146:AJ146) -> 0.1033 | AK147: =MAX($B$146:AK146) -> 0.1034 | AL147: =MAX($B$146:AL146) -> 0.1035 | AM147: =MAX($B$146:AM146) -> 0.1037 | AN147: =MAX($B$146:AN146) -> 0.1038 | AO147: =MAX($B$146:AO146) -> 0.1038 | AP147: =MAX($B$146:AP146) -> 0.104
A148: Cumulative NPV | B148: =B144 -> -26158381.61 | C148: =NPV(DiscountRate,$C144:C144)+$B144 -> -14521612.19 | D148: =NPV(DiscountRate,$C144:D144)+$B144 -> -12604862.96 | E148: =NPV(DiscountRate,$C144:E144)+$B144 -> -12166845.57 | F148: =NPV(DiscountRate,$C144:F144)+$B144 -> -8783761.739 | G148: =NPV(DiscountRate,$C144:G144)+$B144 -> -5636142.603 | H148: =NPV(DiscountRate,$C144:H144)+$B144 -> -3180162.855 | I148: =NPV(DiscountRate,$C144:I144)+$B144 -> -1330101.704 | J148: =NPV(DiscountRate,$C144:J144)+$B144 -> 395922.2836 | K148: =NPV(DiscountRate,$C144:K144)+$B144 -> 555912.8639 | L148: =NPV(DiscountRate,$C144:L144)+$B144 -> 705156.6151 | M148: =NPV(DiscountRate,$C144:M144)+$B144 -> 844370.8783 | N148: =NPV(DiscountRate,$C144:N144)+$B144 -> 983239.6679 | O148: =NPV(DiscountRate,$C144:O144)+$B144 -> 1114782.065 | P148: =NPV(DiscountRate,$C144:P144)+$B144 -> 1232454.977 | Q148: =NPV(DiscountRate,$C144:Q144)+$B144 -> 1339426.894 | R148: =NPV(DiscountRate,$C144:R144)+$B144 -> 1438717.516 | S148: =NPV(DiscountRate,$C144:S144)+$B144 -> 1529109.649 | T148: =NPV(DiscountRate,$C144:T144)+$B144 -> 1611772.123 | U148: =NPV(DiscountRate,$C144:U144)+$B144 -> 1688869.169 | V148: =NPV(DiscountRate,$C144:V144)+$B144 -> 1760770.673 | W148: =NPV(DiscountRate,$C144:W144)+$B144 -> 1827429.374 | X148: =NPV(DiscountRate,$C144:X144)+$B144 -> 1889197.765 | Y148: =NPV(DiscountRate,$C144:Y144)+$B144 -> 1946648.437 | Z148: =NPV(DiscountRate,$C144:Z144)+$B144 -> 2004364.948 | AA148: =NPV(DiscountRate,$C144:AA144)+$B144 -> 2059014.456 | AB148: =NPV(DiscountRate,$C144:AB144)+$B144 -> 2107475.765 | AC148: =NPV(DiscountRate,$C144:AC144)+$B144 -> 2151235.483 | AD148: =NPV(DiscountRate,$C144:AD144)+$B144 -> 2191932.51 | AE148: =NPV(DiscountRate,$C144:AE144)+$B144 -> 2228940.024 | AF148: =NPV(DiscountRate,$C144:AF144)+$B144 -> 2262580.55 | AG148: =NPV(DiscountRate,$C144:AG144)+$B144 -> 2293868.967 | AH148: =NPV(DiscountRate,$C144:AH144)+$B144 -> 2322968.439 | AI148: =NPV(DiscountRate,$C144:AI144)+$B144 -> 2350030.889 | AJ148: =NPV(DiscountRate,$C144:AJ144)+$B144 -> 2375197.77 | AK148: =NPV(DiscountRate,$C144:AK144)+$B144 -> 2398600.782 | AL148: =NPV(DiscountRate,$C144:AL144)+$B144 -> 2422396.45 | AM148: =NPV(DiscountRate,$C144:AM144)+$B144 -> 2447416.099 | AN148: =NPV(DiscountRate,$C144:AN144)+$B144 -> 2469524.22 | AO148: =NPV(DiscountRate,$C144:AO144)+$B144 -> 2489427.662 | AP148: =NPV(DiscountRate,$C144:AP144)+$B144 -> 2521602.519
A150: Year Flip Target/Year Hurdle Rate Reached | B150: =SUM(C150:AP150) -> 8 | C150: =IF(AND(B147<AEPFFlipTarget,C147>=AEPFFlipTarget),C$2,0) -> 0 | D150: 0 | E150: 0 | F150: 0 | G150: 0 | H150: 0 | I150: 0 | J150: 8 | K150: 0 | L150: 0 | M150: 0 | N150: 0 | O150: 0 | P150: 0 | Q150: 0 | R150: 0 | S150: 0 | T150: 0 | U150: 0 | V150: 0 | W150: 0 | X150: 0 | Y150: 0 | Z150: 0 | AA150: 0 | AB150: 0 | AC150: 0 | AD150: 0 | AE150: 0 | AF150: 0 | AG150: 0 | AH150: 0 | AI150: 0 | AJ150: 0 | AK150: 0 | AL150: 0 | AM150: 0 | AN150: 0 | AO150: 0 | AP150: 0
A152: Sponsor Capital Recovery
A153: Beginning Balance | B153: 0 | C153: =B156 -> 17438921.07 | D153: =C156 -> 12488589.83 | E153: 7499040.274 | F153: 2470295.054 | G153: 2470295.054 | H153: 2470295.054 | I153: 2470295.054 | J153: 2470295.054 | K153: 2470295.054 | L153: 2470295.054 | M153: 2470295.054 | N153: 2470295.054 | O153: 2470295.054 | P153: 2470295.054 | Q153: 2470295.054 | R153: 2470295.054 | S153: 2470295.054 | T153: 2470295.054 | U153: 2470295.054 | V153: 2470295.054 | W153: 2470295.054 | X153: 2470295.054 | Y153: 2470295.054 | Z153: 2470295.054 | AA153: 2470295.054 | AB153: 2470295.054 | AC153: 2470295.054 | AD153: 2470295.054 | AE153: 2470295.054 | AF153: 2470295.054 | AG153: 2470295.054 | AH153: 2470295.054 | AI153: 2470295.054 | AJ153: 2470295.054 | AK153: 2470295.054 | AL153: 2470295.054 | AM153: 2470295.054 | AN153: 2470295.054 | AO153: 2470295.054 | AP153: 2470295.054
A154: Sponsor Capital Investment | B154: =-B159 -> 17438921.07 | C154: 0 | D154: 0 | E154: 0 | F154: 0 | G154: 0 | H154: 0 | I154: 0 | J154: 0 | K154: 0 | L154: 0 | M154: 0 | N154: 0 | O154: 0 | P154: 0 | Q154: 0 | R154: 0 | S154: 0 | T154: 0 | U154: 0 | V154: 0 | W154: 0 | X154: 0 | Y154: 0 | Z154: 0 | AA154: 0 | AB154: 0 | AC154: 0 | AD154: 0 | AE154: 0 | AF154: 0 | AG154: 0 | AH154: 0 | AI154: 0 | AJ154: 0 | AK154: 0 | AL154: 0 | AM154: 0 | AN154: 0 | AO154: 0 | AP154: 0
A155: Operating Cash to Sponsor During Recovery Period | B155: =-IF(B78<0,0,MIN(B153+B154,B78))*IF(CapitalRecoveryMethod="Time",IF(B2<=CapitalRecoveryDuration,1,0),1) -> 0 | C155: -4950331.249 | D155: -4989549.552 | E155: -5028745.22 | F155: 0 | G155: 0 | H155: 0 | I155: 0 | J155: 0 | K155: 0 | L155: 0 | M155: 0 | N155: 0 | O155: 0 | P155: 0 | Q155: 0 | R155: 0 | S155: 0 | T155: 0 | U155: 0 | V155: 0 | W155: 0 | X155: 0 | Y155: 0 | Z155: 0 | AA155: 0 | AB155: 0 | AC155: 0 | AD155: 0 | AE155: 0 | AF155: 0 | AG155: 0 | AH155: 0 | AI155: 0 | AJ155: 0 | AK155: 0 | AL155: 0 | AM155: 0 | AN155: 0 | AO155: 0 | AP155: 0
A156: Ending Balance | B156: =SUM(B153:B155) -> 17438921.07 | C156: 12488589.83 | D156: 7499040.274 | E156: 2470295.054 | F156: 2470295.054 | G156: 2470295.054 | H156: 2470295.054 | I156: 2470295.054 | J156: 2470295.054 | K156: 2470295.054 | L156: 2470295.054 | M156: 2470295.054 | N156: 2470295.054 | O156: 2470295.054 | P156: 2470295.054 | Q156: 2470295.054 | R156: 2470295.054 | S156: 2470295.054 | T156: 2470295.054 | U156: 2470295.054 | V156: 2470295.054 | W156: 2470295.054 | X156: 2470295.054 | Y156: 2470295.054 | Z156: 2470295.054 | AA156: 2470295.054 | AB156: 2470295.054 | AC156: 2470295.054 | AD156: 2470295.054 | AE156: 2470295.054 | AF156: 2470295.054 | AG156: 2470295.054 | AH156: 2470295.054 | AI156: 2470295.054 | AJ156: 2470295.054 | AK156: 2470295.054 | AL156: 2470295.054 | AM156: 2470295.054 | AN156: 2470295.054 | AO156: 2470295.054 | AP156: 2470295.054
A158: Sponsor: Pre-Tax
A159: Equity Investment | B159: =B86-B120 -> -17438921.07 | C159: 0 | D159: 0 | E159: 0 | F159: 0 | G159: 0 | H159: 0 | I159: 0 | J159: 0 | K159: 0 | L159: 0 | M159: 0 | N159: 0 | O159: 0 | P159: 0 | Q159: 0 | R159: 0 | S159: 0 | T159: 0 | U159: 0 | V159: 0 | W159: 0 | X159: 0 | Y159: 0 | Z159: 0 | AA159: 0 | AB159: 0 | AC159: 0 | AD159: 0 | AE159: 0 | AF159: 0 | AG159: 0 | AH159: 0 | AI159: 0 | AJ159: 0 | AK159: 0 | AL159: 0 | AM159: 0 | AN159: 0 | AO159: 0 | AP159: 0
A160: Development Fee | B160: ='Inputs & Results'!C171 -> 1206814.5
A161: Operating Cash During Capital Recovery Period | C161: =-C155 -> 4950331.249 | D161: 4989549.552 | E161: 5028745.22 | F161: 0 | G161: 0 | H161: 0 | I161: 0 | J161: 0 | K161: 0 | L161: 0 | M161: 0 | N161: 0 | O161: 0 | P161: 0 | Q161: 0 | R161: 0 | S161: 0 | T161: 0 | U161: 0 | V161: 0 | W161: 0 | X161: 0 | Y161: 0 | Z161: 0 | AA161: 0 | AB161: 0 | AC161: 0 | AD161: 0 | AE161: 0 | AF161: 0 | AG161: 0 | AH161: 0 | AI161: 0 | AJ161: 0 | AK161: 0 | AL161: 0 | AM161: 0 | AN161: 0 | AO161: 0 | AP161: 0
A162: Operating Cash Distributions/(Contributions) Post Recovery Period | C162: =C78+C155-C121 -> 0 | D162: 0 | E162: 0 | F162: 0 | G162: 0 | H162: 0 | I162: 0 | J162: 0 | K162: 4736960.102 | L162: 4772022.573 | M162: 4807043.598 | N162: 4842020.241 | O162: 4787362.461 | P162: 4822997.327 | Q162: 4858578.555 | R162: 4894102.907 | S162: 4929567.066 | T162: 4964967.635 | U162: 5000301.131 | V162: 5035563.99 | W162: 5064303.644 | X162: 5086629.208 | Y162: 5108872.91 | Z162: 5131030.827 | AA162: 5045987.058 | AB162: 5068865.249 | AC162: 5091645.308 | AD162: 5114322.92 | AE162: 5136893.666 | AF162: 5159353.023 | AG162: 5181696.361 | AH162: 5203918.936 | AI162: 5226015.895 | AJ162: 5247982.268 | AK162: 5269812.968 | AL162: 5291502.786 | AM162: 5562471.313 | AN162: 5578338.015 | AO162: 5594047.462 | AP162: 9685241.463
A163: Total | B163: =SUM(B159:B162) -> -16232106.57 | C163: =SUM(C159:C162) -> 4950331.249 | D163: 4989549.552 | E163: 5028745.22 | F163: 0 | G163: 0 | H163: 0 | I163: 0 | J163: 0 | K163: 4736960.102 | L163: 4772022.573 | M163: 4807043.598 | N163: 4842020.241 | O163: 4787362.461 | P163: 4822997.327 | Q163: 4858578.555 | R163: 4894102.907 | S163: 4929567.066 | T163: 4964967.635 | U163: 5000301.131 | V163: 5035563.99 | W163: 5064303.644 | X163: 5086629.208 | Y163: 5108872.91 | Z163: 5131030.827 | AA163: 5045987.058 | AB163: 5068865.249 | AC163: 5091645.308 | AD163: 5114322.92 | AE163: 5136893.666 | AF163: 5159353.023 | AG163: 5181696.361 | AH163: 5203918.936 | AI163: 5226015.895 | AJ163: 5247982.268 | AK163: 5269812.968 | AL163: 5291502.786 | AM163: 5562471.313 | AN163: 5578338.015 | AO163: 5594047.462 | AP163: 9685241.463
A165: Cumulative IRR | B165: =IF(ISERROR(IRR($B163:B163)),"N/A",ROUND(IRR($B163:B163),4)) -> N/A | C165: =IF(ISERROR(IRR($B163:C163)),"N/A",ROUND(IRR($B163:C163),4)) -> -0.695 | D165: =IF(ISERROR(IRR($B163:D163)),"N/A",ROUND(IRR($B163:D163),4)) -> -0.2725 | E165: =IF(ISERROR(IRR($B163:E163)),"N/A",ROUND(IRR($B163:E163),4)) -> -0.0393 | F165: =IF(ISERROR(IRR($B163:F163)),"N/A",ROUND(IRR($B163:F163),4)) -> -0.0393 | G165: =IF(ISERROR(IRR($B163:G163)),"N/A",ROUND(IRR($B163:G163),4)) -> -0.0393 | H165: =IF(ISERROR(IRR($B163:H163)),"N/A",ROUND(IRR($B163:H163),4)) -> -0.0393 | I165: =IF(ISERROR(IRR($B163:I163)),"N/A",ROUND(IRR($B163:I163),4)) -> -0.0393 | J165: =IF(ISERROR(IRR($B163:J163)),"N/A",ROUND(IRR($B163:J163),4)) -> -0.0393 | K165: =IF(ISERROR(IRR($B163:K163)),"N/A",ROUND(IRR($B163:K163),4)) -> 0.058 | L165: =IF(ISERROR(IRR($B163:L163)),"N/A",ROUND(IRR($B163:L163),4)) -> 0.1003 | M165: =IF(ISERROR(IRR($B163:M163)),"N/A",ROUND(IRR($B163:M163),4)) -> 0.1262 | N165: =IF(ISERROR(IRR($B163:N163)),"N/A",ROUND(IRR($B163:N163),4)) -> 0.1437 | O165: =IF(ISERROR(IRR($B163:O163)),"N/A",ROUND(IRR($B163:O163),4)) -> 0.156 | P165: =IF(ISERROR(IRR($B163:P163)),"N/A",ROUND(IRR($B163:P163),4)) -> 0.1651 | Q165: =IF(ISERROR(IRR($B163:Q163)),"N/A",ROUND(IRR($B163:Q163),4)) -> 0.172 | R165: =IF(ISERROR(IRR($B163:R163)),"N/A",ROUND(IRR($B163:R163),4)) -> 0.1773 | S165: =IF(ISERROR(IRR($B163:S163)),"N/A",ROUND(IRR($B163:S163),4)) -> 0.1815 | T165: =IF(ISERROR(IRR($B163:T163)),"N/A",ROUND(IRR($B163:T163),4)) -> 0.1848 | U165: =IF(ISERROR(IRR($B163:U163)),"N/A",ROUND(IRR($B163:U163),4)) -> 0.1874 | V165: =IF(ISERROR(IRR($B163:V163)),"N/A",ROUND(IRR($B163:V163),4)) -> 0.1896 | W165: =IF(ISERROR(IRR($B163:W163)),"N/A",ROUND(IRR($B163:W163),4)) -> 0.1913 | X165: =IF(ISERROR(IRR($B163:X163)),"N/A",ROUND(IRR($B163:X163),4)) -> 0.1926 | Y165: =IF(ISERROR(IRR($B163:Y163)),"N/A",ROUND(IRR($B163:Y163),4)) -> 0.1938 | Z165: =IF(ISERROR(IRR($B163:Z163)),"N/A",ROUND(IRR($B163:Z163),4)) -> 0.1947 | AA165: =IF(ISERROR(IRR($B163:AA163)),"N/A",ROUND(IRR($B163:AA163),4)) -> 0.1954 | AB165: =IF(ISERROR(IRR($B163:AB163)),"N/A",ROUND(IRR($B163:AB163),4)) -> 0.196 | AC165: =IF(ISERROR(IRR($B163:AC163)),"N/A",ROUND(IRR($B163:AC163),4)) -> 0.1965 | AD165: =IF(ISERROR(IRR($B163:AD163)),"N/A",ROUND(IRR($B163:AD163),4)) -> 0.1969 | AE165: =IF(ISERROR(IRR($B163:AE163)),"N/A",ROUND(IRR($B163:AE163),4)) -> 0.1973 | AF165: =IF(ISERROR(IRR($B163:AF163)),"N/A",ROUND(IRR($B163:AF163),4)) -> 0.1976 | AG165: =IF(ISERROR(IRR($B163:AG163)),"N/A",ROUND(IRR($B163:AG163),4)) -> 0.1978 | AH165: =IF(ISERROR(IRR($B163:AH163)),"N/A",ROUND(IRR($B163:AH163),4)) -> 0.198 | AI165: =IF(ISERROR(IRR($B163:AI163)),"N/A",ROUND(IRR($B163:AI163),4)) -> 0.1982 | AJ165: =IF(ISERROR(IRR($B163:AJ163)),"N/A",ROUND(IRR($B163:AJ163),4)) -> 0.1983 | AK165: =IF(ISERROR(IRR($B163:AK163)),"N/A",ROUND(IRR($B163:AK163),4)) -> 0.1984 | AL165: =IF(ISERROR(IRR($B163:AL163)),"N/A",ROUND(IRR($B163:AL163),4)) -> 0.1985 | AM165: =IF(ISERROR(IRR($B163:AM163)),"N/A",ROUND(IRR($B163:AM163),4)) -> 0.1986 | AN165: =IF(ISERROR(IRR($B163:AN163)),"N/A",ROUND(IRR($B163:AN163),4)) -> 0.1987 | AO165: =IF(ISERROR(IRR($B163:AO163)),"N/A",ROUND(IRR($B163:AO163),4)) -> 0.1987 | AP165: =IF(ISERROR(IRR($B163:AP163)),"N/A",ROUND(IRR($B163:AP163),4)) -> 0.1988
A166: Cumulative NPV | B166: =B163 -> -16232106.57 | C166: =NPV(DiscountRate,$C163:C163)+$B163 -> -11648466.53 | D166: =NPV(DiscountRate,$C163:D163)+$B163 -> -7370732.002 | E166: =NPV(DiscountRate,$C163:E163)+$B163 -> -3378751.915 | F166: =NPV(DiscountRate,$C163:F163)+$B163 -> -3378751.915 | G166: =NPV(DiscountRate,$C163:G163)+$B163 -> -3378751.915 | H166: =NPV(DiscountRate,$C163:H163)+$B163 -> -3378751.915 | I166: =NPV(DiscountRate,$C163:I163)+$B163 -> -3378751.915 | J166: =NPV(DiscountRate,$C163:J163)+$B163 -> -3378751.915 | K166: =NPV(DiscountRate,$C163:K163)+$B163 -> -1009092.517 | L166: =NPV(DiscountRate,$C163:L163)+$B163 -> 1201277.264 | M166: =NPV(DiscountRate,$C163:M163)+$B163 -> 3262935.867 | N166: =NPV(DiscountRate,$C163:N163)+$B163 -> 5185768.725 | O166: =NPV(DiscountRate,$C163:O163)+$B163 -> 6946071.966 | P166: =NPV(DiscountRate,$C163:P163)+$B163 -> 8588114.659 | Q166: =NPV(DiscountRate,$C163:Q163)+$B163 -> 10119741.25 | R166: =NPV(DiscountRate,$C163:R163)+$B163 -> 11548283.23 | S166: =NPV(DiscountRate,$C163:S163)+$B163 -> 12880592.15 | T166: =NPV(DiscountRate,$C163:T163)+$B163 -> 14123070.48 | U166: =NPV(DiscountRate,$C163:U163)+$B163 -> 15281700.58 | V166: =NPV(DiscountRate,$C163:V163)+$B163 -> 16362071.81 | W166: =NPV(DiscountRate,$C163:W163)+$B163 -> 17368124.83 | X166: =NPV(DiscountRate,$C163:X163)+$B163 -> 18303761.99 | Y166: =NPV(DiscountRate,$C163:Y163)+$B163 -> 19173881.13 | Z166: =NPV(DiscountRate,$C163:Z163)+$B163 -> 19983041.29 | AA166: =NPV(DiscountRate,$C163:AA163)+$B163 -> 20719845.75 | AB166: =NPV(DiscountRate,$C163:AB163)+$B163 -> 21405165.27 | AC166: =NPV(DiscountRate,$C163:AC163)+$B163 -> 22042572.15 | AD166: =NPV(DiscountRate,$C163:AD163)+$B163 -> 22635392.35 | AE166: =NPV(DiscountRate,$C163:AE163)+$B163 -> 23186722.4 | AF166: =NPV(DiscountRate,$C163:AF163)+$B163 -> 23699445.14 | AG166: =NPV(DiscountRate,$C163:AG163)+$B163 -> 24176244.37 | AH166: =NPV(DiscountRate,$C163:AH163)+$B163 -> 24619618.49 | AI166: =NPV(DiscountRate,$C163:AI163)+$B163 -> 25031893.3 | AJ166: =NPV(DiscountRate,$C163:AJ163)+$B163 -> 25415233.77 | AK166: =NPV(DiscountRate,$C163:AK163)+$B163 -> 25771655.16 | AL166: =NPV(DiscountRate,$C163:AL163)+$B163 -> 26103033.28 | AM166: =NPV(DiscountRate,$C163:AM163)+$B163 -> 26425577.18 | AN166: =NPV(DiscountRate,$C163:AN163)+$B163 -> 26725080.83 | AO166: =NPV(DiscountRate,$C163:AO163)+$B163 -> 27003179.99 | AP166: =NPV(DiscountRate,$C163:AP163)+$B163 -> 27449000.7
A169: IRR | B169: =IF(ISERROR(IRR(B163:AP163)),"N/A",IRR(B163:AP163)) -> 0.1987950885
A170: NPV | B170: =NPV(DiscountRate,$C163:$AP163)+B163 -> 27449000.7
A172: Sponsor: After-Tax
A173: Cash
A174: Equity Investment | B174: =B86-B129 -> -17438921.07 | C174: 0 | D174: 0 | E174: 0 | F174: 0 | G174: 0 | H174: 0 | I174: 0 | J174: 0 | K174: 0 | L174: 0 | M174: 0 | N174: 0 | O174: 0 | P174: 0 | Q174: 0 | R174: 0 | S174: 0 | T174: 0 | U174: 0 | V174: 0 | W174: 0 | X174: 0 | Y174: 0 | Z174: 0 | AA174: 0 | AB174: 0 | AC174: 0 | AD174: 0 | AE174: 0 | AF174: 0 | AG174: 0 | AH174: 0 | AI174: 0 | AJ174: 0 | AK174: 0 | AL174: 0 | AM174: 0 | AN174: 0 | AO174: 0 | AP174: 0
A175: Development Fee | B175: ='Inputs & Results'!B171 -> 1206814.5
A176: Operating Cash During Capital Recovery Period | B176: =B161 -> 0 | C176: =C161 -> 4950331.249 | D176: 4989549.552 | E176: 5028745.22 | F176: 0 | G176: 0 | H176: 0 | I176: 0 | J176: 0 | K176: 0 | L176: 0 | M176: =M161 -> 0 | N176: 0 | O176: 0 | P176: 0 | Q176: 0 | R176: 0 | S176: 0 | T176: 0 | U176: 0 | V176: 0 | W176: 0 | X176: 0 | Y176: 0 | Z176: 0 | AA176: 0 | AB176: 0 | AC176: 0 | AD176: 0 | AE176: 0 | AF176: 0 | AG176: 0 | AH176: 0 | AI176: 0 | AJ176: 0 | AK176: 0 | AL176: 0 | AM176: 0 | AN176: 0 | AO176: 0 | AP176: 0
A177: Operating Cash Distributions/(Contributions) Post Recovery Period | B177: =B162 -> 0 | C177: =C162 -> 0 | D177: 0 | E177: 0 | F177: 0 | G177: 0 | H177: 0 | I177: 0 | J177: 0 | K177: 4736960.102 | L177: 4772022.573 | M177: =M162 -> 4807043.598 | N177: 4842020.241 | O177: 4787362.461 | P177: 4822997.327 | Q177: 4858578.555 | R177: 4894102.907 | S177: 4929567.066 | T177: 4964967.635 | U177: 5000301.131 | V177: 5035563.99 | W177: 5064303.644 | X177: 5086629.208 | Y177: 5108872.91 | Z177: 5131030.827 | AA177: 5045987.058 | AB177: 5068865.249 | AC177: 5091645.308 | AD177: 5114322.92 | AE177: 5136893.666 | AF177: 5159353.023 | AG177: 5181696.361 | AH177: 5203918.936 | AI177: 5226015.895 | AJ177: 5247982.268 | AK177: 5269812.968 | AL177: 5291502.786 | AM177: 5562471.313 | AN177: 5578338.015 | AO177: 5594047.462 | AP177: 9685241.463
A178: Total | B178: =SUM(B174:B177) -> -16232106.57 | C178: =SUM(C174:C177) -> 4950331.249 | D178: 4989549.552 | E178: 5028745.22 | F178: 0 | G178: 0 | H178: 0 | I178: 0 | J178: 0 | K178: 4736960.102 | L178: 4772022.573 | M178: 4807043.598 | N178: 4842020.241 | O178: 4787362.461 | P178: 4822997.327 | Q178: 4858578.555 | R178: 4894102.907 | S178: 4929567.066 | T178: 4964967.635 | U178: 5000301.131 | V178: 5035563.99 | W178: 5064303.644 | X178: 5086629.208 | Y178: 5108872.91 | Z178: 5131030.827 | AA178: 5045987.058 | AB178: 5068865.249 | AC178: 5091645.308 | AD178: 5114322.92 | AE178: 5136893.666 | AF178: 5159353.023 | AG178: 5181696.361 | AH178: 5203918.936 | AI178: 5226015.895 | AJ178: 5247982.268 | AK178: 5269812.968 | AL178: 5291502.786 | AM178: 5562471.313 | AN178: 5578338.015 | AO178: 5594047.462 | AP178: 9685241.463
A179: Investment Tax Credit
A180: State | B180: =B90-B133 -> 0 | C180: 0 | D180: 0 | E180: 0 | F180: 0 | G180: 0 | H180: 0 | I180: 0 | J180: 0 | K180: 0 | L180: 0 | M180: 0 | N180: 0 | O180: 0 | P180: 0 | Q180: 0 | R180: 0 | S180: 0 | T180: 0 | U180: 0 | V180: 0 | W180: 0 | X180: 0 | Y180: 0 | Z180: 0 | AA180: 0 | AB180: 0 | AC180: 0 | AD180: 0 | AE180: 0 | AF180: 0 | AG180: 0 | AH180: 0 | AI180: 0 | AJ180: 0 | AK180: 0 | AL180: 0 | AM180: 0 | AN180: 0 | AO180: 0 | AP180: 0
A181: Federal | B181: =B91-B134 -> 0 | C181: 120328.5554 | D181: 0 | E181: 0 | F181: 0 | G181: 0 | H181: 0 | I181: 0 | J181: 0 | K181: 0 | L181: 0 | M181: 0 | N181: 0 | O181: 0 | P181: 0 | Q181: 0 | R181: 0 | S181: 0 | T181: 0 | U181: 0 | V181: 0 | W181: 0 | X181: 0 | Y181: 0 | Z181: 0 | AA181: 0 | AB181: 0 | AC181: 0 | AD181: 0 | AE181: 0 | AF181: 0 | AG181: 0 | AH181: 0 | AI181: 0 | AJ181: 0 | AK181: 0 | AL181: 0 | AM181: 0 | AN181: 0 | AO181: 0 | AP181: 0
A182: Total | B182: =SUM(B180:B181) -> 0 | C182: =SUM(C180:C181) -> 120328.5554 | D182: =SUM(D180:D181) -> 0 | E182: =SUM(E180:E181) -> 0 | F182: 0 | G182: 0 | H182: 0 | I182: 0 | J182: 0 | K182: 0 | L182: 0 | M182: 0 | N182: 0 | O182: 0 | P182: 0 | Q182: 0 | R182: 0 | S182: 0 | T182: 0 | U182: 0 | V182: 0 | W182: 0 | X182: 0 | Y182: 0 | Z182: 0 | AA182: 0 | AB182: 0 | AC182: 0 | AD182: 0 | AE182: 0 | AF182: 0 | AG182: 0 | AH182: 0 | AI182: 0 | AJ182: 0 | AK182: 0 | AL182: 0 | AM182: 0 | AN182: 0 | AO182: 0 | AP182: 0
A183: Production Tax Credit
A184: State | B184: =B94-B137 -> 0 | C184: 0 | D184: 0 | E184: 0 | F184: 0 | G184: 0 | H184: 0 | I184: 0 | J184: 0 | K184: 0 | L184: 0 | M184: 0 | N184: 0 | O184: 0 | P184: 0 | Q184: 0 | R184: 0 | S184: 0 | T184: 0 | U184: 0 | V184: 0 | W184: 0 | X184: 0 | Y184: 0 | Z184: 0 | AA184: 0 | AB184: 0 | AC184: 0 | AD184: 0 | AE184: 0 | AF184: 0 | AG184: 0 | AH184: 0 | AI184: 0 | AJ184: 0 | AK184: 0 | AL184: 0 | AM184: 0 | AN184: 0 | AO184: 0 | AP184: 0
A185: Federal | B185: =B95-B138 -> 0 | C185: 0 | D185: 0 | E185: 0 | F185: 0 | G185: 0 | H185: 0 | I185: 0 | J185: 0 | K185: 0 | L185: 0 | M185: 0 | N185: 0 | O185: 0 | P185: 0 | Q185: 0 | R185: 0 | S185: 0 | T185: 0 | U185: 0 | V185: 0 | W185: 0 | X185: 0 | Y185: 0 | Z185: 0 | AA185: 0 | AB185: 0 | AC185: 0 | AD185: 0 | AE185: 0 | AF185: 0 | AG185: 0 | AH185: 0 | AI185: 0 | AJ185: 0 | AK185: 0 | AL185: 0 | AM185: 0 | AN185: 0 | AO185: 0 | AP185: 0
A186: Total | B186: =SUM(B184:B185) -> 0 | C186: =SUM(C184:C185) -> 0 | D186: =SUM(D184:D185) -> 0 | E186: =SUM(E184:E185) -> 0 | F186: 0 | G186: 0 | H186: 0 | I186: 0 | J186: 0 | K186: 0 | L186: 0 | M186: 0 | N186: 0 | O186: 0 | P186: 0 | Q186: 0 | R186: 0 | S186: 0 | T186: 0 | U186: 0 | V186: 0 | W186: 0 | X186: 0 | Y186: 0 | Z186: 0 | AA186: 0 | AB186: 0 | AC186: 0 | AD186: 0 | AE186: 0 | AF186: 0 | AG186: 0 | AH186: 0 | AI186: 0 | AJ186: 0 | AK186: 0 | AL186: 0 | AM186: 0 | AN186: 0 | AO186: 0 | AP186: 0
A187: Developer Fee Tax Liability
A188: State | B188: 0 | C188: =B175*-StateTax -> -66374.7975 | D188: 0 | E188: 0 | F188: 0 | G188: 0 | H188: 0 | I188: 0 | J188: 0 | K188: 0 | L188: 0 | M188: 0 | N188: 0 | O188: 0 | P188: 0 | Q188: 0 | R188: 0 | S188: 0 | T188: 0 | U188: 0 | V188: 0 | W188: 0 | X188: 0 | Y188: 0 | Z188: 0 | AA188: 0 | AB188: 0 | AC188: 0 | AD188: 0 | AE188: 0 | AF188: 0 | AG188: 0 | AH188: 0 | AI188: 0 | AJ188: 0 | AK188: 0 | AL188: 0 | AM188: 0 | AN188: 0 | AO188: 0 | AP188: 0
A189: Federal | B189: 0 | C189: =(B175+C188)*-FedTax -> -399153.8959 | D189: 0 | E189: 0 | F189: 0 | G189: 0 | H189: 0 | I189: 0 | J189: 0 | K189: 0 | L189: 0 | M189: 0 | N189: 0 | O189: 0 | P189: 0 | Q189: 0 | R189: 0 | S189: 0 | T189: 0 | U189: 0 | V189: 0 | W189: 0 | X189: 0 | Y189: 0 | Z189: 0 | AA189: 0 | AB189: 0 | AC189: 0 | AD189: 0 | AE189: 0 | AF189: 0 | AG189: 0 | AH189: 0 | AI189: 0 | AJ189: 0 | AK189: 0 | AL189: 0 | AM189: 0 | AN189: 0 | AO189: 0 | AP189: 0
A190: Total | B190: =SUM(B188:B189) -> 0 | C190: =SUM(C188:C189) -> -465528.6934 | D190: =SUM(D188:D189) -> 0 | E190: =SUM(E188:E189) -> 0 | F190: 0 | G190: 0 | H190: 0 | I190: 0 | J190: 0 | K190: 0 | L190: 0 | M190: 0 | N190: 0 | O190: 0 | P190: 0 | Q190: 0 | R190: 0 | S190: 0 | T190: 0 | U190: 0 | V190: 0 | W190: 0 | X190: 0 | Y190: 0 | Z190: 0 | AA190: 0 | AB190: 0 | AC190: 0 | AD190: 0 | AE190: 0 | AF190: 0 | AG190: 0 | AH190: 0 | AI190: 0 | AJ190: 0 | AK190: 0 | AL190: 0 | AM190: 0 | AN190: 0 | AO190: 0 | AP190: 0
A191: Share of Project Tax Benefit/(Liability)
A192: State | B192: =B98-B141 -> 0 | C192: 943.5932757 | D192: 3219.840575 | E192: 794.6651733 | F192: -670.0761467 | G192: -694.4231123 | H192: -1798.571428 | I192: -2901.371379 | J192: -2922.932086 | K192: -264992.7674 | L192: -266932.5708 | M192: -268857.2455 | N192: -241638.2927 | O192: -223514.5872 | P192: -244144.9931 | Q192: -257296.1238 | R192: -261294.8569 | S192: -273680.3376 | T192: -284029.5369 | U192: -285978.7445 | V192: -287924.1867 | W192: -291484.215 | X192: -294336.9028 | Y192: -295566.6658 | Z192: -261934.5061 | AA192: -239190.4571 | AB192: -262764.2098 | AC192: -277409.2261 | AD192: -278663.5328 | AE192: -289951.0187 | AF192: -301232.5258 | AG192: -302468.89 | AH192: -303698.7662 | AI192: -304921.8907 | AJ192: -306137.9933 | AK192: -307346.7979 | AL192: -266871.9586 | AM192: -239413.0182 | AN192: -266966.9957 | AO192: -283843.4304 | AP192: -483970.2057
A193: Federal | B193: =B99-B142 -> 0 | C193: 5674.426836 | D193: 19362.95037 | E193: 4778.827383 | F193: -4029.594282 | G193: -4176.00808 | H193: -10815.95454 | I193: -17447.79243 | J193: -17577.45068 | K193: -1593570.142 | L193: -1605235.414 | M193: -1616809.708 | N193: -1453124.824 | O193: -1344135.449 | P193: -1468199.208 | Q193: -1547285.326 | R193: -1571332.253 | S193: -1645814.03 | T193: -1708050.351 | U193: -1719772.177 | V193: -1731471.359 | W193: -1752880.075 | X193: -1770035.102 | Y193: -1777430.449 | Z193: -1575178.871 | AA193: -1438404.431 | AB193: -1580168.407 | AC193: -1668238.21 | AD193: -1675781.154 | AE193: -1743659.99 | AF193: -1811502.871 | AG193: -1818937.916 | AH193: -1826333.944 | AI193: -1833689.37 | AJ193: -1841002.569 | AK193: -1848271.88 | AL193: -1604870.915 | AM193: -1439742.832 | AN193: -1605442.433 | AO193: -1706931.174 | AP193: -2910420.828
A194: Total | B194: =SUM(B192:B193) -> 0 | C194: =SUM(C192:C193) -> 6618.020111 | D194: =SUM(D192:D193) -> 22582.79094 | E194: =SUM(E192:E193) -> 5573.492556 | F194: -4699.670429 | G194: -4870.431192 | H194: -12614.52597 | I194: -20349.16381 | J194: -20500.38277 | K194: -1858562.909 | L194: -1872167.985 | M194: -1885666.954 | N194: -1694763.117 | O194: -1567650.037 | P194: -1712344.201 | Q194: -1804581.45 | R194: -1832627.11 | S194: -1919494.367 | T194: -1992079.888 | U194: -2005750.922 | V194: -2019395.546 | W194: -2044364.29 | X194: -2064372.005 | Y194: -2072997.115 | Z194: -1837113.377 | AA194: -1677594.888 | AB194: -1842932.617 | AC194: -1945647.436 | AD194: -1954444.687 | AE194: -2033611.008 | AF194: -2112735.397 | AG194: -2121406.806 | AH194: -2130032.71 | AI194: -2138611.26 | AJ194: -2147140.562 | AK194: -2155618.678 | AL194: -1871742.873 | AM194: -1679155.85 | AN194: -1872409.429 | AO194: -1990774.605 | AP194: -3394391.034
A195: Total | B195: =B178+B182+B186+B190+B194 -> -16232106.57 | C195: =C178+C182+C186+C190+C194 -> 4611749.131 | D195: 5012132.343 | E195: 5034318.712 | F195: -4699.670429 | G195: -4870.431192 | H195: -12614.52597 | I195: -20349.16381 | J195: -20500.38277 | K195: 2878397.193 | L195: 2899854.588 | M195: 2921376.645 | N195: 3147257.125 | O195: 3219712.425 | P195: 3110653.126 | Q195: 3053997.104 | R195: 3061475.797 | S195: 3010072.699 | T195: 2972887.746 | U195: 2994550.21 | V195: 3016168.444 | W195: 3019939.354 | X195: 3022257.203 | Y195: 3035875.795 | Z195: 3293917.45 | AA195: 3368392.17 | AB195: 3225932.632 | AC195: 3145997.872 | AD195: 3159878.233 | AE195: 3103282.658 | AF195: 3046617.627 | AG195: 3060289.555 | AH195: 3073886.225 | AI195: 3087404.634 | AJ195: 3100841.706 | AK195: 3114194.29 | AL195: 3419759.913 | AM195: 3883315.463 | AN195: 3705928.586 | AO195: 3603272.857 | AP195: 6290850.429
A197: Cumulative IRR | B197: =IF(ISERROR(IRR($B195:B195)),"N/A",ROUND(IRR($B195:B195),4)) -> N/A | C197: =IF(ISERROR(IRR($B195:C195)),"N/A",ROUND(IRR($B195:C195),4)) -> -0.7159 | D197: =IF(ISERROR(IRR($B195:D195)),"N/A",ROUND(IRR($B195:D195),4)) -> -0.2844 | E197: =IF(ISERROR(IRR($B195:E195)),"N/A",ROUND(IRR($B195:E195),4)) -> -0.0486 | F197: =IF(ISERROR(IRR($B195:F195)),"N/A",ROUND(IRR($B195:F195),4)) -> -0.0488 | G197: =IF(ISERROR(IRR($B195:G195)),"N/A",ROUND(IRR($B195:G195),4)) -> -0.049 | H197: =IF(ISERROR(IRR($B195:H195)),"N/A",ROUND(IRR($B195:H195),4)) -> -0.0495 | I197: =IF(ISERROR(IRR($B195:I195)),"N/A",ROUND(IRR($B195:I195),4)) -> -0.0503 | J197: =IF(ISERROR(IRR($B195:J195)),"N/A",ROUND(IRR($B195:J195),4)) -> -0.0512 | K197: =IF(ISERROR(IRR($B195:K195)),"N/A",ROUND(IRR($B195:K195),4)) -> 0.0242 | L197: =IF(ISERROR(IRR($B195:L195)),"N/A",ROUND(IRR($B195:L195),4)) -> 0.0616 | M197: =IF(ISERROR(IRR($B195:M195)),"N/A",ROUND(IRR($B195:M195),4)) -> 0.0856 | N197: =IF(ISERROR(IRR($B195:N195)),"N/A",ROUND(IRR($B195:N195),4)) -> 0.1035 | O197: =IF(ISERROR(IRR($B195:O195)),"N/A",ROUND(IRR($B195:O195),4)) -> 0.1167 | P197: =IF(ISERROR(IRR($B195:P195)),"N/A",ROUND(IRR($B195:P195),4)) -> 0.1263 | Q197: =IF(ISERROR(IRR($B195:Q195)),"N/A",ROUND(IRR($B195:Q195),4)) -> 0.1335 | R197: =IF(ISERROR(IRR($B195:R195)),"N/A",ROUND(IRR($B195:R195),4)) -> 0.1392 | S197: =IF(ISERROR(IRR($B195:S195)),"N/A",ROUND(IRR($B195:S195),4)) -> 0.1436 | T197: =IF(ISERROR(IRR($B195:T195)),"N/A",ROUND(IRR($B195:T195),4)) -> 0.1471 | U197: =IF(ISERROR(IRR($B195:U195)),"N/A",ROUND(IRR($B195:U195),4)) -> 0.15 | V197: =IF(ISERROR(IRR($B195:V195)),"N/A",ROUND(IRR($B195:V195),4)) -> 0.1524 | W197: =IF(ISERROR(IRR($B195:W195)),"N/A",ROUND(IRR($B195:W195),4)) -> 0.1543 | X197: =IF(ISERROR(IRR($B195:X195)),"N/A",ROUND(IRR($B195:X195),4)) -> 0.1559 | Y197: =IF(ISERROR(IRR($B195:Y195)),"N/A",ROUND(IRR($B195:Y195),4)) -> 0.1573 | Z197: =IF(ISERROR(IRR($B195:Z195)),"N/A",ROUND(IRR($B195:Z195),4)) -> 0.1585 | AA197: =IF(ISERROR(IRR($B195:AA195)),"N/A",ROUND(IRR($B195:AA195),4)) -> 0.1595 | AB197: =IF(ISERROR(IRR($B195:AB195)),"N/A",ROUND(IRR($B195:AB195),4)) -> 0.1604 | AC197: =IF(ISERROR(IRR($B195:AC195)),"N/A",ROUND(IRR($B195:AC195),4)) -> 0.161 | AD197: =IF(ISERROR(IRR($B195:AD195)),"N/A",ROUND(IRR($B195:AD195),4)) -> 0.1616 | AE197: =IF(ISERROR(IRR($B195:AE195)),"N/A",ROUND(IRR($B195:AE195),4)) -> 0.1621 | AF197: =IF(ISERROR(IRR($B195:AF195)),"N/A",ROUND(IRR($B195:AF195),4)) -> 0.1625 | AG197: =IF(ISERROR(IRR($B195:AG195)),"N/A",ROUND(IRR($B195:AG195),4)) -> 0.1628 | AH197: =IF(ISERROR(IRR($B195:AH195)),"N/A",ROUND(IRR($B195:AH195),4)) -> 0.1631 | AI197: =IF(ISERROR(IRR($B195:AI195)),"N/A",ROUND(IRR($B195:AI195),4)) -> 0.1634 | AJ197: =IF(ISERROR(IRR($B195:AJ195)),"N/A",ROUND(IRR($B195:AJ195),4)) -> 0.1636 | AK197: =IF(ISERROR(IRR($B195:AK195)),"N/A",ROUND(IRR($B195:AK195),4)) -> 0.1638 | AL197: =IF(ISERROR(IRR($B195:AL195)),"N/A",ROUND(IRR($B195:AL195),4)) -> 0.1639 | AM197: =IF(ISERROR(IRR($B195:AM195)),"N/A",ROUND(IRR($B195:AM195),4)) -> 0.1641 | AN197: =IF(ISERROR(IRR($B195:AN195)),"N/A",ROUND(IRR($B195:AN195),4)) -> 0.1642 | AO197: =IF(ISERROR(IRR($B195:AO195)),"N/A",ROUND(IRR($B195:AO195),4)) -> 0.1643 | AP197: =IF(ISERROR(IRR($B195:AP195)),"N/A",ROUND(IRR($B195:AP195),4)) -> 0.1645
A198: Cumulative NPV | B198: =B195 -> -16232106.57 | C198: =NPV(DiscountRate,$C195:C195)+$B195 -> -11961968.49 | D198: =NPV(DiscountRate,$C195:D195)+$B195 -> -7664872.86 | E198: =NPV(DiscountRate,$C195:E195)+$B195 -> -3668468.355 | F198: =NPV(DiscountRate,$C195:F195)+$B195 -> -3671922.753 | G198: =NPV(DiscountRate,$C195:G195)+$B195 -> -3675237.487 | H198: =NPV(DiscountRate,$C195:H195)+$B195 -> -3683186.778 | I198: =NPV(DiscountRate,$C195:I195)+$B195 -> -3695060.319 | J198: =NPV(DiscountRate,$C195:J195)+$B195 -> -3706136.038 | K198: =NPV(DiscountRate,$C195:K195)+$B195 -> -2266220.816 | L198: =NPV(DiscountRate,$C195:L195)+$B195 -> -923027.0542 | M198: =NPV(DiscountRate,$C195:M195)+$B195 -> 329901.3144 | N198: =NPV(DiscountRate,$C195:N195)+$B195 -> 1579720.421 | O198: =NPV(DiscountRate,$C195:O195)+$B195 -> 2763601.997 | P198: =NPV(DiscountRate,$C195:P195)+$B195 -> 3822658.2 | Q198: =NPV(DiscountRate,$C195:Q195)+$B195 -> 4785405.454 | R198: =NPV(DiscountRate,$C195:R195)+$B195 -> 5679021.056 | S198: =NPV(DiscountRate,$C195:S195)+$B195 -> 6492550.248 | T198: =NPV(DiscountRate,$C195:T195)+$B195 -> 7236512.52 | U198: =NPV(DiscountRate,$C195:U195)+$B195 -> 7930385.93 | V198: =NPV(DiscountRate,$C195:V195)+$B195 -> 8577499.462 | W198: =NPV(DiscountRate,$C195:W195)+$B195 -> 9177427.773 | X198: =NPV(DiscountRate,$C195:X195)+$B195 -> 9733343.295 | Y198: =NPV(DiscountRate,$C195:Y195)+$B195 -> 10250399.34 | Z198: =NPV(DiscountRate,$C195:Z195)+$B195 -> 10769847.94 | AA198: =NPV(DiscountRate,$C195:AA195)+$B195 -> 11261693.51 | AB198: =NPV(DiscountRate,$C195:AB195)+$B195 -> 11697845.29 | AC198: =NPV(DiscountRate,$C195:AC195)+$B195 -> 12091682.76 | AD198: =NPV(DiscountRate,$C195:AD195)+$B195 -> 12457956 | AE198: =NPV(DiscountRate,$C195:AE195)+$B195 -> 12791023.63 | AF198: =NPV(DiscountRate,$C195:AF195)+$B195 -> 13093788.36 | AG198: =NPV(DiscountRate,$C195:AG195)+$B195 -> 13375384.11 | AH198: =NPV(DiscountRate,$C195:AH195)+$B195 -> 13637279.36 | AI198: =NPV(DiscountRate,$C195:AI195)+$B195 -> 13880841.41 | AJ198: =NPV(DiscountRate,$C195:AJ195)+$B195 -> 14107343.34 | AK198: =NPV(DiscountRate,$C195:AK195)+$B195 -> 14317970.45 | AL198: =NPV(DiscountRate,$C195:AL195)+$B195 -> 14532131.46 | AM198: =NPV(DiscountRate,$C195:AM195)+$B195 -> 14757308.3 | AN198: =NPV(DiscountRate,$C195:AN195)+$B195 -> 14956281.39 | AO198: =NPV(DiscountRate,$C195:AO195)+$B195 -> 15135412.36 | AP198: =NPV(DiscountRate,$C195:AP195)+$B195 -> 15424986.08
A200: After-Tax IRR | B200: =IF(ISERROR(IRR(B195:AP195)),"N/A",IRR(B195:AP195)) -> 0.164491937
A201: NPV | B201: =NPV(DiscountRate,$C195:$AP195)+B195 -> 15424986.08
A203: Taxes
A204: State Income Taxes
A205: EBITDA | C205: =C43 -> 5186185.387 | D205: 5221241.892 | E205: 5256275.984 | F205: 5291284.991 | G205: 5326266.172 | H205: 5361216.715 | I205: 5396133.742 | J205: 5431014.3 | K205: 5465855.362 | L205: 5500653.828 | M205: 5535406.518 | N205: 5570110.176 | O205: 5604761.465 | P205: 5639356.963 | Q205: 5673893.168 | R205: 5708366.489 | S205: 5742773.248 | T205: 5777109.679 | U205: 5811371.921 | V205: 5845556.02 | W205: 5879657.929 | X205: 5899342.576 | Y205: 5918936.636 | Z205: 5938435.759 | AA205: 5957835.49 | AB205: 5977131.266 | AC205: 5996318.416 | AD205: 6015392.155 | AE205: 6034347.585 | AF205: 6053179.691 | AG205: 6071883.338 | AH205: 6090453.269 | AI205: 6108884.101 | AJ205: 6127170.325 | AK205: 6145306.299 | AL205: 6163286.25 | AM205: 6181104.268 | AN205: 6198754.301 | AO205: 6216230.158 | AP205: 10256240.5
A206: Plus: Interest Earned | C206: =C705 -> 6776.121395 | D206: 11022.15093 | E206: 15269.65451 | F206: 19518.66185 | G206: 23769.20329 | H206: 28021.3098 | I206: 32275.01301 | J206: 36530.34521 | K206: 40787.33935 | L206: 45046.02909 | M206: 49306.44879 | N206: 53568.63353 | O206: 6297.353107 | P206: 11403.279 | Q206: 16511.07966 | R206: 21620.7932 | S206: 26732.45857 | T206: 31846.11549 | U206: 36961.80455 | V206: 42079.56719 | W206: 47199.44573 | X206: 52446.87893 | Y206: 57696.51535 | Z206: 62948.40002 | AA206: 6586.078449 | AB206: 12847.04089 | AC206: 19110.39252 | AD206: 25376.18234 | AE206: 31644.46035 | AF206: 37915.27764 | AG206: 44188.68636 | AH206: 50464.73978 | AI206: 56743.49228 | AJ206: 63024.99943 | AK206: 69309.31794 | AL206: 75596.50576 | AM206: 8216.814354 | AN206: 8370.768871 | AO206: 8527.773977 | AP206: 8687.892689
A207: Less: Tax Depreciation | C207: =IF(C$2<=AnalysisPeriod,-C328-C358-C384-C410,0) -> -6908585.646 | D207: -11086519.63 | E207: -6716391.408 | F207: -4092483.387 | G207: -4087447.898 | H207: -2119108.157 | I207: -153188.066 | J207: -153122.6701 | K207: -153253.462 | L207: -153122.6701 | M207: -153253.462 | N207: -742097.1388 | O207: -1095612.612 | P207: -718538.16 | Q207: -492502.756 | R207: -451303.3049 | S207: -240609.9988 | T207: -70985.35181 | U207: -70985.35181 | V207: -70985.35181 | W207: -38287.3748 | X207: -5589.39778 | Y207: -5589.39778 | Z207: -709777.9751 | AA207: -1132291.121 | AB207: -681610.432 | AC207: -411202.0183 | AD207: -411202.0183 | AE207: -208395.708 | AF207: -5589.39778 | AG207: -5589.39778 | AH207: -5589.39778 | AI207: -5589.39778 | AJ207: -5589.39778 | AK207: -5589.39778 | AL207: -847530.0569 | AM207: -1352694.452 | AN207: -813852.4306 | AO207: -490547.2175 | AP207: -487752.5186
A208: Taxable Income Prior to Incentives | C208: =SUM(C205:C207) -> -1715624.138 | D208: -5854255.591 | E208: -1444845.77 | F208: 1218320.267 | G208: 1262587.477 | H208: 3270129.868 | I208: 5275220.689 | J208: 5314421.975 | K208: 5353389.24 | L208: 5392577.187 | M208: 5431459.505 | N208: 4881581.671 | O208: 4515446.206 | P208: 4932222.082 | Q208: 5197901.491 | R208: 5278683.977 | S208: 5528895.708 | T208: 5737970.443 | U208: 5777348.373 | V208: 5816650.236 | W208: 5888570 | X208: 5946200.057 | Y208: 5971043.754 | Z208: 5291606.184 | AA208: 4832130.447 | AB208: 5308367.875 | AC208: 5604226.79 | AD208: 5629566.319 | AE208: 5857596.337 | AF208: 6085505.571 | AG208: 6110482.627 | AH208: 6135328.611 | AI208: 6160038.195 | AJ208: 6184605.926 | AK208: 6209026.219 | AL208: 5391352.699 | AM208: 4836626.63 | AN208: 5393272.64 | AO208: 5734210.714 | AP208: 9777175.873
A209: ='Inputs & Results'!A53 -> Investment Based Incentive (IBI)
A210: ='Inputs & Results'!A54 -> Fixed Amount ($)
A211: ='Inputs & Results'!A55 -> Federal | C211: =IF(IBIFedFixedStateTax="Yes",C562,0) -> 0
A212: ='Inputs & Results'!A56 -> State | C212: =IF(IBIStateFixedStateTax="Yes",C563,0) -> 0
A213: ='Inputs & Results'!A57 -> Utility | C213: =IF(IBIUtilityFixedStateTax="Yes",C564,0) -> 0
A214: ='Inputs & Results'!A58 -> Other | C214: =IF(IBIOtherFixedStateTax="Yes",C565,0) -> 0
A215: Total | C215: =SUM(C211:C214) -> 0
A216: ='Inputs & Results'!A59 -> Percentage of Pre-Financing Costs
A217: ='Inputs & Results'!A60 -> Federal | C217: =IF(IBIFedPercentStateTax="Yes",C568,0) -> 0
A218: ='Inputs & Results'!A61 -> State | C218: =IF(IBIStatePercentStateTax="Yes",C569,0) -> 0
A219: ='Inputs & Results'!A62 -> Utility | C219: =IF(IBIUtilityPercentStateTax="Yes",C570,0) -> 0
A220: ='Inputs & Results'!A63 -> Other | C220: =IF(IBIOtherPercentStateTax="Yes",C571,0) -> 0
A221: Total | C221: =SUM(C217:C220) -> 0
A222: ='Inputs & Results'!A64 -> Capacity Based Incentive (CBI) ($/DC-Watt)
A223: ='Inputs & Results'!A65 -> Federal | C223: =IF(CBIFedStateTax="Yes",C574,0) -> 0
A224: ='Inputs & Results'!A66 -> State | C224: =IF(CBIStateStateTax="Yes",C575,0) -> 0
A225: ='Inputs & Results'!A67 -> Utility | C225: =IF(CBIUtilityStateTax="Yes",C576,0) -> 0
A226: ='Inputs & Results'!A68 -> Other | C226: =IF(CBIOtherStateTax="Yes",C577,0) -> 0
A227: Total | C227: =SUM(C223:C226) -> 0
A228: ='Inputs & Results'!A71 -> Production Based Incentive (PBI) ($/kWh)
... 442 more rows

Sheet Leveraged Partnership Flip
A1: Leveraged Partnership Flip
A2: Operating Year | B2: 0 | C2: =B2+1 -> 1 | D2: =C2+1 -> 2 | E2: 3 | F2: 4 | G2: 5 | H2: 6 | I2: 7 | J2: 8 | K2: 9 | L2: 10 | M2: 11 | N2: 12 | O2: 13 | P2: 14 | Q2: 15 | R2: 16 | S2: 17 | T2: 18 | U2: 19 | V2: 20 | W2: 21 | X2: 22 | Y2: 23 | Z2: 24 | AA2: 25 | AB2: 26 | AC2: 27 | AD2: 28 | AE2: 29 | AF2: =AE2+1 -> 30 | AG2: 31 | AH2: 32 | AI2: 33 | AJ2: 34 | AK2: 35 | AL2: 36 | AM2: =AL2+1 -> 37 | AN2: 38 | AO2: 39 | AP2: 40
A4: Production (AC-kWh)
A5: Net Production (AC-kWh) | C5: =IF(C$2<=AnalysisPeriod,IF('Inputs & Results'!$M$3="Annual Inputs",LOOKUP(C$2,'Inputs & Results'!$L$9:$L$48,'Inputs & Results'!$M$9:$M$48),'Inputs & Results'!$M$5*CapacityAC*8760*(1-'Inputs & Results'!$M$6)^(C$2-1)),0) -> 16188480 | D5: =IF(D$2<=AnalysisPeriod,IF('Inputs & Results'!$M$3="Annual Inputs",LOOKUP(D$2,'Inputs & Results'!$L$9:$L$48,'Inputs & Results'!$M$9:$M$48),'Inputs & Results'!$M$5*CapacityAC*8760*(1-'Inputs & Results'!$M$6)^(D$2-1)),0) -> 16107537.6 | E5: =IF(E$2<=AnalysisPeriod,IF('Inputs & Results'!$M$3="Annual Inputs",LOOKUP(E$2,'Inputs & Results'!$L$9:$L$48,'Inputs & Results'!$M$9:$M$48),'Inputs & Results'!$M$5*CapacityAC*8760*(1-'Inputs & Results'!$M$6)^(E$2-1)),0) -> 16026999.91 | F5: =IF(F$2<=AnalysisPeriod,IF('Inputs & Results'!$M$3="Annual Inputs",LOOKUP(F$2,'Inputs & Results'!$L$9:$L$48,'Inputs & Results'!$M$9:$M$48),'Inputs & Results'!$M$5*CapacityAC*8760*(1-'Inputs & Results'!$M$6)^(F$2-1)),0) -> 15946864.91 | G5: =IF(G$2<=AnalysisPeriod,IF('Inputs & Results'!$M$3="Annual Inputs",LOOKUP(G$2,'Inputs & Results'!$L$9:$L$48,'Inputs & Results'!$M$9:$M$48),'Inputs & Results'!$M$5*CapacityAC*8760*(1-'Inputs & Results'!$M$6)^(G$2-1)),0) -> 15867130.59 | H5: =IF(H$2<=AnalysisPeriod,IF('Inputs & Results'!$M$3="Annual Inputs",LOOKUP(H$2,'Inputs & Results'!$L$9:$L$48,'Inputs & Results'!$M$9:$M$48),'Inputs & Results'!$M$5*CapacityAC*8760*(1-'Inputs & Results'!$M$6)^(H$2-1)),0) -> 15787794.93 | I5: =IF(I$2<=AnalysisPeriod,IF('Inputs & Results'!$M$3="Annual Inputs",LOOKUP(I$2,'Inputs & Results'!$L$9:$L$48,'Inputs & Results'!$M$9:$M$48),'Inputs & Results'!$M$5*CapacityAC*8760*(1-'Inputs & Results'!$M$6)^(I$2-1)),0) -> 15708855.96 | J5: =IF(J$2<=AnalysisPeriod,IF('Inputs & Results'!$M$3="Annual Inputs",LOOKUP(J$2,'Inputs & Results'!$L$9:$L$48,'Inputs & Results'!$M$9:$M$48),'Inputs & Results'!$M$5*CapacityAC*8760*(1-'Inputs & Results'!$M$6)^(J$2-1)),0) -> 15630311.68 | K5: =IF(K$2<=AnalysisPeriod,IF('Inputs & Results'!$M$3="Annual Inputs",LOOKUP(K$2,'Inputs & Results'!$L$9:$L$48,'Inputs & Results'!$M$9:$M$48),'Inputs & Results'!$M$5*CapacityAC*8760*(1-'Inputs & Results'!$M$6)^(K$2-1)),0) -> 15552160.12 | L5: =IF(L$2<=AnalysisPeriod,IF('Inputs & Results'!$M$3="Annual Inputs",LOOKUP(L$2,'Inputs & Results'!$L$9:$L$48,'Inputs & Results'!$M$9:$M$48),'Inputs & Results'!$M$5*CapacityAC*8760*(1-'Inputs & Results'!$M$6)^(L$2-1)),0) -> 15474399.32 | M5: =IF(M$2<=AnalysisPeriod,IF('Inputs & Results'!$M$3="Annual Inputs",LOOKUP(M$2,'Inputs & Results'!$L$9:$L$48,'Inputs & Results'!$M$9:$M$48),'Inputs & Results'!$M$5*CapacityAC*8760*(1-'Inputs & Results'!$M$6)^(M$2-1)),0) -> 15397027.32 | N5: =IF(N$2<=AnalysisPeriod,IF('Inputs & Results'!$M$3="Annual Inputs",LOOKUP(N$2,'Inputs & Results'!$L$9:$L$48,'Inputs & Results'!$M$9:$M$48),'Inputs & Results'!$M$5*CapacityAC*8760*(1-'Inputs & Results'!$M$6)^(N$2-1)),0) -> 15320042.19 | O5: =IF(O$2<=AnalysisPeriod,IF('Inputs & Results'!$M$3="Annual Inputs",LOOKUP(O$2,'Inputs & Results'!$L$9:$L$48,'Inputs & Results'!$M$9:$M$48),'Inputs & Results'!$M$5*CapacityAC*8760*(1-'Inputs & Results'!$M$6)^(O$2-1)),0) -> 15243441.98 | P5: =IF(P$2<=AnalysisPeriod,IF('Inputs & Results'!$M$3="Annual Inputs",LOOKUP(P$2,'Inputs & Results'!$L$9:$L$48,'Inputs & Results'!$M$9:$M$48),'Inputs & Results'!$M$5*CapacityAC*8760*(1-'Inputs & Results'!$M$6)^(P$2-1)),0) -> 15167224.77 | Q5: =IF(Q$2<=AnalysisPeriod,IF('Inputs & Results'!$M$3="Annual Inputs",LOOKUP(Q$2,'Inputs & Results'!$L$9:$L$48,'Inputs & Results'!$M$9:$M$48),'Inputs & Results'!$M$5*CapacityAC*8760*(1-'Inputs & Results'!$M$6)^(Q$2-1)),0) -> 15091388.64 | R5: =IF(R$2<=AnalysisPeriod,IF('Inputs & Results'!$M$3="Annual Inputs",LOOKUP(R$2,'Inputs & Results'!$L$9:$L$48,'Inputs & Results'!$M$9:$M$48),'Inputs & Results'!$M$5*CapacityAC*8760*(1-'Inputs & Results'!$M$6)^(R$2-1)),0) -> 15015931.7 | S5: =IF(S$2<=AnalysisPeriod,IF('Inputs & Results'!$M$3="Annual Inputs",LOOKUP(S$2,'Inputs & Results'!$L$9:$L$48,'Inputs & Results'!$M$9:$M$48),'Inputs & Results'!$M$5*CapacityAC*8760*(1-'Inputs & Results'!$M$6)^(S$2-1)),0) -> 14940852.04 | T5: =IF(T$2<=AnalysisPeriod,IF('Inputs & Results'!$M$3="Annual Inputs",LOOKUP(T$2,'Inputs & Results'!$L$9:$L$48,'Inputs & Results'!$M$9:$M$48),'Inputs & Results'!$M$5*CapacityAC*8760*(1-'Inputs & Results'!$M$6)^(T$2-1)),0) -> 14866147.78 | U5: =IF(U$2<=AnalysisPeriod,IF('Inputs & Results'!$M$3="Annual Inputs",LOOKUP(U$2,'Inputs & Results'!$L$9:$L$48,'Inputs & Results'!$M$9:$M$48),'Inputs & Results'!$M$5*CapacityAC*8760*(1-'Inputs & Results'!$M$6)^(U$2-1)),0) -> 14791817.04 | V5: =IF(V$2<=AnalysisPeriod,IF('Inputs & Results'!$M$3="Annual Inputs",LOOKUP(V$2,'Inputs & Results'!$L$9:$L$48,'Inputs & Results'!$M$9:$M$48),'Inputs & Results'!$M$5*CapacityAC*8760*(1-'Inputs & Results'!$M$6)^(V$2-1)),0) -> 14717857.96 | W5: =IF(W$2<=AnalysisPeriod,IF('Inputs & Results'!$M$3="Annual Inputs",LOOKUP(W$2,'Inputs & Results'!$L$9:$L$48,'Inputs & Results'!$M$9:$M$48),'Inputs & Results'!$M$5*CapacityAC*8760*(1-'Inputs & Results'!$M$6)^(W$2-1)),0) -> 14644268.67 | X5: =IF(X$2<=AnalysisPeriod,IF('Inputs & Results'!$M$3="Annual Inputs",LOOKUP(X$2,'Inputs & Results'!$L$9:$L$48,'Inputs & Results'!$M$9:$M$48),'Inputs & Results'!$M$5*CapacityAC*8760*(1-'Inputs & Results'!$M$6)^(X$2-1)),0) -> 14571047.32 | Y5: =IF(Y$2<=AnalysisPeriod,IF('Inputs & Results'!$M$3="Annual Inputs",LOOKUP(Y$2,'Inputs & Results'!$L$9:$L$48,'Inputs & Results'!$M$9:$M$48),'Inputs & Results'!$M$5*CapacityAC*8760*(1-'Inputs & Results'!$M$6)^(Y$2-1)),0) -> 14498192.09 | Z5: =IF(Z$2<=AnalysisPeriod,IF('Inputs & Results'!$M$3="Annual Inputs",LOOKUP(Z$2,'Inputs & Results'!$L$9:$L$48,'Inputs & Results'!$M$9:$M$48),'Inputs & Results'!$M$5*CapacityAC*8760*(1-'Inputs & Results'!$M$6)^(Z$2-1)),0) -> 14425701.13 | AA5: =IF(AA$2<=AnalysisPeriod,IF('Inputs & Results'!$M$3="Annual Inputs",LOOKUP(AA$2,'Inputs & Results'!$L$9:$L$48,'Inputs & Results'!$M$9:$M$48),'Inputs & Results'!$M$5*CapacityAC*8760*(1-'Inputs & Results'!$M$6)^(AA$2-1)),0) -> 14353572.62 | AB5: =IF(AB$2<=AnalysisPeriod,IF('Inputs & Results'!$M$3="Annual Inputs",LOOKUP(AB$2,'Inputs & Results'!$L$9:$L$48,'Inputs & Results'!$M$9:$M$48),'Inputs & Results'!$M$5*CapacityAC*8760*(1-'Inputs & Results'!$M$6)^(AB$2-1)),0) -> 14281804.76 | AC5: =IF(AC$2<=AnalysisPeriod,IF('Inputs & Results'!$M$3="Annual Inputs",LOOKUP(AC$2,'Inputs & Results'!$L$9:$L$48,'Inputs & Results'!$M$9:$M$48),'Inputs & Results'!$M$5*CapacityAC*8760*(1-'Inputs & Results'!$M$6)^(AC$2-1)),0) -> 14210395.73 | AD5: =IF(AD$2<=AnalysisPeriod,IF('Inputs & Results'!$M$3="Annual Inputs",LOOKUP(AD$2,'Inputs & Results'!$L$9:$L$48,'Inputs & Results'!$M$9:$M$48),'Inputs & Results'!$M$5*CapacityAC*8760*(1-'Inputs & Results'!$M$6)^(AD$2-1)),0) -> 14139343.76 | AE5: =IF(AE$2<=AnalysisPeriod,IF('Inputs & Results'!$M$3="Annual Inputs",LOOKUP(AE$2,'Inputs & Results'!$L$9:$L$48,'Inputs & Results'!$M$9:$M$48),'Inputs & Results'!$M$5*CapacityAC*8760*(1-'Inputs & Results'!$M$6)^(AE$2-1)),0) -> 14068647.04 | AF5: =IF(AF$2<=AnalysisPeriod,IF('Inputs & Results'!$M$3="Annual Inputs",LOOKUP(AF$2,'Inputs & Results'!$L$9:$L$48,'Inputs & Results'!$M$9:$M$48),'Inputs & Results'!$M$5*CapacityAC*8760*(1-'Inputs & Results'!$M$6)^(AF$2-1)),0) -> 13998303.8 | AG5: =IF(AG$2<=AnalysisPeriod,IF('Inputs & Results'!$M$3="Annual Inputs",LOOKUP(AG$2,'Inputs & Results'!$L$9:$L$48,'Inputs & Results'!$M$9:$M$48),'Inputs & Results'!$M$5*CapacityAC*8760*(1-'Inputs & Results'!$M$6)^(AG$2-1)),0) -> 13928312.28 | AH5: =IF(AH$2<=AnalysisPeriod,IF('Inputs & Results'!$M$3="Annual Inputs",LOOKUP(AH$2,'Inputs & Results'!$L$9:$L$48,'Inputs & Results'!$M$9:$M$48),'Inputs & Results'!$M$5*CapacityAC*8760*(1-'Inputs & Results'!$M$6)^(AH$2-1)),0) -> 13858670.72 | AI5: =IF(AI$2<=AnalysisPeriod,IF('Inputs & Results'!$M$3="Annual Inputs",LOOKUP(AI$2,'Inputs & Results'!$L$9:$L$48,'Inputs & Results'!$M$9:$M$48),'Inputs & Results'!$M$5*CapacityAC*8760*(1-'Inputs & Results'!$M$6)^(AI$2-1)),0) -> 13789377.37 | AJ5: =IF(AJ$2<=AnalysisPeriod,IF('Inputs & Results'!$M$3="Annual Inputs",LOOKUP(AJ$2,'Inputs & Results'!$L$9:$L$48,'Inputs & Results'!$M$9:$M$48),'Inputs & Results'!$M$5*CapacityAC*8760*(1-'Inputs & Results'!$M$6)^(AJ$2-1)),0) -> 13720430.48 | AK5: =IF(AK$2<=AnalysisPeriod,IF('Inputs & Results'!$M$3="Annual Inputs",LOOKUP(AK$2,'Inputs & Results'!$L$9:$L$48,'Inputs & Results'!$M$9:$M$48),'Inputs & Results'!$M$5*CapacityAC*8760*(1-'Inputs & Results'!$M$6)^(AK$2-1)),0) -> 13651828.33 | AL5: =IF(AL$2<=AnalysisPeriod,IF('Inputs & Results'!$M$3="Annual Inputs",LOOKUP(AL$2,'Inputs & Results'!$L$9:$L$48,'Inputs & Results'!$M$9:$M$48),'Inputs & Results'!$M$5*CapacityAC*8760*(1-'Inputs & Results'!$M$6)^(AL$2-1)),0) -> 13583569.19 | AM5: =IF(AM$2<=AnalysisPeriod,IF('Inputs & Results'!$M$3="Annual Inputs",LOOKUP(AM$2,'Inputs & Results'!$L$9:$L$48,'Inputs & Results'!$M$9:$M$48),'Inputs & Results'!$M$5*CapacityAC*8760*(1-'Inputs & Results'!$M$6)^(AM$2-1)),0) -> 13515651.34 | AN5: =IF(AN$2<=AnalysisPeriod,IF('Inputs & Results'!$M$3="Annual Inputs",LOOKUP(AN$2,'Inputs & Results'!$L$9:$L$48,'Inputs & Results'!$M$9:$M$48),'Inputs & Results'!$M$5*CapacityAC*8760*(1-'Inputs & Results'!$M$6)^(AN$2-1)),0) -> 13448073.08 | AO5: =IF(AO$2<=AnalysisPeriod,IF('Inputs & Results'!$M$3="Annual Inputs",LOOKUP(AO$2,'Inputs & Results'!$L$9:$L$48,'Inputs & Results'!$M$9:$M$48),'Inputs & Results'!$M$5*CapacityAC*8760*(1-'Inputs & Results'!$M$6)^(AO$2-1)),0) -> 13380832.72 | AP5: =IF(AP$2<=AnalysisPeriod,IF('Inputs & Results'!$M$3="Annual Inputs",LOOKUP(AP$2,'Inputs & Results'!$L$9:$L$48,'Inputs & Results'!$M$9:$M$48),'Inputs & Results'!$M$5*CapacityAC*8760*(1-'Inputs & Results'!$M$6)^(AP$2-1)),0) -> 13313928.56
A7: Partial Income Statement: Project
A8: Revenues
A9: PPA
A10: Net Production (AC-kWh) | C10: =C5 -> 16188480 | D10: =D5 -> 16107537.6 | E10: =E5 -> 16026999.91 | F10: =F5 -> 15946864.91 | G10: 15867130.59 | H10: 15787794.93 | I10: 15708855.96 | J10: 15630311.68 | K10: 15552160.12 | L10: 15474399.32 | M10: 15397027.32 | N10: 15320042.19 | O10: 15243441.98 | P10: 15167224.77 | Q10: 15091388.64 | R10: 15015931.7 | S10: 14940852.04 | T10: 14866147.78 | U10: 14791817.04 | V10: 14717857.96 | W10: 14644268.67 | X10: 14571047.32 | Y10: 14498192.09 | Z10: 14425701.13 | AA10: 14353572.62 | AB10: 14281804.76 | AC10: 14210395.73 | AD10: 14139343.76 | AE10: 14068647.04 | AF10: 13998303.8 | AG10: 13928312.28 | AH10: 13858670.72 | AI10: 13789377.37 | AJ10: 13720430.48 | AK10: 13651828.33 | AL10: 13583569.19 | AM10: 13515651.34 | AN10: 13448073.08 | AO10: 13380832.72 | AP10: 13313928.56
A11: Price (¢/kWh) | C11: =LeveragedFlipPPAPrice*(1+LeveragedFlipPPAPriceEsc)^B2 -> 27.83099394 | D11: 28.10930387 | E11: 28.39039691 | F11: 28.67430088 | G11: 28.96104389 | H11: 29.25065433 | I11: 29.54316087 | J11: 29.83859248 | K11: 30.13697841 | L11: 30.43834819 | M11: 30.74273167 | N11: 31.05015899 | O11: 31.36066058 | P11: 31.67426719 | Q11: 31.99100986 | R11: 32.31091996 | S11: 32.63402916 | T11: 32.96036945 | U11: 33.28997314 | V11: 33.62287287 | W11: 33.9591016 | X11: 34.29869262 | Y11: 34.64167954 | Z11: 34.98809634 | AA11: 35.3379773 | AB11: 35.69135708 | AC11: 36.04827065 | AD11: 36.40875335 | AE11: 36.77284089 | AF11: 37.1405693 | AG11: 37.51197499 | AH11: 37.88709474 | AI11: 38.26596569 | AJ11: 38.64862534 | AK11: 39.0351116 | AL11: 39.42546271 | AM11: 39.81971734 | AN11: 40.21791451 | AO11: 40.62009366 | AP11: 41.02629459
A12: Total PPA Revenue | C12: =C10*C11/100 -> 4505414.887 | D12: 4527716.691 | E12: 4550128.888 | F12: 4572652.026 | G12: 4595286.654 | H12: 4618033.323 | I12: 4640892.588 | J12: 4663865.006 | K12: 4686951.138 | L12: 4710151.546 | M12: 4733466.796 | N12: 4756897.457 | O12: 4780444.099 | P12: 4804107.297 | Q12: 4827887.629 | R12: 4851785.672 | S12: 4875802.011 | T12: 4899937.231 | U12: 4924191.921 | V12: 4948566.671 | W12: 4973062.076 | X12: 4997678.733 | Y12: 5022417.243 | Z12: 5047278.208 | AA12: 5072262.235 | AB12: 5097369.933 | AC12: 5122601.914 | AD12: 5147958.794 | AE12: 5173441.19 | AF12: 5199049.724 | AG12: 5224785.02 | AH12: 5250647.706 | AI12: 5276638.412 | AJ12: 5302757.772 | AK12: 5329006.423 | AL12: 5355385.005 | AM12: 5381894.161 | AN12: 5408534.537 | AO12: 5435306.783 | AP12: 5462211.551
A13: Production Based Incentive (included if available for debt service)
A14: ='Inputs & Results'!A65 -> Federal | C14: =IF(PBIFedDebtSwitch="Yes",C587,0) -> 0 | D14: 0 | E14: 0 | F14: 0 | G14: 0 | H14: 0 | I14: 0 | J14: 0 | K14: 0 | L14: 0 | M14: 0 | N14: 0 | O14: 0 | P14: 0 | Q14: 0 | R14: 0 | S14: 0 | T14: 0 | U14: 0 | V14: 0 | W14: 0 | X14: 0 | Y14: 0 | Z14: 0 | AA14: 0 | AB14: 0 | AC14: 0 | AD14: 0 | AE14: 0 | AF14: 0 | AG14: 0 | AH14: 0 | AI14: 0 | AJ14: 0 | AK14: 0 | AL14: 0 | AM14: 0 | AN14: 0 | AO14: 0 | AP14: 0
A15: ='Inputs & Results'!A66 -> State | C15: =IF(PBIStateDebtSwitch="Yes",C591,0) -> 0 | D15: 0 | E15: 0 | F15: 0 | G15: 0 | H15: 0 | I15: 0 | J15: 0 | K15: 0 | L15: 0 | M15: 0 | N15: 0 | O15: 0 | P15: 0 | Q15: 0 | R15: 0 | S15: 0 | T15: 0 | U15: 0 | V15: 0 | W15: 0 | X15: 0 | Y15: 0 | Z15: 0 | AA15: 0 | AB15: 0 | AC15: 0 | AD15: 0 | AE15: 0 | AF15: 0 | AG15: 0 | AH15: 0 | AI15: 0 | AJ15: 0 | AK15: 0 | AL15: 0 | AM15: 0 | AN15: 0 | AO15: 0 | AP15: 0
A16: ='Inputs & Results'!A67 -> Utility | C16: =IF(PBIUtilityDebtSwitch="Yes",C595,0) -> 0 | D16: 0 | E16: 0 | F16: 0 | G16: 0 | H16: 0 | I16: 0 | J16: 0 | K16: 0 | L16: 0 | M16: 0 | N16: 0 | O16: 0 | P16: 0 | Q16: 0 | R16: 0 | S16: 0 | T16: 0 | U16: 0 | V16: 0 | W16: 0 | X16: 0 | Y16: 0 | Z16: 0 | AA16: 0 | AB16: 0 | AC16: 0 | AD16: 0 | AE16: 0 | AF16: 0 | AG16: 0 | AH16: 0 | AI16: 0 | AJ16: 0 | AK16: 0 | AL16: 0 | AM16: 0 | AN16: 0 | AO16: 0 | AP16: 0
A17: ='Inputs & Results'!A68 -> Other | C17: =IF(PBIOtherDebtSwitch="Yes",C599,0) -> 0 | D17: 0 | E17: 0 | F17: 0 | G17: 0 | H17: 0 | I17: 0 | J17: 0 | K17: 0 | L17: 0 | M17: 0 | N17: 0 | O17: 0 | P17: 0 | Q17: 0 | R17: 0 | S17: 0 | T17: 0 | U17: 0 | V17: 0 | W17: 0 | X17: 0 | Y17: 0 | Z17: 0 | AA17: 0 | AB17: 0 | AC17: 0 | AD17: 0 | AE17: 0 | AF17: 0 | AG17: 0 | AH17: 0 | AI17: 0 | AJ17: 0 | AK17: 0 | AL17: 0 | AM17: 0 | AN17: 0 | AO17: 0 | AP17: 0
A18: Total PBI | C18: =SUM(C14:C17) -> 0 | D18: =SUM(D14:D17) -> 0 | E18: 0 | F18: 0 | G18: 0 | H18: 0 | I18: 0 | J18: 0 | K18: 0 | L18: 0 | M18: 0 | N18: 0 | O18: 0 | P18: 0 | Q18: 0 | R18: 0 | S18: 0 | T18: 0 | U18: 0 | V18: 0 | W18: 0 | X18: 0 | Y18: 0 | Z18: 0 | AA18: 0 | AB18: 0 | AC18: 0 | AD18: 0 | AE18: 0 | AF18: 0 | AG18: 0 | AH18: 0 | AI18: 0 | AJ18: 0 | AK18: 0 | AL18: 0 | AM18: 0 | AN18: 0 | AO18: 0 | AP18: 0
A19: Salvage Value | C19: =IF(C2=AnalysisPeriod,SalvageValue*PreFinancingInstalledCostTotal,0) -> 0 | D19: 0 | E19: 0 | F19: 0 | G19: 0 | H19: 0 | I19: 0 | J19: 0 | K19: 0 | L19: 0 | M19: 0 | N19: 0 | O19: 0 | P19: 0 | Q19: 0 | R19: 0 | S19: 0 | T19: 0 | U19: 0 | V19: 0 | W19: 0 | X19: 0 | Y19: 0 | Z19: 0 | AA19: 0 | AB19: 0 | AC19: 0 | AD19: 0 | AE19: 0 | AF19: 0 | AG19: 0 | AH19: 0 | AI19: 0 | AJ19: 0 | AK19: 0 | AL19: 0 | AM19: 0 | AN19: 0 | AO19: 0 | AP19: 4022715
A20: Total Revenue | C20: =C12+C18+C19 -> 4505414.887 | D20: 4527716.691 | E20: 4550128.888 | F20: 4572652.026 | G20: 4595286.654 | H20: 4618033.323 | I20: 4640892.588 | J20: 4663865.006 | K20: 4686951.138 | L20: 4710151.546 | M20: 4733466.796 | N20: 4756897.457 | O20: 4780444.099 | P20: 4804107.297 | Q20: 4827887.629 | R20: 4851785.672 | S20: 4875802.011 | T20: 4899937.231 | U20: 4924191.921 | V20: 4948566.671 | W20: 4973062.076 | X20: 4997678.733 | Y20: 5022417.243 | Z20: 5047278.208 | AA20: 5072262.235 | AB20: 5097369.933 | AC20: 5122601.914 | AD20: 5147958.794 | AE20: 5173441.19 | AF20: 5199049.724 | AG20: 5224785.02 | AH20: 5250647.706 | AI20: 5276638.412 | AJ20: 5302757.772 | AK20: 5329006.423 | AL20: 5355385.005 | AM20: 5381894.161 | AN20: 5408534.537 | AO20: 5435306.783 | AP20: 9484926.551
A22: Expenses
A23: Fixed Annual Cost | C23: =IF(C$2<=AnalysisPeriod,OMFixedAnnual*(1+Inflation+OMFixedAnnualRealEsc)^B$2,0) -> 10000 | D23: 10250 | E23: 10506.25 | F23: 10768.90625 | G23: 11038.12891 | H23: 11314.08213 | I23: 11596.93418 | J23: 11886.85754 | K23: 12184.02898 | L23: 12488.6297 | M23: 12800.84544 | N23: 13120.86658 | O23: 13448.88824 | P23: 13785.11045 | Q23: 14129.73821 | R23: 14482.98166 | S23: 14845.05621 | T23: 15216.18261 | U23: 15596.58718 | V23: 15986.50186 | W23: 16386.1644 | X23: 16795.81851 | Y23: 17215.71398 | Z23: 17646.10683 | AA23: 18087.2595 | AB23: 18539.44098 | AC23: 19002.92701 | AD23: 19478.00018 | AE23: 19964.95019 | AF23: 20464.07394 | AG23: 20975.67579 | AH23: 21500.06769 | AI23: 22037.56938 | AJ23: 22588.50861 | AK23: 23153.22133 | AL23: 23732.05186 | AM23: 24325.35316 | AN23: 24933.48699 | AO23: 25556.82416 | AP23: 26195.74476
A24: Fixed Cost by Capacity
A25: Capacity (DC kW) | C25: =IF(C$2<=AnalysisPeriod,CapacityDC,0) -> 10000 | D25: 10000 | E25: 10000 | F25: 10000 | G25: 10000 | H25: 10000 | I25: 10000 | J25: 10000 | K25: 10000 | L25: 10000 | M25: 10000 | N25: 10000 | O25: 10000 | P25: 10000 | Q25: 10000 | R25: 10000 | S25: 10000 | T25: 10000 | U25: 10000 | V25: 10000 | W25: 10000 | X25: 10000 | Y25: 10000 | Z25: 10000 | AA25: 10000 | AB25: 10000 | AC25: 10000 | AD25: 10000 | AE25: 10000 | AF25: 10000 | AG25: 10000 | AH25: 10000 | AI25: 10000 | AJ25: 10000 | AK25: 10000 | AL25: 10000 | AM25: 10000 | AN25: 10000 | AO25: 10000 | AP25: 10000
A26: Fixed Cost ($/DC kW-yr) | C26: =IF(C$2<=AnalysisPeriod,OMCapacity*(1+Inflation+OMCapacityRealEsc)^B$2,0) -> 22 | D26: 22.495 | E26: 23.0011375 | F26: 23.51866309 | G26: 24.04783301 | H26: 24.58890926 | I26: 25.14215971 | J26: 25.70785831 | K26: 26.28628512 | L26: 26.87772654 | M26: 27.48247538 | N26: 28.10083108 | O26: 28.73309978 | P26: 29.37959452 | Q26: 30.0406354 | R26: 30.7165497 | S26: 31.40767206 | T26: 32.11434469 | U26: 32.83691744 | V26: 33.57574808 | W26: 34.33120242 | X26: 35.10365447 | Y26: 35.89348669 | Z26: 36.70109015 | AA26: 37.52686467 | AB26: 38.37121913 | AC26: 39.23457156 | AD26: 40.11734942 | AE26: 41.01998978 | AF26: 41.94293955 | AG26: 42.88665569 | AH26: 43.85160544 | AI26: 44.83826657 | AJ26: 45.84712756 | AK26: 46.87868793 | AL26: 47.93345841 | AM26: 49.01196123 | AN26: 50.11473036 | AO26: 51.24231179 | AP26: 52.3952638
A27: Total | C27: =C25*C26 -> 220000 | D27: =D25*D26 -> 224950 | E27: 230011.375 | F27: 235186.6309 | G27: 240478.3301 | H27: 245889.0926 | I27: 251421.5971 | J27: 257078.5831 | K27: 262862.8512 | L27: 268777.2654 | M27: 274824.7538 | N27: 281008.3108 | O27: 287330.9978 | P27: 293795.9452 | Q27: 300406.354 | R27: 307165.497 | S27: 314076.7206 | T27: 321143.4469 | U27: 328369.1744 | V27: 335757.4808 | W27: 343312.0242 | X27: 351036.5447 | Y27: 358934.8669 | Z27: 367010.9015 | AA27: 375268.6467 | AB27: 383712.1913 | AC27: 392345.7156 | AD27: 401173.4942 | AE27: 410199.8978 | AF27: 419429.3955 | AG27: 428866.5569 | AH27: 438516.0544 | AI27: 448382.6657 | AJ27: 458471.2756 | AK27: 468786.8793 | AL27: 479334.5841 | AM27: 490119.6123 | AN27: 501147.3036 | AO27: 512423.1179 | AP27: 523952.638
A28: Variable Cost by Generation
A29: Generation (AC-MWh) | C29: =C5/1000 -> 16188.48 | D29: =D5/1000 -> 16107.5376 | E29: 16026.99991 | F29: 15946.86491 | G29: 15867.13059 | H29: 15787.79493 | I29: 15708.85596 | J29: 15630.31168 | K29: 15552.16012 | L29: 15474.39932 | M29: 15397.02732 | N29: 15320.04219 | O29: 15243.44198 | P29: 15167.22477 | Q29: 15091.38864 | R29: 15015.9317 | S29: 14940.85204 | T29: 14866.14778 | U29: 14791.81704 | V29: 14717.85796 | W29: 14644.26867 | X29: 14571.04732 | Y29: 14498.19209 | Z29: 14425.70113 | AA29: 14353.57262 | AB29: 14281.80476 | AC29: 14210.39573 | AD29: 14139.34376 | AE29: 14068.64704 | AF29: 13998.3038 | AG29: 13928.31228 | AH29: 13858.67072 | AI29: 13789.37737 | AJ29: 13720.43048 | AK29: 13651.82833 | AL29: 13583.56919 | AM29: 13515.65134 | AN29: 13448.07308 | AO29: 13380.83272 | AP29: 13313.92856
A30: Variable Cost ($/AC-MWh) | C30: =IF(C$2<=AnalysisPeriod,OMVariable*(1+Inflation+OMVariableRealEsc)^B$2,0) -> 3.5 | D30: 3.5525 | E30: 3.6057875 | F30: 3.659874312 | G30: 3.714772427 | H30: 3.770494014 | I30: 3.827051424 | J30: 3.884457195 | K30: 3.942724053 | L30: 4.001864914 | M30: 4.061892888 | N30: 4.122821281 | O30: 4.1846636 | P30: 4.247433554 | Q30: 4.311145057 | R30: 4.375812233 | S30: 4.441449417 | T30: 4.508071158 | U30: 4.575692225 | V30: 4.644327609 | W30: 4.713992523 | X30: 4.784702411 | Y30: 4.856472947 | Z30: 4.929320041 | AA30: 5.003259842 | AB30: 5.078308739 | AC30: 5.15448337 | AD30: 5.231800621 | AE30: 5.31027763 | AF30: 5.389931795 | AG30: 5.470780772 | AH30: 5.552842483 | AI30: 5.636135121 | AJ30: 5.720677147 | AK30: 5.806487305 | AL30: 5.893584614 | AM30: 5.981988383 | AN30: 6.071718209 | AO30: 6.162793982 | AP30: 6.255235892
A31: Total | C31: =C29*C30 -> 56659.68 | D31: =D29*D30 -> 57222.02732 | E31: 57789.95595 | F31: 58363.52126 | G31: 58942.77921 | H31: 59527.78629 | I31: 60118.59957 | J31: 60715.27667 | K31: 61317.87579 | L31: 61926.45571 | M31: 62541.07578 | N31: 63161.79596 | O31: 63788.67678 | P31: 64421.7794 | Q31: 65061.16556 | R31: 65706.89763 | S31: 66359.03859 | T31: 67017.65205 | U31: 67682.80224 | V31: 68354.55405 | W31: 69032.973 | X31: 69718.12526 | Y31: 70410.07765 | Z31: 71108.89767 | AA31: 71814.65348 | AB31: 72527.41392 | AC31: 73247.2485 | AD31: 73974.22744 | AE31: 74708.42165 | AF31: 75449.90274 | AG31: 76198.74302 | AH31: 76955.01555 | AI31: 77718.79407 | AJ31: 78490.15311 | AK31: 79269.16788 | AL31: 80055.91437 | AM31: 80850.46932 | AN31: 81652.91022 | AO31: 82463.31536 | AP31: 83281.76376
A32: Property Tax
A33: Pre-Financing Costs | C33: =IF(C$2<=AnalysisPeriod,'Inputs & Results'!$J$6,0) -> 40227150 | D33: =IF(D$2<=AnalysisPeriod,'Inputs & Results'!$J$6,0) -> 40227150 | E33: =IF(E$2<=AnalysisPeriod,'Inputs & Results'!$J$6,0) -> 40227150 | F33: =IF(F$2<=AnalysisPeriod,'Inputs & Results'!$J$6,0) -> 40227150 | G33: =IF(G$2<=AnalysisPeriod,'Inputs & Results'!$J$6,0) -> 40227150 | H33: =IF(H$2<=AnalysisPeriod,'Inputs & Results'!$J$6,0) -> 40227150 | I33: =IF(I$2<=AnalysisPeriod,'Inputs & Results'!$J$6,0) -> 40227150 | J33: =IF(J$2<=AnalysisPeriod,'Inputs & Results'!$J$6,0) -> 40227150 | K33: =IF(K$2<=AnalysisPeriod,'Inputs & Results'!$J$6,0) -> 40227150 | L33: =IF(L$2<=AnalysisPeriod,'Inputs & Results'!$J$6,0) -> 40227150 | M33: =IF(M$2<=AnalysisPeriod,'Inputs & Results'!$J$6,0) -> 40227150 | N33: =IF(N$2<=AnalysisPeriod,'Inputs & Results'!$J$6,0) -> 40227150 | O33: =IF(O$2<=AnalysisPeriod,'Inputs & Results'!$J$6,0) -> 40227150 | P33: =IF(P$2<=AnalysisPeriod,'Inputs & Results'!$J$6,0) -> 40227150 | Q33: =IF(Q$2<=AnalysisPeriod,'Inputs & Results'!$J$6,0) -> 40227150 | R33: =IF(R$2<=AnalysisPeriod,'Inputs & Results'!$J$6,0) -> 40227150 | S33: =IF(S$2<=AnalysisPeriod,'Inputs & Results'!$J$6,0) -> 40227150 | T33: =IF(T$2<=AnalysisPeriod,'Inputs & Results'!$J$6,0) -> 40227150 | U33: =IF(U$2<=AnalysisPeriod,'Inputs & Results'!$J$6,0) -> 40227150 | V33: =IF(V$2<=AnalysisPeriod,'Inputs & Results'!$J$6,0) -> 40227150 | W33: =IF(W$2<=AnalysisPeriod,'Inputs & Results'!$J$6,0) -> 40227150 | X33: =IF(X$2<=AnalysisPeriod,'Inputs & Results'!$J$6,0) -> 40227150 | Y33: =IF(Y$2<=AnalysisPeriod,'Inputs & Results'!$J$6,0) -> 40227150 | Z33: =IF(Z$2<=AnalysisPeriod,'Inputs & Results'!$J$6,0) -> 40227150 | AA33: =IF(AA$2<=AnalysisPeriod,'Inputs & Results'!$J$6,0) -> 40227150 | AB33: =IF(AB$2<=AnalysisPeriod,'Inputs & Results'!$J$6,0) -> 40227150 | AC33: =IF(AC$2<=AnalysisPeriod,'Inputs & Results'!$J$6,0) -> 40227150 | AD33: =IF(AD$2<=AnalysisPeriod,'Inputs & Results'!$J$6,0) -> 40227150 | AE33: =IF(AE$2<=AnalysisPeriod,'Inputs & Results'!$J$6,0) -> 40227150 | AF33: =IF(AF$2<=AnalysisPeriod,'Inputs & Results'!$J$6,0) -> 40227150 | AG33: =IF(AG$2<=AnalysisPeriod,'Inputs & Results'!$J$6,0) -> 40227150 | AH33: =IF(AH$2<=AnalysisPeriod,'Inputs & Results'!$J$6,0) -> 40227150 | AI33: =IF(AI$2<=AnalysisPeriod,'Inputs & Results'!$J$6,0) -> 40227150 | AJ33: =IF(AJ$2<=AnalysisPeriod,'Inputs & Results'!$J$6,0) -> 40227150 | AK33: =IF(AK$2<=AnalysisPeriod,'Inputs & Results'!$J$6,0) -> 40227150 | AL33: =IF(AL$2<=AnalysisPeriod,'Inputs & Results'!$J$6,0) -> 40227150 | AM33: =IF(AM$2<=AnalysisPeriod,'Inputs & Results'!$J$6,0) -> 40227150 | AN33: =IF(AN$2<=AnalysisPeriod,'Inputs & Results'!$J$6,0) -> 40227150 | AO33: =IF(AO$2<=AnalysisPeriod,'Inputs & Results'!$J$6,0) -> 40227150 | AP33: =IF(AP$2<=AnalysisPeriod,'Inputs & Results'!$J$6,0) -> 40227150
A34: % of Pre-Financing Costs Assessed | C34: =IF(D$2<=AnalysisPeriod,'Inputs & Results'!$J$7,0) -> 0.95 | D34: ='Inputs & Results'!$J$7 -> 0.95 | E34: ='Inputs & Results'!$J$7 -> 0.95 | F34: ='Inputs & Results'!$J$7 -> 0.95 | G34: ='Inputs & Results'!$J$7 -> 0.95 | H34: ='Inputs & Results'!$J$7 -> 0.95 | I34: ='Inputs & Results'!$J$7 -> 0.95 | J34: ='Inputs & Results'!$J$7 -> 0.95 | K34: ='Inputs & Results'!$J$7 -> 0.95 | L34: ='Inputs & Results'!$J$7 -> 0.95 | M34: ='Inputs & Results'!$J$7 -> 0.95 | N34: ='Inputs & Results'!$J$7 -> 0.95 | O34: ='Inputs & Results'!$J$7 -> 0.95 | P34: ='Inputs & Results'!$J$7 -> 0.95 | Q34: ='Inputs & Results'!$J$7 -> 0.95 | R34: ='Inputs & Results'!$J$7 -> 0.95 | S34: ='Inputs & Results'!$J$7 -> 0.95 | T34: ='Inputs & Results'!$J$7 -> 0.95 | U34: ='Inputs & Results'!$J$7 -> 0.95 | V34: ='Inputs & Results'!$J$7 -> 0.95 | W34: ='Inputs & Results'!$J$7 -> 0.95 | X34: ='Inputs & Results'!$J$7 -> 0.95 | Y34: ='Inputs & Results'!$J$7 -> 0.95 | Z34: ='Inputs & Results'!$J$7 -> 0.95 | AA34: ='Inputs & Results'!$J$7 -> 0.95 | AB34: ='Inputs & Results'!$J$7 -> 0.95 | AC34: ='Inputs & Results'!$J$7 -> 0.95 | AD34: ='Inputs & Results'!$J$7 -> 0.95 | AE34: ='Inputs & Results'!$J$7 -> 0.95 | AF34: ='Inputs & Results'!$J$7 -> 0.95 | AG34: ='Inputs & Results'!$J$7 -> 0.95 | AH34: ='Inputs & Results'!$J$7 -> 0.95 | AI34: ='Inputs & Results'!$J$7 -> 0.95 | AJ34: ='Inputs & Results'!$J$7 -> 0.95 | AK34: ='Inputs & Results'!$J$7 -> 0.95 | AL34: ='Inputs & Results'!$J$7 -> 0.95 | AM34: ='Inputs & Results'!$J$7 -> 0.95 | AN34: ='Inputs & Results'!$J$7 -> 0.95 | AO34: ='Inputs & Results'!$J$7 -> 0.95 | AP34: ='Inputs & Results'!$J$7 -> 0.95
A35: Assessed Value of Property For Tax Purposes | C35: =C33*C34 -> 38215792.5 | D35: =D33*D34 -> 38215792.5 | E35: =E33*E34 -> 38215792.5 | F35: 38215792.5 | G35: 38215792.5 | H35: =H33*H34 -> 38215792.5 | I35: =I33*I34 -> 38215792.5 | J35: 38215792.5 | K35: =K33*K34 -> 38215792.5 | L35: =L33*L34 -> 38215792.5 | M35: =M33*M34 -> 38215792.5 | N35: =N33*N34 -> 38215792.5 | O35: =O33*O34 -> 38215792.5 | P35: =P33*P34 -> 38215792.5 | Q35: =Q33*Q34 -> 38215792.5 | R35: =R33*R34 -> 38215792.5 | S35: =S33*S34 -> 38215792.5 | T35: =T33*T34 -> 38215792.5 | U35: =U33*U34 -> 38215792.5 | V35: =V33*V34 -> 38215792.5 | W35: =W33*W34 -> 38215792.5 | X35: =X33*X34 -> 38215792.5 | Y35: =Y33*Y34 -> 38215792.5 | Z35: =Z33*Z34 -> 38215792.5 | AA35: =AA33*AA34 -> 38215792.5 | AB35: =AB33*AB34 -> 38215792.5 | AC35: =AC33*AC34 -> 38215792.5 | AD35: =AD33*AD34 -> 38215792.5 | AE35: =AE33*AE34 -> 38215792.5 | AF35: =AF33*AF34 -> 38215792.5 | AG35: =AG33*AG34 -> 38215792.5 | AH35: =AH33*AH34 -> 38215792.5 | AI35: =AI33*AI34 -> 38215792.5 | AJ35: =AJ33*AJ34 -> 38215792.5 | AK35: =AK33*AK34 -> 38215792.5 | AL35: =AL33*AL34 -> 38215792.5 | AM35: =AM33*AM34 -> 38215792.5 | AN35: =AN33*AN34 -> 38215792.5 | AO35: =AO33*AO34 -> 38215792.5 | AP35: =AP33*AP34 -> 38215792.5
A36: Assessed Value Annual Decline | C36: 1 | D36: =MAX(C36-'Inputs & Results'!$J$9,0) -> 0.95 | E36: =MAX(D36-'Inputs & Results'!$J$9,0) -> 0.9 | F36: =MAX(E36-'Inputs & Results'!$J$9,0) -> 0.85 | G36: =MAX(F36-'Inputs & Results'!$J$9,0) -> 0.8 | H36: =MAX(G36-'Inputs & Results'!$J$9,0) -> 0.75 | I36: =MAX(H36-'Inputs & Results'!$J$9,0) -> 0.7 | J36: =MAX(I36-'Inputs & Results'!$J$9,0) -> 0.65 | K36: =MAX(J36-'Inputs & Results'!$J$9,0) -> 0.6 | L36: =MAX(K36-'Inputs & Results'!$J$9,0) -> 0.55 | M36: =MAX(L36-'Inputs & Results'!$J$9,0) -> 0.5 | N36: =MAX(M36-'Inputs & Results'!$J$9,0) -> 0.45 | O36: =MAX(N36-'Inputs & Results'!$J$9,0) -> 0.4 | P36: =MAX(O36-'Inputs & Results'!$J$9,0) -> 0.35 | Q36: =MAX(P36-'Inputs & Results'!$J$9,0) -> 0.3 | R36: =MAX(Q36-'Inputs & Results'!$J$9,0) -> 0.25 | S36: =MAX(R36-'Inputs & Results'!$J$9,0) -> 0.2 | T36: =MAX(S36-'Inputs & Results'!$J$9,0) -> 0.15 | U36: =MAX(T36-'Inputs & Results'!$J$9,0) -> 0.1 | V36: =MAX(U36-'Inputs & Results'!$J$9,0) -> 0.05 | W36: =MAX(V36-'Inputs & Results'!$J$9,0) -> 0 | X36: =MAX(W36-'Inputs & Results'!$J$9,0) -> 0 | Y36: =MAX(X36-'Inputs & Results'!$J$9,0) -> 0 | Z36: =MAX(Y36-'Inputs & Results'!$J$9,0) -> 0 | AA36: =MAX(Z36-'Inputs & Results'!$J$9,0) -> 0 | AB36: =MAX(AA36-'Inputs & Results'!$J$9,0) -> 0 | AC36: =MAX(AB36-'Inputs & Results'!$J$9,0) -> 0 | AD36: =MAX(AC36-'Inputs & Results'!$J$9,0) -> 0 | AE36: =MAX(AD36-'Inputs & Results'!$J$9,0) -> 0 | AF36: =MAX(AE36-'Inputs & Results'!$J$9,0) -> 0 | AG36: =MAX(AF36-'Inputs & Results'!$J$9,0) -> 0 | AH36: =MAX(AG36-'Inputs & Results'!$J$9,0) -> 0 | AI36: =MAX(AH36-'Inputs & Results'!$J$9,0) -> 0 | AJ36: =MAX(AI36-'Inputs & Results'!$J$9,0) -> 0 | AK36: =MAX(AJ36-'Inputs & Results'!$J$9,0) -> 0 | AL36: =MAX(AK36-'Inputs & Results'!$J$9,0) -> 0 | AM36: =MAX(AL36-'Inputs & Results'!$J$9,0) -> 0 | AN36: =MAX(AM36-'Inputs & Results'!$J$9,0) -> 0 | AO36: =MAX(AN36-'Inputs & Results'!$J$9,0) -> 0 | AP36: =MAX(AO36-'Inputs & Results'!$J$9,0) -> 0
A37: Net Assessed Value | C37: =C35*C36 -> 38215792.5 | D37: =D35*D36 -> 36305002.88 | E37: =E35*E36 -> 34394213.25 | F37: 32483423.62 | G37: 30572634 | H37: =H35*H36 -> 28661844.37 | I37: =I35*I36 -> 26751054.75 | J37: 24840265.12 | K37: =K35*K36 -> 22929475.5 | L37: =L35*L36 -> 21018685.87 | M37: =M35*M36 -> 19107896.25 | N37: =N35*N36 -> 17197106.62 | O37: =O35*O36 -> 15286317 | P37: =P35*P36 -> 13375527.37 | Q37: =Q35*Q36 -> 11464737.75 | R37: =R35*R36 -> 9553948.125 | S37: =S35*S36 -> 7643158.5 | T37: =T35*T36 -> 5732368.875 | U37: =U35*U36 -> 3821579.25 | V37: =V35*V36 -> 1910789.625 | W37: =W35*W36 -> 0 | X37: =X35*X36 -> 0 | Y37: =Y35*Y36 -> 0 | Z37: =Z35*Z36 -> 0 | AA37: =AA35*AA36 -> 0 | AB37: =AB35*AB36 -> 0 | AC37: =AC35*AC36 -> 0 | AD37: =AD35*AD36 -> 0 | AE37: =AE35*AE36 -> 0 | AF37: =AF35*AF36 -> 0 | AG37: =AG35*AG36 -> 0 | AH37: =AH35*AH36 -> 0 | AI37: =AI35*AI36 -> 0 | AJ37: =AJ35*AJ36 -> 0 | AK37: =AK35*AK36 -> 0 | AL37: =AL35*AL36 -> 0 | AM37: =AM35*AM36 -> 0 | AN37: =AN35*AN36 -> 0 | AO37: =AO35*AO36 -> 0 | AP37: =AP35*AP36 -> 0
A38: Annual Property Tax Rate | C38: =PropertyTaxRate -> 0.0075 | D38: 0.0075 | E38: 0.0075 | F38: 0.0075 | G38: 0.0075 | H38: 0.0075 | I38: 0.0075 | J38: 0.0075 | K38: 0.0075 | L38: 0.0075 | M38: 0.0075 | N38: 0.0075 | O38: 0.0075 | P38: 0.0075 | Q38: 0.0075 | R38: 0.0075 | S38: 0.0075 | T38: 0.0075 | U38: 0.0075 | V38: 0.0075 | W38: 0.0075 | X38: 0.0075 | Y38: 0.0075 | Z38: 0.0075 | AA38: 0.0075 | AB38: 0.0075 | AC38: 0.0075 | AD38: 0.0075 | AE38: 0.0075 | AF38: 0.0075 | AG38: 0.0075 | AH38: 0.0075 | AI38: 0.0075 | AJ38: 0.0075 | AK38: 0.0075 | AL38: 0.0075 | AM38: 0.0075 | AN38: 0.0075 | AO38: 0.0075 | AP38: 0.0075
A39: Property Tax | C39: =C37*C38 -> 286618.4437 | D39: =D37*D38 -> 272287.5216 | E39: =E37*E38 -> 257956.5994 | F39: 243625.6772 | G39: 229294.755 | H39: =H37*H38 -> 214963.8328 | I39: =I37*I38 -> 200632.9106 | J39: 186301.9884 | K39: =K37*K38 -> 171971.0662 | L39: =L37*L38 -> 157640.1441 | M39: =M37*M38 -> 143309.2219 | N39: =N37*N38 -> 128978.2997 | O39: =O37*O38 -> 114647.3775 | P39: =P37*P38 -> 100316.4553 | Q39: =Q37*Q38 -> 85985.53312 | R39: =R37*R38 -> 71654.61094 | S39: =S37*S38 -> 57323.68875 | T39: =T37*T38 -> 42992.76656 | U39: =U37*U38 -> 28661.84437 | V39: =V37*V38 -> 14330.92219 | W39: =W37*W38 -> 0 | X39: =X37*X38 -> 0 | Y39: =Y37*Y38 -> 0 | Z39: =Z37*Z38 -> 0 | AA39: =AA37*AA38 -> 0 | AB39: =AB37*AB38 -> 0 | AC39: =AC37*AC38 -> 0 | AD39: =AD37*AD38 -> 0 | AE39: =AE37*AE38 -> 0 | AF39: =AF37*AF38 -> 0 | AG39: =AG37*AG38 -> 0 | AH39: =AH37*AH38 -> 0 | AI39: =AI37*AI38 -> 0 | AJ39: =AJ37*AJ38 -> 0 | AK39: =AK37*AK38 -> 0 | AL39: =AL37*AL38 -> 0 | AM39: =AM37*AM38 -> 0 | AN39: =AN37*AN38 -> 0 | AO39: =AO37*AO38 -> 0 | AP39: =AP37*AP38 -> 0
A40: Insurance | C40: =IF(C$2<=AnalysisPeriod,PreFinancingInstalledCostTotal*'Inputs & Results'!$J$12*(1+Inflation)^B$2,0) -> 201135.75 | D40: =IF(D$2<=AnalysisPeriod,PreFinancingInstalledCostTotal*'Inputs & Results'!$J$12*(1+Inflation)^C$2,0) -> 204152.7862 | E40: =IF(E$2<=AnalysisPeriod,PreFinancingInstalledCostTotal*'Inputs & Results'!$J$12*(1+Inflation)^D$2,0) -> 207215.078 | F40: =IF(F$2<=AnalysisPeriod,PreFinancingInstalledCostTotal*'Inputs & Results'!$J$12*(1+Inflation)^E$2,0) -> 210323.3042 | G40: =IF(G$2<=AnalysisPeriod,PreFinancingInstalledCostTotal*'Inputs & Results'!$J$12*(1+Inflation)^F$2,0) -> 213478.1538 | H40: =IF(H$2<=AnalysisPeriod,PreFinancingInstalledCostTotal*'Inputs & Results'!$J$12*(1+Inflation)^G$2,0) -> 216680.3261 | I40: =IF(I$2<=AnalysisPeriod,PreFinancingInstalledCostTotal*'Inputs & Results'!$J$12*(1+Inflation)^H$2,0) -> 219930.531 | J40: =IF(J$2<=AnalysisPeriod,PreFinancingInstalledCostTotal*'Inputs & Results'!$J$12*(1+Inflation)^I$2,0) -> 223229.4889 | K40: =IF(K$2<=AnalysisPeriod,PreFinancingInstalledCostTotal*'Inputs & Results'!$J$12*(1+Inflation)^J$2,0) -> 226577.9313 | L40: =IF(L$2<=AnalysisPeriod,PreFinancingInstalledCostTotal*'Inputs & Results'!$J$12*(1+Inflation)^K$2,0) -> 229976.6002 | M40: =IF(M$2<=AnalysisPeriod,PreFinancingInstalledCostTotal*'Inputs & Results'!$J$12*(1+Inflation)^L$2,0) -> 233426.2492 | N40: =IF(N$2<=AnalysisPeriod,PreFinancingInstalledCostTotal*'Inputs & Results'!$J$12*(1+Inflation)^M$2,0) -> 236927.643 | O40: =IF(O$2<=AnalysisPeriod,PreFinancingInstalledCostTotal*'Inputs & Results'!$J$12*(1+Inflation)^N$2,0) -> 240481.5576 | P40: =IF(P$2<=AnalysisPeriod,PreFinancingInstalledCostTotal*'Inputs & Results'!$J$12*(1+Inflation)^O$2,0) -> 244088.781 | Q40: =IF(Q$2<=AnalysisPeriod,PreFinancingInstalledCostTotal*'Inputs & Results'!$J$12*(1+Inflation)^P$2,0) -> 247750.1127 | R40: =IF(R$2<=AnalysisPeriod,PreFinancingInstalledCostTotal*'Inputs & Results'!$J$12*(1+Inflation)^Q$2,0) -> 251466.3644 | S40: =IF(S$2<=AnalysisPeriod,PreFinancingInstalledCostTotal*'Inputs & Results'!$J$12*(1+Inflation)^R$2,0) -> 255238.3599 | T40: =IF(T$2<=AnalysisPeriod,PreFinancingInstalledCostTotal*'Inputs & Results'!$J$12*(1+Inflation)^S$2,0) -> 259066.9353 | U40: =IF(U$2<=AnalysisPeriod,PreFinancingInstalledCostTotal*'Inputs & Results'!$J$12*(1+Inflation)^T$2,0) -> 262952.9393 | V40: =IF(V$2<=AnalysisPeriod,PreFinancingInstalledCostTotal*'Inputs & Results'!$J$12*(1+Inflation)^U$2,0) -> 266897.2334 | W40: =IF(W$2<=AnalysisPeriod,PreFinancingInstalledCostTotal*'Inputs & Results'!$J$12*(1+Inflation)^V$2,0) -> 270900.6919 | X40: =IF(X$2<=AnalysisPeriod,PreFinancingInstalledCostTotal*'Inputs & Results'!$J$12*(1+Inflation)^W$2,0) -> 274964.2023 | Y40: =IF(Y$2<=AnalysisPeriod,PreFinancingInstalledCostTotal*'Inputs & Results'!$J$12*(1+Inflation)^X$2,0) -> 279088.6653 | Z40: =IF(Z$2<=AnalysisPeriod,PreFinancingInstalledCostTotal*'Inputs & Results'!$J$12*(1+Inflation)^Y$2,0) -> 283274.9953 | AA40: =IF(AA$2<=AnalysisPeriod,PreFinancingInstalledCostTotal*'Inputs & Results'!$J$12*(1+Inflation)^Z$2,0) -> 287524.1202 | AB40: =IF(AB$2<=AnalysisPeriod,PreFinancingInstalledCostTotal*'Inputs & Results'!$J$12*(1+Inflation)^AA$2,0) -> 291836.982 | AC40: =IF(AC$2<=AnalysisPeriod,PreFinancingInstalledCostTotal*'Inputs & Results'!$J$12*(1+Inflation)^AB$2,0) -> 296214.5367 | AD40: =IF(AD$2<=AnalysisPeriod,PreFinancingInstalledCostTotal*'Inputs & Results'!$J$12*(1+Inflation)^AC$2,0) -> 300657.7548 | AE40: =IF(AE$2<=AnalysisPeriod,PreFinancingInstalledCostTotal*'Inputs & Results'!$J$12*(1+Inflation)^AD$2,0) -> 305167.6211 | AF40: =IF(AF$2<=AnalysisPeriod,PreFinancingInstalledCostTotal*'Inputs & Results'!$J$12*(1+Inflation)^AE$2,0) -> 309745.1354 | AG40: =IF(AG$2<=AnalysisPeriod,PreFinancingInstalledCostTotal*'Inputs & Results'!$J$12*(1+Inflation)^AF$2,0) -> 314391.3125 | AH40: =IF(AH$2<=AnalysisPeriod,PreFinancingInstalledCostTotal*'Inputs & Results'!$J$12*(1+Inflation)^AG$2,0) -> 319107.1821 | AI40: =IF(AI$2<=AnalysisPeriod,PreFinancingInstalledCostTotal*'Inputs & Results'!$J$12*(1+Inflation)^AH$2,0) -> 323893.7899 | AJ40: =IF(AJ$2<=AnalysisPeriod,PreFinancingInstalledCostTotal*'Inputs & Results'!$J$12*(1+Inflation)^AI$2,0) -> 328752.1967 | AK40: =IF(AK$2<=AnalysisPeriod,PreFinancingInstalledCostTotal*'Inputs & Results'!$J$12*(1+Inflation)^AJ$2,0) -> 333683.4797 | AL40: =IF(AL$2<=AnalysisPeriod,PreFinancingInstalledCostTotal*'Inputs & Results'!$J$12*(1+Inflation)^AK$2,0) -> 338688.7319 | AM40: =IF(AM$2<=AnalysisPeriod,PreFinancingInstalledCostTotal*'Inputs & Results'!$J$12*(1+Inflation)^AL$2,0) -> 343769.0628 | AN40: =IF(AN$2<=AnalysisPeriod,PreFinancingInstalledCostTotal*'Inputs & Results'!$J$12*(1+Inflation)^AM$2,0) -> 348925.5988 | AO40: =IF(AO$2<=AnalysisPeriod,PreFinancingInstalledCostTotal*'Inputs & Results'!$J$12*(1+Inflation)^AN$2,0) -> 354159.4828 | AP40: =IF(AP$2<=AnalysisPeriod,PreFinancingInstalledCostTotal*'Inputs & Results'!$J$12*(1+Inflation)^AO$2,0) -> 359471.875
A41: Total Expenses | C41: =C23+C27+C31+C39+C40 -> 774413.8738 | D41: 768862.3351 | E41: 763479.2584 | F41: 758268.0398 | G41: 753232.147 | H41: 748375.1199 | I41: 743700.5725 | J41: 739212.1947 | K41: 734913.7535 | L41: 730809.0951 | M41: 726902.1462 | N41: 723196.916 | O41: 719697.4979 | P41: 716408.0714 | Q41: 713332.9036 | R41: 710476.3516 | S41: 707842.864 | T41: 705436.9833 | U41: 703263.3475 | V41: 701326.6923 | W41: 699631.8534 | X41: 712514.6907 | Y41: 725649.3239 | Z41: 739040.9012 | AA41: 752694.6799 | AB41: 766616.0282 | AC41: 780810.4278 | AD41: 795283.4766 | AE41: 810040.8908 | AF41: 825088.5076 | AG41: 840432.2882 | AH41: 856078.3198 | AI41: 872032.819 | AJ41: 888302.1341 | AK41: 904892.7482 | AL41: 921811.2822 | AM41: 939064.4976 | AN41: 956659.2996 | AO41: 974602.7402 | AP41: 992902.0216
A43: EBITDA (cash available for debt service) | C43: =C20-C41 -> 3731001.013 | D43: 3758854.356 | E43: 3786649.63 | F43: 3814383.986 | G43: 3842054.507 | H43: 3869658.203 | I43: 3897192.015 | J43: 3924652.811 | K43: 3952037.384 | L43: 3979342.451 | M43: 4006564.65 | N43: 4033700.541 | O43: 4060746.601 | P43: 4087699.226 | Q43: 4114554.725 | R43: 4141309.321 | S43: 4167959.147 | T43: 4194500.248 | U43: 4220928.573 | V43: 4247239.978 | W43: 4273430.222 | X43: 4285164.042 | Y43: 4296767.919 | Z43: 4308237.307 | AA43: 4319567.555 | AB43: 4330753.905 | AC43: 4341791.487 | AD43: 4352675.317 | AE43: 4363400.299 | AF43: 4373961.216 | AG43: 4384352.732 | AH43: 4394569.386 | AI43: 4404605.593 | AJ43: 4414455.638 | AK43: 4424113.675 | AL43: 4433573.723 | AM43: 4442829.663 | AN43: 4451875.237 | AO43: 4460704.043 | AP43: 8492024.53
A45: Cash Flow: Project
A46: Cash Flow from Operating Activities
A47: EBITDA | B47: 0 | C47: =C43 -> 3731001.013 | D47: =D43 -> 3758854.356 | E47: 3786649.63 | F47: 3814383.986 | G47: =G43 -> 3842054.507 | H47: 3869658.203 | I47: 3897192.015 | J47: =J43 -> 3924652.811 | K47: 3952037.384 | L47: 3979342.451 | M47: 4006564.65 | N47: 4033700.541 | O47: 4060746.601 | P47: 4087699.226 | Q47: 4114554.725 | R47: 4141309.321 | S47: 4167959.147 | T47: 4194500.248 | U47: 4220928.573 | V47: 4247239.978 | W47: 4273430.222 | X47: 4285164.042 | Y47: 4296767.919 | Z47: 4308237.307 | AA47: 4319567.555 | AB47: 4330753.905 | AC47: 4341791.487 | AD47: 4352675.317 | AE47: 4363400.299 | AF47: 4373961.216 | AG47: 4384352.732 | AH47: 4394569.386 | AI47: 4404605.593 | AJ47: 4414455.638 | AK47: 4424113.675 | AL47: 4433573.723 | AM47: 4442829.663 | AN47: 4451875.237 | AO47: 4460704.043 | AP47: 8492024.53
A48: Plus: PBI (not included above)
A49: =A14 -> Federal | B49: 0 | C49: =IF(PBIFedDebtSwitch="Yes",0,C587) -> 0 | D49: 0 | E49: 0 | F49: 0 | G49: 0 | H49: 0 | I49: 0 | J49: 0 | K49: 0 | L49: 0 | M49: 0 | N49: 0 | O49: 0 | P49: 0 | Q49: 0 | R49: 0 | S49: 0 | T49: 0 | U49: 0 | V49: 0 | W49: 0 | X49: 0 | Y49: 0 | Z49: 0 | AA49: 0 | AB49: 0 | AC49: 0 | AD49: 0 | AE49: 0 | AF49: 0 | AG49: 0 | AH49: 0 | AI49: 0 | AJ49: 0 | AK49: 0 | AL49: 0 | AM49: 0 | AN49: 0 | AO49: 0 | AP49: 0
A50: =A15 -> State | B50: 0 | C50: =IF(PBIStateDebtSwitch="Yes",0,C591) -> 0 | D50: 0 | E50: 0 | F50: 0 | G50: 0 | H50: 0 | I50: 0 | J50: 0 | K50: 0 | L50: 0 | M50: 0 | N50: 0 | O50: 0 | P50: 0 | Q50: 0 | R50: 0 | S50: 0 | T50: 0 | U50: 0 | V50: 0 | W50: 0 | X50: 0 | Y50: 0 | Z50: 0 | AA50: 0 | AB50: 0 | AC50: 0 | AD50: 0 | AE50: 0 | AF50: 0 | AG50: 0 | AH50: 0 | AI50: 0 | AJ50: 0 | AK50: 0 | AL50: 0 | AM50: 0 | AN50: 0 | AO50: 0 | AP50: 0
A51: Utility | B51: 0 | C51: =IF(PBIUtilityDebtSwitch="Yes",0,C595) -> 0 | D51: 0 | E51: 0 | F51: 0 | G51: 0 | H51: 0 | I51: 0 | J51: 0 | K51: 0 | L51: 0 | M51: 0 | N51: 0 | O51: 0 | P51: 0 | Q51: 0 | R51: 0 | S51: 0 | T51: 0 | U51: 0 | V51: 0 | W51: 0 | X51: 0 | Y51: 0 | Z51: 0 | AA51: 0 | AB51: 0 | AC51: 0 | AD51: 0 | AE51: 0 | AF51: 0 | AG51: 0 | AH51: 0 | AI51: 0 | AJ51: 0 | AK51: 0 | AL51: 0 | AM51: 0 | AN51: 0 | AO51: 0 | AP51: 0
A52: Other | B52: 0 | C52: =IF(PBIOtherDebtSwitch="Yes",0,C599) -> 0 | D52: 0 | E52: 0 | F52: 0 | G52: 0 | H52: 0 | I52: 0 | J52: 0 | K52: 0 | L52: 0 | M52: 0 | N52: 0 | O52: 0 | P52: 0 | Q52: 0 | R52: 0 | S52: 0 | T52: 0 | U52: 0 | V52: 0 | W52: 0 | X52: 0 | Y52: 0 | Z52: 0 | AA52: 0 | AB52: 0 | AC52: 0 | AD52: 0 | AE52: 0 | AF52: 0 | AG52: 0 | AH52: 0 | AI52: 0 | AJ52: 0 | AK52: 0 | AL52: 0 | AM52: 0 | AN52: 0 | AO52: 0 | AP52: 0
A53: Total | B53: =SUM(B49:B52) -> 0 | C53: =SUM(C49:C52) -> 0 | D53: =SUM(D49:D52) -> 0 | E53: 0 | F53: 0 | G53: 0 | H53: 0 | I53: 0 | J53: 0 | K53: 0 | L53: 0 | M53: 0 | N53: 0 | O53: 0 | P53: 0 | Q53: 0 | R53: 0 | S53: 0 | T53: 0 | U53: 0 | V53: 0 | W53: 0 | X53: 0 | Y53: 0 | Z53: 0 | AA53: 0 | AB53: 0 | AC53: 0 | AD53: 0 | AE53: 0 | AF53: 0 | AG53: 0 | AH53: 0 | AI53: 0 | AJ53: 0 | AK53: 0 | AL53: 0 | AM53: 0 | AN53: 0 | AO53: 0 | AP53: 0
A54: Plus: Interest Earned | B54: 0 | C54: =C775 -> 29367.94074 | D54: 33794.5012 | E54: 38222.15934 | F54: 42650.92639 | G54: 47080.8138 | H54: 51511.83316 | I54: 55943.99626 | J54: 60377.3151 | K54: 64811.80184 | L54: 69247.46886 | M54: 73684.32874 | N54: 78122.39425 | O54: 30715.26316 | P54: 35995.88199 | Q54: 41277.74607 | R54: 21620.7932 | S54: 26732.45857 | T54: 31846.11549 | U54: 36961.80455 | V54: 42079.56719 | W54: 47199.44573 | X54: 52446.87893 | Y54: 57696.51535 | Z54: 62948.40002 | AA54: 6586.078449 | AB54: 12847.04089 | AC54: 19110.39252 | AD54: 25376.18234 | AE54: 31644.46035 | AF54: 37915.27764 | AG54: 44188.68636 | AH54: 50464.73978 | AI54: 56743.49228 | AJ54: 63024.99943 | AK54: 69309.31794 | AL54: 75596.50576 | AM54: 8216.814354 | AN54: 8370.768871 | AO54: 8527.773977 | AP54: 8687.892689
A55: Less: Interest Expense | B55: 0 | C55: =-C612 -> -1813879.138 | D55: =-D612 -> -1754355.799 | E55: =-E612 -> -1688620.414 | F55: -1616194.882 | G55: -1536564.214 | H55: -1449173.676 | I55: -1353425.715 | J55: -1248676.642 | K55: -1134233.063 | L55: -1009348.029 | M55: -873216.8916 | N55: -724972.8354 | O55: -563682.0637 | P55: -391094.506 | Q55: -203584.1323 | R55: 0 | S55: 0 | T55: 0 | U55: 0 | V55: 0 | W55: 0 | X55: 0 | Y55: 0 | Z55: 0 | AA55: 0 | AB55: 0 | AC55: 0 | AD55: 0 | AE55: 0 | AF55: 0 | AG55: 0 | AH55: 0 | AI55: 0 | AJ55: 0 | AK55: 0 | AL55: 0 | AM55: 0 | AN55: 0 | AO55: 0 | AP55: 0
A56: Total | B56: =B47+B53+B54+B55 -> 0 | C56: =C47+C53+C54+C55 -> 1946489.816 | D56: 2038293.057 | E56: 2136251.375 | F56: 2240840.031 | G56: 2352571.107 | H56: 2471996.36 | I56: 2599710.297 | J56: 2736353.484 | K56: 2882616.123 | L56: 3039241.891 | M56: 3207032.087 | N56: 3386850.1 | O56: 3527779.801 | P56: 3732600.602 | Q56: 3952248.339 | R56: 4162930.114 | S56: 4194691.606 | T56: 4226346.364 | U56: 4257890.378 | V56: 4289319.546 | W56: 4320629.668 | X56: 4337610.921 | Y56: 4354464.434 | Z56: 4371185.707 | AA56: 4326153.634 | AB56: 4343600.946 | AC56: 4360901.879 | AD56: 4378051.5 | AE56: 4395044.76 | AF56: 4411876.494 | AG56: 4428541.418 | AH56: 4445034.126 | AI56: 4461349.085 | AJ56: 4477480.637 | AK56: 4493422.993 | AL56: 4509170.228 | AM56: 4451046.477 | AN56: 4460246.006 | AO56: 4469231.816 | AP56: 8500712.422
A58: Cash Flows from Investing Activities
A59: (Purchase)/Sale of Property | B59: =-LPFInstalledCostTotal+'Inputs & Results'!C177+'Inputs & Results'!C180 -> -43661169.13 | C59: 0 | D59: 0 | E59: 0 | F59: 0 | G59: 0 | H59: 0 | I59: 0 | J59: 0 | K59: 0 | L59: 0 | M59: 0 | N59: 0 | O59: 0 | P59: 0 | Q59: 0 | R59: 0 | S59: 0 | T59: 0 | U59: 0 | V59: 0 | W59: 0 | X59: 0 | Y59: 0 | Z59: 0 | AA59: 0 | AB59: 0 | AC59: 0 | AD59: 0 | AE59: 0 | AF59: 0 | AG59: 0 | AH59: 0 | AI59: 0 | AJ59: 0 | AK59: 0 | AL59: 0 | AM59: 0 | AN59: 0 | AO59: 0 | AP59: 0
A60: (Increase)/Decrease in Reserve Accounts
A61: DSRA | B61: =-B667-B668 -> -1290961.105 | C61: -10316.05271 | D61: -10294.54607 | E61: -10271.98389 | F61: -10248.34087 | G61: -10223.59114 | H61: -10197.70827 | I61: -10170.66524 | J61: -10142.43443 | K61: -10112.98761 | L61: -10082.29594 | M61: -10050.32993 | N61: 7762.895598 | O61: -9982.453645 | P61: -9946.481076 | Q61: 1415238.081 | R61: 0 | S61: 0 | T61: 0 | U61: 0 | V61: 0 | W61: 0 | X61: 0 | Y61: 0 | Z61: 0 | AA61: 0 | AB61: 0 | AC61: 0 | AD61: 0 | AE61: 0 | AF61: 0 | AG61: 0 | AH61: 0 | AI61: 0 | AJ61: 0 | AK61: 0 | AL61: 0 | AM61: 0 | AN61: 0 | AO61: 0 | AP61: 0
A62: Working Capital Reserve Account | B62: =-B673-B674 -> -387206.9369 | C62: 2775.769307 | D62: 2691.538386 | E62: 2605.609258 | F62: 2517.946412 | G62: 2428.513573 | H62: 2337.273691 | I62: 2244.188916 | J62: 2149.220587 | K62: 2052.329212 | L62: 1953.474449 | M62: 1852.615087 | N62: 1749.70903 | O62: 1644.713275 | P62: 1537.583892 | Q62: 1428.276004 | R62: 1316.74377 | S62: 1202.940356 | T62: 1086.817921 | U62: 968.3275911 | V62: 847.4194363 | W62: -6441.418644 | X62: -6567.316573 | Y62: -6695.788678 | Z62: -6826.889346 | AA62: -6960.674139 | AB62: -7097.199821 | AC62: -7236.524384 | AD62: -7378.707077 | AE62: -7523.808429 | AF62: -7671.890282 | AG62: -7823.015818 | AH62: -7977.249589 | AI62: -8134.657546 | AJ62: -8295.307069 | AK62: -8459.267002 | AL62: -8626.607684 | AM62: -8797.400978 | AN62: -8971.72031 | AO62: -9149.640701 | AP62: 496451.0108
A63: Major Equipment Reserve 1 | B63: =-B679-B680 -> 0 | C63: =-C679-C680 -> -245406.0286 | D63: -245406.0286 | E63: -245406.0286 | F63: -245406.0286 | G63: -245406.0286 | H63: -245406.0286 | I63: -245406.0286 | J63: -245406.0286 | K63: -245406.0286 | L63: -245406.0286 | M63: -245406.0286 | N63: 2699466.315 | O63: -293411.9072 | P63: -293411.9072 | Q63: -293411.9072 | R63: -293411.9072 | S63: -293411.9072 | T63: -293411.9072 | U63: -293411.9072 | V63: -293411.9072 | W63: -293411.9072 | X63: -293411.9072 | Y63: -293411.9072 | Z63: 3227530.979 | AA63: -350808.608 | AB63: -350808.608 | AC63: -350808.608 | AD63: -350808.608 | AE63: -350808.608 | AF63: -350808.608 | AG63: -350808.608 | AH63: -350808.608 | AI63: -350808.608 | AJ63: -350808.608 | AK63: -350808.608 | AL63: 3858894.688 | AM63: 0 | AN63: 0 | AO63: 0 | AP63: 0
A64: Major Equipment Reserve 2 | B64: =-B711-B712 -> 0 | C64: =-C711-C712 -> 0 | D64: 0 | E64: 0 | F64: 0 | G64: 0 | H64: 0 | I64: 0 | J64: 0 | K64: 0 | L64: 0 | M64: 0 | N64: 0 | O64: 0 | P64: 0 | Q64: 0 | R64: 0 | S64: 0 | T64: 0 | U64: 0 | V64: 0 | W64: 0 | X64: 0 | Y64: 0 | Z64: 0 | AA64: 0 | AB64: 0 | AC64: 0 | AD64: 0 | AE64: 0 | AF64: 0 | AG64: 0 | AH64: 0 | AI64: 0 | AJ64: 0 | AK64: 0 | AL64: 0 | AM64: 0 | AN64: 0 | AO64: 0 | AP64: 0
A65: Major Equipment Reserve 3 | B65: =-B743-B744 -> 0 | C65: =-C743-C744 -> 0 | D65: 0 | E65: 0 | F65: 0 | G65: 0 | H65: 0 | I65: 0 | J65: 0 | K65: 0 | L65: 0 | M65: 0 | N65: 0 | O65: 0 | P65: 0 | Q65: 0 | R65: 0 | S65: 0 | T65: 0 | U65: 0 | V65: 0 | W65: 0 | X65: 0 | Y65: 0 | Z65: 0 | AA65: 0 | AB65: 0 | AC65: 0 | AD65: 0 | AE65: 0 | AF65: 0 | AG65: 0 | AH65: 0 | AI65: 0 | AJ65: 0 | AK65: 0 | AL65: 0 | AM65: 0 | AN65: 0 | AO65: 0 | AP65: 0
A66: Total | B66: =SUM(B61:B65) -> -1678168.042 | C66: =SUM(C61:C65) -> -252946.312 | D66: -253009.0363 | E66: -253072.4033 | F66: -253136.4231 | G66: -253201.1062 | H66: -253266.4632 | I66: -253332.5049 | J66: -253399.2425 | K66: -253466.687 | L66: -253534.8501 | M66: -253603.7435 | N66: 2708978.92 | O66: -301749.6476 | P66: -301820.8044 | Q66: 1123254.449 | R66: -292095.1634 | S66: -292208.9669 | T66: -292325.0893 | U66: -292443.5796 | V66: -292564.4878 | W66: -299853.3259 | X66: -299979.2238 | Y66: -300107.6959 | Z66: 3220704.09 | AA66: -357769.2821 | AB66: -357905.8078 | AC66: -358045.1324 | AD66: -358187.3151 | AE66: -358332.4164 | AF66: -358480.4983 | AG66: -358631.6238 | AH66: -358785.8576 | AI66: -358943.2655 | AJ66: -359103.9151 | AK66: -359267.875 | AL66: 3850268.08 | AM66: -8797.400978 | AN66: -8971.72031 | AO66: -9149.640701 | AP66: 496451.0108
A67: Major Equipment Capital Spending
A68: Major Equipment Spending 1 | B68: =B680 -> 0 | C68: =C680 -> 0 | D68: 0 | E68: 0 | F68: 0 | G68: 0 | H68: 0 | I68: 0 | J68: 0 | K68: 0 | L68: 0 | M68: 0 | N68: -2944872.344 | O68: 0 | P68: 0 | Q68: 0 | R68: 0 | S68: 0 | T68: 0 | U68: 0 | V68: 0 | W68: 0 | X68: 0 | Y68: 0 | Z68: -3520942.887 | AA68: 0 | AB68: 0 | AC68: 0 | AD68: 0 | AE68: 0 | AF68: 0 | AG68: 0 | AH68: 0 | AI68: 0 | AJ68: 0 | AK68: 0 | AL68: -4209703.296 | AM68: 0 | AN68: 0 | AO68: 0 | AP68: 0
A69: Major Equipment Spending 2 | B69: =B712 -> 0 | C69: =C712 -> 0 | D69: 0 | E69: 0 | F69: 0 | G69: 0 | H69: 0 | I69: 0 | J69: 0 | K69: 0 | L69: 0 | M69: 0 | N69: 0 | O69: 0 | P69: 0 | Q69: 0 | R69: 0 | S69: 0 | T69: 0 | U69: 0 | V69: 0 | W69: 0 | X69: 0 | Y69: 0 | Z69: 0 | AA69: 0 | AB69: 0 | AC69: 0 | AD69: 0 | AE69: 0 | AF69: 0 | AG69: 0 | AH69: 0 | AI69: 0 | AJ69: 0 | AK69: 0 | AL69: 0 | AM69: 0 | AN69: 0 | AO69: 0 | AP69: 0
A70: Major Equipment Spending 3 | B70: =B744 -> 0 | C70: =C744 -> 0 | D70: 0 | E70: 0 | F70: 0 | G70: 0 | H70: 0 | I70: 0 | J70: 0 | K70: 0 | L70: 0 | M70: 0 | N70: 0 | O70: 0 | P70: 0 | Q70: 0 | R70: 0 | S70: 0 | T70: 0 | U70: 0 | V70: 0 | W70: 0 | X70: 0 | Y70: 0 | Z70: 0 | AA70: 0 | AB70: 0 | AC70: 0 | AD70: 0 | AE70: 0 | AF70: 0 | AG70: 0 | AH70: 0 | AI70: 0 | AJ70: 0 | AK70: 0 | AL70: 0 | AM70: 0 | AN70: 0 | AO70: 0 | AP70: 0
A71: Total | B71: =SUM(B68:B70) -> 0 | C71: =SUM(C68:C70) -> 0 | D71: 0 | E71: 0 | F71: 0 | G71: 0 | H71: 0 | I71: 0 | J71: 0 | K71: 0 | L71: 0 | M71: 0 | N71: -2944872.344 | O71: 0 | P71: 0 | Q71: 0 | R71: 0 | S71: 0 | T71: 0 | U71: 0 | V71: 0 | W71: 0 | X71: 0 | Y71: 0 | Z71: -3520942.887 | AA71: 0 | AB71: 0 | AC71: 0 | AD71: 0 | AE71: 0 | AF71: 0 | AG71: 0 | AH71: 0 | AI71: 0 | AJ71: 0 | AK71: 0 | AL71: -4209703.296 | AM71: 0 | AN71: 0 | AO71: 0 | AP71: 0
A72: Total | B72: =B59+B66+B71 -> -45339337.17 | C72: =C59+C66+C71 -> -252946.312 | D72: -253009.0363 | E72: -253072.4033 | F72: -253136.4231 | G72: -253201.1062 | H72: -253266.4632 | I72: -253332.5049 | J72: -253399.2425 | K72: -253466.687 | L72: -253534.8501 | M72: -253603.7435 | N72: -235893.424 | O72: -301749.6476 | P72: -301820.8044 | Q72: 1123254.449 | R72: -292095.1634 | S72: -292208.9669 | T72: -292325.0893 | U72: -292443.5796 | V72: -292564.4878 | W72: -299853.3259 | X72: -299979.2238 | Y72: -300107.6959 | Z72: -300238.7966 | AA72: -357769.2821 | AB72: -357905.8078 | AC72: -358045.1324 | AD72: -358187.3151 | AE72: -358332.4164 | AF72: -358480.4983 | AG72: -358631.6238 | AH72: -358785.8576 | AI72: -358943.2655 | AJ72: -359103.9151 | AK72: -359267.875 | AL72: -359435.2157 | AM72: -8797.400978 | AN72: -8971.72031 | AO72: -9149.640701 | AP72: 496451.0108
A74: Cash Flows from Financing Activities
A75: Incentives
A76: IBI | B76: ='Inputs & Results'!C194+'Inputs & Results'!C195 -> 0 | C76: 0 | D76: 0 | E76: 0 | F76: 0 | G76: 0 | H76: 0 | I76: 0 | J76: 0 | K76: 0 | L76: 0 | M76: 0 | N76: 0 | O76: 0 | P76: 0 | Q76: 0 | R76: 0 | S76: 0 | T76: 0 | U76: 0 | V76: 0 | W76: 0 | X76: 0 | Y76: 0 | Z76: 0 | AA76: 0 | AB76: 0 | AC76: 0 | AD76: 0 | AE76: 0 | AF76: 0 | AG76: 0 | AH76: 0 | AI76: 0 | AJ76: 0 | AK76: 0 | AL76: 0 | AM76: 0 | AN76: 0 | AO76: 0 | AP76: 0
A77: CBI | B77: ='Inputs & Results'!C196 -> 0 | C77: 0 | D77: 0 | E77: 0 | F77: 0 | G77: 0 | H77: 0 | I77: 0 | J77: 0 | K77: 0 | L77: 0 | M77: 0 | N77: 0 | O77: 0 | P77: 0 | Q77: 0 | R77: 0 | S77: 0 | T77: 0 | U77: 0 | V77: 0 | W77: 0 | X77: 0 | Y77: 0 | Z77: 0 | AA77: 0 | AB77: 0 | AC77: 0 | AD77: 0 | AE77: 0 | AF77: 0 | AG77: 0 | AH77: 0 | AI77: 0 | AJ77: 0 | AK77: 0 | AL77: 0 | AM77: 0 | AN77: 0 | AO77: 0 | AP77: 0
A78: Total | B78: =SUM(B76:B77) -> 0 | C78: =SUM(C76:C77) -> 0 | D78: 0 | E78: 0 | F78: 0 | G78: =SUM(G76:G77) -> 0 | H78: =SUM(H76:H77) -> 0 | I78: =SUM(I76:I77) -> 0 | J78: =SUM(J76:J77) -> 0 | K78: =SUM(K76:K77) -> 0 | L78: =SUM(L76:L77) -> 0 | M78: =SUM(M76:M77) -> 0 | N78: =SUM(N76:N77) -> 0 | O78: =SUM(O76:O77) -> 0 | P78: =SUM(P76:P77) -> 0 | Q78: =SUM(Q76:Q77) -> 0 | R78: =SUM(R76:R77) -> 0 | S78: =SUM(S76:S77) -> 0 | T78: =SUM(T76:T77) -> 0 | U78: =SUM(U76:U77) -> 0 | V78: =SUM(V76:V77) -> 0 | W78: =SUM(W76:W77) -> 0 | X78: =SUM(X76:X77) -> 0 | Y78: =SUM(Y76:Y77) -> 0 | Z78: =SUM(Z76:Z77) -> 0 | AA78: =SUM(AA76:AA77) -> 0 | AB78: =SUM(AB76:AB77) -> 0 | AC78: =SUM(AC76:AC77) -> 0 | AD78: =SUM(AD76:AD77) -> 0 | AE78: =SUM(AE76:AE77) -> 0 | AF78: =SUM(AF76:AF77) -> 0 | AG78: =SUM(AG76:AG77) -> 0 | AH78: =SUM(AH76:AH77) -> 0 | AI78: =SUM(AI76:AI77) -> 0 | AJ78: =SUM(AJ76:AJ77) -> 0 | AK78: =SUM(AK76:AK77) -> 0 | AL78: =SUM(AL76:AL77) -> 0 | AM78: =SUM(AM76:AM77) -> 0 | AN78: =SUM(AN76:AN77) -> 0 | AO78: =SUM(AO76:AO77) -> 0 | AP78: =SUM(AP76:AP77) -> 0
A79: Issuance of Equity | B79: ='Inputs & Results'!$C$192 -> 21934445.08 | C79: 0 | D79: 0 | E79: 0 | F79: 0 | G79: 0 | H79: 0 | I79: 0 | J79: 0 | K79: 0 | L79: 0 | M79: 0 | N79: 0 | O79: 0 | P79: 0 | Q79: 0 | R79: 0 | S79: 0 | T79: 0 | U79: 0 | V79: 0 | W79: 0 | X79: 0 | Y79: 0 | Z79: 0 | AA79: 0 | AB79: 0 | AC79: 0 | AD79: 0 | AE79: 0 | AF79: 0 | AG79: 0 | AH79: 0 | AI79: 0 | AJ79: 0 | AK79: 0 | AL79: 0 | AM79: 0 | AN79: 0 | AO79: 0 | AP79: 0
A80: Borrowing/(Redemption) of Long-Term Debt | B80: ='Inputs & Results'!C193 -> 23404892.1 | C80: =C608 -> -768043.0732 | D80: =D608 -> -848198.5168 | E80: -934522.994 | F80: -1027492.494 | G80: -1127619.844 | H80: -1235457.564 | I80: -1351600.942 | J80: -1476691.345 | K80: -1611419.793 | L80: -1756530.803 | M80: -1912826.532 | N80: -2081171.248 | O80: -2226936.228 | P80: -2419488.693 | Q80: -2626892.029 | R80: 0 | S80: 0 | T80: 0 | U80: 0 | V80: 0 | W80: 0 | X80: 0 | Y80: 0 | Z80: 0 | AA80: 0 | AB80: 0 | AC80: 0 | AD80: 0 | AE80: 0 | AF80: 0 | AG80: 0 | AH80: 0 | AI80: 0 | AJ80: 0 | AK80: 0 | AL80: 0 | AM80: 0 | AN80: 0 | AO80: 0 | AP80: 0
A81: Total | B81: =SUM(B78:B80) -> 45339337.17 | C81: =SUM(C78:C80) -> -768043.0732 | D81: =SUM(D78:D80) -> -848198.5168 | E81: -934522.994 | F81: -1027492.494 | G81: -1127619.844 | H81: -1235457.564 | I81: -1351600.942 | J81: -1476691.345 | K81: -1611419.793 | L81: -1756530.803 | M81: -1912826.532 | N81: -2081171.248 | O81: -2226936.228 | P81: -2419488.693 | Q81: -2626892.029 | R81: 0 | S81: 0 | T81: 0 | U81: 0 | V81: 0 | W81: 0 | X81: 0 | Y81: 0 | Z81: 0 | AA81: 0 | AB81: 0 | AC81: 0 | AD81: 0 | AE81: 0 | AF81: 0 | AG81: 0 | AH81: 0 | AI81: 0 | AJ81: 0 | AK81: 0 | AL81: 0 | AM81: 0 | AN81: 0 | AO81: 0 | AP81: 0
A82: Pre-Tax Cashflow | B82: =B56+B72+B81 -> 0 | C82: 925500.4311 | D82: 937085.5042 | E82: 948655.9776 | F82: 960211.1136 | G82: 971750.1565 | H82: 983272.3327 | I82: 994776.8498 | J82: 1006262.897 | K82: 1017729.643 | L82: 1029176.238 | M82: 1040601.812 | N82: 1069785.428 | O82: 999093.9249 | P82: 1011291.105 | Q82: 2448610.759 | R82: 3870834.951 | S82: 3902482.639 | T82: 3934021.274 | U82: 3965446.798 | V82: 3996755.058 | W82: 4020776.342 | X82: 4037631.697 | Y82: 4054356.738 | Z82: 4070946.91 | AA82: 3968384.352 | AB82: 3985695.138 | AC82: 4002856.747 | AD82: 4019864.185 | AE82: 4036712.343 | AF82: 4053395.996 | AG82: 4069909.794 | AH82: 4086248.268 | AI82: 4102405.82 | AJ82: 4118376.722 | AK82: 4134155.118 | AL82: 4149735.013 | AM82: 4442249.076 | AN82: 4451274.286 | AO82: 4460082.176 | AP82: 8997163.433
A84: Total Project Returns
A85: Total Project Returns: Pre-Tax
A86: Equity Investment | B86: =-B79 -> -21934445.08 | C86: =-C79 -> 0 | D86: 0 | E86: 0 | F86: 0 | G86: 0 | H86: =-H79 -> 0 | I86: 0 | J86: 0 | K86: 0 | L86: 0 | M86: 0 | N86: 0 | O86: 0 | P86: 0 | Q86: 0 | R86: 0 | S86: 0 | T86: 0 | U86: 0 | V86: 0 | W86: 0 | X86: 0 | Y86: 0 | Z86: 0 | AA86: 0 | AB86: 0 | AC86: 0 | AD86: 0 | AE86: 0 | AF86: 0 | AG86: 0 | AH86: 0 | AI86: 0 | AJ86: 0 | AK86: 0 | AL86: 0 | AM86: 0 | AN86: 0 | AO86: 0 | AP86: 0
A87: Operating Cash Distributions/(Contributions) | B87: =B82 -> 0 | C87: =C82 -> 925500.4311 | D87: 937085.5042 | E87: 948655.9776 | F87: 960211.1136 | G87: 971750.1565 | H87: =H82 -> 983272.3327 | I87: 994776.8498 | J87: 1006262.897 | K87: 1017729.643 | L87: 1029176.238 | M87: 1040601.812 | N87: 1069785.428 | O87: 999093.9249 | P87: 1011291.105 | Q87: 2448610.759 | R87: 3870834.951 | S87: 3902482.639 | T87: 3934021.274 | U87: 3965446.798 | V87: 3996755.058 | W87: 4020776.342 | X87: 4037631.697 | Y87: 4054356.738 | Z87: 4070946.91 | AA87: 3968384.352 | AB87: 3985695.138 | AC87: 4002856.747 | AD87: 4019864.185 | AE87: 4036712.343 | AF87: 4053395.996 | AG87: 4069909.794 | AH87: 4086248.268 | AI87: 4102405.82 | AJ87: 4118376.722 | AK87: 4134155.118 | AL87: 4149735.013 | AM87: 4442249.076 | AN87: 4451274.286 | AO87: 4460082.176 | AP87: 8997163.433
A88: Total | B88: =SUM(B86:B87) -> -21934445.08 | C88: =SUM(C86:C87) -> 925500.4311 | D88: 937085.5042 | E88: 948655.9776 | F88: 960211.1136 | G88: 971750.1565 | H88: =SUM(H86:H87) -> 983272.3327 | I88: =SUM(I86:I87) -> 994776.8498 | J88: =SUM(J86:J87) -> 1006262.897 | K88: =SUM(K86:K87) -> 1017729.643 | L88: 1029176.238 | M88: =SUM(M86:M87) -> 1040601.812 | N88: =SUM(N86:N87) -> 1069785.428 | O88: =SUM(O86:O87) -> 999093.9249 | P88: =SUM(P86:P87) -> 1011291.105 | Q88: 2448610.759 | R88: =SUM(R86:R87) -> 3870834.951 | S88: =SUM(S86:S87) -> 3902482.639 | T88: =SUM(T86:T87) -> 3934021.274 | U88: =SUM(U86:U87) -> 3965446.798 | V88: 3996755.058 | W88: =SUM(W86:W87) -> 4020776.342 | X88: =SUM(X86:X87) -> 4037631.697 | Y88: =SUM(Y86:Y87) -> 4054356.738 | Z88: =SUM(Z86:Z87) -> 4070946.91 | AA88: 3968384.352 | AB88: =SUM(AB86:AB87) -> 3985695.138 | AC88: =SUM(AC86:AC87) -> 4002856.747 | AD88: =SUM(AD86:AD87) -> 4019864.185 | AE88: =SUM(AE86:AE87) -> 4036712.343 | AF88: 4053395.996 | AG88: =SUM(AG86:AG87) -> 4069909.794 | AH88: =SUM(AH86:AH87) -> 4086248.268 | AI88: =SUM(AI86:AI87) -> 4102405.82 | AJ88: =SUM(AJ86:AJ87) -> 4118376.722 | AK88: 4134155.118 | AL88: =SUM(AL86:AL87) -> 4149735.013 | AM88: =SUM(AM86:AM87) -> 4442249.076 | AN88: =SUM(AN86:AN87) -> 4451274.286 | AO88: =SUM(AO86:AO87) -> 4460082.176 | AP88: 8997163.433
A90: Cumulative IRR | B90: =ROUND(IF(ISERROR(IRR($B88:B$88)),0,IRR($B88:B$88)),4) -> 0 | C90: =ROUND(IF(ISERROR(IRR($B88:C$88)),0,IRR($B88:C$88)),4) -> -0.9578 | D90: =ROUND(IF(ISERROR(IRR($B88:D$88)),0,IRR($B88:D$88)),4) -> -0.7711 | E90: =ROUND(IF(ISERROR(IRR($B88:E$88)),0,IRR($B88:E$88)),4) -> -0.5925 | F90: =ROUND(IF(ISERROR(IRR($B88:F$88)),0,IRR($B88:F$88)),4) -> -0.4576 | G90: =ROUND(IF(ISERROR(IRR($B88:G$88)),0,IRR($B88:G$88)),4) -> -0.3585 | H90: =ROUND(IF(ISERROR(IRR($B88:H$88)),0,IRR($B88:H$88)),4) -> -0.2848 | I90: =ROUND(IF(ISERROR(IRR($B88:I$88)),0,IRR($B88:I$88)),4) -> -0.2289 | J90: =ROUND(IF(ISERROR(IRR($B88:J$88)),0,IRR($B88:J$88)),4) -> -0.1854 | K90: =ROUND(IF(ISERROR(IRR($B88:K$88)),0,IRR($B88:K$88)),4) -> -0.1511 | L90: =ROUND(IF(ISERROR(IRR($B88:L$88)),0,IRR($B88:L$88)),4) -> -0.1235 | M90: =ROUND(IF(ISERROR(IRR($B88:M$88)),0,IRR($B88:M$88)),4) -> -0.101 | N90: =ROUND(IF(ISERROR(IRR($B88:N$88)),0,IRR($B88:N$88)),4) -> -0.0821 | O90: =ROUND(IF(ISERROR(IRR($B88:O$88)),0,IRR($B88:O$88)),4) -> -0.0675 | P90: =ROUND(IF(ISERROR(IRR($B88:P$88)),0,IRR($B88:P$88)),4) -> -0.0549 | Q90: =ROUND(IF(ISERROR(IRR($B88:Q$88)),0,IRR($B88:Q$88)),4) -> -0.0319 | R90: =ROUND(IF(ISERROR(IRR($B88:R$88)),0,IRR($B88:R$88)),4) -> -0.0079 | S90: =ROUND(IF(ISERROR(IRR($B88:S$88)),0,IRR($B88:S$88)),4) -> 0.0086 | T90: =ROUND(IF(ISERROR(IRR($B88:T$88)),0,IRR($B88:T$88)),4) -> 0.0209 | U90: =ROUND(IF(ISERROR(IRR($B88:U$88)),0,IRR($B88:U$88)),4) -> 0.0306 | V90: =ROUND(IF(ISERROR(IRR($B88:V$88)),0,IRR($B88:V$88)),4) -> 0.0383 | W90: =ROUND(IF(ISERROR(IRR($B88:W$88)),0,IRR($B88:W$88)),4) -> 0.0447 | X90: =ROUND(IF(ISERROR(IRR($B88:X$88)),0,IRR($B88:X$88)),4) -> 0.05 | Y90: =ROUND(IF(ISERROR(IRR($B88:Y$88)),0,IRR($B88:Y$88)),4) -> 0.0545 | Z90: =ROUND(IF(ISERROR(IRR($B88:Z$88)),0,IRR($B88:Z$88)),4) -> 0.0583 | AA90: =ROUND(IF(ISERROR(IRR($B88:AA$88)),0,IRR($B88:AA$88)),4) -> 0.0615 | AB90: =ROUND(IF(ISERROR(IRR($B88:AB$88)),0,IRR($B88:AB$88)),4) -> 0.0642 | AC90: =ROUND(IF(ISERROR(IRR($B88:AC$88)),0,IRR($B88:AC$88)),4) -> 0.0666 | AD90: =ROUND(IF(ISERROR(IRR($B88:AD$88)),0,IRR($B88:AD$88)),4) -> 0.0687 | AE90: =ROUND(IF(ISERROR(IRR($B88:AE$88)),0,IRR($B88:AE$88)),4) -> 0.0705 | AF90: =ROUND(IF(ISERROR(IRR($B88:AF$88)),0,IRR($B88:AF$88)),4) -> 0.0721 | AG90: =ROUND(IF(ISERROR(IRR($B88:AG$88)),0,IRR($B88:AG$88)),4) -> 0.0736 | AH90: =ROUND(IF(ISERROR(IRR($B88:AH$88)),0,IRR($B88:AH$88)),4) -> 0.0748 | AI90: =ROUND(IF(ISERROR(IRR($B88:AI$88)),0,IRR($B88:AI$88)),4) -> 0.076 | AJ90: =ROUND(IF(ISERROR(IRR($B88:AJ$88)),0,IRR($B88:AJ$88)),4) -> 0.077 | AK90: =ROUND(IF(ISERROR(IRR($B88:AK$88)),0,IRR($B88:AK$88)),4) -> 0.0779 | AL90: =ROUND(IF(ISERROR(IRR($B88:AL$88)),0,IRR($B88:AL$88)),4) -> 0.0787 | AM90: =ROUND(IF(ISERROR(IRR($B88:AM$88)),0,IRR($B88:AM$88)),4) -> 0.0795 | AN90: =ROUND(IF(ISERROR(IRR($B88:AN$88)),0,IRR($B88:AN$88)),4) -> 0.0802 | AO90: =ROUND(IF(ISERROR(IRR($B88:AO$88)),0,IRR($B88:AO$88)),4) -> 0.0808 | AP90: =ROUND(IF(ISERROR(IRR($B88:AP$88)),0,IRR($B88:AP$88)),4) -> 0.0819
A91: Cumulative NPV | B91: =B88 -> -21934445.08 | C91: =NPV(DiscountRate,$C88:C88)+$B$88 -> -21077500.23 | D91: =NPV(DiscountRate,$C88:D88)+$B$88 -> -20274100.45 | E91: =NPV(DiscountRate,$C88:E88)+$B$88 -> -19521026.75 | F91: =NPV(DiscountRate,$C88:F88)+$B$88 -> -18815242.92 | G91: =NPV(DiscountRate,$C88:G88)+$B$88 -> -18153886.09 | H91: =NPV(DiscountRate,$C88:H88)+$B$88 -> -17534257.73 | I91: =NPV(DiscountRate,$C88:I88)+$B$88 -> -16953814.99 | J91: =NPV(DiscountRate,$C88:J88)+$B$88 -> -16410162.46 | K91: =NPV(DiscountRate,$C88:K88)+$B$88 -> -15901044.26 | L91: =NPV(DiscountRate,$C88:L88)+$B$88 -> -15424336.53 | M91: =NPV(DiscountRate,$C88:M88)+$B$88 -> -14978040.24 | N91: =NPV(DiscountRate,$C88:N88)+$B$88 -> -14553213.73 | O91: =NPV(DiscountRate,$C88:O88)+$B$88 -> -14185848.97 | P91: =NPV(DiscountRate,$C88:P88)+$B$88 -> -13841543.75 | Q91: =NPV(DiscountRate,$C88:Q88)+$B$88 -> -13069639.52 | R91: =NPV(DiscountRate,$C88:R88)+$B$88 -> -11939779.69 | S91: =NPV(DiscountRate,$C88:S88)+$B$88 -> -10885059.8 | T91: =NPV(DiscountRate,$C88:T88)+$B$88 -> -9900574.798 | U91: =NPV(DiscountRate,$C88:U88)+$B$88 -> -8981732.935 | V91: =NPV(DiscountRate,$C88:V88)+$B$88 -> -8124236.302 | W91: =NPV(DiscountRate,$C88:W88)+$B$88 -> -7325485.972 | X91: =NPV(DiscountRate,$C88:X88)+$B$88 -> -6582801.95 | Y91: =NPV(DiscountRate,$C88:Y88)+$B$88 -> -5892283.03 | Z91: =NPV(DiscountRate,$C88:Z88)+$B$88 -> -5250297.4 | AA91: =NPV(DiscountRate,$C88:AA88)+$B$88 -> -4670842.231 | AB91: =NPV(DiscountRate,$C88:AB88)+$B$88 -> -4131969.218 | AC91: =NPV(DiscountRate,$C88:AC88)+$B$88 -> -3630864.318 | AD91: =NPV(DiscountRate,$C88:AD88)+$B$88 -> -3164906.904 | AE91: =NPV(DiscountRate,$C88:AE88)+$B$88 -> -2731656.582 | AF91: =NPV(DiscountRate,$C88:AF88)+$B$88 -> -2328840.9 | AG91: =NPV(DiscountRate,$C88:AG88)+$B$88 -> -1954343.883 | AH91: =NPV(DiscountRate,$C88:AH88)+$B$88 -> -1606195.346 | AI91: =NPV(DiscountRate,$C88:AI88)+$B$88 -> -1282560.938 | AJ91: =NPV(DiscountRate,$C88:AJ88)+$B$88 -> -981732.8499 | AK91: =NPV(DiscountRate,$C88:AK88)+$B$88 -> -702121.159 | AL91: =NPV(DiscountRate,$C88:AL88)+$B$88 -> -442245.761 | AM91: =NPV(DiscountRate,$C88:AM88)+$B$88 -> -184658.7541 | AN91: =NPV(DiscountRate,$C88:AN88)+$B$88 -> 54332.30161 | AO91: =NPV(DiscountRate,$C88:AO88)+$B$88 -> 276058.1864 | AP91: =NPV(DiscountRate,$C88:AP88)+$B$88 -> 690206.0163
A93: Total Project Returns: After-Tax
A94: Cash
A95: Equity Investment | B95: =B86 -> -21934445.08 | C95: =C86 -> 0 | D95: 0 | E95: 0 | F95: 0 | G95: 0 | H95: 0 | I95: 0 | J95: 0 | K95: 0 | L95: 0 | M95: 0 | N95: 0 | O95: 0 | P95: 0 | Q95: 0 | R95: 0 | S95: 0 | T95: 0 | U95: 0 | V95: 0 | W95: 0 | X95: 0 | Y95: 0 | Z95: 0 | AA95: 0 | AB95: 0 | AC95: 0 | AD95: 0 | AE95: 0 | AF95: 0 | AG95: 0 | AH95: 0 | AI95: 0 | AJ95: 0 | AK95: 0 | AL95: 0 | AM95: 0 | AN95: 0 | AO95: 0 | AP95: 0
A96: Operating Cash Distributions/(Contributions) | B96: =B87 -> 0 | C96: =C87 -> 925500.4311 | D96: 937085.5042 | E96: 948655.9776 | F96: 960211.1136 | G96: 971750.1565 | H96: 983272.3327 | I96: 994776.8498 | J96: 1006262.897 | K96: 1017729.643 | L96: 1029176.238 | M96: 1040601.812 | N96: 1069785.428 | O96: 999093.9249 | P96: 1011291.105 | Q96: 2448610.759 | R96: 3870834.951 | S96: 3902482.639 | T96: 3934021.274 | U96: 3965446.798 | V96: 3996755.058 | W96: 4020776.342 | X96: 4037631.697 | Y96: 4054356.738 | Z96: 4070946.91 | AA96: 3968384.352 | AB96: 3985695.138 | AC96: 4002856.747 | AD96: 4019864.185 | AE96: 4036712.343 | AF96: 4053395.996 | AG96: 4069909.794 | AH96: 4086248.268 | AI96: 4102405.82 | AJ96: 4118376.722 | AK96: 4134155.118 | AL96: 4149735.013 | AM96: 4442249.076 | AN96: 4451274.286 | AO96: 4460082.176 | AP96: 8997163.433
A97: Total | B97: =SUM(B95:B96) -> -21934445.08 | C97: =SUM(C95:C96) -> 925500.4311 | D97: =SUM(D95:D96) -> 937085.5042 | E97: =SUM(E95:E96) -> 948655.9776 | F97: =SUM(F95:F96) -> 960211.1136 | G97: =SUM(G95:G96) -> 971750.1565 | H97: =SUM(H95:H96) -> 983272.3327 | I97: =SUM(I95:I96) -> 994776.8498 | J97: =SUM(J95:J96) -> 1006262.897 | K97: =SUM(K95:K96) -> 1017729.643 | L97: =SUM(L95:L96) -> 1029176.238 | M97: =SUM(M95:M96) -> 1040601.812 | N97: =SUM(N95:N96) -> 1069785.428 | O97: =SUM(O95:O96) -> 999093.9249 | P97: =SUM(P95:P96) -> 1011291.105 | Q97: =SUM(Q95:Q96) -> 2448610.759 | R97: =SUM(R95:R96) -> 3870834.951 | S97: =SUM(S95:S96) -> 3902482.639 | T97: =SUM(T95:T96) -> 3934021.274 | U97: =SUM(U95:U96) -> 3965446.798 | V97: =SUM(V95:V96) -> 3996755.058 | W97: =SUM(W95:W96) -> 4020776.342 | X97: =SUM(X95:X96) -> 4037631.697 | Y97: =SUM(Y95:Y96) -> 4054356.738 | Z97: =SUM(Z95:Z96) -> 4070946.91 | AA97: =SUM(AA95:AA96) -> 3968384.352 | AB97: =SUM(AB95:AB96) -> 3985695.138 | AC97: =SUM(AC95:AC96) -> 4002856.747 | AD97: =SUM(AD95:AD96) -> 4019864.185 | AE97: =SUM(AE95:AE96) -> 4036712.343 | AF97: =SUM(AF95:AF96) -> 4053395.996 | AG97: =SUM(AG95:AG96) -> 4069909.794 | AH97: =SUM(AH95:AH96) -> 4086248.268 | AI97: =SUM(AI95:AI96) -> 4102405.82 | AJ97: =SUM(AJ95:AJ96) -> 4118376.722 | AK97: =SUM(AK95:AK96) -> 4134155.118 | AL97: =SUM(AL95:AL96) -> 4149735.013 | AM97: =SUM(AM95:AM96) -> 4442249.076 | AN97: =SUM(AN95:AN96) -> 4451274.286 | AO97: =SUM(AO95:AO96) -> 4460082.176 | AP97: =SUM(AP95:AP96) -> 8997163.433
A98: Investment Tax Credit
A99: State | B99: 0 | C99: =I291+K291 -> 0 | D99: 0 | E99: 0 | F99: 0 | G99: 0 | H99: 0 | I99: 0 | J99: 0 | K99: 0 | L99: 0 | M99: 0 | N99: 0 | O99: 0 | P99: 0 | Q99: 0 | R99: 0 | S99: 0 | T99: 0 | U99: 0 | V99: 0 | W99: 0 | X99: 0 | Y99: 0 | Z99: 0 | AA99: 0 | AB99: 0 | AC99: 0 | AD99: 0 | AE99: 0 | AF99: 0 | AG99: 0 | AH99: 0 | AI99: 0 | AJ99: 0 | AK99: 0 | AL99: 0 | AM99: 0 | AN99: 0 | AO99: 0 | AP99: 0
A100: Federal | B100: 0 | C100: =I425+K425 -> 12105603.03 | D100: 0 | E100: 0 | F100: 0 | G100: 0 | H100: 0 | I100: 0 | J100: 0 | K100: 0 | L100: 0 | M100: 0 | N100: 0 | O100: 0 | P100: 0 | Q100: 0 | R100: 0 | S100: 0 | T100: 0 | U100: 0 | V100: 0 | W100: 0 | X100: 0 | Y100: 0 | Z100: 0 | AA100: 0 | AB100: 0 | AC100: 0 | AD100: 0 | AE100: 0 | AF100: 0 | AG100: 0 | AH100: 0 | AI100: 0 | AJ100: 0 | AK100: 0 | AL100: 0 | AM100: 0 | AN100: 0 | AO100: 0 | AP100: 0
A101: Total | B101: =SUM(B99:B100) -> 0 | C101: =SUM(C99:C100) -> 12105603.03 | D101: =SUM(D99:D100) -> 0 | E101: =SUM(E99:E100) -> 0 | F101: 0 | G101: 0 | H101: 0 | I101: 0 | J101: 0 | K101: 0 | L101: 0 | M101: 0 | N101: 0 | O101: 0 | P101: 0 | Q101: 0 | R101: 0 | S101: 0 | T101: 0 | U101: 0 | V101: 0 | W101: 0 | X101: 0 | Y101: 0 | Z101: 0 | AA101: 0 | AB101: 0 | AC101: 0 | AD101: 0 | AE101: 0 | AF101: 0 | AG101: 0 | AH101: 0 | AI101: 0 | AJ101: 0 | AK101: 0 | AL101: 0 | AM101: 0 | AN101: 0 | AO101: 0 | AP101: 0
A102: Production Tax Credit
A103: State | B103: =B555 -> 0 | C103: =C555 -> 0 | D103: 0 | E103: 0 | F103: 0 | G103: 0 | H103: =H555 -> 0 | I103: 0 | J103: 0 | K103: 0 | L103: 0 | M103: 0 | N103: 0 | O103: 0 | P103: 0 | Q103: 0 | R103: 0 | S103: 0 | T103: 0 | U103: 0 | V103: 0 | W103: 0 | X103: 0 | Y103: 0 | Z103: 0 | AA103: 0 | AB103: 0 | AC103: 0 | AD103: 0 | AE103: 0 | AF103: 0 | AG103: 0 | AH103: 0 | AI103: 0 | AJ103: 0 | AK103: 0 | AL103: 0 | AM103: 0 | AN103: 0 | AO103: 0 | AP103: =AP555 -> 0
A104: Federal | B104: =B561 -> 0 | C104: =C561 -> 0 | D104: 0 | E104: 0 | F104: 0 | G104: 0 | H104: =H561 -> 0 | I104: 0 | J104: 0 | K104: 0 | L104: 0 | M104: 0 | N104: 0 | O104: 0 | P104: 0 | Q104: 0 | R104: 0 | S104: 0 | T104: 0 | U104: 0 | V104: 0 | W104: 0 | X104: 0 | Y104: 0 | Z104: 0 | AA104: 0 | AB104: 0 | AC104: 0 | AD104: 0 | AE104: 0 | AF104: 0 | AG104: 0 | AH104: 0 | AI104: 0 | AJ104: 0 | AK104: 0 | AL104: 0 | AM104: 0 | AN104: 0 | AO104: 0 | AP104: =AP561 -> 0
A105: Total | B105: =SUM(B103:B104) -> 0 | C105: =SUM(C103:C104) -> 0 | D105: =SUM(D103:D104) -> 0 | E105: =SUM(E103:E104) -> 0 | F105: =SUM(F103:F104) -> 0 | G105: =SUM(G103:G104) -> 0 | H105: =SUM(H103:H104) -> 0 | I105: =SUM(I103:I104) -> 0 | J105: =SUM(J103:J104) -> 0 | K105: =SUM(K103:K104) -> 0 | L105: =SUM(L103:L104) -> 0 | M105: =SUM(M103:M104) -> 0 | N105: =SUM(N103:N104) -> 0 | O105: =SUM(O103:O104) -> 0 | P105: =SUM(P103:P104) -> 0 | Q105: =SUM(Q103:Q104) -> 0 | R105: =SUM(R103:R104) -> 0 | S105: =SUM(S103:S104) -> 0 | T105: =SUM(T103:T104) -> 0 | U105: =SUM(U103:U104) -> 0 | V105: =SUM(V103:V104) -> 0 | W105: =SUM(W103:W104) -> 0 | X105: =SUM(X103:X104) -> 0 | Y105: =SUM(Y103:Y104) -> 0 | Z105: =SUM(Z103:Z104) -> 0 | AA105: =SUM(AA103:AA104) -> 0 | AB105: =SUM(AB103:AB104) -> 0 | AC105: =SUM(AC103:AC104) -> 0 | AD105: =SUM(AD103:AD104) -> 0 | AE105: =SUM(AE103:AE104) -> 0 | AF105: =SUM(AF103:AF104) -> 0 | AG105: =SUM(AG103:AG104) -> 0 | AH105: =SUM(AH103:AH104) -> 0 | AI105: =SUM(AI103:AI104) -> 0 | AJ105: =SUM(AJ103:AJ104) -> 0 | AK105: =SUM(AK103:AK104) -> 0 | AL105: =SUM(AL103:AL104) -> 0 | AM105: =SUM(AM103:AM104) -> 0 | AN105: =SUM(AN103:AN104) -> 0 | AO105: =SUM(AO103:AO104) -> 0 | AP105: =SUM(AP103:AP104) -> 0
A106: Tax Benefit/(Liability)
A107: State | B107: =B239 -> 0 | C107: =C239 -> 276625.8698 | D107: =D239 -> 504163.4398 | E107: 256953.9569 | F107: 106003.7818 | G107: 99570.55443 | H107: =H239 -> -15919.56193 | I107: -131727.1575 | J107: -139250.0139 | K107: -147283.2375 | L107: -155908.8762 | M107: -165126.1155 | N107: -142633.7319 | O107: -130937.4865 | P107: -162945.7534 | Q107: -187454.2982 | R107: -202647.6333 | S107: -217318.487 | T107: -228388.8542 | U107: -230123.775 | V107: -231852.3792 | W107: -235444.6836 | X107: -238248.9002 | Y107: -239175.8434 | Z107: -201365.1417 | AA107: -175650.1546 | AB107: -201397.1947 | AC107: -217221.2088 | AD107: -218164.4379 | AE107: -230253.4143 | AF107: -242333.5067 | AG107: -243250.0775 | AH107: -244157.1765 | AI107: -245054.4992 | AJ107: -245941.7346 | AK107: -246818.5641 | AL107: -201377.9259 | AM107: -170397.0778 | AN107: -200539.3631 | AO107: -218815.3694 | AP107: -440706.6529
A108: Federal | B108: =B278 -> 0 | C108: =C278 -> 1663527.39 | D108: =D278 -> 3031855.595 | E108: 1545227.659 | F108: 637468.1966 | G108: 598781.1069 | H108: =H278 -> -95734.45652 | I108: -792159.2247 | J108: -837398.9471 | K108: -885707.833 | L108: -937579.2875 | M108: -993008.413 | N108: -857747.397 | O108: -787410.4304 | P108: -979896.5079 | Q108: -1127281.984 | R108: -1218649.177 | S108: -1306874.356 | T108: -1373447.519 | U108: -1383880.702 | V108: -1394275.899 | W108: -1415878.711 | X108: -1432742.25 | Y108: -1438316.549 | Z108: -1210936.738 | AA108: -1056296.157 | AB108: -1211129.494 | AC108: -1306289.36 | AD108: -1311961.597 | AE108: -1384660.305 | AF108: -1457305.588 | AG108: -1462817.512 | AH108: -1468272.475 | AI108: -1473668.648 | AJ108: -1479004.159 | AK108: -1484277.093 | AL108: -1211013.618 | AM108: -1024706.063 | AN108: -1205970.806 | AO108: -1315876.062 | AP108: -2650249.554
A109: Total | B109: =SUM(B107:B108) -> 0 | C109: =SUM(C107:C108) -> 1940153.26 | D109: =SUM(D107:D108) -> 3536019.035 | E109: =SUM(E107:E108) -> 1802181.616 | F109: =SUM(F107:F108) -> 743471.9784 | G109: =SUM(G107:G108) -> 698351.6613 | H109: =SUM(H107:H108) -> -111654.0185 | I109: =SUM(I107:I108) -> -923886.3823 | J109: =SUM(J107:J108) -> -976648.961 | K109: =SUM(K107:K108) -> -1032991.071 | L109: =SUM(L107:L108) -> -1093488.164 | M109: =SUM(M107:M108) -> -1158134.529 | N109: =SUM(N107:N108) -> -1000381.129 | O109: =SUM(O107:O108) -> -918347.917 | P109: =SUM(P107:P108) -> -1142842.261 | Q109: =SUM(Q107:Q108) -> -1314736.282 | R109: =SUM(R107:R108) -> -1421296.81 | S109: =SUM(S107:S108) -> -1524192.843 | T109: =SUM(T107:T108) -> -1601836.373 | U109: =SUM(U107:U108) -> -1614004.477 | V109: =SUM(V107:V108) -> -1626128.278 | W109: =SUM(W107:W108) -> -1651323.395 | X109: =SUM(X107:X108) -> -1670991.15 | Y109: =SUM(Y107:Y108) -> -1677492.393 | Z109: =SUM(Z107:Z108) -> -1412301.88 | AA109: =SUM(AA107:AA108) -> -1231946.312 | AB109: =SUM(AB107:AB108) -> -1412526.688 | AC109: =SUM(AC107:AC108) -> -1523510.569 | AD109: =SUM(AD107:AD108) -> -1530126.035 | AE109: =SUM(AE107:AE108) -> -1614913.719 | AF109: =SUM(AF107:AF108) -> -1699639.095 | AG109: =SUM(AG107:AG108) -> -1706067.589 | AH109: =SUM(AH107:AH108) -> -1712429.651 | AI109: =SUM(AI107:AI108) -> -1718723.147 | AJ109: =SUM(AJ107:AJ108) -> -1724945.893 | AK109: =SUM(AK107:AK108) -> -1731095.657 | AL109: =SUM(AL107:AL108) -> -1412391.544 | AM109: =SUM(AM107:AM108) -> -1195103.141 | AN109: =SUM(AN107:AN108) -> -1406510.169 | AO109: =SUM(AO107:AO108) -> -1534691.432 | AP109: =SUM(AP107:AP108) -> -3090956.207
A110: Total | B110: =B97+B101+B105+B109 -> -21934445.08 | C110: =C97+C101+C105+C109 -> 14971256.72 | D110: 4473104.539 | E110: 2750837.594 | F110: 1703683.092 | G110: 1670101.818 | H110: 871618.3142 | I110: 70890.46755 | J110: 29613.93583 | K110: -15261.42745 | L110: -64311.92545 | M110: -117532.7165 | N110: 69404.29899 | O110: 80746.00799 | P110: -131551.1568 | Q110: 1133874.477 | R110: 2449538.14 | S110: 2378289.796 | T110: 2332184.901 | U110: 2351442.322 | V110: 2370626.78 | W110: 2369452.947 | X110: 2366640.547 | Y110: 2376864.346 | Z110: 2658645.03 | AA110: 2736438.04 | AB110: 2573168.45 | AC110: 2479346.178 | AD110: 2489738.15 | AE110: 2421798.624 | AF110: 2353756.901 | AG110: 2363842.205 | AH110: 2373818.617 | AI110: 2383682.673 | AJ110: 2393430.829 | AK110: 2403059.461 | AL110: 2737343.469 | AM110: 3247145.935 | AN110: 3044764.117 | AO110: 2925390.744 | AP110: 5906207.227
A112: Cumulative IRR | B112: =ROUND(IF(ISERROR(IRR($B110:B110)),0,IRR($B110:B110)),4) -> 0 | C112: =ROUND(IF(ISERROR(IRR($B110:C110)),0,IRR($B110:C110)),4) -> -0.3175 | D112: =ROUND(IF(ISERROR(IRR($B110:D110)),0,IRR($B110:D110)),4) -> -0.0927 | E112: =ROUND(IF(ISERROR(IRR($B110:E110)),0,IRR($B110:E110)),4) -> 0.0082 | F112: =ROUND(IF(ISERROR(IRR($B110:F110)),0,IRR($B110:F110)),4) -> 0.0548 | G112: =ROUND(IF(ISERROR(IRR($B110:G110)),0,IRR($B110:G110)),4) -> 0.0895 | H112: =ROUND(IF(ISERROR(IRR($B110:H110)),0,IRR($B110:H110)),4) -> 0.1037 | I112: =ROUND(IF(ISERROR(IRR($B110:I110)),0,IRR($B110:I110)),4) -> 0.1046 | J112: =ROUND(IF(ISERROR(IRR($B110:J110)),0,IRR($B110:J110)),4) -> 0.105 | K112: =ROUND(IF(ISERROR(IRR($B110:K110)),0,IRR($B110:K110)),4) -> 0.1048 | L112: =ROUND(IF(ISERROR(IRR($B110:L110)),0,IRR($B110:L110)),4) -> 0.1042 | M112: =ROUND(IF(ISERROR(IRR($B110:M110)),0,IRR($B110:M110)),4) -> 0.1031 | N112: =ROUND(IF(ISERROR(IRR($B110:N110)),0,IRR($B110:N110)),4) -> 0.1037 | O112: =ROUND(IF(ISERROR(IRR($B110:O110)),0,IRR($B110:O110)),4) -> 0.1043 | P112: =ROUND(IF(ISERROR(IRR($B110:P110)),0,IRR($B110:P110)),4) -> 0.1034 | Q112: =ROUND(IF(ISERROR(IRR($B110:Q110)),0,IRR($B110:Q110)),4) -> 0.1101 | R112: =ROUND(IF(ISERROR(IRR($B110:R110)),0,IRR($B110:R110)),4) -> 0.1207 | S112: =ROUND(IF(ISERROR(IRR($B110:S110)),0,IRR($B110:S110)),4) -> 0.1281 | T112: =ROUND(IF(ISERROR(IRR($B110:T110)),0,IRR($B110:T110)),4) -> 0.1336 | U112: =ROUND(IF(ISERROR(IRR($B110:U110)),0,IRR($B110:U110)),4) -> 0.1379 | V112: =ROUND(IF(ISERROR(IRR($B110:V110)),0,IRR($B110:V110)),4) -> 0.1414 | W112: =ROUND(IF(ISERROR(IRR($B110:W110)),0,IRR($B110:W110)),4) -> 0.1442 | X112: =ROUND(IF(ISERROR(IRR($B110:X110)),0,IRR($B110:X110)),4) -> 0.1464 | Y112: =ROUND(IF(ISERROR(IRR($B110:Y110)),0,IRR($B110:Y110)),4) -> 0.1483 | Z112: =ROUND(IF(ISERROR(IRR($B110:Z110)),0,IRR($B110:Z110)),4) -> 0.15 | AA112: =ROUND(IF(ISERROR(IRR($B110:AA110)),0,IRR($B110:AA110)),4) -> 0.1514 | AB112: =ROUND(IF(ISERROR(IRR($B110:AB110)),0,IRR($B110:AB110)),4) -> 0.1526 | AC112: =ROUND(IF(ISERROR(IRR($B110:AC110)),0,IRR($B110:AC110)),4) -> 0.1535 | AD112: =ROUND(IF(ISERROR(IRR($B110:AD110)),0,IRR($B110:AD110)),4) -> 0.1542 | AE112: =ROUND(IF(ISERROR(IRR($B110:AE110)),0,IRR($B110:AE110)),4) -> 0.1549 | AF112: =ROUND(IF(ISERROR(IRR($B110:AF110)),0,IRR($B110:AF110)),4) -> 0.1554 | AG112: =ROUND(IF(ISERROR(IRR($B110:AG110)),0,IRR($B110:AG110)),4) -> 0.1558 | AH112: =ROUND(IF(ISERROR(IRR($B110:AH110)),0,IRR($B110:AH110)),4) -> 0.1562 | AI112: =ROUND(IF(ISERROR(IRR($B110:AI110)),0,IRR($B110:AI110)),4) -> 0.1565 | AJ112: =ROUND(IF(ISERROR(IRR($B110:AJ110)),0,IRR($B110:AJ110)),4) -> 0.1568 | AK112: =ROUND(IF(ISERROR(IRR($B110:AK110)),0,IRR($B110:AK110)),4) -> 0.1571 | AL112: =ROUND(IF(ISERROR(IRR($B110:AL110)),0,IRR($B110:AL110)),4) -> 0.1573 | AM112: =ROUND(IF(ISERROR(IRR($B110:AM110)),0,IRR($B110:AM110)),4) -> 0.1575 | AN112: =ROUND(IF(ISERROR(IRR($B110:AN110)),0,IRR($B110:AN110)),4) -> 0.1577 | AO112: =ROUND(IF(ISERROR(IRR($B110:AO110)),0,IRR($B110:AO110)),4) -> 0.1579 | AP112: =ROUND(IF(ISERROR(IRR($B110:AP110)),0,IRR($B110:AP110)),4) -> 0.1581
A113: Cumulative NPV | B113: =B110 -> -21934445.08 | C113: =NPV(DiscountRate,$C110:C110)+$B110 -> -8072170.338 | D113: =NPV(DiscountRate,$C110:D110)+$B110 -> -4237204.17 | E113: =NPV(DiscountRate,$C110:E110)+$B110 -> -2053500.598 | F113: =NPV(DiscountRate,$C110:F110)+$B110 -> -801242.6658 | G113: =NPV(DiscountRate,$C110:G110)+$B110 -> 335400.5688 | H113: =NPV(DiscountRate,$C110:H110)+$B110 -> 884667.9566 | I113: =NPV(DiscountRate,$C110:I110)+$B110 -> 926031.8635 | J113: =NPV(DiscountRate,$C110:J110)+$B110 -> 942031.3516 | K113: =NPV(DiscountRate,$C110:K110)+$B110 -> 934396.8383 | L113: =NPV(DiscountRate,$C110:L110)+$B110 -> 904607.9732 | M113: =NPV(DiscountRate,$C110:M110)+$B110 -> 854200.2057 | N113: =NPV(DiscountRate,$C110:N110)+$B110 -> 881761.6077 | O113: =NPV(DiscountRate,$C110:O110)+$B110 -> 911451.7473 | P113: =NPV(DiscountRate,$C110:P110)+$B110 -> 866663.7035 | Q113: =NPV(DiscountRate,$C110:Q110)+$B110 -> 1224108.227 | R113: =NPV(DiscountRate,$C110:R110)+$B110 -> 1939105.06 | S113: =NPV(DiscountRate,$C110:S110)+$B110 -> 2581882.949 | T113: =NPV(DiscountRate,$C110:T110)+$B110 -> 3165509.957 | U113: =NPV(DiscountRate,$C110:U110)+$B110 -> 3710367.51 | V113: =NPV(DiscountRate,$C110:V110)+$B110 -> 4218981.236 | W113: =NPV(DiscountRate,$C110:W110)+$B110 -> 4689686.683 | X113: =NPV(DiscountRate,$C110:X110)+$B110 -> 5125007.745 | Y113: =NPV(DiscountRate,$C110:Y110)+$B110 -> 5529824.072 | Z113: =NPV(DiscountRate,$C110:Z110)+$B110 -> 5949090.631 | AA113: =NPV(DiscountRate,$C110:AA110)+$B110 -> 6348659.581 | AB113: =NPV(DiscountRate,$C110:AB110)+$B110 -> 6696556.494 | AC113: =NPV(DiscountRate,$C110:AC110)+$B110 -> 7006937.954 | AD113: =NPV(DiscountRate,$C110:AD110)+$B110 -> 7295532.766 | AE113: =NPV(DiscountRate,$C110:AE110)+$B110 -> 7555458.404 | AF113: =NPV(DiscountRate,$C110:AF110)+$B110 -> 7789368.486 | AG113: =NPV(DiscountRate,$C110:AG110)+$B110 -> 8006879.906 | AH113: =NPV(DiscountRate,$C110:AH110)+$B110 -> 8209129.359 | AI113: =NPV(DiscountRate,$C110:AI110)+$B110 -> 8397175.536 | AJ113: =NPV(DiscountRate,$C110:AJ110)+$B110 -> 8572004.423 | AK113: =NPV(DiscountRate,$C110:AK110)+$B110 -> 8734534.251 | AL113: =NPV(DiscountRate,$C110:AL110)+$B110 -> 8905959.227 | AM113: =NPV(DiscountRate,$C110:AM110)+$B110 -> 9094247.319 | AN113: =NPV(DiscountRate,$C110:AN110)+$B110 -> 9257722.168 | AO113: =NPV(DiscountRate,$C110:AO110)+$B110 -> 9403153.311 | AP113: =NPV(DiscountRate,$C110:AP110)+$B110 -> 9675021.542
A115: Negative Net Benefit
A116: Years with Negative Net Benefit | B116: =SUM(C116:AP116) -> 4 | C116: =IF(C110<0,1,0) -> 0 | D116: =IF(D110<0,1,0) -> 0 | E116: 0 | F116: 0 | G116: 0 | H116: 0 | I116: 0 | J116: 0 | K116: 1 | L116: 1 | M116: 1 | N116: 0 | O116: 0 | P116: 1 | Q116: 0 | R116: 0 | S116: 0 | T116: 0 | U116: 0 | V116: 0 | W116: 0 | X116: 0 | Y116: 0 | Z116: 0 | AA116: 0 | AB116: 0 | AC116: 0 | AD116: 0 | AE116: 0 | AF116: 0 | AG116: 0 | AH116: 0 | AI116: 0 | AJ116: 0 | AK116: 0 | AL116: 0 | AM116: 0 | AN116: 0 | AO116: 0 | AP116: 0
A117: First Year with Negative Net Benefit | B117: =IF(B116>0,SUM(C117:AP117),"N/A") -> 23 | C117: =IF(AND(B110>=0,C110<0),C$2,0) -> 0 | D117: =IF(AND(C110>=0,D110<0),D$2,0) -> 0 | E117: 0 | F117: 0 | G117: 0 | H117: 0 | I117: 0 | J117: 0 | K117: 9 | L117: 0 | M117: 0 | N117: 0 | O117: 0 | P117: 14 | Q117: 0 | R117: 0 | S117: 0 | T117: 0 | U117: 0 | V117: 0 | W117: 0 | X117: 0 | Y117: 0 | Z117: 0 | AA117: 0 | AB117: 0 | AC117: 0 | AD117: 0 | AE117: 0 | AF117: 0 | AG117: 0 | AH117: 0 | AI117: 0 | AJ117: 0 | AK117: 0 | AL117: 0 | AM117: 0 | AN117: 0 | AO117: 0 | AP117: 0
A119: LCOE
A120: Annual PPA Revenue | B120: =SUM(C120:AP120) -> 198754467 | C120: =C12 -> 4505414.887 | D120: 4527716.691 | E120: 4550128.888 | F120: 4572652.026 | G120: 4595286.654 | H120: 4618033.323 | I120: 4640892.588 | J120: 4663865.006 | K120: 4686951.138 | L120: 4710151.546 | M120: 4733466.796 | N120: 4756897.457 | O120: 4780444.099 | P120: 4804107.297 | Q120: 4827887.629 | R120: 4851785.672 | S120: 4875802.011 | T120: 4899937.231 | U120: 4924191.921 | V120: 4948566.671 | W120: 4973062.076 | X120: 4997678.733 | Y120: 5022417.243 | Z120: 5047278.208 | AA120: 5072262.235 | AB120: 5097369.933 | AC120: 5122601.914 | AD120: 5147958.794 | AE120: 5173441.19 | AF120: 5199049.724 | AG120: 5224785.02 | AH120: 5250647.706 | AI120: 5276638.412 | AJ120: 5302757.772 | AK120: 5329006.423 | AL120: 5355385.005 | AM120: 5381894.161 | AN120: 5408534.537 | AO120: 5435306.783 | AP120: 5462211.551
A121: Generation (kWh) | B121: =SUM(C121:AP121) -> 588224217.4 | C121: =C5 -> 16188480 | D121: 16107537.6 | E121: 16026999.91 | F121: 15946864.91 | G121: 15867130.59 | H121: 15787794.93 | I121: 15708855.96 | J121: 15630311.68 | K121: 15552160.12 | L121: 15474399.32 | M121: 15397027.32 | N121: 15320042.19 | O121: 15243441.98 | P121: 15167224.77 | Q121: 15091388.64 | R121: 15015931.7 | S121: 14940852.04 | T121: 14866147.78 | U121: 14791817.04 | V121: 14717857.96 | W121: 14644268.67 | X121: 14571047.32 | Y121: 14498192.09 | Z121: 14425701.13 | AA121: 14353572.62 | AB121: 14281804.76 | AC121: 14210395.73 | AD121: 14139343.76 | AE121: 14068647.04 | AF121: 13998303.8 | AG121: 13928312.28 | AH121: 13858670.72 | AI121: 13789377.37 | AJ121: 13720430.48 | AK121: 13651828.33 | AL121: 13583569.19 | AM121: 13515651.34 | AN121: 13448073.08 | AO121: 13380832.72 | AP121: 13313928.56
A123: NPV - Annual Payments ($) | B123: =NPV(DiscountRate,C120:AP120) -> 56665417.85
A124: NPV - Generation (kWh) | B124: =NPV(DiscountRate,C121:AP121) -> 183278725.9
A125: LCOE ($/kWh) | B125: =B123/B124 -> 0.3091761881
A127: Partner Returns
A128: Tax Investor: Pre-Tax
A129: Equity Investment | B129: =B138 -> -21495756.17 | C129: =C138 -> 0 | D129: 0 | E129: 0 | F129: 0 | G129: 0 | H129: 0 | I129: 0 | J129: 0 | K129: 0 | L129: 0 | M129: 0 | N129: 0 | O129: 0 | P129: 0 | Q129: 0 | R129: 0 | S129: 0 | T129: 0 | U129: 0 | V129: 0 | W129: 0 | X129: 0 | Y129: 0 | Z129: 0 | AA129: 0 | AB129: 0 | AC129: 0 | AD129: 0 | AE129: 0 | AF129: 0 | AG129: 0 | AH129: 0 | AI129: 0 | AJ129: 0 | AK129: 0 | AL129: 0 | AM129: 0 | AN129: 0 | AO129: 0 | AP129: 0
A130: Operating Cash Distributions/(Contributions) | B130: =B139 -> 0 | C130: =C139 -> 906990.4225 | D130: 918343.7941 | E130: 929682.8581 | F130: 941006.8913 | G130: 952315.1534 | H130: 963606.886 | I130: 974881.3128 | J130: 986137.6389 | K130: 101772.9643 | L130: 102917.6238 | M130: 104060.1812 | N130: 106978.5428 | O130: 99909.39249 | P130: 101129.1105 | Q130: 244861.0759 | R130: 387083.4951 | S130: 390248.2639 | T130: 393402.1274 | U130: 396544.6798 | V130: 399675.5058 | W130: 402077.6342 | X130: 403763.1697 | Y130: 405435.6738 | Z130: 407094.691 | AA130: 396838.4352 | AB130: 398569.5138 | AC130: 400285.6747 | AD130: 401986.4185 | AE130: 403671.2343 | AF130: 405339.5996 | AG130: 406990.9794 | AH130: 408624.8268 | AI130: 410240.582 | AJ130: 411837.6722 | AK130: 413415.5118 | AL130: 414973.5013 | AM130: 444224.9076 | AN130: 445127.4286 | AO130: 446008.2176 | AP130: 899716.3433
A131: Total | B131: =SUM(B129:B130) -> -21495756.17 | C131: =SUM(C129:C130) -> 906990.4225 | D131: =SUM(D129:D130) -> 918343.7941 | E131: =SUM(E129:E130) -> 929682.8581 | F131: =SUM(F129:F130) -> 941006.8913 | G131: =SUM(G129:G130) -> 952315.1534 | H131: =SUM(H129:H130) -> 963606.886 | I131: =SUM(I129:I130) -> 974881.3128 | J131: =SUM(J129:J130) -> 986137.6389 | K131: =SUM(K129:K130) -> 101772.9643 | L131: =SUM(L129:L130) -> 102917.6238 | M131: =SUM(M129:M130) -> 104060.1812 | N131: =SUM(N129:N130) -> 106978.5428 | O131: =SUM(O129:O130) -> 99909.39249 | P131: =SUM(P129:P130) -> 101129.1105 | Q131: =SUM(Q129:Q130) -> 244861.0759 | R131: =SUM(R129:R130) -> 387083.4951 | S131: =SUM(S129:S130) -> 390248.2639 | T131: =SUM(T129:T130) -> 393402.1274 | U131: =SUM(U129:U130) -> 396544.6798 | V131: =SUM(V129:V130) -> 399675.5058 | W131: =SUM(W129:W130) -> 402077.6342 | X131: =SUM(X129:X130) -> 403763.1697 | Y131: =SUM(Y129:Y130) -> 405435.6738 | Z131: =SUM(Z129:Z130) -> 407094.691 | AA131: =SUM(AA129:AA130) -> 396838.4352 | AB131: =SUM(AB129:AB130) -> 398569.5138 | AC131: =SUM(AC129:AC130) -> 400285.6747 | AD131: =SUM(AD129:AD130) -> 401986.4185 | AE131: =SUM(AE129:AE130) -> 403671.2343 | AF131: =SUM(AF129:AF130) -> 405339.5996 | AG131: =SUM(AG129:AG130) -> 406990.9794 | AH131: =SUM(AH129:AH130) -> 408624.8268 | AI131: =SUM(AI129:AI130) -> 410240.582 | AJ131: =SUM(AJ129:AJ130) -> 411837.6722 | AK131: =SUM(AK129:AK130) -> 413415.5118 | AL131: =SUM(AL129:AL130) -> 414973.5013 | AM131: =SUM(AM129:AM130) -> 444224.9076 | AN131: =SUM(AN129:AN130) -> 445127.4286 | AO131: =SUM(AO129:AO130) -> 446008.2176 | AP131: =SUM(AP129:AP130) -> 899716.3433
A133: Cumulative IRR | B133: =ROUND(IF(ISERROR(IRR($B131:B131)),0,IRR($B131:B131)),4) -> 0 | C133: =ROUND(IF(ISERROR(IRR($B131:C131)),0,IRR($B131:C131)),4) -> -0.9578 | D133: =ROUND(IF(ISERROR(IRR($B131:D131)),0,IRR($B131:D131)),4) -> -0.7711 | E133: =ROUND(IF(ISERROR(IRR($B131:E131)),0,IRR($B131:E131)),4) -> -0.5925 | F133: =ROUND(IF(ISERROR(IRR($B131:F131)),0,IRR($B131:F131)),4) -> -0.4576 | G133: =ROUND(IF(ISERROR(IRR($B131:G131)),0,IRR($B131:G131)),4) -> -0.3585 | H133: =ROUND(IF(ISERROR(IRR($B131:H131)),0,IRR($B131:H131)),4) -> -0.2848 | I133: =ROUND(IF(ISERROR(IRR($B131:I131)),0,IRR($B131:I131)),4) -> -0.2289 | J133: =ROUND(IF(ISERROR(IRR($B131:J131)),0,IRR($B131:J131)),4) -> -0.1854 | K133: =ROUND(IF(ISERROR(IRR($B131:K131)),0,IRR($B131:K131)),4) -> -0.1812 | L133: =ROUND(IF(ISERROR(IRR($B131:L131)),0,IRR($B131:L131)),4) -> -0.1763 | M133: =ROUND(IF(ISERROR(IRR($B131:M131)),0,IRR($B131:M131)),4) -> -0.1707 | N133: =ROUND(IF(ISERROR(IRR($B131:N131)),0,IRR($B131:N131)),4) -> -0.1645 | O133: =ROUND(IF(ISERROR(IRR($B131:O131)),0,IRR($B131:O131)),4) -> -0.1584 | P133: =ROUND(IF(ISERROR(IRR($B131:P131)),0,IRR($B131:P131)),4) -> -0.152 | Q133: =ROUND(IF(ISERROR(IRR($B131:Q131)),0,IRR($B131:Q131)),4) -> -0.1376 | R133: =ROUND(IF(ISERROR(IRR($B131:R131)),0,IRR($B131:R131)),4) -> -0.1197 | S133: =ROUND(IF(ISERROR(IRR($B131:S131)),0,IRR($B131:S131)),4) -> -0.1056 | T133: =ROUND(IF(ISERROR(IRR($B131:T131)),0,IRR($B131:T131)),4) -> -0.094 | U133: =ROUND(IF(ISERROR(IRR($B131:U131)),0,IRR($B131:U131)),4) -> -0.0841 | V133: =ROUND(IF(ISERROR(IRR($B131:V131)),0,IRR($B131:V131)),4) -> -0.0756 | W133: =ROUND(IF(ISERROR(IRR($B131:W131)),0,IRR($B131:W131)),4) -> -0.0681 | X133: =ROUND(IF(ISERROR(IRR($B131:X131)),0,IRR($B131:X131)),4) -> -0.0615 | Y133: =ROUND(IF(ISERROR(IRR($B131:Y131)),0,IRR($B131:Y131)),4) -> -0.0556 | Z133: =ROUND(IF(ISERROR(IRR($B131:Z131)),0,IRR($B131:Z131)),4) -> -0.0504 | AA133: =ROUND(IF(ISERROR(IRR($B131:AA131)),0,IRR($B131:AA131)),4) -> -0.0457 | AB133: =ROUND(IF(ISERROR(IRR($B131:AB131)),0,IRR($B131:AB131)),4) -> -0.0416 | AC133: =ROUND(IF(ISERROR(IRR($B131:AC131)),0,IRR($B131:AC131)),4) -> -0.0377 | AD133: =ROUND(IF(ISERROR(IRR($B131:AD131)),0,IRR($B131:AD131)),4) -> -0.0342 | AE133: =ROUND(IF(ISERROR(IRR($B131:AE131)),0,IRR($B131:AE131)),4) -> -0.031 | AF133: =ROUND(IF(ISERROR(IRR($B131:AF131)),0,IRR($B131:AF131)),4) -> -0.028 | AG133: =ROUND(IF(ISERROR(IRR($B131:AG131)),0,IRR($B131:AG131)),4) -> -0.0253 | AH133: =ROUND(IF(ISERROR(IRR($B131:AH131)),0,IRR($B131:AH131)),4) -> -0.0228 | AI133: =ROUND(IF(ISERROR(IRR($B131:AI131)),0,IRR($B131:AI131)),4) -> -0.0204 | AJ133: =ROUND(IF(ISERROR(IRR($B131:AJ131)),0,IRR($B131:AJ131)),4) -> -0.0182 | AK133: =ROUND(IF(ISERROR(IRR($B131:AK131)),0,IRR($B131:AK131)),4) -> -0.0162 | AL133: =ROUND(IF(ISERROR(IRR($B131:AL131)),0,IRR($B131:AL131)),4) -> -0.0143 | AM133: =ROUND(IF(ISERROR(IRR($B131:AM131)),0,IRR($B131:AM131)),4) -> -0.0124 | AN133: =ROUND(IF(ISERROR(IRR($B131:AN131)),0,IRR($B131:AN131)),4) -> -0.0107 | AO133: =ROUND(IF(ISERROR(IRR($B131:AO131)),0,IRR($B131:AO131)),4) -> -0.0091 | AP133: =ROUND(IF(ISERROR(IRR($B131:AP131)),0,IRR($B131:AP131)),4) -> -0.0061
A134: Cumulative NPV | B134: =B131 -> -21495756.17 | C134: =NPV(DiscountRate,$C131:C131)+$B$131 -> -20655950.23 | D134: =NPV(DiscountRate,$C131:D131)+$B$131 -> -19868618.44 | E134: =NPV(DiscountRate,$C131:E131)+$B$131 -> -19130606.22 | F134: =NPV(DiscountRate,$C131:F131)+$B$131 -> -18438938.06 | G134: =NPV(DiscountRate,$C131:G131)+$B$131 -> -17790808.37 | H134: =NPV(DiscountRate,$C131:H131)+$B$131 -> -17183572.57 | I134: =NPV(DiscountRate,$C131:I131)+$B$131 -> -16614738.69 | J134: =NPV(DiscountRate,$C131:J131)+$B$131 -> -16081959.21 | K134: =NPV(DiscountRate,$C131:K131)+$B$131 -> -16031047.39 | L134: =NPV(DiscountRate,$C131:L131)+$B$131 -> -15983376.62 | M134: =NPV(DiscountRate,$C131:M131)+$B$131 -> -15938746.99 | N134: =NPV(DiscountRate,$C131:N131)+$B$131 -> -15896264.34 | O134: =NPV(DiscountRate,$C131:O131)+$B$131 -> -15859527.86 | P134: =NPV(DiscountRate,$C131:P131)+$B$131 -> -15825097.34 | Q134: =NPV(DiscountRate,$C131:Q131)+$B$131 -> -15747906.92 | R134: =NPV(DiscountRate,$C131:R131)+$B$131 -> -15634920.93 | S134: =NPV(DiscountRate,$C131:S131)+$B$131 -> -15529448.94 | T134: =NPV(DiscountRate,$C131:T131)+$B$131 -> -15431000.44 | U134: =NPV(DiscountRate,$C131:U131)+$B$131 -> -15339116.26 | V134: =NPV(DiscountRate,$C131:V131)+$B$131 -> -15253366.59 | W134: =NPV(DiscountRate,$C131:W131)+$B$131 -> -15173491.56 | X134: =NPV(DiscountRate,$C131:X131)+$B$131 -> -15099223.16 | Y134: =NPV(DiscountRate,$C131:Y131)+$B$131 -> -15030171.27 | Z134: =NPV(DiscountRate,$C131:Z131)+$B$131 -> -14965972.7 | AA134: =NPV(DiscountRate,$C131:AA131)+$B$131 -> -14908027.19 | AB134: =NPV(DiscountRate,$C131:AB131)+$B$131 -> -14854139.89 | AC134: =NPV(DiscountRate,$C131:AC131)+$B$131 -> -14804029.4 | AD134: =NPV(DiscountRate,$C131:AD131)+$B$131 -> -14757433.65 | AE134: =NPV(DiscountRate,$C131:AE131)+$B$131 -> -14714108.62 | AF134: =NPV(DiscountRate,$C131:AF131)+$B$131 -> -14673827.05 | AG134: =NPV(DiscountRate,$C131:AG131)+$B$131 -> -14636377.35 | AH134: =NPV(DiscountRate,$C131:AH131)+$B$131 -> -14601562.5 | AI134: =NPV(DiscountRate,$C131:AI131)+$B$131 -> -14569199.06 | AJ134: =NPV(DiscountRate,$C131:AJ131)+$B$131 -> -14539116.25 | AK134: =NPV(DiscountRate,$C131:AK131)+$B$131 -> -14511155.08 | AL134: =NPV(DiscountRate,$C131:AL131)+$B$131 -> -14485167.54 | AM134: =NPV(DiscountRate,$C131:AM131)+$B$131 -> -14459408.84 | AN134: =NPV(DiscountRate,$C131:AN131)+$B$131 -> -14435509.73 | AO134: =NPV(DiscountRate,$C131:AO131)+$B$131 -> -14413337.15 | AP134: =NPV(DiscountRate,$C131:AP131)+$B$131 -> -14371922.36
A136: Tax Investor: After-Tax
A137: Cash
A138: Equity Investment | B138: =-'Inputs & Results'!$C$210 -> -21495756.17 | C138: 0 | D138: 0 | E138: 0 | F138: 0 | G138: 0 | H138: 0 | I138: 0 | J138: 0 | K138: 0 | L138: 0 | M138: 0 | N138: 0 | O138: 0 | P138: 0 | Q138: 0 | R138: 0 | S138: 0 | T138: 0 | U138: 0 | V138: 0 | W138: 0 | X138: 0 | Y138: 0 | Z138: 0 | AA138: 0 | AB138: 0 | AC138: 0 | AD138: 0 | AE138: 0 | AF138: 0 | AG138: 0 | AH138: 0 | AI138: 0 | AJ138: 0 | AK138: 0 | AL138: 0 | AM138: 0 | AN138: 0 | AO138: 0 | AP138: 0
A139: Operating Cash Distributions/(Contributions) | B139: 0 | C139: =IF(B$156<LPFFlipTarget,LPFTEPreFlipCash*C96,LPFTEPostFlipCash*C96) -> 906990.4225 | D139: 918343.7941 | E139: 929682.8581 | F139: 941006.8913 | G139: 952315.1534 | H139: 963606.886 | I139: 974881.3128 | J139: 986137.6389 | K139: 101772.9643 | L139: 102917.6238 | M139: 104060.1812 | N139: 106978.5428 | O139: 99909.39249 | P139: 101129.1105 | Q139: 244861.0759 | R139: 387083.4951 | S139: 390248.2639 | T139: 393402.1274 | U139: 396544.6798 | V139: 399675.5058 | W139: 402077.6342 | X139: 403763.1697 | Y139: 405435.6738 | Z139: 407094.691 | AA139: 396838.4352 | AB139: 398569.5138 | AC139: 400285.6747 | AD139: 401986.4185 | AE139: 403671.2343 | AF139: 405339.5996 | AG139: 406990.9794 | AH139: 408624.8268 | AI139: 410240.582 | AJ139: 411837.6722 | AK139: 413415.5118 | AL139: 414973.5013 | AM139: 444224.9076 | AN139: 445127.4286 | AO139: 446008.2176 | AP139: 899716.3433
A140: Total | B140: =SUM(B138:B139) -> -21495756.17 | C140: =SUM(C138:C139) -> 906990.4225 | D140: =SUM(D138:D139) -> 918343.7941 | E140: =SUM(E138:E139) -> 929682.8581 | F140: =SUM(F138:F139) -> 941006.8913 | G140: =SUM(G138:G139) -> 952315.1534 | H140: =SUM(H138:H139) -> 963606.886 | I140: =SUM(I138:I139) -> 974881.3128 | J140: =SUM(J138:J139) -> 986137.6389 | K140: =SUM(K138:K139) -> 101772.9643 | L140: =SUM(L138:L139) -> 102917.6238 | M140: =SUM(M138:M139) -> 104060.1812 | N140: =SUM(N138:N139) -> 106978.5428 | O140: =SUM(O138:O139) -> 99909.39249 | P140: =SUM(P138:P139) -> 101129.1105 | Q140: =SUM(Q138:Q139) -> 244861.0759 | R140: =SUM(R138:R139) -> 387083.4951 | S140: =SUM(S138:S139) -> 390248.2639 | T140: =SUM(T138:T139) -> 393402.1274 | U140: =SUM(U138:U139) -> 396544.6798 | V140: =SUM(V138:V139) -> 399675.5058 | W140: =SUM(W138:W139) -> 402077.6342 | X140: =SUM(X138:X139) -> 403763.1697 | Y140: =SUM(Y138:Y139) -> 405435.6738 | Z140: =SUM(Z138:Z139) -> 407094.691 | AA140: =SUM(AA138:AA139) -> 396838.4352 | AB140: =SUM(AB138:AB139) -> 398569.5138 | AC140: =SUM(AC138:AC139) -> 400285.6747 | AD140: =SUM(AD138:AD139) -> 401986.4185 | AE140: =SUM(AE138:AE139) -> 403671.2343 | AF140: =SUM(AF138:AF139) -> 405339.5996 | AG140: =SUM(AG138:AG139) -> 406990.9794 | AH140: =SUM(AH138:AH139) -> 408624.8268 | AI140: =SUM(AI138:AI139) -> 410240.582 | AJ140: =SUM(AJ138:AJ139) -> 411837.6722 | AK140: =SUM(AK138:AK139) -> 413415.5118 | AL140: =SUM(AL138:AL139) -> 414973.5013 | AM140: =SUM(AM138:AM139) -> 444224.9076 | AN140: =SUM(AN138:AN139) -> 445127.4286 | AO140: =SUM(AO138:AO139) -> 446008.2176 | AP140: =SUM(AP138:AP139) -> 899716.3433
A141: Investment Tax Credit
A142: State | B142: 0 | C142: =IF(B$156<LPFFlipTarget,LPFTEPreFlipTax*C99,LPFTEPostFlipTax*C99) -> 0 | D142: 0 | E142: 0 | F142: 0 | G142: 0 | H142: 0 | I142: 0 | J142: 0 | K142: 0 | L142: 0 | M142: 0 | N142: 0 | O142: 0 | P142: 0 | Q142: 0 | R142: 0 | S142: 0 | T142: 0 | U142: 0 | V142: 0 | W142: 0 | X142: 0 | Y142: 0 | Z142: 0 | AA142: 0 | AB142: 0 | AC142: 0 | AD142: 0 | AE142: 0 | AF142: 0 | AG142: 0 | AH142: 0 | AI142: 0 | AJ142: 0 | AK142: 0 | AL142: 0 | AM142: 0 | AN142: 0 | AO142: 0 | AP142: 0
A143: Federal | B143: 0 | C143: =IF(B$156<LPFFlipTarget,LPFTEPreFlipTax*C100,LPFTEPostFlipTax*C100) -> 11863490.96 | D143: 0 | E143: 0 | F143: 0 | G143: 0 | H143: 0 | I143: 0 | J143: 0 | K143: 0 | L143: 0 | M143: 0 | N143: 0 | O143: 0 | P143: 0 | Q143: 0 | R143: 0 | S143: 0 | T143: 0 | U143: 0 | V143: 0 | W143: 0 | X143: 0 | Y143: 0 | Z143: 0 | AA143: 0 | AB143: 0 | AC143: 0 | AD143: 0 | AE143: 0 | AF143: 0 | AG143: 0 | AH143: 0 | AI143: 0 | AJ143: 0 | AK143: 0 | AL143: 0 | AM143: 0 | AN143: 0 | AO143: 0 | AP143: 0
A144: Total | B144: =SUM(B142:B143) -> 0 | C144: =SUM(C142:C143) -> 11863490.96 | D144: =SUM(D142:D143) -> 0 | E144: =SUM(E142:E143) -> 0 | F144: =SUM(F142:F143) -> 0 | G144: =SUM(G142:G143) -> 0 | H144: =SUM(H142:H143) -> 0 | I144: =SUM(I142:I143) -> 0 | J144: =SUM(J142:J143) -> 0 | K144: =SUM(K142:K143) -> 0 | L144: =SUM(L142:L143) -> 0 | M144: =SUM(M142:M143) -> 0 | N144: =SUM(N142:N143) -> 0 | O144: =SUM(O142:O143) -> 0 | P144: =SUM(P142:P143) -> 0 | Q144: =SUM(Q142:Q143) -> 0 | R144: =SUM(R142:R143) -> 0 | S144: =SUM(S142:S143) -> 0 | T144: =SUM(T142:T143) -> 0 | U144: =SUM(U142:U143) -> 0 | V144: =SUM(V142:V143) -> 0 | W144: =SUM(W142:W143) -> 0 | X144: =SUM(X142:X143) -> 0 | Y144: =SUM(Y142:Y143) -> 0 | Z144: =SUM(Z142:Z143) -> 0 | AA144: =SUM(AA142:AA143) -> 0 | AB144: =SUM(AB142:AB143) -> 0 | AC144: =SUM(AC142:AC143) -> 0 | AD144: =SUM(AD142:AD143) -> 0 | AE144: =SUM(AE142:AE143) -> 0 | AF144: =SUM(AF142:AF143) -> 0 | AG144: =SUM(AG142:AG143) -> 0 | AH144: =SUM(AH142:AH143) -> 0 | AI144: =SUM(AI142:AI143) -> 0 | AJ144: =SUM(AJ142:AJ143) -> 0 | AK144: =SUM(AK142:AK143) -> 0 | AL144: =SUM(AL142:AL143) -> 0 | AM144: =SUM(AM142:AM143) -> 0 | AN144: =SUM(AN142:AN143) -> 0 | AO144: =SUM(AO142:AO143) -> 0 | AP144: =SUM(AP142:AP143) -> 0
A145: Production Tax Credit
A146: State | B146: =B579 -> 0 | C146: =IF(B$156<LPFFlipTarget,LPFTEPreFlipTax*C103,LPFTEPostFlipTax*C103) -> 0 | D146: 0 | E146: 0 | F146: 0 | G146: 0 | H146: 0 | I146: 0 | J146: 0 | K146: 0 | L146: 0 | M146: 0 | N146: 0 | O146: 0 | P146: 0 | Q146: 0 | R146: 0 | S146: 0 | T146: 0 | U146: 0 | V146: 0 | W146: 0 | X146: 0 | Y146: 0 | Z146: 0 | AA146: 0 | AB146: 0 | AC146: 0 | AD146: 0 | AE146: 0 | AF146: 0 | AG146: 0 | AH146: 0 | AI146: 0 | AJ146: 0 | AK146: 0 | AL146: 0 | AM146: 0 | AN146: 0 | AO146: 0 | AP146: 0
A147: Federal | B147: =B585 -> 0 | C147: =IF(B$156<LPFFlipTarget,LPFTEPreFlipTax*C104,LPFTEPostFlipTax*C104) -> 0 | D147: 0 | E147: 0 | F147: 0 | G147: 0 | H147: 0 | I147: 0 | J147: 0 | K147: 0 | L147: 0 | M147: 0 | N147: 0 | O147: 0 | P147: 0 | Q147: 0 | R147: 0 | S147: 0 | T147: 0 | U147: 0 | V147: 0 | W147: 0 | X147: 0 | Y147: 0 | Z147: 0 | AA147: 0 | AB147: 0 | AC147: 0 | AD147: 0 | AE147: 0 | AF147: 0 | AG147: 0 | AH147: 0 | AI147: 0 | AJ147: 0 | AK147: 0 | AL147: 0 | AM147: 0 | AN147: 0 | AO147: 0 | AP147: 0
A148: Total | B148: =SUM(B146:B147) -> 0 | C148: =SUM(C146:C147) -> 0 | D148: =SUM(D146:D147) -> 0 | E148: =SUM(E146:E147) -> 0 | F148: =SUM(F146:F147) -> 0 | G148: =SUM(G146:G147) -> 0 | H148: =SUM(H146:H147) -> 0 | I148: =SUM(I146:I147) -> 0 | J148: =SUM(J146:J147) -> 0 | K148: =SUM(K146:K147) -> 0 | L148: =SUM(L146:L147) -> 0 | M148: =SUM(M146:M147) -> 0 | N148: =SUM(N146:N147) -> 0 | O148: =SUM(O146:O147) -> 0 | P148: =SUM(P146:P147) -> 0 | Q148: =SUM(Q146:Q147) -> 0 | R148: =SUM(R146:R147) -> 0 | S148: =SUM(S146:S147) -> 0 | T148: =SUM(T146:T147) -> 0 | U148: =SUM(U146:U147) -> 0 | V148: =SUM(V146:V147) -> 0 | W148: =SUM(W146:W147) -> 0 | X148: =SUM(X146:X147) -> 0 | Y148: =SUM(Y146:Y147) -> 0 | Z148: =SUM(Z146:Z147) -> 0 | AA148: =SUM(AA146:AA147) -> 0 | AB148: =SUM(AB146:AB147) -> 0 | AC148: =SUM(AC146:AC147) -> 0 | AD148: =SUM(AD146:AD147) -> 0 | AE148: =SUM(AE146:AE147) -> 0 | AF148: =SUM(AF146:AF147) -> 0 | AG148: =SUM(AG146:AG147) -> 0 | AH148: =SUM(AH146:AH147) -> 0 | AI148: =SUM(AI146:AI147) -> 0 | AJ148: =SUM(AJ146:AJ147) -> 0 | AK148: =SUM(AK146:AK147) -> 0 | AL148: =SUM(AL146:AL147) -> 0 | AM148: =SUM(AM146:AM147) -> 0 | AN148: =SUM(AN146:AN147) -> 0 | AO148: =SUM(AO146:AO147) -> 0 | AP148: =SUM(AP146:AP147) -> 0
A149: Share of Project Tax Benefit/(Liability)
A150: State | B150: 0 | C150: =IF(B$156<LPFFlipTarget,LPFTEPreFlipTax*C107,LPFTEPostFlipTax*C107) -> 271093.3524 | D150: 494080.171 | E150: 251814.8778 | F150: 103883.7061 | G150: 97579.14334 | H150: -15601.17069 | I150: -129092.6144 | J150: -136465.0136 | K150: -14728.32375 | L150: -15590.88762 | M150: -16512.61155 | N150: -14263.37319 | O150: -13093.74865 | P150: -16294.57534 | Q150: -18745.42982 | R150: -20264.76333 | S150: -21731.8487 | T150: -22838.88542 | U150: -23012.3775 | V150: -23185.23792 | W150: -23544.46836 | X150: -23824.89002 | Y150: -23917.58434 | Z150: -20136.51417 | AA150: -17565.01546 | AB150: -20139.71947 | AC150: -21722.12088 | AD150: -21816.44379 | AE150: -23025.34143 | AF150: -24233.35067 | AG150: -24325.00775 | AH150: -24415.71765 | AI150: -24505.44992 | AJ150: -24594.17346 | AK150: -24681.85641 | AL150: -20137.79259 | AM150: -17039.70778 | AN150: -20053.93631 | AO150: -21881.53694 | AP150: -44070.66529
A151: Federal | B151: 0 | C151: =IF(B$156<LPFFlipTarget,LPFTEPreFlipTax*C108,LPFTEPostFlipTax*C108) -> 1630256.842 | D151: 2971218.483 | E151: 1514323.106 | F151: 624718.8327 | G151: 586805.4847 | H151: -93819.76739 | I151: -776316.0402 | J151: -820650.9681 | K151: -88570.7833 | L151: -93757.92875 | M151: -99300.8413 | N151: -85774.7397 | O151: -78741.04304 | P151: -97989.65079 | Q151: -112728.1984 | R151: -121864.9177 | S151: -130687.4356 | T151: -137344.7519 | U151: -138388.0702 | V151: -139427.5899 | W151: -141587.8711 | X151: -143274.225 | Y151: -143831.6549 | Z151: -121093.6738 | AA151: -105629.6157 | AB151: -121112.9494 | AC151: -130628.936 | AD151: -131196.1597 | AE151: -138466.0305 | AF151: -145730.5588 | AG151: -146281.7512 | AH151: -146827.2475 | AI151: -147366.8648 | AJ151: -147900.4159 | AK151: -148427.7093 | AL151: -121101.3618 | AM151: -102470.6063 | AN151: -120597.0806 | AO151: -131587.6062 | AP151: -265024.9554
A152: Total | B152: =SUM(B150:B151) -> 0 | C152: =SUM(C150:C151) -> 1901350.194 | D152: =SUM(D150:D151) -> 3465298.654 | E152: =SUM(E150:E151) -> 1766137.984 | F152: =SUM(F150:F151) -> 728602.5388 | G152: =SUM(G150:G151) -> 684384.6281 | H152: =SUM(H150:H151) -> -109420.9381 | I152: =SUM(I150:I151) -> -905408.6546 | J152: =SUM(J150:J151) -> -957115.9817 | K152: =SUM(K150:K151) -> -103299.1071 | L152: =SUM(L150:L151) -> -109348.8164 | M152: =SUM(M150:M151) -> -115813.4529 | N152: =SUM(N150:N151) -> -100038.1129 | O152: =SUM(O150:O151) -> -91834.7917 | P152: =SUM(P150:P151) -> -114284.2261 | Q152: =SUM(Q150:Q151) -> -131473.6282 | R152: =SUM(R150:R151) -> -142129.681 | S152: =SUM(S150:S151) -> -152419.2843 | T152: =SUM(T150:T151) -> -160183.6373 | U152: =SUM(U150:U151) -> -161400.4477 | V152: =SUM(V150:V151) -> -162612.8278 | W152: =SUM(W150:W151) -> -165132.3395 | X152: =SUM(X150:X151) -> -167099.115 | Y152: =SUM(Y150:Y151) -> -167749.2393 | Z152: =SUM(Z150:Z151) -> -141230.188 | AA152: =SUM(AA150:AA151) -> -123194.6312 | AB152: =SUM(AB150:AB151) -> -141252.6688 | AC152: =SUM(AC150:AC151) -> -152351.0569 | AD152: =SUM(AD150:AD151) -> -153012.6035 | AE152: =SUM(AE150:AE151) -> -161491.3719 | AF152: =SUM(AF150:AF151) -> -169963.9095 | AG152: =SUM(AG150:AG151) -> -170606.7589 | AH152: =SUM(AH150:AH151) -> -171242.9651 | AI152: =SUM(AI150:AI151) -> -171872.3147 | AJ152: =SUM(AJ150:AJ151) -> -172494.5893 | AK152: =SUM(AK150:AK151) -> -173109.5657 | AL152: =SUM(AL150:AL151) -> -141239.1544 | AM152: =SUM(AM150:AM151) -> -119510.3141 | AN152: =SUM(AN150:AN151) -> -140651.0169 | AO152: =SUM(AO150:AO151) -> -153469.1432 | AP152: =SUM(AP150:AP151) -> -309095.6207
A153: Total | B153: =B140+B144+B148+B152 -> -21495756.17 | C153: =C140+C144+C148+C152 -> 14671831.58 | D153: =D140+D144+D148+D152 -> 4383642.448 | E153: =E140+E144+E148+E152 -> 2695820.842 | F153: =F140+F144+F148+F152 -> 1669609.43 | G153: =G140+G144+G148+G152 -> 1636699.781 | H153: =H140+H144+H148+H152 -> 854185.9479 | I153: =I140+I144+I148+I152 -> 69472.6582 | J153: =J140+J144+J148+J152 -> 29021.65711 | K153: =K140+K144+K148+K152 -> -1526.142745 | L153: =L140+L144+L148+L152 -> -6431.192545 | M153: =M140+M144+M148+M152 -> -11753.27165 | N153: =N140+N144+N148+N152 -> 6940.429899 | O153: =O140+O144+O148+O152 -> 8074.600799 | P153: =P140+P144+P148+P152 -> -13155.11568 | Q153: =Q140+Q144+Q148+Q152 -> 113387.4477 | R153: =R140+R144+R148+R152 -> 244953.814 | S153: =S140+S144+S148+S152 -> 237828.9796 | T153: =T140+T144+T148+T152 -> 233218.4901 | U153: =U140+U144+U148+U152 -> 235144.2322 | V153: =V140+V144+V148+V152 -> 237062.678 | W153: =W140+W144+W148+W152 -> 236945.2947 | X153: =X140+X144+X148+X152 -> 236664.0547 | Y153: =Y140+Y144+Y148+Y152 -> 237686.4346 | Z153: =Z140+Z144+Z148+Z152 -> 265864.503 | AA153: =AA140+AA144+AA148+AA152 -> 273643.804 | AB153: =AB140+AB144+AB148+AB152 -> 257316.845 | AC153: =AC140+AC144+AC148+AC152 -> 247934.6178 | AD153: =AD140+AD144+AD148+AD152 -> 248973.815 | AE153: =AE140+AE144+AE148+AE152 -> 242179.8624 | AF153: =AF140+AF144+AF148+AF152 -> 235375.6901 | AG153: =AG140+AG144+AG148+AG152 -> 236384.2205 | AH153: =AH140+AH144+AH148+AH152 -> 237381.8617 | AI153: =AI140+AI144+AI148+AI152 -> 238368.2673 | AJ153: =AJ140+AJ144+AJ148+AJ152 -> 239343.0829 | AK153: =AK140+AK144+AK148+AK152 -> 240305.9461 | AL153: =AL140+AL144+AL148+AL152 -> 273734.3469 | AM153: =AM140+AM144+AM148+AM152 -> 324714.5935 | AN153: =AN140+AN144+AN148+AN152 -> 304476.4117 | AO153: =AO140+AO144+AO148+AO152 -> 292539.0744 | AP153: =AP140+AP144+AP148+AP152 -> 590620.7227
A155: Cumulative IRR | B155: =ROUND(IF(ISERROR(IRR($B$153:B153)),0,IRR($B$153:B153)),4) -> 0 | C155: =ROUND(IF(ISERROR(IRR($B$153:C153)),0,IRR($B$153:C153)),4) -> -0.3175 | D155: =ROUND(IF(ISERROR(IRR($B$153:D153)),0,IRR($B$153:D153)),4) -> -0.0927 | E155: =ROUND(IF(ISERROR(IRR($B$153:E153)),0,IRR($B$153:E153)),4) -> 0.0082 | F155: =ROUND(IF(ISERROR(IRR($B$153:F153)),0,IRR($B$153:F153)),4) -> 0.0548 | G155: =ROUND(IF(ISERROR(IRR($B$153:G153)),0,IRR($B$153:G153)),4) -> 0.0895 | H155: =ROUND(IF(ISERROR(IRR($B$153:H153)),0,IRR($B$153:H153)),4) -> 0.1037 | I155: =ROUND(IF(ISERROR(IRR($B$153:I153)),0,IRR($B$153:I153)),4) -> 0.1046 | J155: =ROUND(IF(ISERROR(IRR($B$153:J153)),0,IRR($B$153:J153)),4) -> 0.105 | K155: =ROUND(IF(ISERROR(IRR($B$153:K153)),0,IRR($B$153:K153)),4) -> 0.105 | L155: =ROUND(IF(ISERROR(IRR($B$153:L153)),0,IRR($B$153:L153)),4) -> 0.1049 | M155: =ROUND(IF(ISERROR(IRR($B$153:M153)),0,IRR($B$153:M153)),4) -> 0.1048 | N155: =ROUND(IF(ISERROR(IRR($B$153:N153)),0,IRR($B$153:N153)),4) -> 0.1049 | O155: =ROUND(IF(ISERROR(IRR($B$153:O153)),0,IRR($B$153:O153)),4) -> 0.1049 | P155: =ROUND(IF(ISERROR(IRR($B$153:P153)),0,IRR($B$153:P153)),4) -> 0.1048 | Q155: =ROUND(IF(ISERROR(IRR($B$153:Q153)),0,IRR($B$153:Q153)),4) -> 0.1056 | R155: =ROUND(IF(ISERROR(IRR($B$153:R153)),0,IRR($B$153:R153)),4) -> 0.1069 | S155: =ROUND(IF(ISERROR(IRR($B$153:S153)),0,IRR($B$153:S153)),4) -> 0.1081 | T155: =ROUND(IF(ISERROR(IRR($B$153:T153)),0,IRR($B$153:T153)),4) -> 0.1091 | U155: =ROUND(IF(ISERROR(IRR($B$153:U153)),0,IRR($B$153:U153)),4) -> 0.1099 | V155: =ROUND(IF(ISERROR(IRR($B$153:V153)),0,IRR($B$153:V153)),4) -> 0.1107 | W155: =ROUND(IF(ISERROR(IRR($B$153:W153)),0,IRR($B$153:W153)),4) -> 0.1114 | X155: =ROUND(IF(ISERROR(IRR($B$153:X153)),0,IRR($B$153:X153)),4) -> 0.112 | Y155: =ROUND(IF(ISERROR(IRR($B$153:Y153)),0,IRR($B$153:Y153)),4) -> 0.1125 | Z155: =ROUND(IF(ISERROR(IRR($B$153:Z153)),0,IRR($B$153:Z153)),4) -> 0.113 | AA155: =ROUND(IF(ISERROR(IRR($B$153:AA153)),0,IRR($B$153:AA153)),4) -> 0.1135 | AB155: =ROUND(IF(ISERROR(IRR($B$153:AB153)),0,IRR($B$153:AB153)),4) -> 0.1139 | AC155: =ROUND(IF(ISERROR(IRR($B$153:AC153)),0,IRR($B$153:AC153)),4) -> 0.1143 | AD155: =ROUND(IF(ISERROR(IRR($B$153:AD153)),0,IRR($B$153:AD153)),4) -> 0.1146 | AE155: =ROUND(IF(ISERROR(IRR($B$153:AE153)),0,IRR($B$153:AE153)),4) -> 0.1148 | AF155: =ROUND(IF(ISERROR(IRR($B$153:AF153)),0,IRR($B$153:AF153)),4) -> 0.115 | AG155: =ROUND(IF(ISERROR(IRR($B$153:AG153)),0,IRR($B$153:AG153)),4) -> 0.1152 | AH155: =ROUND(IF(ISERROR(IRR($B$153:AH153)),0,IRR($B$153:AH153)),4) -> 0.1154 | AI155: =ROUND(IF(ISERROR(IRR($B$153:AI153)),0,IRR($B$153:AI153)),4) -> 0.1156 | AJ155: =ROUND(IF(ISERROR(IRR($B$153:AJ153)),0,IRR($B$153:AJ153)),4) -> 0.1157 | AK155: =ROUND(IF(ISERROR(IRR($B$153:AK153)),0,IRR($B$153:AK153)),4) -> 0.1158 | AL155: =ROUND(IF(ISERROR(IRR($B$153:AL153)),0,IRR($B$153:AL153)),4) -> 0.116 | AM155: =ROUND(IF(ISERROR(IRR($B$153:AM153)),0,IRR($B$153:AM153)),4) -> 0.1161 | AN155: =ROUND(IF(ISERROR(IRR($B$153:AN153)),0,IRR($B$153:AN153)),4) -> 0.1162 | AO155: =ROUND(IF(ISERROR(IRR($B$153:AO153)),0,IRR($B$153:AO153)),4) -> 0.1163 | AP155: =ROUND(IF(ISERROR(IRR($B$153:AP153)),0,IRR($B$153:AP153)),4) -> 0.1165
A156: Max After-Tax IRR | B156: =MAX($B$155:B155) -> 0 | C156: =MAX($B$155:C155) -> 0 | D156: =MAX($B$155:D155) -> 0 | E156: =MAX($B$155:E155) -> 0.0082 | F156: =MAX($B$155:F155) -> 0.0548 | G156: =MAX($B$155:G155) -> 0.0895 | H156: =MAX($B$155:H155) -> 0.1037 | I156: =MAX($B$155:I155) -> 0.1046 | J156: =MAX($B$155:J155) -> 0.105 | K156: =MAX($B$155:K155) -> 0.105 | L156: =MAX($B$155:L155) -> 0.105 | M156: =MAX($B$155:M155) -> 0.105 | N156: =MAX($B$155:N155) -> 0.105 | O156: =MAX($B$155:O155) -> 0.105 | P156: =MAX($B$155:P155) -> 0.105 | Q156: =MAX($B$155:Q155) -> 0.1056 | R156: =MAX($B$155:R155) -> 0.1069 | S156: =MAX($B$155:S155) -> 0.1081 | T156: =MAX($B$155:T155) -> 0.1091 | U156: =MAX($B$155:U155) -> 0.1099 | V156: =MAX($B$155:V155) -> 0.1107 | W156: =MAX($B$155:W155) -> 0.1114 | X156: =MAX($B$155:X155) -> 0.112 | Y156: =MAX($B$155:Y155) -> 0.1125 | Z156: =MAX($B$155:Z155) -> 0.113 | AA156: =MAX($B$155:AA155) -> 0.1135 | AB156: =MAX($B$155:AB155) -> 0.1139 | AC156: =MAX($B$155:AC155) -> 0.1143 | AD156: =MAX($B$155:AD155) -> 0.1146 | AE156: =MAX($B$155:AE155) -> 0.1148 | AF156: =MAX($B$155:AF155) -> 0.115 | AG156: =MAX($B$155:AG155) -> 0.1152 | AH156: =MAX($B$155:AH155) -> 0.1154 | AI156: =MAX($B$155:AI155) -> 0.1156 | AJ156: =MAX($B$155:AJ155) -> 0.1157 | AK156: =MAX($B$155:AK155) -> 0.1158 | AL156: =MAX($B$155:AL155) -> 0.116 | AM156: =MAX($B$155:AM155) -> 0.1161 | AN156: =MAX($B$155:AN155) -> 0.1162 | AO156: =MAX($B$155:AO155) -> 0.1163 | AP156: =MAX($B$155:AP155) -> 0.1165
A157: Cumulative NPV | B157: =B153 -> -21495756.17 | C157: =NPV(DiscountRate,$C153:C153)+$B153 -> -7910726.931 | D157: =NPV(DiscountRate,$C153:D153)+$B153 -> -4152460.086 | E157: =NPV(DiscountRate,$C153:E153)+$B153 -> -2012430.586 | F157: =NPV(DiscountRate,$C153:F153)+$B153 -> -785217.8125 | G157: =NPV(DiscountRate,$C153:G153)+$B153 -> 328692.5574 | H157: =NPV(DiscountRate,$C153:H153)+$B153 -> 866974.5975 | I157: =NPV(DiscountRate,$C153:I153)+$B153 -> 907511.2263 | J157: =NPV(DiscountRate,$C153:J153)+$B153 -> 923190.7246 | K157: =NPV(DiscountRate,$C153:K153)+$B153 -> 922427.2732 | L157: =NPV(DiscountRate,$C153:L153)+$B153 -> 919448.3867 | M157: =NPV(DiscountRate,$C153:M153)+$B153 -> 914407.61 | N157: =NPV(DiscountRate,$C153:N153)+$B153 -> 917163.7502 | O157: =NPV(DiscountRate,$C153:O153)+$B153 -> 920132.7642 | P157: =NPV(DiscountRate,$C153:P153)+$B153 -> 915653.9598 | Q157: =NPV(DiscountRate,$C153:Q153)+$B153 -> 951398.4121 | R157: =NPV(DiscountRate,$C153:R153)+$B153 -> 1022898.095 | S157: =NPV(DiscountRate,$C153:S153)+$B153 -> 1087175.884 | T157: =NPV(DiscountRate,$C153:T153)+$B153 -> 1145538.585 | U157: =NPV(DiscountRate,$C153:U153)+$B153 -> 1200024.34 | V157: =NPV(DiscountRate,$C153:V153)+$B153 -> 1250885.713 | W157: =NPV(DiscountRate,$C153:W153)+$B153 -> 1297956.258 | X157: =NPV(DiscountRate,$C153:X153)+$B153 -> 1341488.364 | Y157: =NPV(DiscountRate,$C153:Y153)+$B153 -> 1381969.997 | Z157: =NPV(DiscountRate,$C153:Z153)+$B153 -> 1423896.653 | AA157: =NPV(DiscountRate,$C153:AA153)+$B153 -> 1463853.548 | AB157: =NPV(DiscountRate,$C153:AB153)+$B153 -> 1498643.239 | AC157: =NPV(DiscountRate,$C153:AC153)+$B153 -> 1529681.385 | AD157: =NPV(DiscountRate,$C153:AD153)+$B153 -> 1558540.866 | AE157: =NPV(DiscountRate,$C153:AE153)+$B153 -> 1584533.43 | AF157: =NPV(DiscountRate,$C153:AF153)+$B153 -> 1607924.438 | AG157: =NPV(DiscountRate,$C153:AG153)+$B153 -> 1629675.58 | AH157: =NPV(DiscountRate,$C153:AH153)+$B153 -> 1649900.525 | AI157: =NPV(DiscountRate,$C153:AI153)+$B153 -> 1668705.143 | AJ157: =NPV(DiscountRate,$C153:AJ153)+$B153 -> 1686188.032 | AK157: =NPV(DiscountRate,$C153:AK153)+$B153 -> 1702441.015 | AL157: =NPV(DiscountRate,$C153:AL153)+$B153 -> 1719583.512 | AM157: =NPV(DiscountRate,$C153:AM153)+$B153 -> 1738412.321 | AN157: =NPV(DiscountRate,$C153:AN153)+$B153 -> 1754759.806 | AO157: =NPV(DiscountRate,$C153:AO153)+$B153 -> 1769302.921 | AP157: =NPV(DiscountRate,$C153:AP153)+$B153 -> 1796489.744
A159: Year Flip Target/Year Hurdle Rate Reached | B159: =SUM(C159:AP159) -> 8 | C159: =IF(AND(B156<LPFFlipTarget,C156>=LPFFlipTarget),C$2,0) -> 0 | D159: 0 | E159: 0 | F159: 0 | G159: 0 | H159: 0 | I159: 0 | J159: 8 | K159: 0 | L159: 0 | M159: 0 | N159: 0 | O159: 0 | P159: 0 | Q159: 0 | R159: 0 | S159: 0 | T159: 0 | U159: 0 | V159: 0 | W159: 0 | X159: 0 | Y159: 0 | Z159: 0 | AA159: 0 | AB159: 0 | AC159: 0 | AD159: 0 | AE159: 0 | AF159: 0 | AG159: 0 | AH159: 0 | AI159: 0 | AJ159: 0 | AK159: 0 | AL159: 0 | AM159: 0 | AN159: 0 | AO159: 0 | AP159: 0
A161: Sponsor: Pre-Tax
A162: Equity Investment | B162: =B95-B129 -> -438688.9015 | C162: 0 | D162: 0 | E162: 0 | F162: 0 | G162: 0 | H162: 0 | I162: 0 | J162: 0 | K162: 0 | L162: 0 | M162: 0 | N162: 0 | O162: 0 | P162: 0 | Q162: 0 | R162: 0 | S162: 0 | T162: 0 | U162: 0 | V162: 0 | W162: 0 | X162: 0 | Y162: 0 | Z162: 0 | AA162: 0 | AB162: 0 | AC162: 0 | AD162: 0 | AE162: 0 | AF162: 0 | AG162: 0 | AH162: 0 | AI162: 0 | AJ162: 0 | AK162: 0 | AL162: 0 | AM162: 0 | AN162: 0 | AO162: 0 | AP162: 0
A163: Development Fee | B163: ='Inputs & Results'!C171 -> 1206814.5
A164: Operating Cash Distributions/(Contributions) | B164: =B96-B130 -> 0 | C164: 18510.00862 | D164: 18741.71008 | E164: 18973.11955 | F164: 19204.22227 | G164: 19435.00313 | H164: 19665.44665 | I164: 19895.537 | J164: 20125.25794 | K164: 915956.6788 | L164: 926258.6145 | M164: 936541.6308 | N164: 962806.8852 | O164: 899184.5325 | P164: 910161.9941 | Q164: 2203749.683 | R164: 3483751.455 | S164: 3512234.375 | T164: 3540619.147 | U164: 3568902.118 | V164: 3597079.552 | W164: 3618698.708 | X164: 3633868.528 | Y164: 3648921.064 | Z164: 3663852.219 | AA164: 3571545.916 | AB164: 3587125.624 | AC164: 3602571.072 | AD164: 3617877.766 | AE164: 3633041.109 | AF164: 3648056.396 | AG164: 3662918.815 | AH164: 3677623.441 | AI164: 3692165.238 | AJ164: 3706539.05 | AK164: 3720739.606 | AL164: 3734761.511 | AM164: 3998024.169 | AN164: 4006146.857 | AO164: 4014073.958 | AP164: 8097447.09
A165: Total | B165: =SUM(B162:B164) -> 768125.5985 | C165: =SUM(C162:C164) -> 18510.00862 | D165: =SUM(D162:D164) -> 18741.71008 | E165: =SUM(E162:E164) -> 18973.11955 | F165: =SUM(F162:F164) -> 19204.22227 | G165: =SUM(G162:G164) -> 19435.00313 | H165: =SUM(H162:H164) -> 19665.44665 | I165: =SUM(I162:I164) -> 19895.537 | J165: =SUM(J162:J164) -> 20125.25794 | K165: =SUM(K162:K164) -> 915956.6788 | L165: =SUM(L162:L164) -> 926258.6145 | M165: =SUM(M162:M164) -> 936541.6308 | N165: =SUM(N162:N164) -> 962806.8852 | O165: =SUM(O162:O164) -> 899184.5325 | P165: =SUM(P162:P164) -> 910161.9941 | Q165: =SUM(Q162:Q164) -> 2203749.683 | R165: =SUM(R162:R164) -> 3483751.455 | S165: =SUM(S162:S164) -> 3512234.375 | T165: =SUM(T162:T164) -> 3540619.147 | U165: =SUM(U162:U164) -> 3568902.118 | V165: =SUM(V162:V164) -> 3597079.552 | W165: =SUM(W162:W164) -> 3618698.708 | X165: =SUM(X162:X164) -> 3633868.528 | Y165: =SUM(Y162:Y164) -> 3648921.064 | Z165: =SUM(Z162:Z164) -> 3663852.219 | AA165: =SUM(AA162:AA164) -> 3571545.916 | AB165: =SUM(AB162:AB164) -> 3587125.624 | AC165: =SUM(AC162:AC164) -> 3602571.072 | AD165: =SUM(AD162:AD164) -> 3617877.766 | AE165: =SUM(AE162:AE164) -> 3633041.109 | AF165: =SUM(AF162:AF164) -> 3648056.396 | AG165: =SUM(AG162:AG164) -> 3662918.815 | AH165: =SUM(AH162:AH164) -> 3677623.441 | AI165: =SUM(AI162:AI164) -> 3692165.238 | AJ165: =SUM(AJ162:AJ164) -> 3706539.05 | AK165: =SUM(AK162:AK164) -> 3720739.606 | AL165: =SUM(AL162:AL164) -> 3734761.511 | AM165: =SUM(AM162:AM164) -> 3998024.169 | AN165: =SUM(AN162:AN164) -> 4006146.857 | AO165: =SUM(AO162:AO164) -> 4014073.958 | AP165: =SUM(AP162:AP164) -> 8097447.09
A167: Cumulative IRR | B167: =IF(ISERROR(IRR($B165:B165)),"N/A",ROUND(IRR($B165:B165),4)) -> N/A | C167: =IF(ISERROR(IRR($B165:C165)),"N/A",ROUND(IRR($B165:C165),4)) -> N/A | D167: =IF(ISERROR(IRR($B165:D165)),"N/A",ROUND(IRR($B165:D165),4)) -> N/A | E167: =IF(ISERROR(IRR($B165:E165)),"N/A",ROUND(IRR($B165:E165),4)) -> N/A | F167: =IF(ISERROR(IRR($B165:F165)),"N/A",ROUND(IRR($B165:F165),4)) -> N/A | G167: =IF(ISERROR(IRR($B165:G165)),"N/A",ROUND(IRR($B165:G165),4)) -> N/A | H167: =IF(ISERROR(IRR($B165:H165)),"N/A",ROUND(IRR($B165:H165),4)) -> N/A | I167: =IF(ISERROR(IRR($B165:I165)),"N/A",ROUND(IRR($B165:I165),4)) -> N/A | J167: =IF(ISERROR(IRR($B165:J165)),"N/A",ROUND(IRR($B165:J165),4)) -> N/A | K167: =IF(ISERROR(IRR($B165:K165)),"N/A",ROUND(IRR($B165:K165),4)) -> N/A | L167: =IF(ISERROR(IRR($B165:L165)),"N/A",ROUND(IRR($B165:L165),4)) -> N/A | M167: =IF(ISERROR(IRR($B165:M165)),"N/A",ROUND(IRR($B165:M165),4)) -> N/A | N167: =IF(ISERROR(IRR($B165:N165)),"N/A",ROUND(IRR($B165:N165),4)) -> N/A | O167: =IF(ISERROR(IRR($B165:O165)),"N/A",ROUND(IRR($B165:O165),4)) -> N/A | P167: =IF(ISERROR(IRR($B165:P165)),"N/A",ROUND(IRR($B165:P165),4)) -> N/A | Q167: =IF(ISERROR(IRR($B165:Q165)),"N/A",ROUND(IRR($B165:Q165),4)) -> N/A | R167: =IF(ISERROR(IRR($B165:R165)),"N/A",ROUND(IRR($B165:R165),4)) -> N/A | S167: =IF(ISERROR(IRR($B165:S165)),"N/A",ROUND(IRR($B165:S165),4)) -> N/A | T167: =IF(ISERROR(IRR($B165:T165)),"N/A",ROUND(IRR($B165:T165),4)) -> N/A | U167: =IF(ISERROR(IRR($B165:U165)),"N/A",ROUND(IRR($B165:U165),4)) -> N/A | V167: =IF(ISERROR(IRR($B165:V165)),"N/A",ROUND(IRR($B165:V165),4)) -> N/A | W167: =IF(ISERROR(IRR($B165:W165)),"N/A",ROUND(IRR($B165:W165),4)) -> N/A | X167: =IF(ISERROR(IRR($B165:X165)),"N/A",ROUND(IRR($B165:X165),4)) -> N/A | Y167: =IF(ISERROR(IRR($B165:Y165)),"N/A",ROUND(IRR($B165:Y165),4)) -> N/A | Z167: =IF(ISERROR(IRR($B165:Z165)),"N/A",ROUND(IRR($B165:Z165),4)) -> N/A | AA167: =IF(ISERROR(IRR($B165:AA165)),"N/A",ROUND(IRR($B165:AA165),4)) -> N/A | AB167: =IF(ISERROR(IRR($B165:AB165)),"N/A",ROUND(IRR($B165:AB165),4)) -> N/A | AC167: =IF(ISERROR(IRR($B165:AC165)),"N/A",ROUND(IRR($B165:AC165),4)) -> N/A | AD167: =IF(ISERROR(IRR($B165:AD165)),"N/A",ROUND(IRR($B165:AD165),4)) -> N/A | AE167: =IF(ISERROR(IRR($B165:AE165)),"N/A",ROUND(IRR($B165:AE165),4)) -> N/A | AF167: =IF(ISERROR(IRR($B165:AF165)),"N/A",ROUND(IRR($B165:AF165),4)) -> N/A | AG167: =IF(ISERROR(IRR($B165:AG165)),"N/A",ROUND(IRR($B165:AG165),4)) -> N/A | AH167: =IF(ISERROR(IRR($B165:AH165)),"N/A",ROUND(IRR($B165:AH165),4)) -> N/A | AI167: =IF(ISERROR(IRR($B165:AI165)),"N/A",ROUND(IRR($B165:AI165),4)) -> N/A | AJ167: =IF(ISERROR(IRR($B165:AJ165)),"N/A",ROUND(IRR($B165:AJ165),4)) -> N/A | AK167: =IF(ISERROR(IRR($B165:AK165)),"N/A",ROUND(IRR($B165:AK165),4)) -> N/A | AL167: =IF(ISERROR(IRR($B165:AL165)),"N/A",ROUND(IRR($B165:AL165),4)) -> N/A | AM167: =IF(ISERROR(IRR($B165:AM165)),"N/A",ROUND(IRR($B165:AM165),4)) -> N/A | AN167: =IF(ISERROR(IRR($B165:AN165)),"N/A",ROUND(IRR($B165:AN165),4)) -> N/A | AO167: =IF(ISERROR(IRR($B165:AO165)),"N/A",ROUND(IRR($B165:AO165),4)) -> N/A | AP167: =IF(ISERROR(IRR($B165:AP165)),"N/A",ROUND(IRR($B165:AP165),4)) -> N/A
A168: Cumulative NPV | B168: =B165 -> 768125.5985 | C168: =NPV(DiscountRate,$C165:C165)+$B165 -> 785264.4954 | D168: =NPV(DiscountRate,$C165:D165)+$B165 -> 801332.491 | E168: =NPV(DiscountRate,$C165:E165)+$B165 -> 816393.965 | F168: =NPV(DiscountRate,$C165:F165)+$B165 -> 830509.6417 | G168: =NPV(DiscountRate,$C165:G165)+$B165 -> 843736.7782 | H168: =NPV(DiscountRate,$C165:H165)+$B165 -> 856129.3454 | I168: =NPV(DiscountRate,$C165:I165)+$B165 -> 867738.2002 | J168: =NPV(DiscountRate,$C165:J165)+$B165 -> 878611.2508 | K168: =NPV(DiscountRate,$C165:K165)+$B165 -> 1336817.633 | L168: =NPV(DiscountRate,$C165:L165)+$B165 -> 1765854.592 | M168: =NPV(DiscountRate,$C165:M165)+$B165 -> 2167521.244 | N168: =NPV(DiscountRate,$C165:N165)+$B165 -> 2549865.105 | O168: =NPV(DiscountRate,$C165:O165)+$B165 -> 2880493.392 | P168: =NPV(DiscountRate,$C165:P165)+$B165 -> 3190368.092 | Q168: =NPV(DiscountRate,$C165:Q165)+$B165 -> 3885081.9 | R168: =NPV(DiscountRate,$C165:R165)+$B165 -> 4901955.741 | S168: =NPV(DiscountRate,$C165:S165)+$B165 -> 5851203.643 | T168: =NPV(DiscountRate,$C165:T165)+$B165 -> 6737240.147 | U168: =NPV(DiscountRate,$C165:U165)+$B165 -> 7564197.823 | V168: =NPV(DiscountRate,$C165:V165)+$B165 -> 8335944.792 | W168: =NPV(DiscountRate,$C165:W165)+$B165 -> 9054820.09 | X168: =NPV(DiscountRate,$C165:X165)+$B165 -> 9723235.709 | Y168: =NPV(DiscountRate,$C165:Y165)+$B165 -> 10344702.74 | Z168: =NPV(DiscountRate,$C165:Z165)+$B165 -> 10922489.8 | AA168: =NPV(DiscountRate,$C165:AA165)+$B165 -> 11443999.46 | AB168: =NPV(DiscountRate,$C165:AB165)+$B165 -> 11928985.17 | AC168: =NPV(DiscountRate,$C165:AC165)+$B165 -> 12379979.58 | AD168: =NPV(DiscountRate,$C165:AD165)+$B165 -> 12799341.25 | AE168: =NPV(DiscountRate,$C165:AE165)+$B165 -> 13189266.54 | AF168: =NPV(DiscountRate,$C165:AF165)+$B165 -> 13551800.65 | AG168: =NPV(DiscountRate,$C165:AG165)+$B165 -> 13888847.97 | AH168: =NPV(DiscountRate,$C165:AH165)+$B165 -> 14202181.65 | AI168: =NPV(DiscountRate,$C165:AI165)+$B165 -> 14493452.62 | AJ168: =NPV(DiscountRate,$C165:AJ165)+$B165 -> 14764197.9 | AK168: =NPV(DiscountRate,$C165:AK165)+$B165 -> 15015848.42 | AL168: =NPV(DiscountRate,$C165:AL165)+$B165 -> 15249736.28 | AM168: =NPV(DiscountRate,$C165:AM165)+$B165 -> 15481564.59 | AN168: =NPV(DiscountRate,$C165:AN165)+$B165 -> 15696656.54 | AO168: =NPV(DiscountRate,$C165:AO165)+$B165 -> 15896209.83 | AP168: =NPV(DiscountRate,$C165:AP165)+$B165 -> 16268942.88
A171: IRR | B171: =IF(ISERROR(IRR(B165:AP165)),"N/A",IRR(B165:AP165)) -> N/A
A172: NPV | B172: =NPV(DiscountRate,$C165:$AP165)+B165 -> 16268942.88
A174: Sponsor: After-Tax
A175: Cash
A176: Equity Investment | B176: =B95-B138 -> -438688.9015 | C176: 0 | D176: 0 | E176: 0 | F176: 0 | G176: 0 | H176: 0 | I176: 0 | J176: 0 | K176: 0 | L176: 0 | M176: 0 | N176: 0 | O176: 0 | P176: 0 | Q176: 0 | R176: 0 | S176: 0 | T176: 0 | U176: 0 | V176: 0 | W176: 0 | X176: 0 | Y176: 0 | Z176: 0 | AA176: 0 | AB176: 0 | AC176: 0 | AD176: 0 | AE176: 0 | AF176: 0 | AG176: 0 | AH176: 0 | AI176: 0 | AJ176: 0 | AK176: 0 | AL176: 0 | AM176: 0 | AN176: 0 | AO176: 0 | AP176: 0
A177: Development Fee | B177: ='Inputs & Results'!C171 -> 1206814.5
A178: Operating Cash Distributions/(Contributions) | B178: =B96-B139 -> 0 | C178: 18510.00862 | D178: 18741.71008 | E178: 18973.11955 | F178: 19204.22227 | G178: 19435.00313 | H178: 19665.44665 | I178: 19895.537 | J178: 20125.25794 | K178: 915956.6788 | L178: 926258.6145 | M178: 936541.6308 | N178: 962806.8852 | O178: 899184.5325 | P178: 910161.9941 | Q178: 2203749.683 | R178: 3483751.455 | S178: 3512234.375 | T178: 3540619.147 | U178: 3568902.118 | V178: 3597079.552 | W178: 3618698.708 | X178: 3633868.528 | Y178: 3648921.064 | Z178: 3663852.219 | AA178: 3571545.916 | AB178: 3587125.624 | AC178: 3602571.072 | AD178: 3617877.766 | AE178: 3633041.109 | AF178: 3648056.396 | AG178: 3662918.815 | AH178: 3677623.441 | AI178: 3692165.238 | AJ178: 3706539.05 | AK178: 3720739.606 | AL178: 3734761.511 | AM178: 3998024.169 | AN178: 4006146.857 | AO178: 4014073.958 | AP178: 8097447.09
A179: Total | B179: =SUM(B176:B178) -> 768125.5985 | C179: =SUM(C176:C178) -> 18510.00862 | D179: =SUM(D176:D178) -> 18741.71008 | E179: =SUM(E176:E178) -> 18973.11955 | F179: =SUM(F176:F178) -> 19204.22227 | G179: =SUM(G176:G178) -> 19435.00313 | H179: =SUM(H176:H178) -> 19665.44665 | I179: =SUM(I176:I178) -> 19895.537 | J179: =SUM(J176:J178) -> 20125.25794 | K179: =SUM(K176:K178) -> 915956.6788 | L179: =SUM(L176:L178) -> 926258.6145 | M179: =SUM(M176:M178) -> 936541.6308 | N179: =SUM(N176:N178) -> 962806.8852 | O179: =SUM(O176:O178) -> 899184.5325 | P179: =SUM(P176:P178) -> 910161.9941 | Q179: =SUM(Q176:Q178) -> 2203749.683 | R179: =SUM(R176:R178) -> 3483751.455 | S179: =SUM(S176:S178) -> 3512234.375 | T179: =SUM(T176:T178) -> 3540619.147 | U179: =SUM(U176:U178) -> 3568902.118 | V179: =SUM(V176:V178) -> 3597079.552 | W179: =SUM(W176:W178) -> 3618698.708 | X179: =SUM(X176:X178) -> 3633868.528 | Y179: =SUM(Y176:Y178) -> 3648921.064 | Z179: =SUM(Z176:Z178) -> 3663852.219 | AA179: =SUM(AA176:AA178) -> 3571545.916 | AB179: =SUM(AB176:AB178) -> 3587125.624 | AC179: =SUM(AC176:AC178) -> 3602571.072 | AD179: =SUM(AD176:AD178) -> 3617877.766 | AE179: =SUM(AE176:AE178) -> 3633041.109 | AF179: =SUM(AF176:AF178) -> 3648056.396 | AG179: =SUM(AG176:AG178) -> 3662918.815 | AH179: =SUM(AH176:AH178) -> 3677623.441 | AI179: =SUM(AI176:AI178) -> 3692165.238 | AJ179: =SUM(AJ176:AJ178) -> 3706539.05 | AK179: =SUM(AK176:AK178) -> 3720739.606 | AL179: =SUM(AL176:AL178) -> 3734761.511 | AM179: =SUM(AM176:AM178) -> 3998024.169 | AN179: =SUM(AN176:AN178) -> 4006146.857 | AO179: =SUM(AO176:AO178) -> 4014073.958 | AP179: =SUM(AP176:AP178) -> 8097447.09
A180: Investment Tax Credit
A181: State | B181: =B99-B142 -> 0 | C181: 0 | D181: 0 | E181: 0 | F181: 0 | G181: 0 | H181: 0 | I181: 0 | J181: 0 | K181: 0 | L181: 0 | M181: 0 | N181: 0 | O181: 0 | P181: 0 | Q181: 0 | R181: 0 | S181: 0 | T181: 0 | U181: 0 | V181: 0 | W181: 0 | X181: 0 | Y181: 0 | Z181: 0 | AA181: 0 | AB181: 0 | AC181: 0 | AD181: 0 | AE181: 0 | AF181: 0 | AG181: 0 | AH181: 0 | AI181: 0 | AJ181: 0 | AK181: 0 | AL181: 0 | AM181: 0 | AN181: 0 | AO181: 0 | AP181: 0
A182: Federal | B182: =B100-B143 -> 0 | C182: 242112.0605 | D182: 0 | E182: 0 | F182: 0 | G182: 0 | H182: 0 | I182: 0 | J182: 0 | K182: 0 | L182: 0 | M182: 0 | N182: 0 | O182: 0 | P182: 0 | Q182: 0 | R182: 0 | S182: 0 | T182: 0 | U182: 0 | V182: 0 | W182: 0 | X182: 0 | Y182: 0 | Z182: 0 | AA182: 0 | AB182: 0 | AC182: 0 | AD182: 0 | AE182: 0 | AF182: 0 | AG182: 0 | AH182: 0 | AI182: 0 | AJ182: 0 | AK182: 0 | AL182: 0 | AM182: 0 | AN182: 0 | AO182: 0 | AP182: 0
A183: Total | B183: =SUM(B181:B182) -> 0 | C183: =SUM(C181:C182) -> 242112.0605 | D183: =SUM(D181:D182) -> 0 | E183: =SUM(E181:E182) -> 0 | F183: =SUM(F181:F182) -> 0 | G183: =SUM(G181:G182) -> 0 | H183: =SUM(H181:H182) -> 0 | I183: =SUM(I181:I182) -> 0 | J183: =SUM(J181:J182) -> 0 | K183: =SUM(K181:K182) -> 0 | L183: =SUM(L181:L182) -> 0 | M183: =SUM(M181:M182) -> 0 | N183: =SUM(N181:N182) -> 0 | O183: =SUM(O181:O182) -> 0 | P183: =SUM(P181:P182) -> 0 | Q183: =SUM(Q181:Q182) -> 0 | R183: =SUM(R181:R182) -> 0 | S183: =SUM(S181:S182) -> 0 | T183: =SUM(T181:T182) -> 0 | U183: =SUM(U181:U182) -> 0 | V183: =SUM(V181:V182) -> 0 | W183: =SUM(W181:W182) -> 0 | X183: =SUM(X181:X182) -> 0 | Y183: =SUM(Y181:Y182) -> 0 | Z183: =SUM(Z181:Z182) -> 0 | AA183: =SUM(AA181:AA182) -> 0 | AB183: =SUM(AB181:AB182) -> 0 | AC183: =SUM(AC181:AC182) -> 0 | AD183: =SUM(AD181:AD182) -> 0 | AE183: =SUM(AE181:AE182) -> 0 | AF183: =SUM(AF181:AF182) -> 0 | AG183: =SUM(AG181:AG182) -> 0 | AH183: =SUM(AH181:AH182) -> 0 | AI183: =SUM(AI181:AI182) -> 0 | AJ183: =SUM(AJ181:AJ182) -> 0 | AK183: =SUM(AK181:AK182) -> 0 | AL183: =SUM(AL181:AL182) -> 0 | AM183: =SUM(AM181:AM182) -> 0 | AN183: =SUM(AN181:AN182) -> 0 | AO183: =SUM(AO181:AO182) -> 0 | AP183: =SUM(AP181:AP182) -> 0
A184: Production Tax Credit
A185: State | B185: =B103-B146 -> 0 | C185: 0 | D185: 0 | E185: 0 | F185: 0 | G185: 0 | H185: 0 | I185: 0 | J185: 0 | K185: 0 | L185: 0 | M185: 0 | N185: 0 | O185: 0 | P185: 0 | Q185: 0 | R185: 0 | S185: 0 | T185: 0 | U185: 0 | V185: 0 | W185: 0 | X185: 0 | Y185: 0 | Z185: 0 | AA185: 0 | AB185: 0 | AC185: 0 | AD185: 0 | AE185: 0 | AF185: 0 | AG185: 0 | AH185: 0 | AI185: 0 | AJ185: 0 | AK185: 0 | AL185: 0 | AM185: 0 | AN185: 0 | AO185: 0 | AP185: 0
A186: Federal | B186: =B104-B147 -> 0 | C186: 0 | D186: 0 | E186: 0 | F186: 0 | G186: 0 | H186: 0 | I186: 0 | J186: 0 | K186: 0 | L186: 0 | M186: 0 | N186: 0 | O186: 0 | P186: 0 | Q186: 0 | R186: 0 | S186: 0 | T186: 0 | U186: 0 | V186: 0 | W186: 0 | X186: 0 | Y186: 0 | Z186: 0 | AA186: 0 | AB186: 0 | AC186: 0 | AD186: 0 | AE186: 0 | AF186: 0 | AG186: 0 | AH186: 0 | AI186: 0 | AJ186: 0 | AK186: 0 | AL186: 0 | AM186: 0 | AN186: 0 | AO186: 0 | AP186: 0
A187: Total | B187: =SUM(B185:B186) -> 0 | C187: =SUM(C185:C186) -> 0 | D187: =SUM(D185:D186) -> 0 | E187: =SUM(E185:E186) -> 0 | F187: =SUM(F185:F186) -> 0 | G187: =SUM(G185:G186) -> 0 | H187: =SUM(H185:H186) -> 0 | I187: =SUM(I185:I186) -> 0 | J187: =SUM(J185:J186) -> 0 | K187: =SUM(K185:K186) -> 0 | L187: =SUM(L185:L186) -> 0 | M187: =SUM(M185:M186) -> 0 | N187: =SUM(N185:N186) -> 0 | O187: =SUM(O185:O186) -> 0 | P187: =SUM(P185:P186) -> 0 | Q187: =SUM(Q185:Q186) -> 0 | R187: =SUM(R185:R186) -> 0 | S187: =SUM(S185:S186) -> 0 | T187: =SUM(T185:T186) -> 0 | U187: =SUM(U185:U186) -> 0 | V187: =SUM(V185:V186) -> 0 | W187: =SUM(W185:W186) -> 0 | X187: =SUM(X185:X186) -> 0 | Y187: =SUM(Y185:Y186) -> 0 | Z187: =SUM(Z185:Z186) -> 0 | AA187: =SUM(AA185:AA186) -> 0 | AB187: =SUM(AB185:AB186) -> 0 | AC187: =SUM(AC185:AC186) -> 0 | AD187: =SUM(AD185:AD186) -> 0 | AE187: =SUM(AE185:AE186) -> 0 | AF187: =SUM(AF185:AF186) -> 0 | AG187: =SUM(AG185:AG186) -> 0 | AH187: =SUM(AH185:AH186) -> 0 | AI187: =SUM(AI185:AI186) -> 0 | AJ187: =SUM(AJ185:AJ186) -> 0 | AK187: =SUM(AK185:AK186) -> 0 | AL187: =SUM(AL185:AL186) -> 0 | AM187: =SUM(AM185:AM186) -> 0 | AN187: =SUM(AN185:AN186) -> 0 | AO187: =SUM(AO185:AO186) -> 0 | AP187: =SUM(AP185:AP186) -> 0
A188: Developer Fee Tax Liability
A189: State | B189: 0 | C189: =B177*-StateTax -> -66374.7975 | D189: 0 | E189: 0 | F189: 0 | G189: 0 | H189: 0 | I189: 0 | J189: 0 | K189: 0 | L189: 0 | M189: 0 | N189: 0 | O189: 0 | P189: 0 | Q189: 0 | R189: 0 | S189: 0 | T189: 0 | U189: 0 | V189: 0 | W189: 0 | X189: 0 | Y189: 0 | Z189: 0 | AA189: 0 | AB189: 0 | AC189: 0 | AD189: 0 | AE189: 0 | AF189: 0 | AG189: 0 | AH189: 0 | AI189: 0 | AJ189: 0 | AK189: 0 | AL189: 0 | AM189: 0 | AN189: 0 | AO189: 0 | AP189: 0
A190: Federal | B190: 0 | C190: =(B177+C189)*-FedTax -> -399153.8959 | D190: 0 | E190: 0 | F190: 0 | G190: 0 | H190: 0 | I190: 0 | J190: 0 | K190: 0 | L190: 0 | M190: 0 | N190: 0 | O190: 0 | P190: 0 | Q190: 0 | R190: 0 | S190: 0 | T190: 0 | U190: 0 | V190: 0 | W190: 0 | X190: 0 | Y190: 0 | Z190: 0 | AA190: 0 | AB190: 0 | AC190: 0 | AD190: 0 | AE190: 0 | AF190: 0 | AG190: 0 | AH190: 0 | AI190: 0 | AJ190: 0 | AK190: 0 | AL190: 0 | AM190: 0 | AN190: 0 | AO190: 0 | AP190: 0
A191: Total | B191: =SUM(B189:B190) -> 0 | C191: =SUM(C189:C190) -> -465528.6934 | D191: =SUM(D189:D190) -> 0 | E191: =SUM(E189:E190) -> 0 | F191: 0 | G191: 0 | H191: 0 | I191: 0 | J191: 0 | K191: 0 | L191: 0 | M191: 0 | N191: 0 | O191: 0 | P191: 0 | Q191: 0 | R191: 0 | S191: 0 | T191: 0 | U191: 0 | V191: 0 | W191: 0 | X191: 0 | Y191: 0 | Z191: 0 | AA191: 0 | AB191: 0 | AC191: 0 | AD191: 0 | AE191: 0 | AF191: 0 | AG191: 0 | AH191: 0 | AI191: 0 | AJ191: 0 | AK191: 0 | AL191: 0 | AM191: 0 | AN191: 0 | AO191: 0 | AP191: 0
A192: Share of Project Tax Benefit/(Liability)
A193: State | B193: =B107-B150 -> 0 | C193: 5532.517396 | D193: 10083.2688 | E193: 5139.079138 | F193: 2120.075635 | G193: 1991.411089 | H193: -318.3912386 | I193: -2634.543151 | J193: -2785.000278 | K193: -132554.9138 | L193: -140317.9886 | M193: -148613.504 | N193: -128370.3587 | O193: -117843.7379 | P193: -146651.1781 | Q193: -168708.8684 | R193: -182382.87 | S193: -195586.6383 | T193: -205549.9688 | U193: -207111.3975 | V193: -208667.1413 | W193: -211900.2153 | X193: -214424.0102 | Y193: -215258.2591 | Z193: -181228.6275 | AA193: -158085.1391 | AB193: -181257.4752 | AC193: -195499.0879 | AD193: -196347.9941 | AE193: -207228.0728 | AF193: -218100.156 | AG193: -218925.0698 | AH193: -219741.4588 | AI193: -220549.0493 | AJ193: -221347.5611 | AK193: -222136.7077 | AL193: -181240.1333 | AM193: -153357.37 | AN193: -180485.4268 | AO193: -196933.8324 | AP193: -396635.9876
A194: Federal | B194: =B108-B151 -> 0 | C194: 33270.5478 | D194: 60637.11189 | E194: 30904.55318 | F194: 12749.36393 | G194: 11975.62214 | H194: -1914.68913 | I194: -15843.18449 | J194: -16747.97894 | K194: -797137.0497 | L194: -843821.3588 | M194: -893707.5717 | N194: -771972.6573 | O194: -708669.3874 | P194: -881906.8571 | Q194: -1014553.786 | R194: -1096784.259 | S194: -1176186.92 | T194: -1236102.767 | U194: -1245492.631 | V194: -1254848.309 | W194: -1274290.84 | X194: -1289468.025 | Y194: -1294484.894 | Z194: -1089843.064 | AA194: -950666.5413 | AB194: -1090016.544 | AC194: -1175660.424 | AD194: -1180765.437 | AE194: -1246194.274 | AF194: -1311575.029 | AG194: -1316535.761 | AH194: -1321445.227 | AI194: -1326301.783 | AJ194: -1331103.743 | AK194: -1335849.383 | AL194: -1089912.256 | AM194: -922235.457 | AN194: -1085373.726 | AO194: -1184288.456 | AP194: -2385224.598
A195: Total | B195: =SUM(B193:B194) -> 0 | C195: =SUM(C193:C194) -> 38803.06519 | D195: =SUM(D193:D194) -> 70720.38069 | E195: =SUM(E193:E194) -> 36043.63232 | F195: =SUM(F193:F194) -> 14869.43957 | G195: =SUM(G193:G194) -> 13967.03323 | H195: =SUM(H193:H194) -> -2233.080369 | I195: =SUM(I193:I194) -> -18477.72765 | J195: =SUM(J193:J194) -> -19532.97922 | K195: =SUM(K193:K194) -> -929691.9635 | L195: =SUM(L193:L194) -> -984139.3474 | M195: =SUM(M193:M194) -> -1042321.076 | N195: =SUM(N193:N194) -> -900343.0161 | O195: =SUM(O193:O194) -> -826513.1253 | P195: =SUM(P193:P194) -> -1028558.035 | Q195: =SUM(Q193:Q194) -> -1183262.654 | R195: =SUM(R193:R194) -> -1279167.129 | S195: =SUM(S193:S194) -> -1371773.558 | T195: =SUM(T193:T194) -> -1441652.736 | U195: =SUM(U193:U194) -> -1452604.029 | V195: =SUM(V193:V194) -> -1463515.45 | W195: =SUM(W193:W194) -> -1486191.055 | X195: =SUM(X193:X194) -> -1503892.035 | Y195: =SUM(Y193:Y194) -> -1509743.153 | Z195: =SUM(Z193:Z194) -> -1271071.692 | AA195: =SUM(AA193:AA194) -> -1108751.68 | AB195: =SUM(AB193:AB194) -> -1271274.019 | AC195: =SUM(AC193:AC194) -> -1371159.512 | AD195: =SUM(AD193:AD194) -> -1377113.431 | AE195: =SUM(AE193:AE194) -> -1453422.347 | AF195: =SUM(AF193:AF194) -> -1529675.185 | AG195: =SUM(AG193:AG194) -> -1535460.83 | AH195: =SUM(AH193:AH194) -> -1541186.686 | AI195: =SUM(AI193:AI194) -> -1546850.832 | AJ195: =SUM(AJ193:AJ194) -> -1552451.304 | AK195: =SUM(AK193:AK194) -> -1557986.091 | AL195: =SUM(AL193:AL194) -> -1271152.389 | AM195: =SUM(AM193:AM194) -> -1075592.827 | AN195: =SUM(AN193:AN194) -> -1265859.152 | AO195: =SUM(AO193:AO194) -> -1381222.288 | AP195: =SUM(AP193:AP194) -> -2781860.586
A196: Total | B196: =B179+B183+B187+B191+B195 -> 768125.5985 | C196: =C179+C183+C187+C191+C195 -> -166103.5591 | D196: 89462.09077 | E196: 55016.75187 | F196: 34073.66184 | G196: 33402.03636 | H196: 17432.36628 | I196: 1417.809351 | J196: 592.2787165 | K196: -13735.2847 | L196: -57880.7329 | M196: -105779.4448 | N196: 62463.86909 | O196: 72671.40719 | P196: -118396.0411 | Q196: 1020487.029 | R196: 2204584.326 | S196: 2140460.817 | T196: 2098966.411 | U196: 2116298.089 | V196: 2133564.102 | W196: 2132507.653 | X196: 2129976.493 | Y196: 2139177.911 | Z196: 2392780.527 | AA196: 2462794.236 | AB196: 2315851.605 | AC196: 2231411.56 | AD196: 2240764.335 | AE196: 2179618.762 | AF196: 2118381.211 | AG196: 2127457.985 | AH196: 2136436.755 | AI196: 2145314.406 | AJ196: 2154087.746 | AK196: 2162753.515 | AL196: 2463609.122 | AM196: 2922431.342 | AN196: 2740287.705 | AO196: 2632851.67 | AP196: 5315586.504
